Workbook

Sheet Labels (hidden)
B2: Product Class Choice:
A3: 0 | B3: MWO
A4: 1 | B4: MWO
B7: Relative Price Elasticity Choices:
A8: 0 | B8: No Impact | C8: RP elasticity -0.34 | D8: =INDEX(F8:F9,MATCH(elast_choice,list_PPelast,0)) -> -0.34 | F8: 0
A9: 1 | B9: RP elasticity -0.34 | F9: -0.34
B13: Economic Growth | C13: Reference | D13: =MATCH(iScenario, listScenario, 0) -> 1
B14: Reference
B15: High Growth
B16: Low Growth
B19: % of Non-owners to become owner 1997-2001 | C19: =1.6% -> 0.016
B20: % of Non-owners to become owner 1990-1996 | C20: 0
B23: Discount rate for Elasticity | C23: 0.37
B24: Discount Factor | C24: =(1/$C$23)*(1-(1+$C$23)^-(lifeAvg)) -> 2.615591666
B27: Learning | C27: Default | D27: =INDEX(F27:F32,MATCH(learn_choice,list_learning,0)) -> 1 | F27: 1
B28: Default | F28: 2
B29: Low | F29: 3
B30: High | F30: 4
B31: Microwave Only | F31: 5
B32: AEO Chained | F32: 6
B33: Constant Prices

Sheet Charts (hidden)
B4: Efficiency Chart | H4: PC1 | I4: PC2 | J4: Sum
B5: Microwave Oven | F5: Energy Saving (2014-2043) | H5: =SUM(H125:H154) -> 0.406939837 | I5: =SUM(I125:I154) -> 0.005139111509
C6: Base | D6: Stds | F6: ="Energy Savings Discounted at " & TEXT(drate2, "0.0%") -> Energy Savings Discounted at 3.0% | H6: =SUM(H155:H184) -> 0.2374587517 | I6: =SUM(I155:I184) -> 0.002999621289
B7: 2007 | C7: =VLOOKUP(B7,BaseEF_MWO,2) -> 2.828 | D7: =VLOOKUP(B7,StdsEF_MWO,2) -> 2.828 | F7: Disc. Incr. Equip. Cost (2014-2043) | H7: =SUM('Standards Case - PC1'!$AV50:'Standards Case - PC1'!$AV79) -> 0.3897212839 | I7: =SUM('Standards Case - PC2'!$AV50:'Standards Case - PC2'!$AV79) -> 0.03344361834
B8: =B7+1 -> 2008 | C8: 2.828 | D8: 2.828 | F8: Disc. Oper. Cost Saving (2014-2070) | H8: =SUM('Standards Case - PC1'!$AW50:'Standards Case - PC1'!AW79) -> 3.967854981 | I8: =SUM('Standards Case - PC2'!$AW50:'Standards Case - PC2'!AW79) -> 0.05011584617
B9: 2009 | C9: 2.828 | D9: 2.828 | F9: Base Shipment | G9: 1986 | H9: ='Base Case - PC1'!W22 -> 11.63774155 | I9: ='Base Case - PC2'!W22 -> 0.1175529449 | J9: =H9+I9 -> 11.75529449
B10: 2010 | C10: 2.828 | D10: 2.828 | G10: 1987 | H10: ='Base Case - PC1'!W23 -> 11.79298625 | I10: ='Base Case - PC2'!W23 -> 0.1191210732 | J10: =H10+I10 -> 11.91210732
B11: 2011 | C11: 2.828 | D11: 2.828 | G11: 1988 | H11: ='Base Case - PC1'!W24 -> 10.27514194 | I11: ='Base Case - PC2'!W24 -> 0.1037893126 | J11: 10.37893126 | AR11: Sum | AS11: =SUM(AS13:AS42) -> 1.047441847 | AT11: =SUM(AT13:AT42)*1000 -> 43.08214644
B12: 2012 | C12: 2.828 | D12: 2.828 | G12: 1989 | H12: ='Base Case - PC1'!W25 -> 9.68022 | I12: ='Base Case - PC2'!W25 -> 0.09778 | J12: 9.778 | AI12: Historical Shipments | AJ12: Modeled Shipments | AO12: Replacement Units | AP12: New Units | AS12: MWO | AT12: Combo
B13: 2013 | C13: 2.828 | D13: 2.828 | G13: 1990 | H13: ='Base Case - PC1'!W26 -> 7.61607 | I13: ='Base Case - PC2'!W26 -> 0.07693 | J13: 7.693 | AH13: 1972 | AI13: ='Historical Shipment'!C5 -> 0.2966218636 | AN13: 2010 | AO13: ='Base Case - PC1'!AB46+'Base Case - PC2'!AB46 -> 13.15342549 | AP13: ='Base Case - PC1'!AC46+'Base Case - PC2'!AC46 -> 0.8747061689 | AR13: 2014 | AS13: ='Base Case - PC1'!AD50-'Standards Case - PC1'!AE50 -> 0.0372205678 | AT13: ='Base Case - PC2'!AD50-'Standards Case - PC2'!AE50 -> 0.001526946547
B14: 2014 | C14: 2.828 | D14: 1 | G14: 1991 | H14: ='Base Case - PC1'!W27 -> 6.55677 | I14: ='Base Case - PC2'!W27 -> 0.06623 | J14: 6.623 | AH14: =AH13+1 -> 1973 | AI14: ='Historical Shipment'!C6 -> 0.4203717493 | AN14: =AN13+1 -> 2011 | AO14: ='Base Case - PC1'!AB47+'Base Case - PC2'!AB47 -> 13.26253456 | AP14: ='Base Case - PC1'!AC47+'Base Case - PC2'!AC47 -> 1.40594231 | AR14: =AR13+1 -> 2015 | AS14: ='Base Case - PC1'!AD51-'Standards Case - PC1'!AE51 -> 0.02829520867 | AT14: ='Base Case - PC2'!AD51-'Standards Case - PC2'!AE51 -> 0.001161218949
B15: 2015 | C15: 2.828 | D15: 1 | G15: 1992 | H15: ='Base Case - PC1'!W28 -> 7.1181 | I15: ='Base Case - PC2'!W28 -> 0.0719 | J15: 7.19 | AH15: =AH14+1 -> 1974 | AI15: ='Historical Shipment'!C7 -> 0.6735394545 | AN15: 2012 | AO15: ='Base Case - PC1'!AB48+'Base Case - PC2'!AB48 -> 13.42743213 | AP15: ='Base Case - PC1'!AC48+'Base Case - PC2'!AC48 -> 1.632350955 | AR15: =AR14+1 -> 2016 | AS15: ='Base Case - PC1'!AD52-'Standards Case - PC1'!AE52 -> 0.02200904623 | AT15: ='Base Case - PC2'!AD52-'Standards Case - PC2'!AE52 -> 0.0009037615974
B16: 2016 | C16: 2.828 | D16: 1 | G16: 1993 | H16: ='Base Case - PC1'!W29 -> 7.1676 | I16: ='Base Case - PC2'!W29 -> 0.0724 | J16: 7.24 | AH16: 1975 | AI16: ='Historical Shipment'!C8 -> 0.9937777085 | AN16: 2013 | AO16: ='Base Case - PC1'!AB49+'Base Case - PC2'!AB49 -> 13.51332714 | AP16: ='Base Case - PC1'!AC49+'Base Case - PC2'!AC49 -> 1.692281848 | AR16: 2017 | AS16: ='Base Case - PC1'!AD53-'Standards Case - PC1'!AE53 -> 0.01837768802 | AT16: ='Base Case - PC2'!AD53-'Standards Case - PC2'!AE53 -> 0.0007550351819
B17: 2017 | C17: 2.828 | D17: 1 | G17: 1994 | H17: ='Base Case - PC1'!W30 -> 8.48826 | I17: ='Base Case - PC2'!W30 -> 0.08574 | J17: 8.574 | AH17: 1976 | AI17: ='Historical Shipment'!C9 -> 1.652202673 | AN17: 2014 | AO17: ='Base Case - PC1'!AB50+'Base Case - PC2'!AB50 -> 13.44569713 | AP17: ='Base Case - PC1'!AC50+'Base Case - PC2'!AC50 -> 1.709813941 | AR17: 2018 | AS17: ='Base Case - PC1'!AD54-'Standards Case - PC1'!AE54 -> 0.01542848114 | AT17: ='Base Case - PC2'!AD54-'Standards Case - PC2'!AE54 -> 0.0006340793386
B18: 2018 | C18: 2.828 | D18: 1 | G18: 1995 | H18: ='Base Case - PC1'!W31 -> 8.08038 | I18: ='Base Case - PC2'!W31 -> 0.08162 | J18: 8.162 | AH18: 1977 | AI18: ='Historical Shipment'!C10 -> 2.037622165 | AN18: 2015 | AO18: ='Base Case - PC1'!AB51+'Base Case - PC2'!AB51 -> 13.13413201 | AP18: ='Base Case - PC1'!AC51+'Base Case - PC2'!AC51 -> 1.777597129 | AR18: 2019 | AS18: ='Base Case - PC1'!AD55-'Standards Case - PC1'!AE55 -> 0.01542390492 | AT18: ='Base Case - PC2'!AD55-'Standards Case - PC2'!AE55 -> 0.0006340000203
B19: 2019 | C19: 2.828 | D19: 1 | G19: 1996 | H19: ='Base Case - PC1'!W32 -> 8.68329 | I19: ='Base Case - PC2'!W32 -> 0.08771 | J19: 8.771 | AH19: 1978 | AI19: ='Historical Shipment'!C11 -> 2.362583697 | AN19: 2016 | AO19: ='Base Case - PC1'!AB52+'Base Case - PC2'!AB52 -> 12.52559464 | AP19: ='Base Case - PC1'!AC52+'Base Case - PC2'!AC52 -> 1.846149742 | AR19: 2020 | AS19: ='Base Case - PC1'!AD56-'Standards Case - PC1'!AE56 -> 0.01647330414 | AT19: ='Base Case - PC2'!AD56-'Standards Case - PC2'!AE56 -> 0.0006772582739
B20: 2020 | C20: 2.828 | D20: 1 | G20: 1997 | H20: ='Base Case - PC1'!W33 -> 9.05058 | I20: ='Base Case - PC2'!W33 -> 0.09142 | J20: 9.142 | AH20: 1979 | AI20: ='Historical Shipment'!C12 -> 2.651648315 | AN20: 2017 | AO20: ='Base Case - PC1'!AB53+'Base Case - PC2'!AB53 -> 11.90346196 | AP20: ='Base Case - PC1'!AC53+'Base Case - PC2'!AC53 -> 1.86892774 | AR20: 2021 | AS20: ='Base Case - PC1'!AD57-'Standards Case - PC1'!AE57 -> 0.01871453221 | AT20: ='Base Case - PC2'!AD57-'Standards Case - PC2'!AE57 -> 0.0007692942714
B21: 2021 | C21: 2.828 | D21: 1 | G21: 1998 | H21: ='Base Case - PC1'!W34 -> 10.26135 | I21: ='Base Case - PC2'!W34 -> 0.10365 | J21: 10.365 | AH21: 1980 | AI21: ='Historical Shipment'!C13 -> 3.408317464 | AN21: 2018 | AO21: ='Base Case - PC1'!AB54+'Base Case - PC2'!AB54 -> 11.67189852 | AP21: ='Base Case - PC1'!AC54+'Base Case - PC2'!AC54 -> 1.893925997 | AR21: 2022 | AS21: ='Base Case - PC1'!AD58-'Standards Case - PC1'!AE58 -> 0.02236391774 | AT21: ='Base Case - PC2'!AD58-'Standards Case - PC2'!AE58 -> 0.0009188702162
B22: 2022 | C22: 2.828 | D22: 1 | G22: 1999 | H22: ='Base Case - PC1'!W35 -> 11.30778 | I22: ='Base Case - PC2'!W35 -> 0.11422 | J22: 11.422 | AH22: 1981 | AI22: ='Historical Shipment'!C14 -> 4.177267136 | AN22: 2019 | AO22: ='Base Case - PC1'!AB55+'Base Case - PC2'!AB55 -> 11.9663272 | AP22: ='Base Case - PC1'!AC55+'Base Case - PC2'!AC55 -> 1.924224104 | AR22: 2023 | AS22: ='Base Case - PC1'!AD59-'Standards Case - PC1'!AE59 -> 0.02720823663 | AT22: ='Base Case - PC2'!AD59-'Standards Case - PC2'!AE59 -> 0.001117350282
B23: 2023 | C23: 2.828 | D23: 1 | G23: 2000 | H23: ='Base Case - PC1'!W36 -> 12.51756 | I23: ='Base Case - PC2'!W36 -> 0.12644 | J23: 12.644 | AH23: 1982 | AI23: ='Historical Shipment'!C15 -> 3.845693014 | AN23: 2020 | AO23: ='Base Case - PC1'!AB56+'Base Case - PC2'!AB56 -> 12.68391397 | AP23: ='Base Case - PC1'!AC56+'Base Case - PC2'!AC56 -> 1.925320037 | AR23: 2024 | AS23: ='Base Case - PC1'!AD60-'Standards Case - PC1'!AE60 -> 0.03264605619 | AT23: ='Base Case - PC2'!AD60-'Standards Case - PC2'!AE60 -> 0.001340262788
B24: 2024 | C24: 2.828 | D24: 1 | G24: 2001 | H24: ='Base Case - PC1'!W37 -> 13.31154 | I24: ='Base Case - PC2'!W37 -> 0.13446 | J24: 13.446 | AH24: 1983 | AI24: ='Historical Shipment'!C16 -> 5.604641772 | AN24: 2021 | AO24: ='Base Case - PC1'!AB57+'Base Case - PC2'!AB57 -> 13.47628494 | AP24: ='Base Case - PC1'!AC57+'Base Case - PC2'!AC57 -> 1.863752816 | AR24: 2025 | AS24: ='Base Case - PC1'!AD61-'Standards Case - PC1'!AE61 -> 0.03554142904 | AT24: ='Base Case - PC2'!AD61-'Standards Case - PC2'!AE61 -> 0.001459110444
B25: 2025 | C25: 2.828 | D25: =VLOOKUP(B25,StdsEF_MWO,2) -> 1 | G25: 2002 | H25: ='Base Case - PC1'!W38 -> 13.17789 | I25: ='Base Case - PC2'!W38 -> 0.13311 | J25: 13.311 | AH25: 1984 | AI25: ='Historical Shipment'!C17 -> 8.626595089 | AN25: 2022 | AO25: ='Base Case - PC1'!AB58+'Base Case - PC2'!AB58 -> 14.06978213 | AP25: ='Base Case - PC1'!AC58+'Base Case - PC2'!AC58 -> 1.815806208 | AR25: 2026 | AS25: ='Base Case - PC1'!AD62-'Standards Case - PC1'!AE62 -> 0.03485955441 | AT25: ='Base Case - PC2'!AD62-'Standards Case - PC2'!AE62 -> 0.001431657509
B26: 2026 | C26: 2.828 | D26: 1 | G26: 2003 | H26: ='Base Case - PC1'!W39 -> 14.13126 | I26: ='Base Case - PC2'!W39 -> 0.14274 | J26: 14.274 | AH26: 1985 | AI26: ='Historical Shipment'!C18 -> 10.28068707 | AN26: 2023 | AO26: ='Base Case - PC1'!AB59+'Base Case - PC2'!AB59 -> 14.28462529 | AP26: ='Base Case - PC1'!AC59+'Base Case - PC2'!AC59 -> 1.789805712 | AR26: 2027 | AS26: ='Base Case - PC1'!AD63-'Standards Case - PC1'!AE63 -> 0.03241962367 | AT26: ='Base Case - PC2'!AD63-'Standards Case - PC2'!AE63 -> 0.001332253017
B27: 2027 | C27: 2.828 | D27: 1 | G27: 2004 | H27: ='Base Case - PC1'!W40 -> 15.37074 | I27: ='Base Case - PC2'!W40 -> 0.15526 | J27: 15.526 | AH27: 1986 | AI27: ='Historical Shipment'!C19 -> 11.75529449 | AN27: 2024 | AO27: ='Base Case - PC1'!AB60+'Base Case - PC2'!AB60 -> 14.22842643 | AP27: ='Base Case - PC1'!AC60+'Base Case - PC2'!AC60 -> 1.781172635 | AR27: 2028 | AS27: ='Base Case - PC1'!AD64-'Standards Case - PC1'!AE64 -> 0.03068231073 | AT27: ='Base Case - PC2'!AD64-'Standards Case - PC2'!AE64 -> 0.001261574767
B28: 2028 | C28: 2.828 | D28: 1 | G28: 2005 | H28: ='Base Case - PC1'!W41 -> 13.7214 | I28: ='Base Case - PC2'!W41 -> 0.1386 | J28: 13.86 | AH28: 1987 | AI28: ='Historical Shipment'!C20 -> 11.91210732 | AN28: 2025 | AO28: ='Base Case - PC1'!AB61+'Base Case - PC2'!AB61 -> 14.02976294 | AP28: ='Base Case - PC1'!AC61+'Base Case - PC2'!AC61 -> 1.792097897 | AR28: 2029 | AS28: ='Base Case - PC1'!AD65-'Standards Case - PC1'!AE65 -> 0.03061165816 | AT28: ='Base Case - PC2'!AD65-'Standards Case - PC2'!AE65 -> 0.001259244897
B29: 2029 | C29: 2.828 | D29: 1 | G29: 2006 | H29: ='Base Case - PC1'!W42 -> 13.55013 | I29: ='Base Case - PC2'!W42 -> 0.13687 | J29: 13.687 | AH29: 1988 | AI29: ='Historical Shipment'!C21 -> 10.37893126 | AN29: 2026 | AO29: ='Base Case - PC1'!AB62+'Base Case - PC2'!AB62 -> 13.74713896 | AP29: ='Base Case - PC1'!AC62+'Base Case - PC2'!AC62 -> 1.784620377 | AR29: 2030 | AS29: ='Base Case - PC1'!AD66-'Standards Case - PC1'!AE66 -> 0.0321333181 | AT29: ='Base Case - PC2'!AD66-'Standards Case - PC2'!AE66 -> 0.001322071953
B30: 2030 | C30: 2.828 | D30: 1 | G30: 2007 | H30: ='Base Case - PC1'!W43 -> 11.73249 | I30: ='Base Case - PC2'!W43 -> 0.11851 | J30: 11.851 | AH30: 1989 | AI30: ='Historical Shipment'!C22 -> 9.778 | AN30: 2027 | AO30: ='Base Case - PC1'!AB63+'Base Case - PC2'!AB63 -> 13.53658433 | AP30: ='Base Case - PC1'!AC63+'Base Case - PC2'!AC63 -> 1.755017876 | AR30: 2031 | AS30: ='Base Case - PC1'!AD67-'Standards Case - PC1'!AE67 -> 0.03481583047 | AT30: ='Base Case - PC2'!AD67-'Standards Case - PC2'!AE67 -> 0.001432398734
B31: 2031 | C31: 2.828 | D31: 1 | G31: 2008 | H31: ='Base Case - PC1'!W44 -> 11.2266 | I31: ='Base Case - PC2'!W44 -> 0.1134 | J31: 11.34 | AH31: 1990 | AI31: ='Historical Shipment'!C23 -> 7.693 | AN31: 2028 | AO31: ='Base Case - PC1'!AB64+'Base Case - PC2'!AB64 -> 13.52140576 | AP31: ='Base Case - PC1'!AC64+'Base Case - PC2'!AC64 -> 1.709753371 | AR31: 2032 | AS31: ='Base Case - PC1'!AD68-'Standards Case - PC1'!AE68 -> 0.03815497748 | AT31: ='Base Case - PC2'!AD68-'Standards Case - PC2'!AE68 -> 0.00156950461
B32: 2032 | C32: 2.828 | D32: 1 | G32: 2009 | H32: ='Base Case - PC1'!W45 -> 9.52974 | I32: ='Base Case - PC2'!W45 -> 0.09626 | J32: 9.626 | AH32: 1991 | AI32: ='Historical Shipment'!C24 -> 6.623 | AN32: 2029 | AO32: ='Base Case - PC1'!AB65+'Base Case - PC2'!AB65 -> 13.77253389 | AP32: ='Base Case - PC1'!AC65+'Base Case - PC2'!AC65 -> 1.680926919 | AR32: 2033 | AS32: ='Base Case - PC1'!AD69-'Standards Case - PC1'!AE69 -> 0.04157143095 | AT32: ='Base Case - PC2'!AD69-'Standards Case - PC2'!AE69 -> 0.001709647075
B33: 2033 | C33: 2.828 | D33: 1 | G33: 2010 | H33: ='Base Case - PC1'!W46 -> 13.88785034 | I33: ='Base Case - PC2'!W46 -> 0.1402813166 | J33: 14.02813166 | AH33: 1992 | AI33: ='Historical Shipment'!C25 -> 7.19 | AN33: 2030 | AO33: ='Base Case - PC1'!AB66+'Base Case - PC2'!AB66 -> 14.20765045 | AP33: ='Base Case - PC1'!AC66+'Base Case - PC2'!AC66 -> 1.680676123 | AR33: 2034 | AS33: ='Base Case - PC1'!AD70-'Standards Case - PC1'!AE70 -> 0.04443188424 | AT33: ='Base Case - PC2'!AD70-'Standards Case - PC2'!AE70 -> 0.001827136887
B34: 2034 | C34: 2.828 | D34: 1 | G34: =G33+1 -> 2011 | H34: ='Base Case - PC1'!W47 -> 14.52179211 | I34: ='Base Case - PC2'!W47 -> 0.1466847687 | J34: 14.66847687 | AH34: 1993 | AI34: ='Historical Shipment'!C26 -> 7.24 | AN34: 2031 | AO34: ='Base Case - PC1'!AB67+'Base Case - PC2'!AB67 -> 14.62594326 | AP34: ='Base Case - PC1'!AC67+'Base Case - PC2'!AC67 -> 1.658082673 | AR34: 2035 | AS34: ='Base Case - PC1'!AD71-'Standards Case - PC1'!AE71 -> 0.04609516235 | AT34: ='Base Case - PC2'!AD71-'Standards Case - PC2'!AE71 -> 0.001895724599
B35: 2035 | C35: 2.828 | D35: 1 | G35: 2012 | H35: ='Base Case - PC1'!W48 -> 14.90918526 | I35: ='Base Case - PC2'!W48 -> 0.1505978309 | J35: 15.05978309 | AH35: 1994 | AI35: ='Historical Shipment'!C27 -> 8.574 | AN35: 2032 | AO35: ='Base Case - PC1'!AB68+'Base Case - PC2'!AB68 -> 14.95392229 | AP35: ='Base Case - PC1'!AC68+'Base Case - PC2'!AC68 -> 1.619343609 | AR35: 2036 | AS35: ='Base Case - PC1'!AD72-'Standards Case - PC1'!AE72 -> 0.04647235735 | AT35: ='Base Case - PC2'!AD72-'Standards Case - PC2'!AE72 -> 0.001911821745
B36: 2036 | C36: 2.828 | D36: 1 | G36: 2013 | H36: ='Base Case - PC1'!W49 -> 15.0535529 | I36: ='Base Case - PC2'!W49 -> 0.1520560899 | J36: 15.20560899 | AH36: 1995 | AI36: ='Historical Shipment'!C28 -> 8.162 | AN36: 2033 | AO36: ='Base Case - PC1'!AB69+'Base Case - PC2'!AB69 -> 15.15489526 | AP36: ='Base Case - PC1'!AC69+'Base Case - PC2'!AC69 -> 1.605398379 | AR36: 2037 | AS36: ='Base Case - PC1'!AD73-'Standards Case - PC1'!AE73 -> 0.04609038001 | AT36: ='Base Case - PC2'!AD73-'Standards Case - PC2'!AE73 -> 0.00189698491
B37: 2037 | C37: 2.828 | D37: 1 | G37: 2014 | H37: ='Base Case - PC1'!W50 -> 15.00395596 | I37: ='Base Case - PC2'!W50 -> 0.1515551107 | J37: 15.15551107 | AH37: 1996 | AI37: ='Historical Shipment'!C29 -> 8.771 | AN37: 2034 | AO37: ='Base Case - PC1'!AB70+'Base Case - PC2'!AB70 -> 15.17900761 | AP37: ='Base Case - PC1'!AC70+'Base Case - PC2'!AC70 -> 1.606993066 | AR37: 2038 | AS37: ='Base Case - PC1'!AD74-'Standards Case - PC1'!AE74 -> 0.04582462722 | AT37: ='Base Case - PC2'!AD74-'Standards Case - PC2'!AE74 -> 0.001886982373
B38: 2038 | C38: 2.828 | D38: 1 | G38: 2015 | H38: ='Base Case - PC1'!W51 -> 14.76261185 | I38: ='Base Case - PC2'!W51 -> 0.1491172914 | J38: 14.91172914 | AH38: 1997 | AI38: ='Historical Shipment'!C30 -> 9.142 | AN38: 2035 | AO38: ='Base Case - PC1'!AB71+'Base Case - PC2'!AB71 -> 15.07529211 | AP38: ='Base Case - PC1'!AC71+'Base Case - PC2'!AC71 -> 1.604918553 | AR38: 2039 | AS38: ='Base Case - PC1'!AD75-'Standards Case - PC1'!AE75 -> 0.04637924279 | AT38: ='Base Case - PC2'!AD75-'Standards Case - PC2'!AE75 -> 0.001910568363
B39: 2039 | C39: 2.828 | D39: 1 | G39: 2016 | H39: ='Base Case - PC1'!W52 -> 14.22802694 | I39: ='Base Case - PC2'!W52 -> 0.1437174438 | J39: 14.37174438 | AH39: 1998 | AI39: ='Historical Shipment'!C31 -> 10.365 | AN39: 2036 | AO39: ='Base Case - PC1'!AB72+'Base Case - PC2'!AB72 -> 14.94734746 | AP39: ='Base Case - PC1'!AC72+'Base Case - PC2'!AC72 -> 1.604918553 | AR39: 2040 | AS39: ='Base Case - PC1'!AD76-'Standards Case - PC1'!AE76 -> 0.04797018192 | AT39: ='Base Case - PC2'!AD76-'Standards Case - PC2'!AE76 -> 0.001976530301
B40: 2040 | C40: 2.828 | D40: 1 | G40: 2017 | H40: ='Base Case - PC1'!W53 -> 13.6346658 | I40: ='Base Case - PC2'!W53 -> 0.137723897 | J40: 13.7723897 | AH40: 1999 | AI40: ='Historical Shipment'!C32 -> 11.422 | AN40: 2037 | AO40: ='Base Case - PC1'!AB73+'Base Case - PC2'!AB73 -> 14.8816578 | AP40: ='Base Case - PC1'!AC73+'Base Case - PC2'!AC73 -> 1.604918553 | AR40: 2041 | AS40: ='Base Case - PC1'!AD77-'Standards Case - PC1'!AE77 -> 0.05036844174 | AT40: ='Base Case - PC2'!AD77-'Standards Case - PC2'!AE77 -> 0.002075462174
B41: 2041 | C41: 2.828 | D41: 1 | G41: 2018 | H41: ='Base Case - PC1'!W54 -> 13.43016627 | I41: ='Base Case - PC2'!W54 -> 0.1356582452 | J41: 13.56582452 | AH41: 2000 | AI41: ='Historical Shipment'!C33 -> 12.644 | AN41: 2038 | AO41: ='Base Case - PC1'!AB74+'Base Case - PC2'!AB74 -> 14.9272051 | AP41: ='Base Case - PC1'!AC74+'Base Case - PC2'!AC74 -> 1.604918553 | AR41: 2042 | AS41: ='Base Case - PC1'!AD78-'Standards Case - PC1'!AE78 -> 0.05311940524 | AT41: ='Base Case - PC2'!AD78-'Standards Case - PC2'!AE78 -> 0.002188754792
B42: 2042 | C42: 2.828 | D42: 1 | G42: 2019 | H42: ='Base Case - PC1'!W55 -> 13.75164579 | I42: ='Base Case - PC2'!W55 -> 0.138905513 | J42: 13.8905513 | AH42: 2001 | AI42: ='Historical Shipment'!C34 -> 13.446 | AN42: 2039 | AO42: ='Base Case - PC1'!AB75+'Base Case - PC2'!AB75 -> 15.09677364 | AP42: ='Base Case - PC1'!AC75+'Base Case - PC2'!AC75 -> 1.604918553 | AR42: 2043 | AS42: ='Base Case - PC1'!AD79-'Standards Case - PC1'!AE79 -> 0.05573908719 | AT42: ='Base Case - PC2'!AD79-'Standards Case - PC2'!AE79 -> 0.002296639827
G43: 2020 | H43: ='Base Case - PC1'!W56 -> 14.46314167 | I43: ='Base Case - PC2'!W56 -> 0.1460923401 | J43: 14.60923401 | AH43: 2002 | AI43: ='Historical Shipment'!C35 -> 13.311 | AN43: 2040 | AO43: ='Base Case - PC1'!AB76+'Base Case - PC2'!AB76 -> 15.35244998 | AP43: ='Base Case - PC1'!AC76+'Base Case - PC2'!AC76 -> 1.604918553
G44: 2021 | H44: ='Base Case - PC1'!W57 -> 15.18663738 | I44: ='Base Case - PC2'!W57 -> 0.1534003776 | J44: 15.34003776 | AH44: 2003 | AI44: ='Historical Shipment'!C36 -> 14.274 | AN44: 2041 | AO44: ='Base Case - PC1'!AB77+'Base Case - PC2'!AB77 -> 15.62379742 | AP44: ='Base Case - PC1'!AC77+'Base Case - PC2'!AC77 -> 1.604918553
G45: 2022 | H45: ='Base Case - PC1'!W58 -> 15.72673246 | I45: ='Base Case - PC2'!W58 -> 0.1588558834 | J45: 15.88558834 | AH45: 2004 | AI45: ='Historical Shipment'!C37 -> 15.526 | AN45: 2042 | AO45: ='Base Case - PC1'!AB78+'Base Case - PC2'!AB78 -> 15.84378469 | AP45: ='Base Case - PC1'!AC78+'Base Case - PC2'!AC78 -> 1.604918553
G46: 2023 | H46: ='Base Case - PC1'!W59 -> 15.91368669 | I46: ='Base Case - PC2'!W59 -> 0.16074431 | J46: 16.074431 | AH46: 2005 | AI46: ='Historical Shipment'!C38 -> 13.86 | AN46: 2043 | AO46: ='Base Case - PC1'!AB79+'Base Case - PC2'!AB79 -> 15.97668872 | AP46: ='Base Case - PC1'!AC79+'Base Case - PC2'!AC79 -> 1.604918553
G47: 2024 | H47: ='Base Case - PC1'!W60 -> 15.84950307 | I47: ='Base Case - PC2'!W60 -> 0.1600959906 | J47: 16.00959906 | AH47: 2006 | AI47: ='Historical Shipment'!C39 -> 13.687
G48: 2025 | H48: ='Base Case - PC1'!W61 -> 15.66364223 | I48: ='Base Case - PC2'!W61 -> 0.1582186084 | J48: 15.82186084 | AH48: 2007 | AI48: ='Historical Shipment'!C40 -> 11.851 | AJ48: ='Base Case - PC1'!AD43+'Base Case - PC2'!AD43 -> 7.987627819
G49: 2026 | H49: ='Base Case - PC1'!W62 -> 15.37644174 | I49: ='Base Case - PC2'!W62 -> 0.1553175933 | J49: 15.53175933 | AH49: 2008 | AI49: ='Historical Shipment'!C41 -> 11.34 | AJ49: ='Base Case - PC1'!AD44+'Base Case - PC2'!AD44 -> 10.18582426
G50: 2027 | H50: ='Base Case - PC1'!W63 -> 15.13868619 | I50: ='Base Case - PC2'!W63 -> 0.1529160221 | J50: 15.29160221 | AH50: 2009 | AI50: ='Historical Shipment'!C42 -> 9.626 | AJ50: ='Base Case - PC1'!AD45+'Base Case - PC2'!AD45 -> 11.40480575
G51: 2028 | H51: ='Base Case - PC1'!W64 -> 15.07884754 | I51: ='Base Case - PC2'!W64 -> 0.1523115913 | J51: 15.23115913 | AH51: 2010 | AJ51: ='Base Case - PC1'!AD46+'Base Case - PC2'!AD46 -> 14.02813166
G52: 2029 | H52: ='Base Case - PC1'!W65 -> 15.2989262 | I52: ='Base Case - PC2'!W65 -> 0.1545346081 | J52: 15.45346081 | AH52: 2011 | AJ52: ='Base Case - PC1'!AD47+'Base Case - PC2'!AD47 -> 14.66847687
G53: 2030 | H53: ='Base Case - PC1'!W66 -> 15.72944331 | I53: ='Base Case - PC2'!W66 -> 0.1588832657 | J53: 15.88832657 | AH53: 2012 | AJ53: ='Base Case - PC1'!AD48+'Base Case - PC2'!AD48 -> 15.05978309
G54: 2031 | H54: ='Base Case - PC1'!W67 -> 16.12118568 | I54: ='Base Case - PC2'!W67 -> 0.1628402594 | J54: 16.28402594 | AH54: 2013 | AJ54: ='Base Case - PC1'!AD49+'Base Case - PC2'!AD49 -> 15.20560899
G55: 2032 | H55: ='Base Case - PC1'!W68 -> 16.40753324 | I55: ='Base Case - PC2'!W68 -> 0.165732659 | J55: 16.5732659 | AH55: 2014 | AJ55: ='Base Case - PC1'!AD50+'Base Case - PC2'!AD50 -> 15.15551107
G56: 2033 | H56: ='Base Case - PC1'!W69 -> 16.5926907 | I56: ='Base Case - PC2'!W69 -> 0.1676029364 | J56: 16.76029364 | AH56: 2015 | AJ56: ='Base Case - PC1'!AD51+'Base Case - PC2'!AD51 -> 14.91172914
G57: =G56+1 -> 2034 | H57: ='Base Case - PC1'!W70 -> 16.61814067 | I57: ='Base Case - PC2'!W70 -> 0.1678600067 | J57: 16.78600067 | AH57: 2016 | AJ57: ='Base Case - PC1'!AD52+'Base Case - PC2'!AD52 -> 14.37174438
G58: =G57+1 -> 2035 | H58: ='Base Case - PC1'!W71 -> 16.51340855 | I58: ='Base Case - PC2'!W71 -> 0.1668021066 | J58: 16.68021066 | AH58: 2017 | AJ58: ='Base Case - PC1'!AD53+'Base Case - PC2'!AD53 -> 13.7723897
G59: 2036 | H59: ='Base Case - PC1'!W72 -> 16.38674335 | I59: ='Base Case - PC2'!W72 -> 0.1655226601 | J59: 16.55226601 | AH59: 2018 | AJ59: ='Base Case - PC1'!AD54+'Base Case - PC2'!AD54 -> 13.56582452
G60: 2037 | H60: ='Base Case - PC1'!W73 -> 16.32171059 | I60: ='Base Case - PC2'!W73 -> 0.1648657636 | J60: 16.48657636 | AH60: 2019 | AJ60: ='Base Case - PC1'!AD55+'Base Case - PC2'!AD55 -> 13.8905513
G61: 2038 | H61: ='Base Case - PC1'!W74 -> 16.36680242 | I61: ='Base Case - PC2'!W74 -> 0.1653212365 | J61: 16.53212365 | AH61: 2020 | AJ61: ='Base Case - PC1'!AD56+'Base Case - PC2'!AD56 -> 14.60923401
G62: 2039 | H62: ='Base Case - PC1'!W75 -> 16.53467527 | I62: ='Base Case - PC2'!W75 -> 0.167016922 | J62: 16.7016922 | AH62: 2021 | AJ62: ='Base Case - PC1'!AD57+'Base Case - PC2'!AD57 -> 15.34003776
G63: 2040 | H63: ='Base Case - PC1'!W76 -> 16.78779484 | I63: ='Base Case - PC2'!W76 -> 0.1695736853 | J63: 16.95736853 | AH63: 2022 | AJ63: ='Base Case - PC1'!AD58+'Base Case - PC2'!AD58 -> 15.88558834
G64: 2041 | H64: ='Base Case - PC1'!W77 -> 17.05642881 | I64: ='Base Case - PC2'!W77 -> 0.1722871597 | J64: =H64+I64 -> 17.22871597 | AH64: 2023 | AJ64: ='Base Case - PC1'!AD59+'Base Case - PC2'!AD59 -> 16.074431
G65: 2042 | H65: ='Base Case - PC1'!W78 -> 17.27421621 | I65: ='Base Case - PC2'!W78 -> 0.1744870324 | J65: 17.44870324 | AH65: 2024 | AJ65: ='Base Case - PC1'!AD60+'Base Case - PC2'!AD60 -> 16.00959906
G66: 2043 | H66: ='Base Case - PC1'!W79 -> 17.4057912 | I66: ='Base Case - PC2'!W79 -> 0.1758160727 | J66: 17.58160727 | AH66: 2025 | AJ66: ='Base Case - PC1'!AD61+'Base Case - PC2'!AD61 -> 15.82186084
F67: Standards Shipment | G67: 1986 | H67: ='Standards Case - PC1'!W22 -> 11.63774155 | I67: ='Standards Case - PC2'!W22 -> 0.1175529449 | J67: 11.75529449 | AH67: 2026 | AJ67: ='Base Case - PC1'!AD62+'Base Case - PC2'!AD62 -> 15.53175933
G68: 1987 | H68: ='Standards Case - PC1'!W23 -> 11.79298625 | I68: ='Standards Case - PC2'!W23 -> 0.1191210732 | J68: 11.91210732 | AH68: 2027 | AJ68: ='Base Case - PC1'!AD63+'Base Case - PC2'!AD63 -> 15.29160221
G69: 1988 | H69: ='Standards Case - PC1'!W24 -> 10.27514194 | I69: ='Standards Case - PC2'!W24 -> 0.1037893126 | J69: 10.37893126 | AH69: 2028 | AJ69: ='Base Case - PC1'!AD64+'Base Case - PC2'!AD64 -> 15.23115913
G70: 1989 | H70: ='Standards Case - PC1'!W25 -> 9.68022 | I70: ='Standards Case - PC2'!W25 -> 0.09778 | J70: 9.778 | L70: TSL: | M70: =iStd_MWO -> 3 | Q70: TSL: | R70: =iStd_Combo -> 3 | AH70: 2029 | AJ70: ='Base Case - PC1'!AD65+'Base Case - PC2'!AD65 -> 15.45346081
G71: 1990 | H71: ='Standards Case - PC1'!W26 -> 7.61607 | I71: ='Standards Case - PC2'!W26 -> 0.07693 | J71: 7.693 | L71: PC1 | Q71: PC2 | V71: Combined | AH71: 2030 | AJ71: ='Base Case - PC1'!AD66+'Base Case - PC2'!AD66 -> 15.88832657
G72: 1991 | H72: ='Standards Case - PC1'!W27 -> 6.55677 | I72: ='Standards Case - PC2'!W27 -> 0.06623 | J72: 6.623 | L72: Year | M72: Equipment Cost | N72: Operating Cost Savings | O72: Net Savings | Q72: Year | R72: Equipment Cost | S72: Operating Cost Savings | T72: Net Savings | V72: Year | W72: Equipment Cost | X72: Operating Cost Savings | Y72: Net Savings | AH72: 2031 | AJ72: ='Base Case - PC1'!AD67+'Base Case - PC2'!AD67 -> 16.28402594
G73: 1992 | H73: ='Standards Case - PC1'!W28 -> 7.1181 | I73: ='Standards Case - PC2'!W28 -> 0.0719 | J73: 7.19 | L73: 2012 | M73: =('Standards Case - PC1'!AN48)*-1 -> 0 | N73: ='Standards Case - PC1'!AR48 -> 0 | O73: =N73+M73 -> 0 | Q73: 2012 | R73: =('Standards Case - PC2'!AN48)*-1 -> 0 | S73: ='Standards Case - PC2'!AR48 -> 0 | T73: =S73+R73 -> 0 | V73: 2012 | W73: =M73+R73 -> 0 | X73: =N73+S73 -> 0 | Y73: =O73+T73 -> 0 | AH73: 2032 | AJ73: ='Base Case - PC1'!AD68+'Base Case - PC2'!AD68 -> 16.5732659
G74: 1993 | H74: ='Standards Case - PC1'!W29 -> 7.1676 | I74: ='Standards Case - PC2'!W29 -> 0.0724 | J74: 7.24 | L74: 2013 | M74: =('Standards Case - PC1'!AN49)*-1 -> 0 | N74: ='Standards Case - PC1'!AR49 -> 0 | O74: =N74+M74 -> 0 | Q74: 2013 | R74: =('Standards Case - PC2'!AN49)*-1 -> 0 | S74: ='Standards Case - PC2'!AR49 -> 0 | T74: =S74+R74 -> 0 | V74: 2013 | W74: =M74+R74 -> 0 | X74: =N74+S74 -> 0 | Y74: =O74+T74 -> 0 | AH74: 2033 | AJ74: ='Base Case - PC1'!AD69+'Base Case - PC2'!AD69 -> 16.76029364
G75: 1994 | H75: ='Standards Case - PC1'!W30 -> 8.48826 | I75: ='Standards Case - PC2'!W30 -> 0.08574 | J75: =H75+I75 -> 8.574 | L75: 2014 | M75: =('Standards Case - PC1'!AN50)*-1 -> -0.02430558017 | N75: ='Standards Case - PC1'!AR50 -> 0.02586162561 | O75: 0.001556045444 | Q75: 2014 | R75: =('Standards Case - PC2'!AN50)*-1 -> -0.002082991032 | S75: ='Standards Case - PC2'!AR50 -> 0.0003261768839 | T75: -0.001756814148 | V75: 2014 | W75: -0.0263885712 | X75: 0.0261878025 | Y75: -0.0002007687037 | AH75: 2034 | AJ75: ='Base Case - PC1'!AD70+'Base Case - PC2'!AD70 -> 16.78600067
G76: 1995 | H76: ='Standards Case - PC1'!W31 -> 8.08038 | I76: ='Standards Case - PC2'!W31 -> 0.08162 | J76: 8.162 | L76: 2015 | M76: =('Standards Case - PC1'!AN51)*-1 -> -0.02352898342 | N76: ='Standards Case - PC1'!AR51 -> 0.05122276507 | O76: 0.02769378165 | Q76: 2015 | R76: =('Standards Case - PC2'!AN51)*-1 -> -0.002019954807 | S76: ='Standards Case - PC2'!AR51 -> 0.0006466006265 | T76: -0.001373354181 | V76: 2015 | W76: -0.02554893823 | X76: 0.0518693657 | Y76: 0.02632042747 | AH76: 2035 | AJ76: ='Base Case - PC1'!AD71+'Base Case - PC2'!AD71 -> 16.68021066
G77: 1996 | H77: ='Standards Case - PC1'!W32 -> 8.68329 | I77: ='Standards Case - PC2'!W32 -> 0.08771 | J77: 8.771 | L77: 2016 | M77: =('Standards Case - PC1'!AN52)*-1 -> -0.02232562139 | N77: ='Standards Case - PC1'!AR52 -> 0.0762481039 | O77: 0.05392248251 | Q77: 2016 | R77: =('Standards Case - PC2'!AN52)*-1 -> -0.001918830923 | S77: ='Standards Case - PC2'!AR52 -> 0.0009631319186 | T77: -0.0009556990043 | V77: 2016 | W77: -0.02424445232 | X77: 0.07721123582 | Y77: 0.0529667835 | AH77: 2036 | AJ77: ='Base Case - PC1'!AD72+'Base Case - PC2'!AD72 -> 16.55226601
G78: 1997 | H78: ='Standards Case - PC1'!W33 -> 9.05058 | I78: ='Standards Case - PC2'!W33 -> 0.09142 | J78: 9.142 | L78: 2017 | M78: =('Standards Case - PC1'!AN53)*-1 -> -0.02107714745 | N78: ='Standards Case - PC1'!AR53 -> 0.1003785249 | O78: 0.07930137744 | Q78: 2017 | R78: =('Standards Case - PC2'!AN53)*-1 -> -0.00181263617 | S78: ='Standards Case - PC2'!AR53 -> 0.001268530428 | T78: -0.0005441057423 | V78: 2017 | W78: -0.02288978362 | X78: 0.1016470553 | Y78: 0.0787572717 | AH78: 2037 | AJ78: ='Base Case - PC1'!AD73+'Base Case - PC2'!AD73 -> 16.48657636
G79: 1998 | H79: ='Standards Case - PC1'!W34 -> 10.26135 | I79: ='Standards Case - PC2'!W34 -> 0.10365 | J79: 10.365 | L79: 2018 | M79: =('Standards Case - PC1'!AN54)*-1 -> -0.02046301043 | N79: ='Standards Case - PC1'!AR54 -> 0.1236157186 | O79: 0.1031527082 | Q79: 2018 | R79: =('Standards Case - PC2'!AN54)*-1 -> -0.001760899353 | S79: ='Standards Case - PC2'!AR54 -> 0.001562819204 | T79: -0.0001980801488 | V79: 2018 | W79: -0.02222390978 | X79: 0.1251785378 | Y79: 0.1029546281 | AH79: =AH78+1 -> 2038 | AJ79: ='Base Case - PC1'!AD74+'Base Case - PC2'!AD74 -> 16.53212365
G80: 1999 | H80: ='Standards Case - PC1'!W35 -> 11.30778 | I80: ='Standards Case - PC2'!W35 -> 0.11422 | J80: 11.422 | L80: 2019 | M80: =('Standards Case - PC1'!AN55)*-1 -> -0.02065041045 | N80: ='Standards Case - PC1'!AR55 -> 0.1467342811 | O80: 0.1260838706 | Q80: 2019 | R80: =('Standards Case - PC2'!AN55)*-1 -> -0.00177717338 | S80: ='Standards Case - PC2'!AR55 -> 0.001855650481 | T80: 7.847710096e-05 | V80: 2019 | W80: -0.02242758383 | X80: 0.1485899316 | Y80: 0.1261623477 | AH80: 2039 | AJ80: ='Base Case - PC1'!AD75+'Base Case - PC2'!AD75 -> 16.7016922
G81: 2000 | H81: ='Standards Case - PC1'!W36 -> 12.51756 | I81: ='Standards Case - PC2'!W36 -> 0.12644 | J81: 12.644 | L81: 2020 | M81: =('Standards Case - PC1'!AN56)*-1 -> -0.02140134147 | N81: ='Standards Case - PC1'!AR56 -> 0.1715498664 | O81: 0.1501485249 | Q81: 2020 | R81: =('Standards Case - PC2'!AN56)*-1 -> -0.001841698094 | S81: ='Standards Case - PC2'!AR56 -> 0.002169970444 | T81: 0.0003282723497 | V81: 2020 | W81: -0.02324303956 | X81: 0.1737198368 | Y81: 0.1504767973 | AH81: 2040 | AJ81: ='Base Case - PC1'!AD76+'Base Case - PC2'!AD76 -> 16.95736853
G82: 2001 | H82: ='Standards Case - PC1'!W37 -> 13.31154 | I82: ='Standards Case - PC2'!W37 -> 0.13446 | J82: 13.446 | L82: 2021 | M82: =('Standards Case - PC1'!AN57)*-1 -> -0.0221400303 | N82: ='Standards Case - PC1'!AR57 -> 0.196032447 | O82: 0.1738924167 | Q82: 2021 | R82: =('Standards Case - PC2'!AN57)*-1 -> -0.001904718413 | S82: ='Standards Case - PC2'!AR57 -> 0.002480050707 | T82: 0.0005753322937 | V82: 2021 | W82: -0.02404474871 | X82: 0.1985124977 | Y82: 0.174467749 | AH82: 2041 | AJ82: ='Base Case - PC1'!AD77+'Base Case - PC2'!AD77 -> 17.22871597
G83: 2002 | H83: ='Standards Case - PC1'!W38 -> 13.17789 | I83: ='Standards Case - PC2'!W38 -> 0.13311 | J83: 13.311 | L83: 2022 | M83: =('Standards Case - PC1'!AN58)*-1 -> -0.02258807942 | N83: ='Standards Case - PC1'!AR58 -> 0.2176932715 | O83: 0.1951051921 | Q83: 2022 | R83: =('Standards Case - PC2'!AN58)*-1 -> -0.001942130649 | S83: ='Standards Case - PC2'!AR58 -> 0.002754318117 | T83: 0.0008121874683 | V83: 2022 | W83: -0.02453021007 | X83: 0.2204475896 | Y83: 0.1959173795 | AH83: 2042 | AJ83: ='Base Case - PC1'!AD78+'Base Case - PC2'!AD78 -> 17.44870324
G84: 2003 | H84: ='Standards Case - PC1'!W39 -> 14.13126 | I84: ='Standards Case - PC2'!W39 -> 0.14274 | J84: 14.274 | L84: 2023 | M84: =('Standards Case - PC1'!AN59)*-1 -> -0.02252267943 | N84: ='Standards Case - PC1'!AR59 -> 0.2350402976 | O84: 0.2125176182 | Q84: 2023 | R84: =('Standards Case - PC2'!AN59)*-1 -> -0.001934792312 | S84: ='Standards Case - PC2'!AR59 -> 0.002973788463 | T84: 0.00103899615 | V84: 2023 | W84: -0.02445747174 | X84: 0.2380140861 | Y84: 0.2135566144 | AH84: 2043 | AJ84: ='Base Case - PC1'!AD79+'Base Case - PC2'!AD79 -> 17.58160727
G85: 2004 | H85: ='Standards Case - PC1'!W40 -> 15.37074 | I85: ='Standards Case - PC2'!W40 -> 0.15526 | J85: 15.526 | L85: 2024 | M85: =('Standards Case - PC1'!AN60)*-1 -> -0.02211231349 | N85: ='Standards Case - PC1'!AR60 -> 0.2463373262 | O85: 0.2242250127 | Q85: 2024 | R85: =('Standards Case - PC2'!AN60)*-1 -> -0.001897488232 | S85: ='Standards Case - PC2'!AR60 -> 0.003116387093 | T85: 0.001218898861 | V85: 2024 | W85: -0.02400980172 | X85: 0.2494537133 | Y85: 0.2254439116
G86: 2005 | H86: ='Standards Case - PC1'!W41 -> 13.7214 | I86: ='Standards Case - PC2'!W41 -> 0.1386 | J86: 13.86 | L86: 2025 | M86: =('Standards Case - PC1'!AN61)*-1 -> -0.02155486857 | N86: ='Standards Case - PC1'!AR61 -> 0.2518532749 | O86: 0.2302984063 | Q86: 2025 | R86: =('Standards Case - PC2'!AN61)*-1 -> -0.001848454364 | S86: ='Standards Case - PC2'!AR61 -> 0.003185576667 | T86: 0.001337122303 | V86: 2025 | W86: -0.02340332294 | X86: 0.2550388516 | Y86: 0.2316355286
G87: 2006 | H87: ='Standards Case - PC1'!W42 -> 13.55013 | I87: ='Standards Case - PC2'!W42 -> 0.13687 | J87: 13.687 | L87: 2026 | M87: =('Standards Case - PC1'!AN62)*-1 -> -0.02088584982 | N87: ='Standards Case - PC1'!AR62 -> 0.2559078402 | O87: 0.2350219904 | Q87: 2026 | R87: =('Standards Case - PC2'!AN62)*-1 -> -0.00179108676 | S87: ='Standards Case - PC2'!AR62 -> 0.003236132008 | T87: 0.001445045248 | V87: 2026 | W87: -0.02267693659 | X87: 0.2591439722 | Y87: 0.2364670356
G88: 2007 | H88: ='Standards Case - PC1'!W43 -> 11.73249 | I88: ='Standards Case - PC2'!W43 -> 0.11851 | J88: 11.851 | L88: 2027 | M88: =('Standards Case - PC1'!AN63)*-1 -> -0.02030862582 | N88: ='Standards Case - PC1'!AR63 -> 0.2593680706 | O88: 0.2390594448 | Q88: 2027 | R88: =('Standards Case - PC2'!AN63)*-1 -> -0.001742255278 | S88: ='Standards Case - PC2'!AR63 -> 0.003279122986 | T88: 0.001536867707 | V88: 2027 | W88: -0.02205088109 | X88: 0.2626471936 | Y88: 0.2405963125
G89: 2008 | H89: ='Standards Case - PC1'!W44 -> 11.2266 | I89: ='Standards Case - PC2'!W44 -> 0.1134 | J89: 11.34 | L89: 2028 | M89: =('Standards Case - PC1'!AN64)*-1 -> -0.01998440875 | N89: ='Standards Case - PC1'!AR64 -> 0.2625123027 | O89: 0.2425278939 | Q89: 2028 | R89: =('Standards Case - PC2'!AN64)*-1 -> -0.001715000392 | S89: ='Standards Case - PC2'!AR64 -> 0.003318102221 | T89: 0.001603101828 | V89: 2028 | W89: -0.02169940915 | X89: 0.2658304049 | Y89: 0.2441309958
G90: 2009 | H90: ='Standards Case - PC1'!W45 -> 9.52974 | I90: ='Standards Case - PC2'!W45 -> 0.09626 | J90: 9.626 | L90: 2029 | M90: =('Standards Case - PC1'!AN65)*-1 -> -0.02003324168 | N90: ='Standards Case - PC1'!AR65 -> 0.2675942774 | O90: 0.2475610358 | Q90: 2029 | R90: =('Standards Case - PC2'!AN65)*-1 -> -0.001719365387 | S90: ='Standards Case - PC2'!AR65 -> 0.00338155064 | T90: 0.001662185253 | V90: 2029 | W90: -0.02175260707 | X90: 0.2709758281 | Y90: 0.249223221
G91: 2010 | H91: ='Standards Case - PC1'!W46 -> 13.88785034 | I91: ='Standards Case - PC2'!W46 -> 0.1402813166 | J91: 14.02813166 | L91: 2030 | M91: =('Standards Case - PC1'!AN66)*-1 -> -0.020349148 | N91: ='Standards Case - PC1'!AR66 -> 0.2721143801 | O91: 0.2517652321 | Q91: 2030 | R91: =('Standards Case - PC2'!AN66)*-1 -> -0.001746248122 | S91: ='Standards Case - PC2'!AR66 -> 0.003437866414 | T91: 0.001691618293 | V91: 2030 | W91: -0.02209539612 | X91: 0.2755522465 | Y91: 0.2534568504
G92: =G91+1 -> 2011 | H92: ='Standards Case - PC1'!W47 -> 14.52179211 | I92: ='Standards Case - PC2'!W47 -> 0.1466847687 | J92: 14.66847687 | L92: 2031 | M92: =('Standards Case - PC1'!AN67)*-1 -> -0.02060449266 | N92: ='Standards Case - PC1'!AR67 -> 0.2768306428 | O92: 0.2562261501 | Q92: 2031 | R92: =('Standards Case - PC2'!AN67)*-1 -> -0.00176751965 | S92: ='Standards Case - PC2'!AR67 -> 0.00349661828 | T92: 0.00172909863 | V92: 2031 | W92: -0.02237201231 | X92: 0.2803272611 | Y92: 0.2579552488
G93: =G92+1 -> 2012 | H93: ='Standards Case - PC1'!W48 -> 14.90918526 | I93: ='Standards Case - PC2'!W48 -> 0.1505978309 | J93: 15.05978309 | L93: 2032 | M93: =('Standards Case - PC1'!AN68)*-1 -> -0.02071877834 | N93: ='Standards Case - PC1'!AR68 -> 0.2810556869 | O93: 0.2603369086 | Q93: 2032 | R93: =('Standards Case - PC2'!AN68)*-1 -> -0.001776410541 | S93: ='Standards Case - PC2'!AR68 -> 0.003549128639 | T93: 0.001772718098 | V93: 2032 | W93: -0.02249518888 | X93: 0.2846048155 | Y93: 0.2621096267
G94: =G93+1 -> 2013 | H94: ='Standards Case - PC1'!W49 -> 15.0535529 | I94: ='Standards Case - PC2'!W49 -> 0.1520560899 | J94: 15.20560899 | L94: 2033 | M94: =('Standards Case - PC1'!AN69)*-1 -> -0.02070377138 | N94: ='Standards Case - PC1'!AR69 -> 0.2840450504 | O94: 0.2633412791 | Q94: 2033 | R94: =('Standards Case - PC2'!AN69)*-1 -> -0.001774134768 | S94: ='Standards Case - PC2'!AR69 -> 0.003586021505 | T94: 0.001811886737 | V94: 2033 | W94: -0.02247790614 | X94: 0.2876310719 | Y94: 0.2651531658
G95: =G94+1 -> 2014 | H95: ='Standards Case - PC1'!W50 -> 14.9667354 | I95: ='Standards Case - PC2'!W50 -> 0.1500281642 | J95: 15.11676356 | L95: 2034 | M95: =('Standards Case - PC1'!AN70)*-1 -> -0.02049372587 | N95: ='Standards Case - PC1'!AR70 -> 0.2878390831 | O95: 0.2673453572 | Q95: 2034 | R95: =('Standards Case - PC2'!AN70)*-1 -> -0.001755217691 | S95: ='Standards Case - PC2'!AR70 -> 0.003633065952 | T95: 0.001877848261 | V95: 2034 | W95: -0.02224894357 | X95: 0.291472149 | Y95: 0.2692232055
G96: 2015 | H96: ='Standards Case - PC1'!W51 -> 14.73431664 | I96: ='Standards Case - PC2'!W51 -> 0.1479560724 | J96: 14.88227271 | L96: 2035 | M96: =('Standards Case - PC1'!AN71)*-1 -> -0.02013332794 | N96: ='Standards Case - PC1'!AR71 -> 0.2914566407 | O96: 0.2713233127 | Q96: 2035 | R96: =('Standards Case - PC2'!AN71)*-1 -> -0.001723717036 | S96: ='Standards Case - PC2'!AR71 -> 0.003677876506 | T96: 0.001954159469 | V96: 2035 | W96: -0.02185704498 | X96: 0.2951345172 | Y96: 0.2732774722
G97: 2016 | H97: ='Standards Case - PC1'!W52 -> 14.20601789 | I97: ='Standards Case - PC2'!W52 -> 0.1428136822 | J97: 14.34883158 | L97: 2036 | M97: =('Standards Case - PC1'!AN72)*-1 -> -0.01975848463 | N97: ='Standards Case - PC1'!AR72 -> 0.2949467711 | O97: 0.2751882864 | Q97: 2036 | R97: =('Standards Case - PC2'!AN72)*-1 -> -0.001691383705 | S97: ='Standards Case - PC2'!AR72 -> 0.003721074999 | T97: 0.002029691294 | V97: 2036 | W97: -0.02144986833 | X97: 0.2986678461 | Y97: 0.2772179777
G98: 2017 | H98: ='Standards Case - PC1'!W53 -> 13.61628812 | I98: ='Standards Case - PC2'!W53 -> 0.1369688618 | J98: 13.75325698 | L98: 2037 | M98: =('Standards Case - PC1'!AN73)*-1 -> -0.01946844749 | N98: ='Standards Case - PC1'!AR73 -> 0.2984676994 | O98: 0.2789992519 | Q98: 2037 | R98: =('Standards Case - PC2'!AN73)*-1 -> -0.001666609594 | S98: ='Standards Case - PC2'!AR73 -> 0.003764656174 | T98: 0.00209804658 | V98: 2037 | W98: -0.02113505709 | X98: 0.3022323556 | Y98: 0.2810972985
G99: 2018 | H99: ='Standards Case - PC1'!W54 -> 13.41473779 | I99: ='Standards Case - PC2'!W54 -> 0.1350241658 | J99: 13.54976196 | L99: 2038 | M99: =('Standards Case - PC1'!AN74)*-1 -> -0.01931587182 | N99: ='Standards Case - PC1'!AR74 -> 0.3020194591 | O99: 0.2827035873 | Q99: 2038 | R99: =('Standards Case - PC2'!AN74)*-1 -> -0.00165366266 | S99: ='Standards Case - PC2'!AR74 -> 0.003808613757 | T99: 0.002154951098 | V99: 2038 | W99: -0.02096953448 | X99: 0.3058280729 | Y99: 0.2848585384
G100: 2019 | H100: ='Standards Case - PC1'!W55 -> 13.73622188 | I100: ='Standards Case - PC2'!W55 -> 0.138271513 | J100: 13.8744934 | L100: 2039 | M100: =('Standards Case - PC1'!AN75)*-1 -> -0.01930945048 | N100: ='Standards Case - PC1'!AR75 -> 0.3056020494 | O100: 0.2862925989 | Q100: 2039 | R100: =('Standards Case - PC2'!AN75)*-1 -> -0.001653079035 | S100: ='Standards Case - PC2'!AR75 -> 0.003852940292 | T100: 0.002199861257 | V100: 2039 | W100: -0.02096252951 | X100: 0.3094549897 | Y100: 0.2884924602
G101: 2020 | H101: ='Standards Case - PC1'!W56 -> 14.44666836 | I101: ='Standards Case - PC2'!W56 -> 0.1454150818 | J101: 14.59208344 | L101: 2040 | M101: =('Standards Case - PC1'!AN76)*-1 -> -0.01940027016 | N101: ='Standards Case - PC1'!AR76 -> 0.3092155681 | O101: 0.2898152979 | Q101: 2040 | R101: =('Standards Case - PC2'!AN76)*-1 -> -0.001660577728 | S101: ='Standards Case - PC2'!AR76 -> 0.003897631804 | T101: 0.002237054076 | V101: 2040 | W101: -0.02106084789 | X101: 0.3131131999 | Y101: 0.292052352
G102: 2021 | H102: ='Standards Case - PC1'!W57 -> 15.16792285 | I102: ='Standards Case - PC2'!W57 -> 0.1526310833 | J102: 15.32055393 | L102: 2041 | M102: =('Standards Case - PC1'!AN77)*-1 -> -0.01950555961 | N102: ='Standards Case - PC1'!AR77 -> 0.3128601697 | O102: 0.2933546101 | Q102: 2041 | R102: =('Standards Case - PC2'!AN77)*-1 -> -0.001669090152 | S102: ='Standards Case - PC2'!AR77 -> 0.003942689201 | T102: 0.002273599049 | V102: 2041 | W102: -0.02117464976 | X102: 0.3168028589 | Y102: 0.2956282091
G103: 2022 | H103: ='Standards Case - PC1'!W58 -> 15.70436854 | I103: ='Standards Case - PC2'!W58 -> 0.1579370132 | J103: 15.86230555 | L103: 2042 | M103: =('Standards Case - PC1'!AN78)*-1 -> -0.01955049683 | N103: ='Standards Case - PC1'!AR78 -> 0.3165361197 | O103: 0.2969856229 | Q103: 2042 | R103: =('Standards Case - PC2'!AN78)*-1 -> -0.001672297806 | S103: ='Standards Case - PC2'!AR78 -> 0.003988118771 | T103: 0.002315820965 | V103: 2042 | W103: -0.02122279464 | X103: 0.3205242385 | Y103: 0.2993014439
G104: 2023 | H104: ='Standards Case - PC1'!W59 -> 15.88647846 | I104: ='Standards Case - PC2'!W59 -> 0.1596269598 | J104: 16.04610542 | L104: 2043 | M104: =('Standards Case - PC1'!AN79)*-1 -> -0.01949838331 | N104: ='Standards Case - PC1'!AR79 -> 0.3202437505 | O104: 0.3007453672 | Q104: 2043 | R104: =('Standards Case - PC2'!AN79)*-1 -> -0.001667176705 | S104: ='Standards Case - PC2'!AR79 -> 0.004033929764 | T104: 0.002366753059 | V104: 2043 | W104: -0.02116556001 | X104: 0.3242776803 | Y104: 0.3031121203
G105: 2024 | H105: ='Standards Case - PC1'!W60 -> 15.81685701 | I105: ='Standards Case - PC2'!W60 -> 0.1587557278 | J105: 15.97561274 | L105: 2044 | M105: =('Standards Case - PC1'!AN80)*-1 -> 0 | N105: ='Standards Case - PC1'!AR80 -> 0.2890924032 | O105: 0.2890924032 | Q105: 2044 | R105: =('Standards Case - PC2'!AN80)*-1 -> 0 | S105: ='Standards Case - PC2'!AR80 -> 0.003641237682 | T105: 0.003641237682 | V105: 2044 | W105: 0 | X105: 0.2927336408 | Y105: 0.2927336408
G106: 2025 | H106: ='Standards Case - PC1'!W61 -> 15.6281008 | I106: ='Standards Case - PC2'!W61 -> 0.1567594979 | J106: 15.7848603 | L106: 2045 | M106: =('Standards Case - PC1'!AN81)*-1 -> 0 | N106: ='Standards Case - PC1'!AR81 -> 0.2575973106 | O106: 0.2575973106 | Q106: 2045 | R106: =('Standards Case - PC2'!AN81)*-1 -> 0 | S106: ='Standards Case - PC2'!AR81 -> 0.003244328577 | T106: 0.003244328577 | V106: 2045 | W106: 0 | X106: 0.2608416391 | Y106: 0.2608416391
G107: 2026 | H107: ='Standards Case - PC1'!W62 -> 15.34158219 | I107: ='Standards Case - PC2'!W62 -> 0.1538859358 | J107: 15.49546812 | L107: 2046 | M107: =('Standards Case - PC1'!AN82)*-1 -> 0 | N107: ='Standards Case - PC1'!AR82 -> 0.2257782079 | O107: 0.2257782079 | Q107: 2046 | R107: =('Standards Case - PC2'!AN82)*-1 -> 0 | S107: ='Standards Case - PC2'!AR82 -> 0.002843408013 | T107: 0.002843408013 | V107: 2046 | W107: 0 | X107: 0.228621616 | Y107: 0.228621616
G108: 2027 | H108: ='Standards Case - PC1'!W63 -> 15.10626656 | I108: ='Standards Case - PC2'!W63 -> 0.1515837691 | J108: 15.25785033 | L108: 2047 | M108: =('Standards Case - PC1'!AN83)*-1 -> 0 | N108: ='Standards Case - PC1'!AR83 -> 0.1935748729 | O108: 0.1935748729 | Q108: 2047 | R108: =('Standards Case - PC2'!AN83)*-1 -> 0 | S108: ='Standards Case - PC2'!AR83 -> 0.002437684907 | T108: 0.002437684907 | V108: 2047 | W108: 0 | X108: 0.1960125578 | Y108: 0.1960125578
G109: 2028 | H109: ='Standards Case - PC1'!W64 -> 15.04816523 | I109: ='Standards Case - PC2'!W64 -> 0.1510500165 | J109: 15.19921524 | L109: 2048 | M109: =('Standards Case - PC1'!AN84)*-1 -> 0 | N109: ='Standards Case - PC1'!AR84 -> 0.1609408074 | O109: 0.1609408074 | Q109: 2048 | R109: =('Standards Case - PC2'!AN84)*-1 -> 0 | S109: ='Standards Case - PC2'!AR84 -> 0.002026564131 | T109: 0.002026564131 | V109: 2048 | W109: 0 | X109: 0.1629673716 | Y109: 0.1629673716
G110: 2029 | H110: ='Standards Case - PC1'!W65 -> 15.26831454 | I110: ='Standards Case - PC2'!W65 -> 0.1532753632 | J110: 15.42158991 | L110: 2049 | M110: =('Standards Case - PC1'!AN85)*-1 -> 0 | N110: ='Standards Case - PC1'!AR85 -> 0.1280362034 | O110: 0.1280362034 | Q110: 2049 | R110: =('Standards Case - PC2'!AN85)*-1 -> 0 | S110: ='Standards Case - PC2'!AR85 -> 0.001612076413 | T110: 0.001612076413 | V110: 2049 | W110: 0 | X110: 0.1296482798 | Y110: 0.1296482798
G111: 2030 | H111: ='Standards Case - PC1'!W66 -> 15.69730999 | I111: ='Standards Case - PC2'!W66 -> 0.1575611938 | J111: 15.85487118 | L111: 2050 | M111: =('Standards Case - PC1'!AN86)*-1 -> 0 | N111: ='Standards Case - PC1'!AR86 -> 0.09550907516 | O111: 0.09550907516 | Q111: 2050 | R111: =('Standards Case - PC2'!AN86)*-1 -> 0 | S111: ='Standards Case - PC2'!AR86 -> 0.001202405235 | T111: 0.001202405235 | V111: 2050 | W111: 0 | X111: 0.09671148039 | Y111: 0.09671148039
G112: 2031 | H112: ='Standards Case - PC1'!W67 -> 16.08636985 | I112: ='Standards Case - PC2'!W67 -> 0.1614078606 | J112: =H112+I112 -> 16.24777771 | L112: 2051 | M112: =('Standards Case - PC1'!AN87)*-1 -> 0 | N112: ='Standards Case - PC1'!AR87 -> 0.06479133518 | O112: 0.06479133518 | Q112: 2051 | R112: =('Standards Case - PC2'!AN87)*-1 -> 0 | S112: ='Standards Case - PC2'!AR87 -> 0.000815595506 | T112: 0.000815595506 | V112: 2051 | W112: 0 | X112: 0.06560693068 | Y112: 0.06560693068
G113: 2032 | H113: ='Standards Case - PC1'!W68 -> 16.36937827 | I113: ='Standards Case - PC2'!W68 -> 0.1641631544 | J113: 16.53354142 | L113: 2052 | M113: =('Standards Case - PC1'!AN88)*-1 -> 0 | N113: ='Standards Case - PC1'!AR88 -> 0.03817694331 | O113: 0.03817694331 | Q113: 2052 | R113: =('Standards Case - PC2'!AN88)*-1 -> 0 | S113: ='Standards Case - PC2'!AR88 -> 0.000480521911 | T113: 0.000480521911 | V113: 2052 | W113: 0 | X113: 0.03865746522 | Y113: 0.03865746522
G114: 2033 | H114: ='Standards Case - PC1'!W69 -> 16.55111927 | I114: ='Standards Case - PC2'!W69 -> 0.1658932893 | J114: 16.71701256 | L114: 2053 | M114: =('Standards Case - PC1'!AN89)*-1 -> 0 | N114: ='Standards Case - PC1'!AR89 -> 0.01824706769 | O114: 0.01824706769 | Q114: 2053 | R114: =('Standards Case - PC2'!AN89)*-1 -> 0 | S114: ='Standards Case - PC2'!AR89 -> 0.0002296494168 | T114: 0.0002296494168 | V114: 2053 | W114: 0 | X114: 0.0184767171 | Y114: 0.0184767171
G115: 2034 | H115: ='Standards Case - PC1'!W70 -> 16.57370878 | I115: ='Standards Case - PC2'!W70 -> 0.1660328699 | J115: 16.73974165 | L115: 2054 | M115: =('Standards Case - PC1'!AN90)*-1 -> 0 | N115: ='Standards Case - PC1'!AR90 -> 0.00639770817 | O115: 0.00639770817 | Q115: 2054 | R115: =('Standards Case - PC2'!AN90)*-1 -> 0 | S115: ='Standards Case - PC2'!AR90 -> 8.051285688e-05 | T115: 8.051285688e-05 | V115: 2054 | W115: 0 | X115: 0.006478221027 | Y115: 0.006478221027
G116: 2035 | H116: ='Standards Case - PC1'!W71 -> 16.46731339 | I116: ='Standards Case - PC2'!W71 -> 0.164906382 | J116: 16.63221977 | L116: 2055 | M116: =('Standards Case - PC1'!AN91)*-1 -> 0 | N116: ='Standards Case - PC1'!AR91 -> 0.001421119877 | O116: 0.001421119877 | Q116: 2055 | R116: =('Standards Case - PC2'!AN91)*-1 -> 0 | S116: ='Standards Case - PC2'!AR91 -> 1.788334162e-05 | T116: 1.788334162e-05 | V116: 2055 | W116: 0 | X116: 0.001439003218 | Y116: 0.001439003218
G117: 2036 | H117: ='Standards Case - PC1'!W72 -> 16.34027099 | I117: ='Standards Case - PC2'!W72 -> 0.1636108383 | J117: 16.50388183 | L117: 2056 | M117: =('Standards Case - PC1'!AN92)*-1 -> 0 | N117: ='Standards Case - PC1'!AR92 -> 0.0001581336062 | O117: 0.0001581336062 | Q117: 2056 | R117: =('Standards Case - PC2'!AN92)*-1 -> 0 | S117: ='Standards Case - PC2'!AR92 -> 1.989862904e-06 | T117: 1.989862904e-06 | V117: 2056 | W117: 0 | X117: 0.0001601234691 | Y117: 0.0001601234691
G118: 2037 | H118: ='Standards Case - PC1'!W73 -> 16.27562021 | I118: ='Standards Case - PC2'!W73 -> 0.1629687787 | J118: 16.43858899 | L118: 2057 | M118: =('Standards Case - PC1'!AN93)*-1 -> 0 | N118: ='Standards Case - PC1'!AR93 -> 0 | O118: 0 | Q118: 2057 | R118: =('Standards Case - PC2'!AN93)*-1 -> 0 | S118: ='Standards Case - PC2'!AR93 -> 0 | T118: 0 | V118: 2057 | W118: 0 | X118: 0 | Y118: 0
G119: 2038 | H119: ='Standards Case - PC1'!W74 -> 16.32097779 | I119: ='Standards Case - PC2'!W74 -> 0.1634342541 | J119: 16.48441204 | L119: 2058 | M119: =('Standards Case - PC1'!AN94)*-1 -> 0 | N119: ='Standards Case - PC1'!AR94 -> 0 | O119: 0 | Q119: 2058 | R119: =('Standards Case - PC2'!AN94)*-1 -> 0 | S119: ='Standards Case - PC2'!AR94 -> 0 | T119: 0 | V119: 2058 | W119: 0 | X119: 0 | Y119: 0
G120: 2039 | H120: ='Standards Case - PC1'!W75 -> 16.48829603 | I120: ='Standards Case - PC2'!W75 -> 0.1651063536 | J120: 16.65340238 | L120: 2059 | M120: =('Standards Case - PC1'!AN95)*-1 -> 0 | N120: ='Standards Case - PC1'!AR95 -> 0 | O120: 0 | Q120: 2059 | R120: =('Standards Case - PC2'!AN95)*-1 -> 0 | S120: ='Standards Case - PC2'!AR95 -> 0 | T120: 0 | V120: 2059 | W120: 0 | X120: 0 | Y120: 0
G121: 2040 | H121: ='Standards Case - PC1'!W76 -> 16.73982466 | I121: ='Standards Case - PC2'!W76 -> 0.167597155 | J121: 16.90742182 | L121: 2060 | M121: =('Standards Case - PC1'!AN96)*-1 -> 0 | N121: ='Standards Case - PC1'!AR96 -> 0 | O121: 0 | Q121: 2060 | R121: =('Standards Case - PC2'!AN96)*-1 -> 0 | S121: ='Standards Case - PC2'!AR96 -> 0 | T121: 0 | V121: 2060 | W121: 0 | X121: 0 | Y121: 0
G122: 2041 | H122: ='Standards Case - PC1'!W77 -> 17.00606037 | I122: ='Standards Case - PC2'!W77 -> 0.1702116976 | J122: 17.17627207 | L122: 2061 | M122: =('Standards Case - PC1'!AN97)*-1 -> 0 | N122: ='Standards Case - PC1'!AR97 -> 0 | O122: 0 | Q122: 2061 | R122: =('Standards Case - PC2'!AN97)*-1 -> 0 | S122: ='Standards Case - PC2'!AR97 -> 0 | T122: 0 | V122: 2061 | W122: 0 | X122: 0 | Y122: 0
G123: 2042 | H123: ='Standards Case - PC1'!W78 -> 17.22109681 | I123: ='Standards Case - PC2'!W78 -> 0.1722982777 | J123: 17.39339508 | L123: 2062 | M123: =('Standards Case - PC1'!AN98)*-1 -> 0 | N123: ='Standards Case - PC1'!AR98 -> 0 | O123: 0 | Q123: 2062 | R123: =('Standards Case - PC2'!AN98)*-1 -> 0 | S123: ='Standards Case - PC2'!AR98 -> 0 | T123: 0 | V123: 2062 | W123: 0 | X123: 0 | Y123: 0
G124: 2043 | H124: ='Standards Case - PC1'!W79 -> 17.35005211 | I124: ='Standards Case - PC2'!W79 -> 0.1735194329 | J124: 17.52357154 | L124: 2063 | M124: =('Standards Case - PC1'!AN99)*-1 -> 0 | N124: ='Standards Case - PC1'!AR99 -> 0 | O124: 0 | Q124: 2063 | R124: =('Standards Case - PC2'!AN99)*-1 -> 0 | S124: ='Standards Case - PC2'!AR99 -> 0 | T124: 0 | V124: 2063 | W124: 0 | X124: 0 | Y124: 0
F125: Energy Saving (quad) | G125: 2014 | H125: ='Standards Case - PC1'!AQ50 -> 0.00237684192 | I125: ='Standards Case - PC2'!AQ50 -> 2.997765503e-05 | J125: 0.002406819575 | L125: 2064 | M125: =('Standards Case - PC1'!AN100)*-1 -> 0 | N125: ='Standards Case - PC1'!AR100 -> 0 | O125: 0 | Q125: 2064 | R125: =('Standards Case - PC2'!AN100)*-1 -> 0 | S125: ='Standards Case - PC2'!AR100 -> 0 | T125: 0 | V125: 2064 | W125: 0 | X125: 0 | Y125: 0
G126: =G125+1 -> 2015 | H126: ='Standards Case - PC1'!AQ51 -> 0.004716773811 | I126: ='Standards Case - PC2'!AQ51 -> 5.954127812e-05 | J126: 0.004776315089 | L126: 2065 | M126: =('Standards Case - PC1'!AN101)*-1 -> 0 | N126: ='Standards Case - PC1'!AR101 -> 0 | O126: 0 | Q126: 2065 | R126: =('Standards Case - PC2'!AN101)*-1 -> 0 | S126: ='Standards Case - PC2'!AR101 -> 0 | T126: 0 | V126: 2065 | W126: 0 | X126: 0 | Y126: 0
G127: 2016 | H127: ='Standards Case - PC1'!AQ52 -> 0.006972770402 | I127: ='Standards Case - PC2'!AQ52 -> 8.807691459e-05 | J127: 0.007060847317 | L127: 2066 | M127: =('Standards Case - PC1'!AN102)*-1 -> 0 | N127: ='Standards Case - PC1'!AR102 -> 0 | O127: 0 | Q127: 2066 | R127: =('Standards Case - PC2'!AN102)*-1 -> 0 | S127: ='Standards Case - PC2'!AR102 -> 0 | T127: 0 | V127: 2066 | W127: 0 | X127: 0 | Y127: 0
G128: 2017 | H128: ='Standards Case - PC1'!AQ53 -> 0.008860092788 | I128: ='Standards Case - PC2'!AQ53 -> 0.0001119691419 | J128: 0.00897206193 | L128: 2067 | M128: =('Standards Case - PC1'!AN103)*-1 -> 0 | N128: ='Standards Case - PC1'!AR103 -> 0 | O128: 0 | Q128: 2067 | R128: =('Standards Case - PC2'!AN103)*-1 -> 0 | S128: ='Standards Case - PC2'!AR103 -> 0 | T128: 0 | V128: 2067 | W128: 0 | X128: 0 | Y128: 0
G129: 2018 | H129: ='Standards Case - PC1'!AQ54 -> 0.01013097522 | I129: ='Standards Case - PC2'!AQ54 -> 0.0001280814673 | J129: 0.01025905668 | L129: 2068 | M129: =('Standards Case - PC1'!AN104)*-1 -> 0 | N129: ='Standards Case - PC1'!AR104 -> 0 | O129: 0 | Q129: 2068 | R129: =('Standards Case - PC2'!AN104)*-1 -> 0 | S129: ='Standards Case - PC2'!AR104 -> 0 | T129: 0 | V129: 2068 | W129: 0 | X129: 0 | Y129: 0
G130: 2019 | H130: ='Standards Case - PC1'!AQ55 -> 0.01112511767 | I130: ='Standards Case - PC2'!AQ55 -> 0.0001406919351 | J130: 0.0112658096 | L130: 2069 | M130: =('Standards Case - PC1'!AN105)*-1 -> 0 | N130: ='Standards Case - PC1'!AR105 -> 0 | O130: 0 | Q130: 2069 | R130: =('Standards Case - PC2'!AN105)*-1 -> 0 | S130: ='Standards Case - PC2'!AR105 -> 0 | T130: 0 | V130: 2069 | W130: 0 | X130: 0 | Y130: 0
G131: 2020 | H131: ='Standards Case - PC1'!AQ56 -> 0.01260897266 | I131: ='Standards Case - PC2'!AQ56 -> 0.0001594935547 | J131: 0.01276846621 | L131: 2070 | M131: =('Standards Case - PC1'!AN106)*-1 -> 0 | N131: ='Standards Case - PC1'!AR106 -> 0 | O131: 0 | Q131: 2070 | R131: =('Standards Case - PC2'!AN106)*-1 -> 0 | S131: ='Standards Case - PC2'!AR106 -> 0 | T131: 0 | V131: 2070 | W131: 0 | X131: 0 | Y131: 0
G132: 2021 | H132: ='Standards Case - PC1'!AQ57 -> 0.01433450912 | I132: ='Standards Case - PC2'!AQ57 -> 0.0001813491084 | J132: 0.01451585823
G133: 2022 | H133: ='Standards Case - PC1'!AQ58 -> 0.01560758076 | I133: ='Standards Case - PC2'!AQ58 -> 0.0001974716176 | J133: 0.01580505238
G134: 2023 | H134: ='Standards Case - PC1'!AQ59 -> 0.01520847183 | I134: ='Standards Case - PC2'!AQ59 -> 0.0001924213785 | J134: 0.01540089321
G135: 2024 | H135: ='Standards Case - PC1'!AQ60 -> 0.01538217447 | I135: ='Standards Case - PC2'!AQ60 -> 0.0001945982394 | J135: 0.01557677271
G136: 2025 | H136: ='Standards Case - PC1'!AQ61 -> 0.01468540644 | I136: ='Standards Case - PC2'!AQ61 -> 0.0001857489767 | J136: 0.01487115541
G137: 2026 | H137: ='Standards Case - PC1'!AQ62 -> 0.01442084795 | I137: ='Standards Case - PC2'!AQ62 -> 0.0001823616174 | J137: 0.01460320957
G138: 2027 | H138: ='Standards Case - PC1'!AQ63 -> 0.01453774282 | I138: ='Standards Case - PC2'!AQ63 -> 0.0001837968973 | J138: =H138+I138 -> 0.01472153971
G139: 2028 | H139: ='Standards Case - PC1'!AQ64 -> 0.014641672 | I139: ='Standards Case - PC2'!AQ64 -> 0.0001850677621 | J139: 0.01482673976
G140: 2029 | H140: ='Standards Case - PC1'!AQ65 -> 0.01474404248 | I140: ='Standards Case - PC2'!AQ65 -> 0.0001863183577 | J140: 0.01493036084
G141: 2030 | H141: ='Standards Case - PC1'!AQ66 -> 0.01484896318 | I141: ='Standards Case - PC2'!AQ66 -> 0.0001876003458 | J141: 0.01503656353
G142: 2031 | H142: ='Standards Case - PC1'!AQ67 -> 0.01494888881 | I142: ='Standards Case - PC2'!AQ67 -> 0.0001888178179 | J142: 0.01513770663
G143: 2032 | H143: ='Standards Case - PC1'!AQ68 -> 0.01504288129 | I143: ='Standards Case - PC2'!AQ68 -> 0.0001899592262 | J143: 0.01523284052
G144: 2033 | H144: ='Standards Case - PC1'!AQ69 -> 0.01513772026 | I144: ='Standards Case - PC2'!AQ69 -> 0.0001911111998 | J144: 0.01532883146
G145: 2034 | H145: ='Standards Case - PC1'!AQ70 -> 0.0152340033 | I145: ='Standards Case - PC2'!AQ70 -> 0.0001922815279 | J145: =H145+I145 -> 0.01542628483
G146: 2035 | H146: ='Standards Case - PC1'!AQ71 -> 0.01532937717 | I146: ='Standards Case - PC2'!AQ71 -> 0.0001934406299 | J146: 0.0155228178
G147: 2036 | H147: ='Standards Case - PC1'!AQ72 -> 0.01542407387 | I147: ='Standards Case - PC2'!AQ72 -> 0.0001945915035 | J147: 0.01561866537
G148: 2037 | H148: ='Standards Case - PC1'!AQ73 -> 0.01551878383 | I148: ='Standards Case - PC2'!AQ73 -> 0.0001957427402 | J148: 0.01571452657
G149: 2038 | H149: ='Standards Case - PC1'!AQ74 -> 0.01561349635 | I149: ='Standards Case - PC2'!AQ74 -> 0.0001968938597 | J149: 0.01581039021
G150: 2039 | H150: ='Standards Case - PC1'!AQ75 -> 0.01570819913 | I150: ='Standards Case - PC2'!AQ75 -> 0.0001980443308 | J150: 0.01590624346
G151: 2040 | H151: ='Standards Case - PC1'!AQ76 -> 0.0158028851 | I151: ='Standards Case - PC2'!AQ76 -> 0.0001991938114 | J151: 0.01600207891
G152: 2041 | H152: ='Standards Case - PC1'!AQ77 -> 0.01589755012 | I152: ='Standards Case - PC2'!AQ77 -> 0.0002003422143 | J152: 0.01609789233
G153: 2042 | H153: ='Standards Case - PC1'!AQ78 -> 0.0159921957 | I153: ='Standards Case - PC2'!AQ78 -> 0.0002014897255 | J153: 0.01619368543
G154: 2043 | H154: ='Standards Case - PC1'!AQ79 -> 0.01608682658 | I154: ='Standards Case - PC2'!AQ79 -> 0.0002026366742 | J154: 0.01628946325
F155: Discounted Energy Savings | G155: 2014 | H155: ='Standards Case - PC1'!AT50 -> 0.002175147059 | I155: ='Standards Case - PC2'!AT50 -> 2.743380097e-05 | J155: 0.00220258086
G156: =G155+1 -> 2015 | H156: ='Standards Case - PC1'!AT51 -> 0.004190792439 | I156: ='Standards Case - PC2'!AT51 -> 5.290165443e-05 | J156: 0.004243694094
G157: 2016 | H157: ='Standards Case - PC1'!AT52 -> 0.006014773 | I157: ='Standards Case - PC2'!AT52 -> 7.597592023e-05 | J157: 0.00609074892
G158: 2017 | H158: ='Standards Case - PC1'!AT53 -> 0.007420188223 | I158: ='Standards Case - PC2'!AT53 -> 9.377239355e-05 | J158: 0.007513960616
G159: 2018 | H159: ='Standards Case - PC1'!AT54 -> 0.00823740995 | I159: ='Standards Case - PC2'!AT54 -> 0.0001041419538 | J159: 0.008341551904
G160: 2019 | H160: ='Standards Case - PC1'!AT55 -> 0.008782270621 | I160: ='Standards Case - PC2'!AT55 -> 0.0001110635128 | J160: 0.008893334134
G161: 2020 | H161: ='Standards Case - PC1'!AT56 -> 0.009663727623 | I161: ='Standards Case - PC2'!AT56 -> 0.000122238529 | J161: 0.009785966152
G162: 2021 | H162: ='Standards Case - PC1'!AT57 -> 0.01066622101 | I162: ='Standards Case - PC2'!AT57 -> 0.000134940768 | J162: 0.01080116178
G163: 2022 | H163: ='Standards Case - PC1'!AT58 -> 0.01127524842 | I163: ='Standards Case - PC2'!AT58 -> 0.000142657698 | J163: 0.01141790611
G164: 2023 | H164: ='Standards Case - PC1'!AT59 -> 0.01066691615 | I164: ='Standards Case - PC2'!AT59 -> 0.0001349604834 | J164: 0.01080187663
G165: 2024 | H165: ='Standards Case - PC1'!AT60 -> 0.01047451232 | I165: ='Standards Case - PC2'!AT60 -> 0.0001325119319 | J165: 0.01060702425
G166: 2025 | H166: ='Standards Case - PC1'!AT61 -> 0.009708783681 | I166: ='Standards Case - PC2'!AT61 -> 0.0001228019559 | J166: 0.009831585637
G167: 2026 | H167: ='Standards Case - PC1'!AT62 -> 0.009256193547 | I167: ='Standards Case - PC2'!AT62 -> 0.0001170509828 | J167: 0.00937324453
G168: 2027 | H168: ='Standards Case - PC1'!AT63 -> 0.009059440694 | I168: ='Standards Case - PC2'!AT63 -> 0.0001145361499 | J168: 0.009173976844
G169: 2028 | H169: ='Standards Case - PC1'!AT64 -> 0.008858452354 | I169: ='Standards Case - PC2'!AT64 -> 0.0001119690396 | J169: 0.008970421394
G170: 2029 | H170: ='Standards Case - PC1'!AT65 -> 0.008660571049 | I170: ='Standards Case - PC2'!AT65 -> 0.0001094423986 | J170: 0.008770013447
G171: 2030 | H171: ='Standards Case - PC1'!AT66 -> 0.008468156216 | I171: ='Standards Case - PC2'!AT66 -> 0.0001069858559 | J171: 0.008575142072
G172: 2031 | H172: ='Standards Case - PC1'!AT67 -> 0.008276837288 | I172: ='Standards Case - PC2'!AT67 -> 0.0001045438477 | J172: 0.008381381136
G173: 2032 | H173: ='Standards Case - PC1'!AT68 -> 0.008086289946 | I173: ='Standards Case - PC2'!AT68 -> 0.0001021124445 | J173: 0.008188402391
G174: 2033 | H174: ='Standards Case - PC1'!AT69 -> 0.007900262684 | I174: ='Standards Case - PC2'!AT69 -> 9.973950202e-05 | J174: 0.008000002186
G175: 2034 | H175: ='Standards Case - PC1'!AT70 -> 0.007718943767 | I175: ='Standards Case - PC2'!AT70 -> 9.742746358e-05 | J175: 0.00781637123
G176: 2035 | H176: ='Standards Case - PC1'!AT71 -> 0.007541037789 | I176: ='Standards Case - PC2'!AT71 -> 9.515997182e-05 | J176: 0.007636197761
G177: 2036 | H177: ='Standards Case - PC1'!AT72 -> 0.007366623579 | I177: ='Standards Case - PC2'!AT72 -> 9.293798582e-05 | J177: =H177+I177 -> 0.007459561565
G178: 2037 | H178: ='Standards Case - PC1'!AT73 -> 0.007195978238 | I178: ='Standards Case - PC2'!AT73 -> 9.076487657e-05 | J178: 0.007286743114
G179: 2038 | H179: ='Standards Case - PC1'!AT74 -> 0.00702902518 | I179: ='Standards Case - PC2'!AT74 -> 8.863946078e-05 | J179: 0.007117664641
G180: 2039 | H180: ='Standards Case - PC1'!AT75 -> 0.006865688675 | I180: ='Standards Case - PC2'!AT75 -> 8.656057308e-05 | J180: 0.006952249248
G181: 2040 | H181: ='Standards Case - PC1'!AT76 -> 0.006705896804 | I181: ='Standards Case - PC2'!AT76 -> 8.452716925e-05 | J181: 0.006790423973
G182: 2041 | H182: ='Standards Case - PC1'!AT77 -> 0.006549580157 | I182: ='Standards Case - PC2'!AT77 -> 8.253833967e-05 | J182: 0.006632118497
G183: 2042 | H183: ='Standards Case - PC1'!AT78 -> 0.006396672703 | I183: ='Standards Case - PC2'!AT78 -> 8.059330007e-05 | J183: 0.006477266003
G184: 2043 | H184: ='Standards Case - PC1'!AT79 -> 0.006247110522 | I184: ='Standards Case - PC2'!AT79 -> 7.869132507e-05 | J184: 0.006325801847
F186: CO2 Emission Savings | H186: PC1 | I186: PC2
F187: Physical emission savings | H187: =SUM('Standards Case - PC1'!BF50:BF79) -> 31.08495921 | I187: =SUM('Standards Case - PC2'!BF50:BF79) -> 0.3925618902 | J187: =SUM(H187:I187) -> 31.4775211
F188: Monetized emission savings
F189: ="At " & TEXT(dolCO2_1,"0.0") & " 2007$/t" -> At 4.7 2007$/t | H189: =SUM('Standards Case - PC1'!BG50:BG106) -> 136.8771281 | I189: =SUM('Standards Case - PC2'!BG50:BG106) -> 1.728322054 | J189: =SUM(H189:I189) -> 138.6054502
F190: ="At " & TEXT(dolCO2_2,"0.0") & " 2007$/t" -> At 21.4 2007$/t | H190: =SUM('Standards Case - PC1'!BH50:BH106) -> 685.6944608 | I190: =SUM('Standards Case - PC2'!BH50:BH106) -> 8.657080817 | J190: =SUM(H190:I190) -> 694.3515416
F191: ="At " & TEXT(dolCO2_3,"0.0") & " 2007$/t" -> At 35.1 2007$/t | H191: =SUM('Standards Case - PC1'!BI50:BI106) -> 1155.601209 | I191: =SUM('Standards Case - PC2'!BI50:BI106) -> 14.58938697 | J191: 1170.190596
F192: ="At " & TEXT(dolCO2_4,"0.0") & " 2007$/t" -> At 64.9 2007$/t | H192: =SUM('Standards Case - PC1'!BJ50:BJ106) -> 2091.271085 | I192: =SUM('Standards Case - PC2'!BJ50:BJ106) -> 26.40299563 | J192: 2117.674081
F193: NOx Emission Savings
F194: Physical emission savings | H194: =SUM('Standards Case - PC1'!BQ50:BQ79) -> 25.28556673 | I194: =SUM('Standards Case - PC2'!BQ50:BQ79) -> 0.3193232394 | J194: =SUM(H194:I194) -> 25.60488997
F195: Monetized emission savings (3% dr)
F196: ="At " & TEXT(1000*dolNOx_1,"#,##0") & " 2010$/ton" -> At 450 2010$/ton | H196: =SUM(OFFSET('Standards Case - PC1'!BR$50, 0, CHOOSE(drate/0.03, 0, 3), 57, 1)) -> 7.347710502 | I196: =SUM(OFFSET('Standards Case - PC2'!BR$50, 0, CHOOSE(drate/0.03, 0, 3), 57, 1)) -> 0.09278985904 | J196: =SUM(H196:I196) -> 7.440500361
F197: ="At " & TEXT(1000*dolNOx_2,"#,##0") & " 2010$/ton" -> At 2,537 2010$/ton | H197: =SUM(OFFSET('Standards Case - PC1'!BS$50, 0, CHOOSE(drate/0.03, 0, 3), 57, 1)) -> 41.42475898 | I197: =SUM(OFFSET('Standards Case - PC2'!BS$50, 0, CHOOSE(drate/0.03, 0, 3), 57, 1)) -> 0.5231286053 | J197: 41.94788759
F198: ="At " & TEXT(1000*dolNOx_3,"#,##0") & " 2010$/ton" -> At 4,623 2010$/ton | H198: =SUM(OFFSET('Standards Case - PC1'!BT$50, 0, CHOOSE(drate/0.03, 0, 3), 57, 1)) -> 75.48547922 | I198: =SUM(OFFSET('Standards Case - PC2'!BT$50, 0, CHOOSE(drate/0.03, 0, 3), 57, 1)) -> 0.9532611519 | J198: =SUM(H198:I198) -> 76.43874037
K248: 0 | L248: 0
K249: 0 | L249: 0
K250: 0 | L250: 0
K251: 0 | L251: 0
K252: 0 | L252: 0
K253: 0 | L253: 0
... 6 more rows

Sheet ROCIS
C3: ="TSL " & iTSL -> TSL 3
D5: Discount Rate | E5: Primary Estimate | F5: Low Estimate | G5: High Estimate
E6: Annualized (million 2010$/year)
C7: Benefits
C8: Operating Cost Savings | D8: 0.07 | E8: =1000*OFFSET('Summary (All TSLs)'!$L$8,E$29+$H8,10*(iTSL-1)) -> 166.8632258 | F8: =1000*OFFSET('Summary (All TSLs)'!$L$8,F$29+$H8,10*(iTSL-1)) -> 150.1976195 | G8: =1000*OFFSET('Summary (All TSLs)'!$L$8,G$29+$H8,10*(iTSL-1)) -> 184.5097102 | H8: 31
D9: 0.03 | E9: =1000*OFFSET('Summary (All TSLs)'!$L$8,E$29+$H9,10*(iTSL-1)) -> 204.9938956 | F9: =1000*OFFSET('Summary (All TSLs)'!$L$8,F$29+$H9,10*(iTSL-1)) -> 182.16185 | G9: =1000*OFFSET('Summary (All TSLs)'!$L$8,G$29+$H9,10*(iTSL-1)) -> 228.8278074 | H9: 1
C10: ="CO2 " & 'Summary (All TSLs)'!E14:E17 -> CO2 At 4.7 2007$/t | D10: ='Summary (All TSLs)'!H14 -> 0.05 | E10: =OFFSET('Summary (All TSLs)'!$L$8,E$29+$H10,10*(iTSL-1)) -> 9.016483445 | F10: =OFFSET('Summary (All TSLs)'!$L$8,F$29+$H10,10*(iTSL-1)) -> 8.489259127 | G10: =OFFSET('Summary (All TSLs)'!$L$8,G$29+$H10,10*(iTSL-1)) -> 9.545054251 | H10: 6
C11: CO2 At 21.4 2007$/t | D11: ='Summary (All TSLs)'!H15 -> 0.03 | E11: =OFFSET('Summary (All TSLs)'!$L$8,E$29+$H11,10*(iTSL-1)) -> 35.42530136 | F11: =OFFSET('Summary (All TSLs)'!$L$8,F$29+$H11,10*(iTSL-1)) -> 33.28312667 | G11: =OFFSET('Summary (All TSLs)'!$L$8,G$29+$H11,10*(iTSL-1)) -> 37.56599612 | H11: 7
C12: CO2 At 35.1 2007$/t | D12: ='Summary (All TSLs)'!H16 -> 0.025 | E12: =OFFSET('Summary (All TSLs)'!$L$8,E$29+$H12,10*(iTSL-1)) -> 55.90894589 | F12: =OFFSET('Summary (All TSLs)'!$L$8,F$29+$H12,10*(iTSL-1)) -> 52.5033387 | G12: =OFFSET('Summary (All TSLs)'!$L$8,G$29+$H12,10*(iTSL-1)) -> 59.30982159 | H12: 8
C13: CO2 At 64.9 2007$/t | D13: ='Summary (All TSLs)'!H17 -> 0.03 | E13: =OFFSET('Summary (All TSLs)'!$L$8,E$29+$H13,10*(iTSL-1)) -> 108.0421631 | F13: =OFFSET('Summary (All TSLs)'!$L$8,F$29+$H13,10*(iTSL-1)) -> 101.5172459 | G13: =OFFSET('Summary (All TSLs)'!$L$8,G$29+$H13,10*(iTSL-1)) -> 114.5632869 | H13: 9
C14: ="NOx " &'Summary (All TSLs)'!E22 -> NOx At 2,537 2010$/ton | D14: 0.07 | E14: =OFFSET('Summary (All TSLs)'!$L$8,E$29+$H14,10*(iTSL-1)) -> 1.737237824 | F14: =OFFSET('Summary (All TSLs)'!$L$8,F$29+$H14,10*(iTSL-1)) -> 1.654237933 | G14: =OFFSET('Summary (All TSLs)'!$L$8,G$29+$H14,10*(iTSL-1)) -> 1.821800458 | H14: 44
D15: 0.03 | E15: =OFFSET('Summary (All TSLs)'!$L$8,E$29+$H15,10*(iTSL-1)) -> 2.140150155 | F15: =OFFSET('Summary (All TSLs)'!$L$8,F$29+$H15,10*(iTSL-1)) -> 2.020269594 | G15: =OFFSET('Summary (All TSLs)'!$L$8,G$29+$H15,10*(iTSL-1)) -> 2.260698096 | H15: 14
C16: Total | D16: 7% plus CO2 range | E16: =TEXT(E$8+E10+E$14,"0") & " to " & TEXT(E$8+E13+E$14, "0") -> 178 to 277 | F16: =TEXT(F$8+F10+F$14,"0") & " to " & TEXT(F$8+F13+F$14, "0") -> 160 to 253 | G16: =TEXT(G$8+G10+G$14,"0") & " to " & TEXT(G$8+G13+G$14, "0") -> 196 to 301
D17: 0.07 | E17: =E8+E$11+E14 -> 204.025765 | F17: =F8+F$11+F14 -> 185.1349841 | G17: 223.8975068
D18: 0.03 | E18: =E9+E$11+E15 -> 242.5593471 | F18: 217.4652462 | G18: 268.6545016
D19: 3% plus CO2 range | E19: =TEXT(E$9+E10+E$15,"0") & " to " & TEXT(E$9+E13+E$15, "0") -> 216 to 315 | F19: =TEXT(F$9+F10+F$15,"0") & " to " & TEXT(F$9+F13+F$15, "0") -> 193 to 286 | G19: =TEXT(G$9+G10+G$15,"0") & " to " & TEXT(G$9+G13+G$15, "0") -> 241 to 346
C20: Costs
C21: Incremental Product Costs | D21: 0.07 | E21: =1000*OFFSET('Summary (All TSLs)'!$L$8,E$29+$H21,10*(iTSL-1)) -> 20.321549 | F21: =1000*OFFSET('Summary (All TSLs)'!$L$8,F$29+$H21,10*(iTSL-1)) -> 23.39177411 | G21: =1000*OFFSET('Summary (All TSLs)'!$L$8,G$29+$H21,10*(iTSL-1)) -> 20.6954629 | H21: 30
D22: 0.03 | E22: =1000*OFFSET('Summary (All TSLs)'!$L$8,E$29+$H22,10*(iTSL-1)) -> 21.58955988 | F22: =1000*OFFSET('Summary (All TSLs)'!$L$8,F$29+$H22,10*(iTSL-1)) -> 25.47611757 | G22: =1000*OFFSET('Summary (All TSLs)'!$L$8,G$29+$H22,10*(iTSL-1)) -> 22.03267273 | H22: 0
C23: Net Benefits/Costs
C24: Total | D24: =D16 -> 7% plus CO2 range | E24: =TEXT(E$8+E10+E$14-E21,"0") & " to " & TEXT(E$8+E13+E$14-E21, "0") -> 157 to 256 | F24: =TEXT(F$8+F10+F$14-F21,"0") & " to " & TEXT(F$8+F13+F$14-F21, "0") -> 137 to 230 | G24: =TEXT(G$8+G10+G$14-G21,"0") & " to " & TEXT(G$8+G13+G$14-G21, "0") -> 175 to 280
D25: =D17 -> 0.07 | E25: =E17-E21 -> 183.704216 | F25: =F17-F21 -> 161.74321 | G25: 203.2020439
D26: 0.03 | E26: =E18-E22 -> 220.9697872 | F26: 191.9891287 | G26: 246.6218289
D27: 3% plus CO2 range | E27: =TEXT(E$9+E10+E$15-E22,"0") & " to " & TEXT(E$9+E13+E$15-E22, "0") -> 195 to 294 | F27: =TEXT(F$9+F10+F$15-F22,"0") & " to " & TEXT(F$9+F13+F$15-F22, "0") -> 167 to 260 | G27: =TEXT(G$9+G10+G$15-G22,"0") & " to " & TEXT(G$9+G13+G$15-G22, "0") -> 219 to 324
E29: 0 | F29: 65 | G29: 130
C31: The Primary, Low, and High Estimates utilize forecasts of energy prices and housing starts from the AEO2010
C32: Reference case, Low Economic Growth case, and High Economic Growth case, respectively. In addition,
C33: incremental product costs reflect a declining trend (default learning rate) for product prices in the Primary Estimate,
C34: constant prices (no learning rate) for product prices in the Low Estimate, and a declining trend (high learning rate)
C35: in the High Estimate.

Sheet Summary (All TSLs)
E3: National Impact Summary (TSL 1, AEO 2010 Reference, 3% Discount Rate, Learning: Default) | O3: National Impact Summary (TSL 2, AEO 2010 Reference, 3% Discount Rate, Learning: Default) | Y3: National Impact Summary (TSL 3, AEO 2010 Reference, 3% Discount Rate, Learning: Default) | AI3: National Impact Summary (TSL 4, AEO 2010 Reference, 3% Discount Rate, Learning: Default)
I4: PC1 | J4: PC2 | K4: Total | L4: Annualized (30 years) | S4: PC1 | T4: PC2 | U4: Total | V4: Annualized (30 years) | AC4: PC1 | AD4: PC2 | AE4: Total | AF4: Annualized (30 years) | AM4: PC1 | AN4: PC2 | AO4: Total | AP4: Annualized (30 years)
E5: Results presented for CSL | I5: 1 | J5: 1 | O5: Results presented for CSL | S5: 2 | T5: 2 | Y5: Results presented for CSL | AC5: 3 | AD5: 3 | AI5: Results presented for CSL | AM5: 4 | AN5: 4
E6: Energy Saving (2014 to 2043) | I6: 0.2060783191 | J6: 0.001802642665 | K6: 0.2078809618 | L6: - | M6: quad | O6: Energy Saving (2014 to 2043) | S6: 0.2960340765 | T6: 0.004047714781 | U6: 0.3000817913 | V6: - | W6: quad | Y6: Energy Saving (2014 to 2043) | AC6: 0.406939837 | AD6: 0.005139111509 | AE6: 0.4120789485 | AF6: - | AG6: quad | AI6: Energy Saving (2014 to 2043) | AM6: 0.6211945261 | AN6: 0.01000385888 | AO6: 0.631198385 | AP6: - | AQ6: quad
E7: Energy Savings discounted at 3% | I7: 0.1202417439 | J7: 0.001051788986 | K7: 0.1212935329 | L7: - | M7: quad | O7: Energy Savings discounted at 3% | S7: 0.1727324928 | T7: 0.002361931657 | U7: 0.1750944244 | V7: - | W7: quad | Y7: Energy Savings discounted at 3% | AC7: 0.2374587517 | AD7: 0.002999621289 | AE7: 0.240458373 | AF7: - | AG7: quad | AI7: Energy Savings discounted at 3% | AM7: 0.3625801423 | AN7: 0.005838118004 | AO7: 0.3684182603 | AP7: - | AQ7: quad
E8: Discounted Incremental Equipment Cost | I8: 0.0437304417 | J8: 0 | K8: 0.0437304417 | L8: 0.002231094745 | M8: billion $ | O8: Discounted Incremental Equipment Cost | S8: 0.1379762072 | T8: 0.008170578218 | U8: 0.1461467854 | V8: 0.007456300745 | W8: billion $ | Y8: Discounted Incremental Equipment Cost | AC8: 0.3897212839 | AD8: 0.03344361834 | AE8: 0.4231649023 | AF8: 0.02158955988 | AG8: billion $ | AI8: Discounted Incremental Equipment Cost | AM8: 1.532692412 | AN8: 0.01844106369 | AO8: 1.551133476 | AP8: 0.07913768106 | AQ8: billion $
E9: Discounted Oper. Cost Saving | I9: 2.009277974 | J9: 0.01757580872 | K9: 2.026853783 | L9: 0.1034085787 | M9: billion $ | O9: Discounted Oper. Cost Saving | S9: 2.886384683 | T9: 0.03946709641 | U9: 2.925851779 | V9: 0.1492747907 | W9: billion $ | Y9: Discounted Oper. Cost Saving | AC9: 3.967854981 | AD9: 0.05011584617 | AE9: 4.017970828 | AF9: 0.2049938956 | AG9: billion $ | AI9: Discounted Oper. Cost Saving | AM9: 6.0577826 | AN9: 0.09754775757 | AO9: 6.155330357 | AP9: 0.3140403957 | AQ9: billion $
E10: NPV | I10: 1.965547532 | J10: 0.01757580872 | K10: 1.983123341 | L10: 0.101177484 | M10: billion $ | O10: NPV | S10: 2.748408476 | T10: 0.03129651819 | U10: 2.779704994 | V10: 0.1418184899 | W10: billion $ | Y10: NPV | AC10: 3.578133698 | AD10: 0.01667222783 | AE10: 3.594805925 | AF10: 0.1834043357 | AG10: billion $ | AI10: NPV | AM10: 4.525090187 | AN10: 0.07910669388 | AO10: 4.604196881 | AP10: 0.2349027146 | AQ10: billion $
E11: CO2 Emission Savings | O11: CO2 Emission Savings | Y11: CO2 Emission Savings | AI11: CO2 Emission Savings
E12: Physical emission savings | I12: 15.69950923 | J12: 0.1373293673 | K12: 15.8368386 | L12: - | M12: Mt | O12: Physical emission savings | S12: 22.57288035 | T12: 0.3086421081 | U12: 22.88152246 | V12: - | W12: Mt | Y12: Physical emission savings | AC12: 31.08495921 | AD12: 0.3925618902 | AE12: 31.4775211 | AF12: - | AG12: Mt | AI12: Physical emission savings | AM12: 47.69140468 | AN12: 0.7680333003 | AO12: 48.45943798 | AP12: - | AQ12: Mt
E13: Monetized emission savings | O13: Monetized emission savings | Y13: Monetized emission savings | AI13: Monetized emission savings
E14: At 4.7 2007$/t | H14: 0.05 | I14: 69.13297202 | J14: 0.6047343923 | K14: 69.73770642 | L14: 4.536537882 | M14: million $ | O14: At 4.7 2007$/t | R14: 0.05 | S14: 99.39880581 | T14: 1.359051807 | U14: 100.7578576 | V14: 6.554443234 | W14: million $ | Y14: At 4.7 2007$/t | AB14: 0.05 | AC14: 136.8771281 | AD14: 1.728322054 | AE14: 138.6054502 | AF14: 9.016483445 | AG14: million $ | AI14: At 4.7 2007$/t | AL14: 0.05 | AM14: 209.9702551 | AN14: 3.381703141 | AO14: 213.3519583 | AP14: 13.87885106 | AQ14: million $
E15: At 21.4 2007$/t | H15: 0.03 | I15: 346.3381772 | J15: 3.029573966 | K15: 349.3677511 | L15: 17.82448389 | M15: million $ | O15: At 21.4 2007$/t | R15: 0.03 | S15: 497.957398 | T15: 6.808258074 | U15: 504.7656561 | V15: 25.7527699 | W15: million $ | Y15: At 21.4 2007$/t | AB15: 0.03 | AC15: 685.6944608 | AD15: 8.657080817 | AE15: 694.3515416 | AF15: 35.42530136 | AG15: million $ | AI15: At 21.4 2007$/t | AL15: 0.03 | AM15: 1051.732884 | AN15: 16.94003984 | AO15: 1068.672924 | AP15: 54.52290105 | AQ15: million $
E16: At 35.1 2007$/t | H16: 0.025 | I16: 583.6884951 | J16: 5.105787268 | K16: 588.7942824 | L16: 28.13120169 | M16: million $ | O16: At 35.1 2007$/t | R16: 0.025 | S16: 839.2126854 | T16: 11.47396206 | U16: 850.6866475 | V16: 40.64380102 | W16: million $ | Y16: At 35.1 2007$/t | AB16: 0.025 | AC16: 1155.601209 | AD16: 14.58938697 | AE16: 1170.190596 | AF16: 55.90894589 | AG16: million $ | AI16: At 35.1 2007$/t | AL16: 0.025 | AM16: 1772.438684 | AN16: 28.54875326 | AO16: 1800.987437 | AP16: 86.04693074 | AQ16: million $
E17: At 64.9 2007$/t | H17: 0.03 | I17: 1056.280995 | J17: 9.239757888 | K17: 1065.520753 | L17: 54.36207959 | M17: million $ | O17: At 64.9 2007$/t | R17: 0.03 | S17: 1518.698089 | T17: 20.76422336 | U17: 1539.462313 | V17: 78.54222694 | W17: million $ | Y17: At 64.9 2007$/t | AB17: 0.03 | AC17: 2091.271085 | AD17: 26.40299563 | AE17: 2117.674081 | AF17: 108.0421631 | AG17: million $ | AI17: At 64.9 2007$/t | AL17: 0.03 | AM17: 3207.651307 | AN17: 51.66482003 | AO17: 3259.316127 | AP17: 166.2878947 | AQ17: million $
E18: NOx Emission Savings | O18: NOx Emission Savings | Y18: NOx Emission Savings | AI18: NOx Emission Savings
E19: Physical emission savings | I19: 12.77057637 | J19: 0.1117089169 | K19: 12.88228529 | L19: - | M19: kt | O19: Physical emission savings | S19: 18.36159316 | T19: 0.2510605972 | U19: 18.61265376 | V19: - | W19: kt | Y19: Physical emission savings | AC19: 25.28556673 | AD19: 0.3193232394 | AE19: 25.60488997 | AF19: - | AG19: kt | AI19: Physical emission savings | AM19: 38.7940757 | AN19: 0.6247486773 | AO19: 39.41882438 | AP19: - | AQ19: kt
E20: Monetized emission savings (3% dr) | O20: Monetized emission savings (3% dr) | Y20: Monetized emission savings (3% dr) | AI20: Monetized emission savings (3% dr)
E21: At 450 2010$/ton | I21: 3.711013379 | J21: 0.03246161741 | K21: 3.743474996 | L21: 0.1909893216 | M21: million $ | O21: At 450 2010$/ton | S21: 5.335703282 | T21: 0.07295547979 | U21: 5.408658761 | V21: 0.2759457639 | W21: million $ | Y21: At 450 2010$/ton | AC21: 7.347710502 | AD21: 0.09278985904 | AE21: 7.440500361 | AF21: 0.3796088174 | AG21: million $ | AI21: At 450 2010$/ton | AM21: 11.27289855 | AN21: 0.1815436382 | AO21: 11.45444219 | AP21: 0.5843971564 | AQ21: million $
E22: At 2,537 2010$/ton | I22: 20.92186876 | J22: 0.1830113853 | K22: 21.10488015 | L22: 1.076755353 | M22: million $ | O22: At 2,537 2010$/ton | S22: 30.08150939 | T22: 0.4113067827 | U22: 30.49281617 | V22: 1.555720896 | W22: million $ | Y22: At 2,537 2010$/ton | AC22: 41.42475898 | AD22: 0.5231286053 | AE22: 41.94788759 | AF22: 2.140150155 | AG22: million $ | AI22: At 2,537 2010$/ton | AM22: 63.55409694 | AN22: 1.023502689 | AO22: 64.57759963 | AP22: 3.294701302 | AQ22: million $
E23: At 4,623 2010$/ton | I23: 38.12447745 | J23: 0.3334890162 | K23: 38.45796646 | L23: 1.962096964 | M23: million $ | O23: At 4,623 2010$/ton | S23: 54.81545838 | T23: 0.7494959624 | U23: 55.56495434 | V23: 2.834882815 | W23: million $ | Y23: At 4,623 2010$/ton | AC23: 75.48547922 | AD23: 0.9532611519 | AE23: 76.43874037 | AF23: 3.899847917 | AG23: million $ | AI23: At 4,623 2010$/ton | AM23: 115.8102444 | AN23: 1.86505831 | AO23: 117.6753028 | AP23: 6.003706787 | AQ23: million $
E24: NPV with Emission Savings (3% dr) | I24: 2.332807578 | J24: 0.02078839407 | K24: 2.353595972 | L24: 0.1200787233 | M24: billion $ | O24: NPV with Emission Savings (3% dr) | S24: 3.276447383 | T24: 0.03851608305 | U24: 3.314963466 | V24: 0.1691269807 | W24: billion $ | Y24: NPV with Emission Savings (3% dr) | AC24: 4.305252917 | AD24: 0.02585243725 | AE24: 4.331105355 | AF24: 0.2209697872 | AG24: billion $ | AI24: NPV with Emission Savings (3% dr) | AM24: 5.640377169 | AN24: 0.09707023641 | AO24: 5.737447405 | AP24: 0.292720317 | AQ24: billion $
E33: National Impact Summary (TSL 1, AEO 2010 Reference, 7% Discount Rate, Learning: Default) | O33: National Impact Summary (TSL 2, AEO 2010 Reference, 7% Discount Rate, Learning: Default) | Y33: National Impact Summary (TSL 3, AEO 2010 Reference, 7% Discount Rate, Learning: Default) | AI33: National Impact Summary (TSL 4, AEO 2010 Reference, 7% Discount Rate, Learning: Default)
I34: PC1 | J34: PC2 | K34: Total | L34: Annualized (30 years) | S34: PC1 | T34: PC2 | U34: Total | V34: Annualized (30 years) | AC34: PC1 | AD34: PC2 | AE34: Total | AF34: Annualized (30 years) | AM34: PC1 | AN34: PC2 | AO34: Total | AP34: Annualized (30 years)
E35: Results presented for CSL | I35: 1 | J35: 1 | O35: Results presented for CSL | S35: 2 | T35: 2 | Y35: Results presented for CSL | AC35: 3 | AD35: 3 | AI35: Results presented for CSL | AM35: 4 | AN35: 4
E36: Energy Saving (2014 to 2043) | I36: 0.2060783191 | J36: 0.001802642665 | K36: 0.2078809618 | L36: - | M36: quad | O36: Energy Saving (2014 to 2043) | S36: 0.2960340765 | T36: 0.004047714781 | U36: 0.3000817913 | V36: - | W36: quad | Y36: Energy Saving (2014 to 2043) | AC36: 0.406939837 | AD36: 0.005139111509 | AE36: 0.4120789485 | AF36: - | AG36: quad | AI36: Energy Saving (2014 to 2043) | AM36: 0.6211945261 | AN36: 0.01000385888 | AO36: 0.631198385 | AP36: - | AQ36: quad
E37: Energy Savings discounted at 3% | I37: 0.1202417439 | J37: 0.001051788986 | K37: 0.1212935329 | L37: - | M37: quad | O37: Energy Savings discounted at 3% | S37: 0.1727324928 | T37: 0.002361931657 | U37: 0.1750944244 | V37: - | W37: quad | Y37: Energy Savings discounted at 3% | AC37: 0.2374587517 | AD37: 0.002999621289 | AE37: 0.240458373 | AF37: - | AG37: quad | AI37: Energy Savings discounted at 3% | AM37: 0.3625801423 | AN37: 0.005838118004 | AO37: 0.3684182603 | AP37: - | AQ37: quad
E38: Discounted Incremental Equipment Cost | I38: 0.02605578657 | J38: 0 | K38: 0.02605578657 | L38: 0.00209974213 | M38: billion $ | O38: Discounted Incremental Equipment Cost | S38: 0.08221256868 | T38: 0.004868817575 | U38: 0.08708138625 | V38: 0.007017575731 | W38: billion $ | Y38: Discounted Incremental Equipment Cost | AC38: 0.2322338959 | AD38: 0.01993704256 | AE38: 0.2521709385 | AF38: 0.020321549 | AG38: billion $ | AI38: Discounted Incremental Equipment Cost | AM38: 0.9136913686 | AN38: 0.01099073253 | AO38: 0.9246821011 | AP38: 0.07451680492 | AQ38: billion $
E39: Discounted Oper. Cost Saving | I39: 1.035356479 | J39: 0.009056504104 | K39: 1.044412983 | L39: 0.08416548609 | M39: billion $ | O39: Discounted Oper. Cost Saving | S39: 1.487355985 | T39: 0.02033877961 | U39: 1.507694765 | V39: 0.1214996987 | W39: billion $ | Y39: Discounted Oper. Cost Saving | AC39: 2.044777875 | AD39: 0.02583476681 | AE39: 2.070612641 | AF39: 0.1668632258 | AG39: billion $ | AI39: Discounted Oper. Cost Saving | AM39: 3.122776178 | AN39: 0.05027618804 | AO39: 3.173052366 | AP39: 0.2557048783 | AQ39: billion $
E40: NPV | I40: 1.009300692 | J40: 0.009056504104 | K40: 1.018357196 | L40: 0.08206574396 | M40: billion $ | O40: NPV | S40: 1.405143416 | T40: 0.01546996203 | U40: 1.420613378 | V40: 0.1144821229 | W40: billion $ | Y40: NPV | AC40: 1.812543979 | AD40: 0.005897724249 | AE40: 1.818441703 | AF40: 0.1465416768 | AG40: billion $ | AI40: NPV | AM40: 2.209084809 | AN40: 0.03928545552 | AO40: 2.248370265 | AP40: 0.1811880734 | AQ40: billion $
E41: CO2 Emission Savings | O41: CO2 Emission Savings | Y41: CO2 Emission Savings | AI41: CO2 Emission Savings
E42: Physical emission savings | I42: 15.69950923 | J42: 0.1373293673 | K42: 15.8368386 | L42: - | M42: Mt | O42: Physical emission savings | S42: 22.57288035 | T42: 0.3086421081 | U42: 22.88152246 | V42: - | W42: Mt | Y42: Physical emission savings | AC42: 31.08495921 | AD42: 0.3925618902 | AE42: 31.4775211 | AF42: - | AG42: Mt | AI42: Physical emission savings | AM42: 47.69140468 | AN42: 0.7680333003 | AO42: 48.45943798 | AP42: - | AQ42: Mt
E43: Monetized emission savings | O43: Monetized emission savings | Y43: Monetized emission savings | AI43: Monetized emission savings
E44: At 4.7 2007$/t | H44: 0.05 | I44: 69.13297202 | J44: 0.6047343923 | K44: 69.73770642 | L44: 4.536537882 | M44: million $ | O44: At 4.7 2007$/t | R44: 0.05 | S44: 99.39880581 | T44: 1.359051807 | U44: 100.7578576 | V44: 6.554443234 | W44: million $ | Y44: At 4.7 2007$/t | AB44: 0.05 | AC44: 136.8771281 | AD44: 1.728322054 | AE44: 138.6054502 | AF44: 9.016483445 | AG44: million $ | AI44: At 4.7 2007$/t | AL44: 0.05 | AM44: 209.9702551 | AN44: 3.381703141 | AO44: 213.3519583 | AP44: 13.87885106 | AQ44: million $
E45: At 21.4 2007$/t | H45: 0.03 | I45: 346.3381772 | J45: 3.029573966 | K45: 349.3677511 | L45: 17.82448389 | M45: million $ | O45: At 21.4 2007$/t | R45: 0.03 | S45: 497.957398 | T45: 6.808258074 | U45: 504.7656561 | V45: 25.7527699 | W45: million $ | Y45: At 21.4 2007$/t | AB45: 0.03 | AC45: 685.6944608 | AD45: 8.657080817 | AE45: 694.3515416 | AF45: 35.42530136 | AG45: million $ | AI45: At 21.4 2007$/t | AL45: 0.03 | AM45: 1051.732884 | AN45: 16.94003984 | AO45: 1068.672924 | AP45: 54.52290105 | AQ45: million $
E46: At 35.1 2007$/t | H46: 0.025 | I46: 583.6884951 | J46: 5.105787268 | K46: 588.7942824 | L46: 28.13120169 | M46: million $ | O46: At 35.1 2007$/t | R46: 0.025 | S46: 839.2126854 | T46: 11.47396206 | U46: 850.6866475 | V46: 40.64380102 | W46: million $ | Y46: At 35.1 2007$/t | AB46: 0.025 | AC46: 1155.601209 | AD46: 14.58938697 | AE46: 1170.190596 | AF46: 55.90894589 | AG46: million $ | AI46: At 35.1 2007$/t | AL46: 0.025 | AM46: 1772.438684 | AN46: 28.54875326 | AO46: 1800.987437 | AP46: 86.04693074 | AQ46: million $
E47: At 64.9 2007$/t | H47: 0.03 | I47: 1056.280995 | J47: 9.239757888 | K47: 1065.520753 | L47: 54.36207959 | M47: million $ | O47: At 64.9 2007$/t | R47: 0.03 | S47: 1518.698089 | T47: 20.76422336 | U47: 1539.462313 | V47: 78.54222694 | W47: million $ | Y47: At 64.9 2007$/t | AB47: 0.03 | AC47: 2091.271085 | AD47: 26.40299563 | AE47: 2117.674081 | AF47: 108.0421631 | AG47: million $ | AI47: At 64.9 2007$/t | AL47: 0.03 | AM47: 3207.651307 | AN47: 51.66482003 | AO47: 3259.316127 | AP47: 166.2878947 | AQ47: million $
E48: NOx Emission Savings | O48: NOx Emission Savings | Y48: NOx Emission Savings | AI48: NOx Emission Savings
E49: Physical emission savings | I49: 12.77057637 | J49: 0.1117089169 | K49: 12.88228529 | L49: - | M49: kt | O49: Physical emission savings | S49: 18.36159316 | T49: 0.2510605972 | U49: 18.61265376 | V49: - | W49: kt | Y49: Physical emission savings | AC49: 25.28556673 | AD49: 0.3193232394 | AE49: 25.60488997 | AF49: - | AG49: kt | AI49: Physical emission savings | AM49: 38.7940757 | AN49: 0.6247486773 | AO49: 39.41882438 | AP49: - | AQ49: kt
E50: Monetized emission savings (7% dr) | O50: Monetized emission savings (7% dr) | Y50: Monetized emission savings (7% dr) | AI50: Monetized emission savings (7% dr)
E51: At 450 2010$/ton | I51: 1.906882204 | J51: 0.01667997495 | K51: 1.923562179 | L51: 0.1550129579 | M51: million $ | O51: At 450 2010$/ton | S51: 2.741810274 | T51: 0.03749231182 | U51: 2.779302586 | V51: 0.2239739997 | W51: million $ | Y51: At 450 2010$/ton | AC51: 3.776044787 | AD51: 0.04770573217 | AE51: 3.823750519 | AF51: 0.3081423023 | AG51: million $ | AI51: At 450 2010$/ton | AM51: 5.795654808 | AN51: 0.09331228853 | AO51: 5.888967097 | AP51: 0.4745706787 | AQ51: million $
E52: At 2,537 2010$/ton | I52: 10.75057811 | J52: 0.0940379921 | K52: 10.84461611 | L52: 0.8739286094 | M52: million $ | O52: At 2,537 2010$/ton | S52: 15.45771703 | T52: 0.2113733224 | U52: 15.66909036 | V52: 1.262715638 | W52: million $ | Y52: At 2,537 2010$/ton | AC52: 21.28850139 | AD52: 0.2689543167 | AE52: 21.55745571 | AF52: 1.737237824 | AG52: million $ | AI52: At 2,537 2010$/ton | AM52: 32.67461389 | AN52: 0.5260739466 | AO52: 33.20068783 | AP52: 2.675524027 | AQ52: million $
E53: At 4,623 2010$/ton | I53: 19.59003651 | J53: 0.1713589426 | K53: 19.76139545 | L53: 1.592499788 | M53: million $ | O53: At 4,623 2010$/ton | S53: 28.16753088 | T53: 0.3851710168 | U53: 28.5527019 | V53: 2.300959557 | W53: million $ | Y53: At 4,623 2010$/ton | AC53: 38.79256678 | AD53: 0.4900968885 | AE53: 39.28266367 | AF53: 3.165648585 | AG53: million $ | AI53: At 4,623 2010$/ton | AM53: 59.54069373 | AN53: 0.9586282441 | AO53: 60.49932198 | AP53: 4.875422773 | AQ53: million $
E54: NPV with Emission Savings (7% dr) | I54: 1.366389448 | J54: 0.01218011606 | K54: 1.378569564 | L54: 0.1007641565 | M54: billion $ | O54: NPV with Emission Savings (7% dr) | S54: 1.918558531 | T54: 0.02248959343 | U54: 1.941048125 | V54: 0.1414976085 | W54: billion $ | Y54: NPV with Emission Savings (7% dr) | AC54: 2.519526941 | AD54: 0.01482375938 | AE54: 2.5343507 | AF54: 0.183704216 | AG54: billion $ | AI54: NPV with Emission Savings (7% dr) | AM54: 3.293492307 | AN54: 0.0567515693 | AO54: 3.350243877 | AP54: 0.2383864985 | AQ54: billion $
E68: National Impact Summary (TSL 1, AEO 2010 Low Growth, 3% Discount Rate, Learning: Constant Prices) | O68: National Impact Summary (TSL 2, AEO 2010 Low Growth, 3% Discount Rate, Learning: Constant Prices) | Y68: National Impact Summary (TSL 3, AEO 2010 Low Growth, 3% Discount Rate, Learning: Constant Prices) | AI68: National Impact Summary (TSL 4, AEO 2010 Low Growth, 3% Discount Rate, Learning: Constant Prices)
I69: PC1 | J69: PC2 | K69: Total | L69: Annualized (30 years) | S69: PC1 | T69: PC2 | U69: Total | V69: Annualized (30 years) | AC69: PC1 | AD69: PC2 | AE69: Total | AF69: Annualized (30 years) | AM69: PC1 | AN69: PC2 | AO69: Total | AP69: Annualized (30 years)
E70: Results presented for CSL | I70: 1 | J70: 1 | O70: Results presented for CSL | S70: 2 | T70: 2 | Y70: Results presented for CSL | AC70: 3 | AD70: 3 | AI70: Results presented for CSL | AM70: 4 | AN70: 4
E71: Energy Saving (2014 to 2043) | I71: 0.1944168781 | J71: 0.001700648743 | K71: 0.1961175269 | L71: - | M71: quad | O71: Energy Saving (2014 to 2043) | S71: 0.2792791507 | T71: 0.003818553021 | U71: 0.2830977037 | V71: - | W71: quad | Y71: Energy Saving (2014 to 2043) | AC71: 0.3838978209 | AD71: 0.004847638461 | AE71: 0.3887454594 | AF71: - | AG71: quad | AI71: Energy Saving (2014 to 2043) | AM71: 0.5859556159 | AN71: 0.009437006849 | AO71: 0.5953926227 | AP71: - | AQ71: quad
E72: Energy Savings discounted at 3% | I72: 0.1140644535 | J72: 0.0009977608552 | K72: 0.1150622144 | L72: - | M72: quad | O72: Energy Savings discounted at 3% | S72: 0.1638570471 | T72: 0.00224053757 | U72: 0.1660975846 | V72: - | W72: quad | Y72: Energy Savings discounted at 3% | AC72: 0.2252527247 | AD72: 0.002845207417 | AE72: 0.2280979321 | AF72: - | AG72: quad | AI72: Energy Savings discounted at 3% | AM72: 0.3439117492 | AN72: 0.005537831313 | AO72: 0.3494495805 | AP72: - | AQ72: quad
E73: Discounted Incremental Equipment Cost | I73: 0.05160531441 | J73: 0 | K73: 0.05160531441 | L73: 0.002632864918 | M73: billion $ | O73: Discounted Incremental Equipment Cost | S73: 0.1628173132 | T73: 0.009641760406 | U73: 0.1724590736 | V73: 0.008798734199 | W73: billion $ | Y73: Discounted Incremental Equipment Cost | AC73: 0.4598886525 | AD73: 0.03945449582 | AE73: 0.4993431483 | AF73: 0.02547611757 | AG73: billion $ | AI73: Discounted Incremental Equipment Cost | AM73: 1.808168855 | AN73: 0.02175896702 | AO73: 1.829927822 | AP73: 0.0933615621 | AQ73: billion $
E74: Discounted Oper. Cost Saving | I74: 1.785532723 | J74: 0.01561873029 | K74: 1.801151453 | L74: 0.09189341308 | M74: billion $ | O74: Discounted Oper. Cost Saving | S74: 2.564948151 | T74: 0.0350715681 | U74: 2.600019719 | V74: 0.1326510803 | W74: billion $ | Y74: Discounted Oper. Cost Saving | AC74: 3.525921304 | AD74: 0.04453135286 | AE74: 3.570452657 | AF74: 0.18216185 | AG74: billion $ | AI74: Discounted Oper. Cost Saving | AM74: 5.382691938 | AN74: 0.08668067469 | AO74: 5.469372612 | AP74: 0.2790433396 | AQ74: billion $
E75: NPV | I75: 1.733927409 | J75: 0.01561873029 | K75: 1.749546139 | L75: 0.08926054816 | M75: billion $ | O75: NPV | S75: 2.402130838 | T75: 0.0254298077 | U75: 2.427560646 | V75: 0.1238523461 | W75: billion $ | Y75: NPV | AC75: 3.066032651 | AD75: 0.005076857038 | AE75: 3.071109508 | AF75: 0.1566857324 | AG75: billion $ | AI75: NPV | AM75: 3.574523082 | AN75: 0.06492170767 | AO75: 3.63944479 | AP75: 0.1856817775 | AQ75: billion $
E76: CO2 Emission Savings | O76: CO2 Emission Savings | Y76: CO2 Emission Savings | AI76: CO2 Emission Savings
E77: Physical emission savings | I77: 14.81111447 | J77: 0.1295592412 | K77: 14.94067371 | L77: - | M77: Mt | O77: Physical emission savings | S77: 21.29530129 | T77: 0.2911683056 | U77: 21.5864696 | V77: - | W77: Mt | Y77: Physical emission savings | AC77: 29.32484612 | AD77: 0.3702971056 | AE77: 29.69514323 | AF77: - | AG77: Mt | AI77: Physical emission savings | AM77: 44.98598301 | AN77: 0.7245139705 | AO77: 45.71049698 | AP77: - | AQ77: Mt
E78: Monetized emission savings | O78: Monetized emission savings | Y78: Monetized emission savings | AI78: Monetized emission savings
E79: At 4.7 2007$/t | H79: 0.05 | I79: 65.09317396 | J79: 0.5694012379 | K79: 65.66257519 | L79: 4.271444747 | M79: million $ | O79: At 4.7 2007$/t | R79: 0.05 | S79: 93.58931603 | T79: 1.279596102 | U79: 94.86891213 | V79: 6.171358879 | W79: million $ | Y79: At 4.7 2007$/t | AB79: 0.05 | AC79: 128.8736262 | AD79: 1.627093946 | AE79: 130.5007202 | AF79: 8.489259127 | AG79: million $ | AI79: At 4.7 2007$/t | AL79: 0.05 | AM79: 197.6697734 | AN79: 3.18382381 | AO79: 200.8535972 | AP79: 13.06581474 | AQ79: million $
E80: At 21.4 2007$/t | H80: 0.03 | I80: 325.4092592 | J80: 2.846523979 | K80: 328.2557832 | L80: 16.74736693 | M80: million $ | O80: At 21.4 2007$/t | R80: 0.03 | S80: 467.860344 | T80: 6.396628284 | U80: 474.2569723 | V80: 24.19623945 | W80: million $ | Y80: At 21.4 2007$/t | AB80: 0.03 | AC80: 644.2312933 | AD80: 8.132678828 | AE80: 652.3639722 | AF80: 33.28312667 | AG80: million $ | AI80: At 21.4 2007$/t | AL80: 0.03 | AM80: 988.0112327 | AN80: 15.91491744 | AO80: 1003.92615 | AP80: 51.21956859 | AQ80: million $
E81: At 35.1 2007$/t | H81: 0.025 | I81: 548.1583519 | J81: 4.795030982 | K81: 552.9533829 | L81: 26.41880807 | M81: million $ | O81: At 35.1 2007$/t | R81: 0.025 | S81: 788.118212 | T81: 10.77515737 | U81: 798.8933693 | V81: 38.16924039 | W81: million $ | Y81: At 35.1 2007$/t | AB81: 0.025 | AC81: 1085.211099 | AD81: 13.69914234 | AE81: 1098.910241 | AF81: 52.5033387 | AG81: million $ | AI81: At 35.1 2007$/t | AL81: 0.025 | AM81: 1664.26231 | AN81: 26.80845632 | AO81: 1691.070767 | AP81: 80.79537154 | AQ81: million $
E82: At 64.9 2007$/t | H82: 0.03 | I82: 992.5329708 | J82: 8.682200406 | K82: 1001.215171 | L82: 51.08125646 | M82: million $ | O82: At 64.9 2007$/t | R82: 0.03 | S82: 1427.024554 | T82: 19.51042722 | U82: 1446.534982 | V82: 73.80114335 | W82: million $ | Y82: At 64.9 2007$/t | AB82: 0.03 | AC82: 1964.977124 | AD82: 24.8057008 | AE82: 1989.782825 | AF82: 101.5172459 | AG82: million $ | AI82: At 64.9 2007$/t | AL82: 0.03 | AM82: 3013.559269 | AN82: 48.54236586 | AO82: 3062.101635 | AP82: 156.2261574 | AQ82: million $
E83: NOx Emission Savings | O83: NOx Emission Savings | Y83: NOx Emission Savings | AI83: NOx Emission Savings
E84: Physical emission savings | I84: 12.04792237 | J84: 0.1053884016 | K84: 12.15331077 | L84: - | M84: kt | O84: Physical emission savings | S84: 17.32236439 | T84: 0.2368467775 | U84: 17.55921116 | V84: - | W84: kt | Y84: Physical emission savings | AC84: 23.85383068 | AD84: 0.3012123037 | AE84: 24.15504298 | AF84: - | AG84: kt | AI84: Physical emission savings | AM84: 36.59337866 | AN84: 0.5893483324 | AO84: 37.18272699 | AP84: - | AQ84: kt
E85: Monetized emission savings (3% dr) | O85: Monetized emission savings (3% dr) | Y85: Monetized emission savings (3% dr) | AI85: Monetized emission savings (3% dr)
E86: At 450 2010$/ton | I86: 3.503270383 | J86: 0.03064464179 | K86: 3.533915025 | L86: 0.1802977271 | M86: million $ | O86: At 450 2010$/ton | S86: 5.03695568 | T86: 0.06886951452 | U86: 5.105825194 | V86: 0.2604954196 | W86: million $ | Y86: At 450 2010$/ton | AC86: 6.936136445 | AD86: 0.087584114 | AE86: 7.023720559 | AF86: 0.3583450206 | AG86: million $ | AI86: At 450 2010$/ton | AM86: 10.64033327 | AN86: 0.1713676557 | AO86: 10.81170093 | AP86: 0.5516049734 | AQ86: million $
E87: At 2,537 2010$/ton | I87: 19.75065992 | J87: 0.1727676805 | K87: 19.9234276 | L87: 1.016478519 | M87: million $ | O87: At 2,537 2010$/ton | S87: 28.3972368 | T87: 0.3882710185 | U87: 28.78550782 | V87: 1.468615288 | W87: million $ | Y87: At 2,537 2010$/ton | AC87: 39.10439591 | AD87: 0.4937797716 | AE87: 39.59817568 | AF87: 2.020269594 | AG87: million $ | AI87: At 2,537 2010$/ton | AM87: 59.98783447 | AN87: 0.966132761 | AO87: 60.95396723 | AP87: 3.109826261 | AQ87: million $
E88: At 4,623 2010$/ton | I88: 35.9902644 | J88: 0.31482262 | K88: 36.30508702 | L88: 1.85225865 | M88: million $ | O88: At 4,623 2010$/ton | S88: 51.74632468 | T88: 0.7075194791 | U88: 52.45384416 | V88: 2.676156278 | W88: million $ | Y88: At 4,623 2010$/ton | AC88: 71.25724174 | AD88: 0.8997807978 | AE88: 72.15702254 | AF88: 3.681397845 | AG88: million $ | AI88: At 4,623 2010$/ton | AM88: 109.3116905 | AN88: 1.760517049 | AO88: 111.0722075 | AP88: 5.66682176 | AQ88: million $
E89: NPV with Emission Savings (3% dr) | I89: 2.079087328 | J89: 0.01863802195 | K89: 2.09772535 | L89: 0.1070243936 | M89: billion $ | O89: NPV with Emission Savings (3% dr) | S89: 2.898388419 | T89: 0.032214707 | U89: 2.930603126 | V89: 0.1495172008 | W89: billion $ | Y89: NPV with Emission Savings (3% dr) | AC89: 3.749368341 | AD89: 0.01370331564 | AE89: 3.763071656 | AF89: 0.1919891287 | AG89: billion $ | AI89: NPV with Emission Savings (3% dr) | AM89: 4.62252215 | AN89: 0.08180275788 | AO89: 4.704324907 | AP89: 0.2400111724 | AQ89: billion $
E98: National Impact Summary (TSL 1, AEO 2010 Low Growth, 7% Discount Rate, Learning: Constant Prices) | O98: National Impact Summary (TSL 2, AEO 2010 Low Growth, 7% Discount Rate, Learning: Constant Prices) | Y98: National Impact Summary (TSL 3, AEO 2010 Low Growth, 7% Discount Rate, Learning: Constant Prices) | AI98: National Impact Summary (TSL 4, AEO 2010 Low Growth, 7% Discount Rate, Learning: Constant Prices)
I99: PC1 | J99: PC2 | K99: Total | L99: Annualized (30 years) | S99: PC1 | T99: PC2 | U99: Total | V99: Annualized (30 years) | AC99: PC1 | AD99: PC2 | AE99: Total | AF99: Annualized (30 years) | AM99: PC1 | AN99: PC2 | AO99: Total | AP99: Annualized (30 years)
E100: Results presented for CSL | I100: 1 | J100: 1 | O100: Results presented for CSL | S100: 2 | T100: 2 | Y100: Results presented for CSL | AC100: 3 | AD100: 3 | AI100: Results presented for CSL | AM100: 4 | AN100: 4
E101: Energy Saving (2014 to 2043) | I101: 0.1944168781 | J101: 0.001700648743 | K101: 0.1961175269 | L101: - | M101: quad | O101: Energy Saving (2014 to 2043) | S101: 0.2792791507 | T101: 0.003818553021 | U101: 0.2830977037 | V101: - | W101: quad | Y101: Energy Saving (2014 to 2043) | AC101: 0.3838978209 | AD101: 0.004847638461 | AE101: 0.3887454594 | AF101: - | AG101: quad | AI101: Energy Saving (2014 to 2043) | AM101: 0.5859556159 | AN101: 0.009437006849 | AO101: 0.5953926227 | AP101: - | AQ101: quad
E102: Energy Savings discounted at 3% | I102: 0.1140644535 | J102: 0.0009977608552 | K102: 0.1150622144 | L102: - | M102: quad | O102: Energy Savings discounted at 3% | S102: 0.1638570471 | T102: 0.00224053757 | U102: 0.1660975846 | V102: - | W102: quad | Y102: Energy Savings discounted at 3% | AC102: 0.2252527247 | AD102: 0.002845207417 | AE102: 0.2280979321 | AF102: - | AG102: quad | AI102: Energy Savings discounted at 3% | AM102: 0.3439117492 | AN102: 0.005537831313 | AO102: 0.3494495805 | AP102: - | AQ102: quad
E103: Discounted Incremental Equipment Cost | I103: 0.02999299051 | J103: 0 | K103: 0.02999299051 | L103: 0.002417027236 | M103: billion $ | O103: Discounted Incremental Equipment Cost | S103: 0.09463292548 | T103: 0.00560454993 | U103: 0.1002374754 | V103: 0.008077777641 | W103: billion $ | Y103: Discounted Incremental Equipment Cost | AC103: 0.2673244568 | AD103: 0.02294503153 | AE103: 0.2902694883 | AF103: 0.02339177411 | AG103: billion $ | AI103: Discounted Incremental Equipment Cost | AM103: 1.051547461 | AN103: 0.01265044081 | AO103: 1.064197901 | AP103: 0.08575988151 | AQ103: billion $
E104: Discounted Oper. Cost Saving | I104: 0.9319679546 | J104: 0.008152180387 | K104: 0.940120135 | L104: 0.07576090055 | M104: billion $ | O104: Discounted Oper. Cost Saving | S104: 1.338823552 | T104: 0.01830754992 | U104: 1.357131102 | V104: 0.1093663146 | W104: billion $ | Y104: Discounted Oper. Cost Saving | AC104: 1.840554955 | AD104: 0.02325349119 | AE104: 1.863808446 | AF104: 0.1501976195 | AG104: billion $ | AI104: Discounted Oper. Cost Saving | AM104: 2.810736934 | AN104: 0.04525391396 | AO104: 2.855990848 | AP104: 0.2301540309 | AQ104: billion $
E105: NPV | I105: 0.9019749641 | J105: 0.008152180387 | K105: 0.9101271445 | L105: 0.07334387331 | M105: billion $ | O105: NPV | S105: 1.244190626 | T105: 0.01270299999 | U105: 1.256893626 | V105: 0.1012885369 | W105: billion $ | Y105: NPV | AC105: 1.573230498 | AD105: 0.0003084596597 | AE105: 1.573538958 | AF105: 0.1268058454 | AG105: billion $ | AI105: NPV | AM105: 1.759189474 | AN105: 0.03260347315 | AO105: 1.791792947 | AP105: 0.1443941494 | AQ105: billion $
E106: CO2 Emission Savings | O106: CO2 Emission Savings | Y106: CO2 Emission Savings | AI106: CO2 Emission Savings
E107: Physical emission savings | I107: 14.81111447 | J107: 0.1295592412 | K107: 14.94067371 | L107: - | M107: Mt | O107: Physical emission savings | S107: 21.29530129 | T107: 0.2911683056 | U107: 21.5864696 | V107: - | W107: Mt | Y107: Physical emission savings | AC107: 29.32484612 | AD107: 0.3702971056 | AE107: 29.69514323 | AF107: - | AG107: Mt | AI107: Physical emission savings | AM107: 44.98598301 | AN107: 0.7245139705 | AO107: 45.71049698 | AP107: - | AQ107: Mt
E108: Monetized emission savings | O108: Monetized emission savings | Y108: Monetized emission savings | AI108: Monetized emission savings
E109: At 4.7 2007$/t | H109: 0.05 | I109: 65.09317396 | J109: 0.5694012379 | K109: 65.66257519 | L109: 4.271444747 | M109: million $ | O109: At 4.7 2007$/t | R109: 0.05 | S109: 93.58931603 | T109: 1.279596102 | U109: 94.86891213 | V109: 6.171358879 | W109: million $ | Y109: At 4.7 2007$/t | AB109: 0.05 | AC109: 128.8736262 | AD109: 1.627093946 | AE109: 130.5007202 | AF109: 8.489259127 | AG109: million $ | AI109: At 4.7 2007$/t | AL109: 0.05 | AM109: 197.6697734 | AN109: 3.18382381 | AO109: 200.8535972 | AP109: 13.06581474 | AQ109: million $
E110: At 21.4 2007$/t | H110: 0.03 | I110: 325.4092592 | J110: 2.846523979 | K110: 328.2557832 | L110: 16.74736693 | M110: million $ | O110: At 21.4 2007$/t | R110: 0.03 | S110: 467.860344 | T110: 6.396628284 | U110: 474.2569723 | V110: 24.19623945 | W110: million $ | Y110: At 21.4 2007$/t | AB110: 0.03 | AC110: 644.2312933 | AD110: 8.132678828 | AE110: 652.3639722 | AF110: 33.28312667 | AG110: million $ | AI110: At 21.4 2007$/t | AL110: 0.03 | AM110: 988.0112327 | AN110: 15.91491744 | AO110: 1003.92615 | AP110: 51.21956859 | AQ110: million $
E111: At 35.1 2007$/t | H111: 0.025 | I111: 548.1583519 | J111: 4.795030982 | K111: 552.9533829 | L111: 26.41880807 | M111: million $ | O111: At 35.1 2007$/t | R111: 0.025 | S111: 788.118212 | T111: 10.77515737 | U111: 798.8933693 | V111: 38.16924039 | W111: million $ | Y111: At 35.1 2007$/t | AB111: 0.025 | AC111: 1085.211099 | AD111: 13.69914234 | AE111: 1098.910241 | AF111: 52.5033387 | AG111: million $ | AI111: At 35.1 2007$/t | AL111: 0.025 | AM111: 1664.26231 | AN111: 26.80845632 | AO111: 1691.070767 | AP111: 80.79537154 | AQ111: million $
E112: At 64.9 2007$/t | H112: 0.03 | I112: 992.5329708 | J112: 8.682200406 | K112: 1001.215171 | L112: 51.08125646 | M112: million $ | O112: At 64.9 2007$/t | R112: 0.03 | S112: 1427.024554 | T112: 19.51042722 | U112: 1446.534982 | V112: 73.80114335 | W112: million $ | Y112: At 64.9 2007$/t | AB112: 0.03 | AC112: 1964.977124 | AD112: 24.8057008 | AE112: 1989.782825 | AF112: 101.5172459 | AG112: million $ | AI112: At 64.9 2007$/t | AL112: 0.03 | AM112: 3013.559269 | AN112: 48.54236586 | AO112: 3062.101635 | AP112: 156.2261574 | AQ112: million $
E113: NOx Emission Savings | O113: NOx Emission Savings | Y113: NOx Emission Savings | AI113: NOx Emission Savings
E114: Physical emission savings | I114: 12.04792237 | J114: 0.1053884016 | K114: 12.15331077 | L114: - | M114: kt | O114: Physical emission savings | S114: 17.32236439 | T114: 0.2368467775 | U114: 17.55921116 | V114: - | W114: kt | Y114: Physical emission savings | AC114: 23.85383068 | AD114: 0.3012123037 | AE114: 24.15504298 | AF114: - | AG114: kt | AI114: Physical emission savings | AM114: 36.59337866 | AN114: 0.5893483324 | AO114: 37.18272699 | AP114: - | AQ114: kt
E115: Monetized emission savings (7% dr) | O115: Monetized emission savings (7% dr) | Y115: Monetized emission savings (7% dr) | AI115: Monetized emission savings (7% dr)
E116: At 450 2010$/ton | I116: 1.815825509 | J116: 0.0158835693 | K116: 1.831709078 | L116: 0.1476108469 | M116: million $ | O116: At 450 2010$/ton | S116: 2.610863936 | T116: 0.03570130235 | U116: 2.646565238 | V116: 0.2132771742 | W116: million $ | Y116: At 450 2010$/ton | AC116: 3.595639885 | AD116: 0.04542357167 | AE116: 3.641063457 | AF116: 0.2934202089 | AG116: million $ | AI116: At 450 2010$/ton | AM116: 5.518346918 | AN116: 0.08885162118 | AO116: 5.60719854 | AP116: 0.4518639641 | AQ116: million $
E117: At 2,537 2010$/ton | I117: 10.2372207 | J117: 0.08954803402 | K117: 10.32676873 | L117: 0.8321971522 | M117: million $ | O117: At 2,537 2010$/ton | S117: 14.71947068 | T117: 0.201276009 | U117: 14.92074669 | V117: 1.202409313 | W117: million $ | Y117: At 2,537 2010$/ton | AC117: 20.27141864 | AD117: 0.2560880029 | AE117: 20.52750664 | AF117: 1.654237933 | AG117: million $ | AI117: At 2,537 2010$/ton | AM117: 31.11121363 | AN117: 0.5009256954 | AO117: 31.61213932 | AP117: 2.547508615 | AQ117: million $
E118: At 4,623 2010$/ton | I118: 18.65458072 | J118: 0.1631772019 | K118: 18.81775793 | L118: 1.516455433 | M118: million $ | O118: At 4,623 2010$/ton | S118: 26.8222755 | T118: 0.3667713795 | U118: 27.18904688 | V118: 2.191067503 | W118: million $ | Y118: At 4,623 2010$/ton | AC118: 36.93920708 | AD118: 0.4666514929 | AE118: 37.40585858 | AF118: 3.014403613 | AG118: million $ | AI118: At 4,623 2010$/ton | AM118: 56.69181734 | AN118: 0.9128023215 | AO118: 57.60461966 | AP118: 4.642149124 | AQ118: million $
E119: NPV with Emission Savings (7% dr) | I119: 1.237621444 | J119: 0.0110882524 | K119: 1.248709696 | L119: 0.09092343739 | M119: billion $ | O119: NPV with Emission Savings (7% dr) | S119: 1.726770441 | T119: 0.01930090429 | U119: 1.746071345 | V119: 0.1266871857 | W119: billion $ | Y119: NPV with Emission Savings (7% dr) | AC119: 2.23773321 | AD119: 0.008697226491 | AE119: 2.246430437 | AF119: 0.16174321 | AG119: billion $ | AI119: NPV with Emission Savings (7% dr) | AM119: 2.77831192 | AN119: 0.04901931629 | AO119: 2.827331236 | AP119: 0.1981612266 | AQ119: billion $
E133: National Impact Summary (TSL 1, AEO 2010 High Growth, 3% Discount Rate, Learning: High) | O133: National Impact Summary (TSL 2, AEO 2010 High Growth, 3% Discount Rate, Learning: High) | Y133: National Impact Summary (TSL 3, AEO 2010 High Growth, 3% Discount Rate, Learning: High) | AI133: National Impact Summary (TSL 4, AEO 2010 High Growth, 3% Discount Rate, Learning: High)
I134: PC1 | J134: PC2 | K134: Total | L134: Annualized (30 years) | S134: PC1 | T134: PC2 | U134: Total | V134: Annualized (30 years) | AC134: PC1 | AD134: PC2 | AE134: Total | AF134: Annualized (30 years) | AM134: PC1 | AN134: PC2 | AO134: Total | AP134: Annualized (30 years)
E135: Results presented for CSL | I135: 1 | J135: 1 | O135: Results presented for CSL | S135: 2 | T135: 2 | Y135: Results presented for CSL | AC135: 3 | AD135: 3 | AI135: Results presented for CSL | AM135: 4 | AN135: 4
E136: Energy Saving (2014 to 2043) | I136: 0.2178552735 | J136: 0.001905651294 | K136: 0.2197609248 | L136: - | M136: quad | O136: Energy Saving (2014 to 2043) | S136: 0.3129543496 | T136: 0.004279140703 | U136: 0.3172334903 | V136: - | W136: quad | Y136: Energy Saving (2014 to 2043) | AC136: 0.430207853 | AD136: 0.005433427309 | AE136: 0.4356412803 | AF136: - | AG136: quad | AI136: Energy Saving (2014 to 2043) | AM136: 0.656772676 | AN136: 0.0105762365 | AO136: 0.6673489125 | AP136: - | AQ136: quad
E137: Energy Savings discounted at 3% | I137: 0.126525886 | J137: 0.001106753936 | K137: 0.1276326399 | L137: - | M137: quad | O137: Energy Savings discounted at 3% | S137: 0.1817611495 | T137: 0.0024854231 | U137: 0.1842465726 | V137: - | W137: quad | Y137: Energy Savings discounted at 3% | AC137: 0.2498747984 | AD137: 0.003156686256 | AE137: 0.2530314846 | AF137: - | AG137: quad | AI137: Energy Savings discounted at 3% | AM137: 0.3815667144 | AN137: 0.00614355561 | AO137: 0.38771027 | AP137: - | AQ137: quad
E138: Discounted Incremental Equipment Cost | I138: 0.04462618032 | J138: 0 | K138: 0.04462618032 | L138: 0.002276794666 | M138: billion $ | O138: Discounted Incremental Equipment Cost | S138: 0.1408036874 | T138: 0.008338179902 | U138: 0.1491418673 | V138: 0.007609107601 | W138: billion $ | Y138: Discounted Incremental Equipment Cost | AC138: 0.3977169166 | AD138: 0.03413319303 | AE138: 0.4318501096 | AF138: 0.02203267273 | AG138: billion $ | AI138: Discounted Incremental Equipment Cost | AM138: 1.564300435 | AN138: 0.0188201785 | AO138: 1.583120614 | AP138: 0.08076964114 | AQ138: billion $
E139: Discounted Oper. Cost Saving | I139: 2.242835462 | J139: 0.01961873521 | K139: 2.262454197 | L139: 0.1154287374 | M139: billion $ | O139: Discounted Oper. Cost Saving | S139: 3.221918145 | T139: 0.04405561841 | U139: 3.265973763 | V139: 0.1666275624 | W139: billion $ | Y139: Discounted Oper. Cost Saving | AC139: 4.429179542 | AD139: 0.05594647665 | AE139: 4.485126019 | AF139: 0.2288278074 | AG139: billion $ | AI139: Discounted Oper. Cost Saving | AM139: 6.762589303 | AN139: 0.1088923249 | AO139: 6.871481628 | AP139: 0.3505779031 | AQ139: billion $
E140: NPV | I140: 2.198209281 | J140: 0.01961873521 | K140: 2.217828017 | L140: 0.1131519427 | M140: billion $ | O140: NPV | S140: 3.081114458 | T140: 0.03571743851 | U140: 3.116831896 | V140: 0.1590184548 | W140: billion $ | Y140: NPV | AC140: 4.031462625 | AD140: 0.02181328362 | AE140: 4.053275909 | AF140: 0.2067951347 | AG140: billion $ | AI140: NPV | AM140: 5.198288867 | AN140: 0.09007214641 | AO140: 5.288361014 | AP140: 0.2698082619 | AQ140: billion $
E141: CO2 Emission Savings | O141: CO2 Emission Savings | Y141: CO2 Emission Savings | AI141: CO2 Emission Savings
E142: Physical emission savings | I142: 16.59670407 | J142: 0.145176796 | K142: 16.74188087 | L142: - | M142: Mt | O142: Physical emission savings | S142: 23.86306729 | T142: 0.3262885551 | U142: 24.18935584 | V142: - | W142: Mt | Y142: Physical emission savings | AC142: 32.86233577 | AD142: 0.4150438244 | AE142: 33.27737959 | AF142: - | AG142: Mt | AI142: Physical emission savings | AM142: 50.42287102 | AN142: 0.8119768504 | AO142: 51.23484787 | AP142: - | AQ142: Mt
E143: Monetized emission savings | O143: Monetized emission savings | Y143: Monetized emission savings | AI143: Monetized emission savings
E144: At 4.7 2007$/t | H144: 0.05 | I144: 73.18350846 | J144: 0.6401630415 | K144: 73.8236715 | L144: 4.802335774 | M144: million $ | O144: At 4.7 2007$/t | R144: 0.05 | S144: 105.2235121 | T144: 1.438716366 | U144: 106.6622285 | V144: 6.938531033 | W144: million $ | Y144: At 4.7 2007$/t | AB144: 0.05 | AC144: 144.9010772 | AD144: 1.829801782 | AE144: 146.730879 | AF144: 9.545054251 | AG144: million $ | AI144: At 4.7 2007$/t | AL144: 0.05 | AM144: 222.2997272 | AN144: 3.580074817 | AO144: 225.879802 | AP144: 14.69380528 | AQ144: million $
E145: At 21.4 2007$/t | H145: 0.03 | I145: 367.2548823 | J145: 3.212525396 | K145: 370.4674077 | L145: 18.90097274 | M145: million $ | O145: At 21.4 2007$/t | R145: 0.03 | S145: 528.035692 | T145: 7.219634469 | U145: 535.2553265 | V145: 27.3083303 | W145: million $ | Y145: At 21.4 2007$/t | AB145: 0.03 | AC145: 727.1290233 | AD145: 9.181080377 | AE145: 736.3101037 | AF145: 37.56599612 | AG145: million $ | AI145: At 21.4 2007$/t | AL145: 0.03 | AM145: 1115.397384 | AN145: 17.96438302 | AO145: 1133.361767 | AP145: 57.82327787 | AQ145: million $
E146: At 35.1 2007$/t | H146: 0.025 | I146: 619.1731124 | J146: 5.416159432 | K146: 624.5892719 | L146: 29.84140184 | M146: million $ | O146: At 35.1 2007$/t | R146: 0.025 | S146: 890.2396475 | T146: 12.17184859 | U146: 902.4114961 | V146: 43.11509226 | W146: million $ | Y146: At 35.1 2007$/t | AB146: 0.025 | AC146: 1225.893595 | AD146: 15.47832498 | AE146: 1241.37192 | AF146: 59.30982159 | AG146: million $ | AI146: At 35.1 2007$/t | AL146: 0.025 | AM146: 1880.442263 | AN146: 30.28651049 | AO146: 1910.728773 | AP146: 91.29011286 | AQ146: million $
E147: At 64.9 2007$/t | H147: 0.03 | I147: 1119.998793 | J147: 9.797076152 | K147: 1129.795869 | L147: 57.64134841 | M147: million $ | O147: At 64.9 2007$/t | R147: 0.03 | S147: 1610.324513 | T147: 22.01738495 | U147: 1632.341898 | V147: 83.28087459 | W147: million $ | Y147: At 64.9 2007$/t | AB147: 0.03 | AC147: 2217.491746 | AD147: 27.99924004 | AE147: 2245.490986 | AF147: 114.5632869 | AG147: million $ | AI147: At 64.9 2007$/t | AL147: 0.03 | AM147: 3401.590575 | AN147: 54.785243 | AO147: 3456.375818 | AP147: 176.3417342 | AQ147: million $
E148: NOx Emission Savings | O148: NOx Emission Savings | Y148: NOx Emission Savings | AI148: NOx Emission Savings
E149: Physical emission savings | I149: 13.50038869 | J149: 0.1180923131 | K149: 13.618481 | L149: - | M149: kt | O149: Physical emission savings | S149: 19.41107765 | T149: 0.2654148522 | U149: 19.6764925 | V149: - | W149: kt | Y149: Physical emission savings | AC149: 26.73134548 | AD149: 0.3376108119 | AE149: 27.0689563 | AF149: - | AG149: kt | AI149: Physical emission savings | AM149: 41.01595851 | AN149: 0.6604940998 | AO149: 41.67645261 | AP149: - | AQ149: kt
E150: Monetized emission savings (3% dr) | O150: Monetized emission savings (3% dr) | Y150: Monetized emission savings (3% dr) | AI150: Monetized emission savings (3% dr)
E151: At 450 2010$/ton | I151: 3.919933995 | J151: 0.03428897292 | K151: 3.954222968 | L151: 0.201741527 | M151: million $ | O151: At 450 2010$/ton | S151: 5.636132985 | T151: 0.07706449473 | U151: 5.71319748 | V151: 0.2914831038 | W151: million $ | Y151: At 450 2010$/ton | AC151: 7.761576127 | AD151: 0.09802426722 | AE151: 7.859600394 | AF151: 0.4009909907 | AG151: million $ | AI151: At 450 2010$/ton | AM151: 11.90886556 | AN151: 0.1917756315 | AO151: 12.1006412 | AP151: 0.6173657511 | AQ151: million $
E152: At 2,537 2010$/ton | I152: 22.09971677 | J152: 0.1933136096 | K152: 22.29303038 | L152: 1.137373898 | M152: million $ | O152: At 2,537 2010$/ton | S152: 31.7752653 | T152: 0.4344724958 | U152: 32.20973779 | V152: 1.643316965 | W152: million $ | Y152: At 2,537 2010$/ton | AC152: 43.75804141 | AD152: 0.5526390354 | AE152: 44.31068044 | AF152: 2.260698096 | AG152: million $ | AI152: At 2,537 2010$/ton | AM152: 67.13953764 | AN152: 1.081188393 | AO152: 68.22072603 | AP152: 3.480570912 | AQ152: million $
E153: At 4,623 2010$/ton | I153: 40.27078857 | J153: 0.3522620485 | K153: 40.62305062 | L153: 2.072557954 | M153: million $ | O153: At 4,623 2010$/ton | S153: 57.90187287 | T153: 0.7917092425 | U153: 58.69358211 | V153: 2.994503086 | W153: million $ | Y153: At 4,623 2010$/ton | AC153: 79.73725874 | AD153: 1.007035972 | AE153: 80.74429472 | AF153: 4.119514111 | AG153: million $ | AI153: At 4,623 2010$/ton | AM153: 122.3437456 | AN153: 1.970174987 | AO153: 124.3139206 | AP153: 6.34240415 | AQ153: million $
E154: NPV with Emission Savings (3% dr) | I154: 2.587563881 | J154: 0.02302457422 | K154: 2.610588455 | L154: 0.1331902894 | M154: billion $ | O154: NPV with Emission Savings (3% dr) | S154: 3.640925415 | T154: 0.04337154547 | U154: 3.68429696 | V154: 0.187970102 | W154: billion $ | Y154: NPV with Emission Savings (3% dr) | AC154: 4.80234969 | AD154: 0.03154700304 | AE154: 4.833896693 | AF154: 0.2466218289 | AG154: billion $ | AI154: NPV with Emission Savings (3% dr) | AM154: 6.380825789 | AN154: 0.1091177178 | AO154: 6.489943506 | AP154: 0.3311121107 | AQ154: billion $
E163: National Impact Summary (TSL 1, AEO 2010 High Growth, 7% Discount Rate, Learning: High) | O163: National Impact Summary (TSL 2, AEO 2010 High Growth, 7% Discount Rate, Learning: High) | Y163: National Impact Summary (TSL 3, AEO 2010 High Growth, 7% Discount Rate, Learning: High) | AI163: National Impact Summary (TSL 4, AEO 2010 High Growth, 7% Discount Rate, Learning: High)
I164: PC1 | J164: PC2 | K164: Total | L164: Annualized (30 years) | S164: PC1 | T164: PC2 | U164: Total | V164: Annualized (30 years) | AC164: PC1 | AD164: PC2 | AE164: Total | AF164: Annualized (30 years) | AM164: PC1 | AN164: PC2 | AO164: Total | AP164: Annualized (30 years)
E165: Results presented for CSL | I165: 1 | J165: 1 | O165: Results presented for CSL | S165: 2 | T165: 2 | Y165: Results presented for CSL | AC165: 3 | AD165: 3 | AI165: Results presented for CSL | AM165: 4 | AN165: 4
E166: Energy Saving (2014 to 2043) | I166: 0.2178552735 | J166: 0.001905651294 | K166: 0.2197609248 | L166: - | M166: quad | O166: Energy Saving (2014 to 2043) | S166: 0.3129543496 | T166: 0.004279140703 | U166: 0.3172334903 | V166: - | W166: quad | Y166: Energy Saving (2014 to 2043) | AC166: 0.430207853 | AD166: 0.005433427309 | AE166: 0.4356412803 | AF166: - | AG166: quad | AI166: Energy Saving (2014 to 2043) | AM166: 0.656772676 | AN166: 0.0105762365 | AO166: 0.6673489125 | AP166: - | AQ166: quad
E167: Energy Savings discounted at 3% | I167: 0.126525886 | J167: 0.001106753936 | K167: 0.1276326399 | L167: - | M167: quad | O167: Energy Savings discounted at 3% | S167: 0.1817611495 | T167: 0.0024854231 | U167: 0.1842465726 | V167: - | W167: quad | Y167: Energy Savings discounted at 3% | AC167: 0.2498747984 | AD167: 0.003156686256 | AE167: 0.2530314846 | AF167: - | AG167: quad | AI167: Energy Savings discounted at 3% | AM167: 0.3815667144 | AN167: 0.00614355561 | AO167: 0.38771027 | AP167: - | AQ167: quad
E168: Discounted Incremental Equipment Cost | I168: 0.02653441088 | J168: 0 | K168: 0.02653441088 | L168: 0.002138312742 | M168: billion $ | O168: Discounted Incremental Equipment Cost | S168: 0.08372332341 | T168: 0.00495836057 | U168: 0.08868168398 | V168: 0.007146537969 | W168: billion $ | Y168: Discounted Incremental Equipment Cost | AC168: 0.2365055779 | AD168: 0.02030527352 | AE168: 0.2568108514 | AF168: 0.0206954629 | AG168: billion $ | AI168: Discounted Incremental Equipment Cost | AM168: 0.9305696809 | AN168: 0.01119323579 | AO168: 0.9417629167 | AP168: 0.07589328642 | AQ168: billion $
E169: Discounted Oper. Cost Saving | I169: 1.144828394 | J169: 0.01001404907 | K169: 1.154842444 | L169: 0.09306459915 | M169: billion $ | O169: Discounted Oper. Cost Saving | S169: 1.64462797 | T169: 0.02248961607 | U169: 1.667117586 | V169: 0.1343470105 | W169: billion $ | Y169: Discounted Oper. Cost Saving | AC169: 2.261020197 | AD169: 0.02856839565 | AE169: 2.289588593 | AF169: 0.1845097102 | AG169: billion $ | AI169: Discounted Oper. Cost Saving | AM169: 3.453214999 | AN169: 0.05559429372 | AO169: 3.508809293 | AP169: 0.2827623215 | AQ169: billion $
E170: NPV | I170: 1.118293984 | J170: 0.01001404907 | K170: 1.128308033 | L170: 0.0909262864 | M170: billion $ | O170: NPV | S170: 1.560904646 | T170: 0.0175312555 | U170: 1.578435902 | V170: 0.1272004725 | W170: billion $ | Y170: NPV | AC170: 2.024514619 | AD170: 0.00826312213 | AE170: 2.032777742 | AF170: 0.1638142473 | AG170: billion $ | AI170: NPV | AM170: 2.522645318 | AN170: 0.04440105793 | AO170: 2.567046376 | AP170: 0.2068690351 | AQ170: billion $
E171: CO2 Emission Savings | O171: CO2 Emission Savings | Y171: CO2 Emission Savings | AI171: CO2 Emission Savings
E172: Physical emission savings | I172: 16.59670407 | J172: 0.145176796 | K172: 16.74188087 | L172: - | M172: Mt | O172: Physical emission savings | S172: 23.86306729 | T172: 0.3262885551 | U172: 24.18935584 | V172: - | W172: Mt | Y172: Physical emission savings | AC172: 32.86233577 | AD172: 0.4150438244 | AE172: 33.27737959 | AF172: - | AG172: Mt | AI172: Physical emission savings | AM172: 50.42287102 | AN172: 0.8119768504 | AO172: 51.23484787 | AP172: - | AQ172: Mt
E173: Monetized emission savings | O173: Monetized emission savings | Y173: Monetized emission savings | AI173: Monetized emission savings
E174: At 4.7 2007$/t | H174: 0.05 | I174: 73.18350846 | J174: 0.6401630415 | K174: 73.8236715 | L174: 4.802335774 | M174: million $ | O174: At 4.7 2007$/t | R174: 0.05 | S174: 105.2235121 | T174: 1.438716366 | U174: 106.6622285 | V174: 6.938531033 | W174: million $ | Y174: At 4.7 2007$/t | AB174: 0.05 | AC174: 144.9010772 | AD174: 1.829801782 | AE174: 146.730879 | AF174: 9.545054251 | AG174: million $ | AI174: At 4.7 2007$/t | AL174: 0.05 | AM174: 222.2997272 | AN174: 3.580074817 | AO174: 225.879802 | AP174: 14.69380528 | AQ174: million $
E175: At 21.4 2007$/t | H175: 0.03 | I175: 367.2548823 | J175: 3.212525396 | K175: 370.4674077 | L175: 18.90097274 | M175: million $ | O175: At 21.4 2007$/t | R175: 0.03 | S175: 528.035692 | T175: 7.219634469 | U175: 535.2553265 | V175: 27.3083303 | W175: million $ | Y175: At 21.4 2007$/t | AB175: 0.03 | AC175: 727.1290233 | AD175: 9.181080377 | AE175: 736.3101037 | AF175: 37.56599612 | AG175: million $ | AI175: At 21.4 2007$/t | AL175: 0.03 | AM175: 1115.397384 | AN175: 17.96438302 | AO175: 1133.361767 | AP175: 57.82327787 | AQ175: million $
E176: At 35.1 2007$/t | H176: 0.025 | I176: 619.1731124 | J176: 5.416159432 | K176: 624.5892719 | L176: 29.84140184 | M176: million $ | O176: At 35.1 2007$/t | R176: 0.025 | S176: 890.2396475 | T176: 12.17184859 | U176: 902.4114961 | V176: 43.11509226 | W176: million $ | Y176: At 35.1 2007$/t | AB176: 0.025 | AC176: 1225.893595 | AD176: 15.47832498 | AE176: 1241.37192 | AF176: 59.30982159 | AG176: million $ | AI176: At 35.1 2007$/t | AL176: 0.025 | AM176: 1880.442263 | AN176: 30.28651049 | AO176: 1910.728773 | AP176: 91.29011286 | AQ176: million $
E177: At 64.9 2007$/t | H177: 0.03 | I177: 1119.998793 | J177: 9.797076152 | K177: 1129.795869 | L177: 57.64134841 | M177: million $ | O177: At 64.9 2007$/t | R177: 0.03 | S177: 1610.324513 | T177: 22.01738495 | U177: 1632.341898 | V177: 83.28087459 | W177: million $ | Y177: At 64.9 2007$/t | AB177: 0.03 | AC177: 2217.491746 | AD177: 27.99924004 | AE177: 2245.490986 | AF177: 114.5632869 | AG177: million $ | AI177: At 64.9 2007$/t | AL177: 0.03 | AM177: 3401.590575 | AN177: 54.785243 | AO177: 3456.375818 | AP177: 176.3417342 | AQ177: million $
E178: NOx Emission Savings | O178: NOx Emission Savings | Y178: NOx Emission Savings | AI178: NOx Emission Savings
E179: Physical emission savings | I179: 13.50038869 | J179: 0.1180923131 | K179: 13.618481 | L179: - | M179: kt | O179: Physical emission savings | S179: 19.41107765 | T179: 0.2654148522 | U179: 19.6764925 | V179: - | W179: kt | Y179: Physical emission savings | AC179: 26.73134548 | AD179: 0.3376108119 | AE179: 27.0689563 | AF179: - | AG179: kt | AI179: Physical emission savings | AM179: 41.01595851 | AN179: 0.6604940998 | AO179: 41.67645261 | AP179: - | AQ179: kt
E180: Monetized emission savings (7% dr) | O180: Monetized emission savings (7% dr) | Y180: Monetized emission savings (7% dr) | AI180: Monetized emission savings (7% dr)
E181: At 450 2010$/ton | I181: 1.999661587 | J181: 0.01749148115 | K181: 2.017153068 | L181: 0.1625551111 | M181: million $ | O181: At 450 2010$/ton | S181: 2.875229395 | T181: 0.03931717151 | U181: 2.914546567 | V181: 0.2348728257 | W181: million $ | Y181: At 450 2010$/ton | AC181: 3.959846471 | AD181: 0.0500307898 | AE181: 4.009877261 | AF181: 0.323141587 | AG181: million $ | AI181: At 450 2010$/ton | AM181: 6.078140231 | AN181: 0.0978567168 | AO181: 6.175996948 | AP181: 0.4977013821 | AQ181: million $
E182: At 2,537 2010$/ton | I182: 11.27364766 | J182: 0.09861308372 | K182: 11.37226074 | L182: 0.9164495929 | M182: million $ | O182: At 2,537 2010$/ton | S182: 16.20990439 | T182: 0.2216614758 | U182: 16.43156587 | V182: 1.324160797 | W182: million $ | Y182: At 2,537 2010$/ton | AC182: 22.32473444 | AD182: 0.282062475 | AE182: 22.60679692 | AF182: 1.821800458 | AG182: million $ | AI182: At 2,537 2010$/ton | AM182: 34.26720393 | AN182: 0.5516944234 | AO182: 34.81889835 | AP182: 2.805929792 | AQ182: million $
E183: At 4,623 2010$/ton | I183: 20.54319004 | J183: 0.1796958163 | K183: 20.72288585 | L183: 1.669982841 | M183: million $ | O183: At 4,623 2010$/ton | S183: 29.53818999 | T183: 0.4039184086 | U183: 29.9421084 | V183: 2.412926829 | W183: million $ | Y183: At 4,623 2010$/ton | AC183: 40.68082275 | AD183: 0.5139829806 | AE183: 41.19480573 | AF183: 3.319741237 | AG183: million $ | AI183: At 4,623 2010$/ton | AM183: 62.44276064 | AN183: 1.005314671 | AO183: 63.44807531 | AP183: 5.113052199 | AQ183: million $
E184: NPV with Emission Savings (7% dr) | I184: 1.496822514 | J184: 0.01332518755 | K184: 1.510147701 | L184: 0.1107437087 | M184: billion $ | O184: NPV with Emission Savings (7% dr) | S184: 2.105150243 | T184: 0.02497255145 | U184: 2.130122794 | V184: 0.1558329636 | W184: billion $ | Y184: NPV with Emission Savings (7% dr) | AC184: 2.773968377 | AD184: 0.01772626498 | AE184: 2.791694642 | AF184: 0.2032020439 | AG184: billion $ | AI184: NPV with Emission Savings (7% dr) | AM184: 3.672309906 | AN184: 0.06291713538 | AO184: 3.735227041 | AP184: 0.2674982428 | AQ184: billion $

Sheet Summary Results (hidden)
E3: National Impact Summary (TSL 1, AEO 2010 Reference, 3% Discount Rate, Learning: Default) | O3: National Impact Summary (TSL 2, AEO 2010 Reference, 3% Discount Rate, Learning: Default) | Y3: National Impact Summary (TSL 3, AEO 2010 Reference, 3% Discount Rate, Learning: Default) | AI3: National Impact Summary (TSL 4, AEO 2010 Reference, 3% Discount Rate, Learning: Default)
I4: PC1 | J4: PC2 | K4: Total | L4: Annualized (30 years) | S4: PC1 | T4: PC2 | U4: Total | V4: Annualized (30 years) | AC4: PC1 | AD4: PC2 | AE4: Total | AF4: Annualized (30 years) | AM4: PC1 | AN4: PC2 | AO4: Total | AP4: Annualized (30 years)
E5: Results presented for CSL | I5: 1 | J5: 1 | O5: Results presented for CSL | S5: 2 | T5: 2 | Y5: Results presented for CSL | AC5: 3 | AD5: 3 | AI5: Results presented for CSL | AM5: 4 | AN5: 4
E6: Energy Saving (2014 to 2043) | I6: 0.2060783191 | J6: 0.001802642665 | K6: 0.2078809618 | L6: - | M6: quad | O6: Energy Saving (2014 to 2043) | S6: 0.2960340765 | T6: 0.004047714781 | U6: 0.3000817913 | V6: - | W6: quad | Y6: Energy Saving (2014 to 2043) | AC6: 0.406939837 | AD6: 0.005139111509 | AE6: 0.4120789485 | AF6: - | AG6: quad | AI6: Energy Saving (2014 to 2043) | AM6: 0.6211945261 | AN6: 0.01000385888 | AO6: 0.631198385 | AP6: - | AQ6: quad
E7: Energy Savings discounted at 3% | I7: 0.1202417439 | J7: 0.001051788986 | K7: 0.1212935329 | L7: - | M7: quad | O7: Energy Savings discounted at 3% | S7: 0.1727324928 | T7: 0.002361931657 | U7: 0.1750944244 | V7: - | W7: quad | Y7: Energy Savings discounted at 3% | AC7: 0.2374587517 | AD7: 0.002999621289 | AE7: 0.240458373 | AF7: - | AG7: quad | AI7: Energy Savings discounted at 3% | AM7: 0.3625801423 | AN7: 0.005838118004 | AO7: 0.3684182603 | AP7: - | AQ7: quad
E8: Discounted Incremental Equipment Cost | I8: 0.0437304417 | J8: 0 | K8: 0.0437304417 | L8: 0.002231094745 | M8: billion $ | O8: Discounted Incremental Equipment Cost | S8: 0.1379762072 | T8: 0.008170578218 | U8: 0.1461467854 | V8: 0.007456300745 | W8: billion $ | Y8: Discounted Incremental Equipment Cost | AC8: 0.3897212839 | AD8: 0.03344361834 | AE8: 0.4231649023 | AF8: 0.02158955988 | AG8: billion $ | AI8: Discounted Incremental Equipment Cost | AM8: 1.532692412 | AN8: 0.01844106369 | AO8: 1.551133476 | AP8: 0.07913768106 | AQ8: billion $
E9: Discounted Oper. Cost Saving | I9: 2.009277974 | J9: 0.01757580872 | K9: 2.026853783 | L9: 0.1034085787 | M9: billion $ | O9: Discounted Oper. Cost Saving | S9: 2.886384683 | T9: 0.03946709641 | U9: 2.925851779 | V9: 0.1492747907 | W9: billion $ | Y9: Discounted Oper. Cost Saving | AC9: 3.967854981 | AD9: 0.05011584617 | AE9: 4.017970828 | AF9: 0.2049938956 | AG9: billion $ | AI9: Discounted Oper. Cost Saving | AM9: 6.0577826 | AN9: 0.09754775757 | AO9: 6.155330357 | AP9: 0.3140403957 | AQ9: billion $
E10: NPV | I10: 1.965547532 | J10: 0.01757580872 | K10: 1.983123341 | L10: 0.101177484 | M10: billion $ | O10: NPV | S10: 2.748408476 | T10: 0.03129651819 | U10: 2.779704994 | V10: 0.1418184899 | W10: billion $ | Y10: NPV | AC10: 3.578133698 | AD10: 0.01667222783 | AE10: 3.594805925 | AF10: 0.1834043357 | AG10: billion $ | AI10: NPV | AM10: 4.525090187 | AN10: 0.07910669388 | AO10: 4.604196881 | AP10: 0.2349027146 | AQ10: billion $
E11: CO2 Emission Savings | O11: CO2 Emission Savings | Y11: CO2 Emission Savings | AI11: CO2 Emission Savings
E12: Physical emission savings | I12: 15.69950923 | J12: 0.1373293673 | K12: 15.8368386 | L12: - | M12: Mt | O12: Physical emission savings | S12: 22.57288035 | T12: 0.3086421081 | U12: 22.88152246 | V12: - | W12: Mt | Y12: Physical emission savings | AC12: 31.08495921 | AD12: 0.3925618902 | AE12: 31.4775211 | AF12: - | AG12: Mt | AI12: Physical emission savings | AM12: 47.69140468 | AN12: 0.7680333003 | AO12: 48.45943798 | AP12: - | AQ12: Mt
E13: Monetized emission savings | O13: Monetized emission savings | Y13: Monetized emission savings | AI13: Monetized emission savings
E14: At 4.7 2007$/t | H14: 0.05 | I14: 69.13297202 | J14: 0.6047343923 | K14: 69.73770642 | L14: 4.536537882 | M14: million $ | O14: At 4.7 2007$/t | R14: 0.05 | S14: 99.39880581 | T14: 1.359051807 | U14: 100.7578576 | V14: 6.554443234 | W14: million $ | Y14: At 4.7 2007$/t | AB14: 0.05 | AC14: 136.8771281 | AD14: 1.728322054 | AE14: 138.6054502 | AF14: 9.016483445 | AG14: million $ | AI14: At 4.7 2007$/t | AL14: 0.05 | AM14: 209.9702551 | AN14: 3.381703141 | AO14: 213.3519583 | AP14: 13.87885106 | AQ14: million $
E15: At 21.4 2007$/t | H15: 0.03 | I15: 346.3381772 | J15: 3.029573966 | K15: 349.3677511 | L15: 17.82448389 | M15: million $ | O15: At 21.4 2007$/t | R15: 0.03 | S15: 497.957398 | T15: 6.808258074 | U15: 504.7656561 | V15: 25.7527699 | W15: million $ | Y15: At 21.4 2007$/t | AB15: 0.03 | AC15: 685.6944608 | AD15: 8.657080817 | AE15: 694.3515416 | AF15: 35.42530136 | AG15: million $ | AI15: At 21.4 2007$/t | AL15: 0.03 | AM15: 1051.732884 | AN15: 16.94003984 | AO15: 1068.672924 | AP15: 54.52290105 | AQ15: million $
E16: At 35.1 2007$/t | H16: 0.025 | I16: 583.6884951 | J16: 5.105787268 | K16: 588.7942824 | L16: 28.13120169 | M16: million $ | O16: At 35.1 2007$/t | R16: 0.025 | S16: 839.2126854 | T16: 11.47396206 | U16: 850.6866475 | V16: 40.64380102 | W16: million $ | Y16: At 35.1 2007$/t | AB16: 0.025 | AC16: 1155.601209 | AD16: 14.58938697 | AE16: 1170.190596 | AF16: 55.90894589 | AG16: million $ | AI16: At 35.1 2007$/t | AL16: 0.025 | AM16: 1772.438684 | AN16: 28.54875326 | AO16: 1800.987437 | AP16: 86.04693074 | AQ16: million $
E17: At 64.9 2007$/t | H17: 0.03 | I17: 1056.280995 | J17: 9.239757888 | K17: 1065.520753 | L17: 54.36207959 | M17: million $ | O17: At 64.9 2007$/t | R17: 0.03 | S17: 1518.698089 | T17: 20.76422336 | U17: 1539.462313 | V17: 78.54222694 | W17: million $ | Y17: At 64.9 2007$/t | AB17: 0.03 | AC17: 2091.271085 | AD17: 26.40299563 | AE17: 2117.674081 | AF17: 108.0421631 | AG17: million $ | AI17: At 64.9 2007$/t | AL17: 0.03 | AM17: 3207.651307 | AN17: 51.66482003 | AO17: 3259.316127 | AP17: 166.2878947 | AQ17: million $
E18: NOx Emission Savings | O18: NOx Emission Savings | Y18: NOx Emission Savings | AI18: NOx Emission Savings
E19: Physical emission savings | I19: 12.77057637 | J19: 0.1117089169 | K19: 12.88228529 | L19: - | M19: kt | O19: Physical emission savings | S19: 18.36159316 | T19: 0.2510605972 | U19: 18.61265376 | V19: - | W19: kt | Y19: Physical emission savings | AC19: 25.28556673 | AD19: 0.3193232394 | AE19: 25.60488997 | AF19: - | AG19: kt | AI19: Physical emission savings | AM19: 38.7940757 | AN19: 0.6247486773 | AO19: 39.41882438 | AP19: - | AQ19: kt
E20: Monetized emission savings (3% dr) | O20: Monetized emission savings (3% dr) | Y20: Monetized emission savings (3% dr) | AI20: Monetized emission savings (3% dr)
E21: At 450 2010$/ton | I21: 3.711013379 | J21: 0.03246161741 | K21: 3.743474996 | L21: 0.1909893216 | M21: million $ | O21: At 450 2010$/ton | S21: 5.335703282 | T21: 0.07295547979 | U21: 5.408658761 | V21: 0.2759457639 | W21: million $ | Y21: At 450 2010$/ton | AC21: 7.347710502 | AD21: 0.09278985904 | AE21: 7.440500361 | AF21: 0.3796088174 | AG21: million $ | AI21: At 450 2010$/ton | AM21: 11.27289855 | AN21: 0.1815436382 | AO21: 11.45444219 | AP21: 0.5843971564 | AQ21: million $
E22: At 2,537 2010$/ton | I22: 20.92186876 | J22: 0.1830113853 | K22: 21.10488015 | L22: 1.076755353 | M22: million $ | O22: At 2,537 2010$/ton | S22: 30.08150939 | T22: 0.4113067827 | U22: 30.49281617 | V22: 1.555720896 | W22: million $ | Y22: At 2,537 2010$/ton | AC22: 41.42475898 | AD22: 0.5231286053 | AE22: 41.94788759 | AF22: 2.140150155 | AG22: million $ | AI22: At 2,537 2010$/ton | AM22: 63.55409694 | AN22: 1.023502689 | AO22: 64.57759963 | AP22: 3.294701302 | AQ22: million $
E23: At 4,623 2010$/ton | I23: 38.12447745 | J23: 0.3334890162 | K23: 38.45796646 | L23: 1.962096964 | M23: million $ | O23: At 4,623 2010$/ton | S23: 54.81545838 | T23: 0.7494959624 | U23: 55.56495434 | V23: 2.834882815 | W23: million $ | Y23: At 4,623 2010$/ton | AC23: 75.48547922 | AD23: 0.9532611519 | AE23: 76.43874037 | AF23: 3.899847917 | AG23: million $ | AI23: At 4,623 2010$/ton | AM23: 115.8102444 | AN23: 1.86505831 | AO23: 117.6753028 | AP23: 6.003706787 | AQ23: million $
E24: NPV with Emission Savings (3% dr) | I24: 2.332807578 | J24: 0.02078839407 | K24: 2.353595972 | L24: 0.1200787233 | M24: billion $ | O24: NPV with Emission Savings (3% dr) | S24: 3.276447383 | T24: 0.03851608305 | U24: 3.314963466 | V24: 0.1691269807 | W24: billion $ | Y24: NPV with Emission Savings (3% dr) | AC24: 4.305252917 | AD24: 0.02585243725 | AE24: 4.331105355 | AF24: 0.2209697872 | AG24: billion $ | AI24: NPV with Emission Savings (3% dr) | AM24: 5.640377169 | AN24: 0.09707023641 | AO24: 5.737447405 | AP24: 0.292720317 | AQ24: billion $
E27: National Impact Summary (TSL 1, AEO 2010 Reference, 7% Discount Rate, Learning: Default) | O27: National Impact Summary (TSL 2, AEO 2010 Reference, 7% Discount Rate, Learning: Default) | Y27: National Impact Summary (TSL 3, AEO 2010 Reference, 7% Discount Rate, Learning: Default) | AI27: National Impact Summary (TSL 4, AEO 2010 Reference, 7% Discount Rate, Learning: Default)
I28: PC1 | J28: PC2 | K28: Total | L28: Annualized (30 years) | S28: PC1 | T28: PC2 | U28: Total | V28: Annualized (30 years) | AC28: PC1 | AD28: PC2 | AE28: Total | AF28: Annualized (30 years) | AM28: PC1 | AN28: PC2 | AO28: Total | AP28: Annualized (30 years)
E29: Results presented for CSL | I29: 1 | J29: 1 | O29: Results presented for CSL | S29: 2 | T29: 2 | Y29: Results presented for CSL | AC29: 3 | AD29: 3 | AI29: Results presented for CSL | AM29: 4 | AN29: 4
E30: Energy Saving (2014 to 2043) | I30: 0.2060783191 | J30: 0.001802642665 | K30: 0.2078809618 | L30: - | M30: quad | O30: Energy Saving (2014 to 2043) | S30: 0.2960340765 | T30: 0.004047714781 | U30: 0.3000817913 | V30: - | W30: quad | Y30: Energy Saving (2014 to 2043) | AC30: 0.406939837 | AD30: 0.005139111509 | AE30: 0.4120789485 | AF30: - | AG30: quad | AI30: Energy Saving (2014 to 2043) | AM30: 0.6211945261 | AN30: 0.01000385888 | AO30: 0.631198385 | AP30: - | AQ30: quad
E31: Energy Savings discounted at 7% | I31: 0.06506333839 | J31: 0.0005691221988 | K31: 0.06563246059 | L31: - | M31: quad | O31: Energy Savings discounted at 7% | S31: 0.09346842832 | T31: 0.001278158075 | U31: 0.09474658639 | V31: - | W31: quad | Y31: Energy Savings discounted at 7% | AC31: 0.128500839 | AD31: 0.001623717303 | AE31: 0.1301245564 | AF31: - | AG31: quad | AI31: Energy Savings discounted at 7% | AM31: 0.1962663569 | AN31: 0.00315965949 | AO31: 0.1994260164 | AP31: - | AQ31: quad
E32: Discounted Incremental Equipment Cost | I32: 0.02605578657 | J32: 0 | K32: 0.02605578657 | L32: 0.00209974213 | M32: billion $ | O32: Discounted Incremental Equipment Cost | S32: 0.08221256868 | T32: 0.004868817575 | U32: 0.08708138625 | V32: 0.007017575731 | W32: billion $ | Y32: Discounted Incremental Equipment Cost | AC32: 0.2322338959 | AD32: 0.01993704256 | AE32: 0.2521709385 | AF32: 0.020321549 | AG32: billion $ | AI32: Discounted Incremental Equipment Cost | AM32: 0.9136913686 | AN32: 0.01099073253 | AO32: 0.9246821011 | AP32: 0.07451680492 | AQ32: billion $
E33: Discounted Oper. Cost Saving | I33: 1.035356479 | J33: 0.009056504104 | K33: 1.044412983 | L33: 0.08416548609 | M33: billion $ | O33: Discounted Oper. Cost Saving | S33: 1.487355985 | T33: 0.02033877961 | U33: 1.507694765 | V33: 0.1214996987 | W33: billion $ | Y33: Discounted Oper. Cost Saving | AC33: 2.044777875 | AD33: 0.02583476681 | AE33: 2.070612641 | AF33: 0.1668632258 | AG33: billion $ | AI33: Discounted Oper. Cost Saving | AM33: 3.122776178 | AN33: 0.05027618804 | AO33: 3.173052366 | AP33: 0.2557048783 | AQ33: billion $
E34: NPV | I34: 1.009300692 | J34: 0.009056504104 | K34: 1.018357196 | L34: 0.08206574396 | M34: billion $ | O34: NPV | S34: 1.405143416 | T34: 0.01546996203 | U34: 1.420613378 | V34: 0.1144821229 | W34: billion $ | Y34: NPV | AC34: 1.812543979 | AD34: 0.005897724249 | AE34: 1.818441703 | AF34: 0.1465416768 | AG34: billion $ | AI34: NPV | AM34: 2.209084809 | AN34: 0.03928545552 | AO34: 2.248370265 | AP34: 0.1811880734 | AQ34: billion $
E35: CO2 Emission Savings | O35: CO2 Emission Savings | Y35: CO2 Emission Savings | AI35: CO2 Emission Savings
E36: Physical emission savings | I36: 15.69950923 | J36: 0.1373293673 | K36: 15.8368386 | L36: - | M36: Mt | O36: Physical emission savings | S36: 22.57288035 | T36: 0.3086421081 | U36: 22.88152246 | V36: - | W36: Mt | Y36: Physical emission savings | AC36: 31.08495921 | AD36: 0.3925618902 | AE36: 31.4775211 | AF36: - | AG36: Mt | AI36: Physical emission savings | AM36: 47.69140468 | AN36: 0.7680333003 | AO36: 48.45943798 | AP36: - | AQ36: Mt
E37: Monetized emission savings | O37: Monetized emission savings | Y37: Monetized emission savings | AI37: Monetized emission savings
E38: At 4.7 2007$/t | H38: 0.05 | I38: 69.13297202 | J38: 0.6047343923 | K38: 69.73770642 | L38: 4.536537882 | M38: million $ | O38: At 4.7 2007$/t | R38: 0.05 | S38: 99.39880581 | T38: 1.359051807 | U38: 100.7578576 | V38: 6.554443234 | W38: million $ | Y38: At 4.7 2007$/t | AB38: 0.05 | AC38: 136.8771281 | AD38: 1.728322054 | AE38: 138.6054502 | AF38: 9.016483445 | AG38: million $ | AI38: At 4.7 2007$/t | AL38: 0.05 | AM38: 209.9702551 | AN38: 3.381703141 | AO38: 213.3519583 | AP38: 13.87885106 | AQ38: million $
E39: At 21.4 2007$/t | H39: 0.03 | I39: 346.3381772 | J39: 3.029573966 | K39: 349.3677511 | L39: 17.82448389 | M39: million $ | O39: At 21.4 2007$/t | R39: 0.03 | S39: 497.957398 | T39: 6.808258074 | U39: 504.7656561 | V39: 25.7527699 | W39: million $ | Y39: At 21.4 2007$/t | AB39: 0.03 | AC39: 685.6944608 | AD39: 8.657080817 | AE39: 694.3515416 | AF39: 35.42530136 | AG39: million $ | AI39: At 21.4 2007$/t | AL39: 0.03 | AM39: 1051.732884 | AN39: 16.94003984 | AO39: 1068.672924 | AP39: 54.52290105 | AQ39: million $
E40: At 35.1 2007$/t | H40: 0.025 | I40: 583.6884951 | J40: 5.105787268 | K40: 588.7942824 | L40: 28.13120169 | M40: million $ | O40: At 35.1 2007$/t | R40: 0.025 | S40: 839.2126854 | T40: 11.47396206 | U40: 850.6866475 | V40: 40.64380102 | W40: million $ | Y40: At 35.1 2007$/t | AB40: 0.025 | AC40: 1155.601209 | AD40: 14.58938697 | AE40: 1170.190596 | AF40: 55.90894589 | AG40: million $ | AI40: At 35.1 2007$/t | AL40: 0.025 | AM40: 1772.438684 | AN40: 28.54875326 | AO40: 1800.987437 | AP40: 86.04693074 | AQ40: million $
E41: At 64.9 2007$/t | H41: 0.03 | I41: 1056.280995 | J41: 9.239757888 | K41: 1065.520753 | L41: 54.36207959 | M41: million $ | O41: At 64.9 2007$/t | R41: 0.03 | S41: 1518.698089 | T41: 20.76422336 | U41: 1539.462313 | V41: 78.54222694 | W41: million $ | Y41: At 64.9 2007$/t | AB41: 0.03 | AC41: 2091.271085 | AD41: 26.40299563 | AE41: 2117.674081 | AF41: 108.0421631 | AG41: million $ | AI41: At 64.9 2007$/t | AL41: 0.03 | AM41: 3207.651307 | AN41: 51.66482003 | AO41: 3259.316127 | AP41: 166.2878947 | AQ41: million $
E42: NOx Emission Savings | O42: NOx Emission Savings | Y42: NOx Emission Savings | AI42: NOx Emission Savings
E43: Physical emission savings | I43: 12.77057637 | J43: 0.1117089169 | K43: 12.88228529 | L43: - | M43: kt | O43: Physical emission savings | S43: 18.36159316 | T43: 0.2510605972 | U43: 18.61265376 | V43: - | W43: kt | Y43: Physical emission savings | AC43: 25.28556673 | AD43: 0.3193232394 | AE43: 25.60488997 | AF43: - | AG43: kt | AI43: Physical emission savings | AM43: 38.7940757 | AN43: 0.6247486773 | AO43: 39.41882438 | AP43: - | AQ43: kt
E44: Monetized emission savings (7% dr) | O44: Monetized emission savings (7% dr) | Y44: Monetized emission savings (7% dr) | AI44: Monetized emission savings (7% dr)
E45: At 450 2010$/ton | I45: 1.906882204 | J45: 0.01667997495 | K45: 1.923562179 | L45: 0.1550129579 | M45: million $ | O45: At 450 2010$/ton | S45: 2.741810274 | T45: 0.03749231182 | U45: 2.779302586 | V45: 0.2239739997 | W45: million $ | Y45: At 450 2010$/ton | AC45: 3.776044787 | AD45: 0.04770573217 | AE45: 3.823750519 | AF45: 0.3081423023 | AG45: million $ | AI45: At 450 2010$/ton | AM45: 5.795654808 | AN45: 0.09331228853 | AO45: 5.888967097 | AP45: 0.4745706787 | AQ45: million $
E46: At 2,537 2010$/ton | I46: 10.75057811 | J46: 0.0940379921 | K46: 10.84461611 | L46: 0.8739286094 | M46: million $ | O46: At 2,537 2010$/ton | S46: 15.45771703 | T46: 0.2113733224 | U46: 15.66909036 | V46: 1.262715638 | W46: million $ | Y46: At 2,537 2010$/ton | AC46: 21.28850139 | AD46: 0.2689543167 | AE46: 21.55745571 | AF46: 1.737237824 | AG46: million $ | AI46: At 2,537 2010$/ton | AM46: 32.67461389 | AN46: 0.5260739466 | AO46: 33.20068783 | AP46: 2.675524027 | AQ46: million $
E47: At 4,623 2010$/ton | I47: 19.59003651 | J47: 0.1713589426 | K47: 19.76139545 | L47: 1.592499788 | M47: million $ | O47: At 4,623 2010$/ton | S47: 28.16753088 | T47: 0.3851710168 | U47: 28.5527019 | V47: 2.300959557 | W47: million $ | Y47: At 4,623 2010$/ton | AC47: 38.79256678 | AD47: 0.4900968885 | AE47: 39.28266367 | AF47: 3.165648585 | AG47: million $ | AI47: At 4,623 2010$/ton | AM47: 59.54069373 | AN47: 0.9586282441 | AO47: 60.49932198 | AP47: 4.875422773 | AQ47: million $
E48: NPV with Emission Savings (7% dr) | I48: 1.366389448 | J48: 0.01218011606 | K48: 1.378569564 | L48: 0.1007641565 | M48: billion $ | O48: NPV with Emission Savings (7% dr) | S48: 1.918558531 | T48: 0.02248959343 | U48: 1.941048125 | V48: 0.1414976085 | W48: billion $ | Y48: NPV with Emission Savings (7% dr) | AC48: 2.519526941 | AD48: 0.01482375938 | AE48: 2.5343507 | AF48: 0.183704216 | AG48: billion $ | AI48: NPV with Emission Savings (7% dr) | AM48: 3.293492307 | AN48: 0.0567515693 | AO48: 3.350243877 | AP48: 0.2383864985 | AQ48: billion $

Sheet Input and Summary
B1: =RIGHT(CELL("filename",A1), LEN(CELL("filename",A1)) - FIND("]",CELL("filename",A1))) -> Input and Summary
B3: User Inputs: | H3: TSL Level = | I3: 3 | N3: ="National Impact Summary (TSL " & iTSL & ", " & "AEO 2010 " & iScenario & ", " & ROUND(drate*100, 0) & "% Discount Rate, Learning: " & learn_choice & ")" -> National Impact Summary (TSL 3, AEO 2010 Reference, 3% Discount Rate, Learning: Default)
B4: Discounting future values: | R4: PC1 | S4: PC2 | T4: Total | U4: Annualized (30 years)
B5: Discount Rate for NPV Determination | E5: 0.03 | H5: Map of CSLs by TSL | N5: Results presented for CSL | R5: =iStd_MWO -> 3 | S5: =iStd_Combo -> 3
B6: Discount Rate for Energy Savings | E6: 0.03 | I6: 1 | J6: 2 | N6: Energy Saving (2014 to 2043) | R6: =Charts!H5 -> 0.406939837 | S6: =Charts!I5 -> 0.005139111509 | T6: =SUM(R6:S6) -> 0.4120789485 | U6: ="-" -> - | V6: quad
B7: Year to discount to | E7: 2011 | H7: TSL | I7: PC1 | J7: PC2 | N7: ="Energy Savings discounted at " & ROUND(drate2*100, 0) & "%" -> Energy Savings discounted at 3% | R7: =Charts!H6 -> 0.2374587517 | S7: =Charts!I6 -> 0.002999621289 | T7: =SUM(R7:S7) -> 0.240458373 | U7: ="-" -> - | V7: quad
H8: 1 | I8: 1 | J8: 1 | N8: Discounted Incremental Equipment Cost | R8: =Charts!H7 -> 0.3897212839 | S8: =Charts!I7 -> 0.03344361834 | T8: 0.4231649023 | U8: =-PMT(drate, 30, T8) -> 0.02158955988 | V8: billion $
H9: 2 | I9: 2 | J9: 2 | N9: Discounted Oper. Cost Saving | R9: =Charts!H8 -> 3.967854981 | S9: =Charts!I8 -> 0.05011584617 | T9: 4.017970828 | U9: =-PMT(drate, 30, T9) -> 0.2049938956 | V9: billion $
H10: 3 | I10: 3 | J10: 3 | N10: NPV | R10: =R9 - R8 -> 3.578133698 | S10: =S9 - S8 -> 0.01667222783 | T10: 3.594805925 | U10: =U9-U8 -> 0.1834043357 | V10: billion $
B11: Market Impact | H11: 4 | I11: 4 | J11: 4 | N11: CO2 Emission Savings
N12: Physical emission savings | R12: =Charts!H187 -> 31.08495921 | S12: =Charts!I187 -> 0.3925618902 | T12: 31.4775211 | U12: ="-" -> - | V12: Mt
B13: Economic Growth | N13: Monetized emission savings
H14: Standards Level PC1 = | J14: =VLOOKUP(iTSL, H8:J11, 1,FALSE) -> 3 | N14: =Charts!F189 -> At 4.7 2007$/t | Q14: =TRANSPOSE('Standards Case - PC1'!BB5:BE5) -> 0.05 | R14: =Charts!H189 -> 136.8771281 | S14: =Charts!I189 -> 1.728322054 | T14: 138.6054502 | U14: =-PMT(Q14, 30, T14) -> 9.016483445 | V14: million $
B15: Price Trend | H15: Standards Level PC2 = | J15: =VLOOKUP(iTSL, H8:J11, 2,FALSE) -> 3 | N15: =Charts!F190 -> At 21.4 2007$/t | Q15: 0.03 | R15: =Charts!H190 -> 685.6944608 | S15: =Charts!I190 -> 8.657080817 | T15: 694.3515416 | U15: =-PMT(Q15, 30, T15) -> 35.42530136 | V15: million $
N16: =Charts!F191 -> At 35.1 2007$/t | Q16: 0.025 | R16: =Charts!H191 -> 1155.601209 | S16: =Charts!I191 -> 14.58938697 | T16: 1170.190596 | U16: 55.90894589 | V16: million $
N17: =Charts!F192 -> At 64.9 2007$/t | Q17: 0.03 | R17: =Charts!H192 -> 2091.271085 | S17: =Charts!I192 -> 26.40299563 | T17: 2117.674081 | U17: 108.0421631 | V17: million $
N18: NOx Emission Savings
N19: Physical emission savings | R19: =Charts!H194 -> 25.28556673 | S19: =Charts!I194 -> 0.3193232394 | T19: =SUM(R19:S19) -> 25.60488997 | U19: ="-" -> - | V19: kt
N20: ="Monetized emission savings (" & ROUND(drate*100,0) & "% dr)" -> Monetized emission savings (3% dr)
N21: =Charts!F196 -> At 450 2010$/ton | R21: =Charts!H196 -> 7.347710502 | S21: =Charts!I196 -> 0.09278985904 | T21: 7.440500361 | U21: =-PMT(drate, 30, T21) -> 0.3796088174 | V21: million $
N22: =Charts!F197 -> At 2,537 2010$/ton | R22: =Charts!H197 -> 41.42475898 | S22: =Charts!I197 -> 0.5231286053 | T22: 41.94788759 | U22: =-PMT(drate, 30, T22) -> 2.140150155 | V22: million $
N23: =Charts!F198 -> At 4,623 2010$/ton | R23: =Charts!H198 -> 75.48547922 | S23: =Charts!I198 -> 0.9532611519 | T23: 76.43874037 | U23: =-PMT(drate, 30, T23) -> 3.899847917 | V23: million $
N24: ="NPV with Emission Savings (" & ROUND(drate*100,0) & "% dr)" -> NPV with Emission Savings (3% dr) | R24: =R10 + R15/1000 + R22/1000 -> 4.305252917 | S24: =S10 + S15/1000 + S22/1000 -> 0.02585243725 | T24: =T10 + T15/1000 + T22/1000 -> 4.331105355 | U24: =U10 + U15/1000 + U22/1000 -> 0.2209697872 | V24: billion $
B25: PC1
B26: Level | C26: Standby Power | D26: UEC | E26: Installed Price | F26: Market Share | G26: Default | H26: Low | I26: High | J26: MWO only | K26: AEO Chained | L26: Constant Prices
C27: W | D27: kWh | E27: $ | F27: % | N27: Emission Savings Adjustment
B28: Baseline | C28: 4 | D28: 34.75017675 | E28: =INDEX(G28:L28, 1, learning) -> 223.2699 | F28: 0.462 | G28: 223.2699 | H28: =G28*scale_low -> 226.9063918 | I28: =G28*scale_high -> 220.9587643 | J28: =G28*scale_mwo -> 212.0870986 | K28: =G28*scale_aeo -> 227.8433215 | L28: 235.7026 | N28: Current results | P28: Pre-ajustment results | R28: NEMS results | T28: Adj Factors
B29: 1 | C29: 2 | D29: 17.37508837 | E29: =INDEX(G29:L29, 1, learning) -> 223.6636 | F29: 0.346 | G29: 223.6636 | H29: =G29*scale_low -> 227.3065042 | I29: =G29*scale_high -> 221.348389 | J29: =G29*scale_mwo -> 212.4610796 | K29: =G29*scale_aeo -> 228.245086 | L29: 236.1182 | N29: CO2 | O29: NOx | P29: CO2 | Q29: NOx | R29: CO2 | S29: NOx | T29: CO2 | U29: NOx
B30: 2 | C30: 1.5 | D30: 13.03131628 | E30: =INDEX(G30:L30, 1, learning) -> 224.1491 | F30: 0.192 | G30: 224.1491 | H30: =G30*scale_low -> 227.7999117 | I30: =G30*scale_high -> 221.8288634 | J30: =G30*scale_mwo -> 212.9222626 | K30: =G30*scale_aeo -> 228.7405309 | L30: 236.6307 | N30: 15.8368386 | O30: 12.88228529 | P30: 29.46315604 | Q30: 23.09400884 | R30: 15.8368386 | S30: 12.88228529 | T30: =R30/P30 -> 0.5375133126 | U30: =S30/Q30 -> 0.5578193624
B31: 3 | C31: 1 | D31: 8.687544187 | E31: =INDEX(G31:L31, 1, learning) -> 225.1989 | F31: 0 | G31: 225.1989 | H31: =G31*scale_low -> 228.8668102 | I31: =G31*scale_high -> 222.8677966 | J31: =G31*scale_mwo -> 213.9194818 | K31: =G31*scale_aeo -> 229.8118348 | L31: 237.739 | N31: 22.88152246 | O31: 18.61265376 | P31: 42.53086269 | Q31: 33.33682643 | R31: 22.88152246 | S31: 18.61265376 | T31: =R31/P31 -> 0.5379980797 | U31: 0.5583211046
B32: 4 | C32: 0.02 | D32: 0.1737508837 | E32: =INDEX(G32:L32, 1, learning) -> 230.0016 | F32: 0 | G32: 230.0016 | H32: =G32*scale_low -> 233.7477339 | I32: =G32*scale_high -> 227.6207824 | J32: =G32*scale_mwo -> 218.4816316 | K32: =G32*scale_aeo -> 234.7129125 | L32: 242.8092 | N32: 31.4775211 | O32: 25.60488997 | P32: 58.40432071 | Q32: 45.77886691 | R32: 31.4775211 | S32: 25.60488997 | T32: 0.5389587742 | U32: 0.5593168136
N33: 48.45943798 | O33: 39.41882438 | P33: 89.4603159 | Q33: 70.12138563 | R33: 48.45943798 | S33: 39.41882438 | T33: 0.5416864169 | U33: 0.5621512471
B34: PC2 | S34: ="TSL " & iTSL -> TSL 3 | T34: =CHOOSE(iTSL,T30,T31,T32,T33) -> 0.5389587742 | U34: =CHOOSE(iTSL,U30,U31,U32,U33) -> 0.5593168136
B35: Level | C35: Standby Power | D35: UEC | E35: Installed Price | F35: Market Share | G35: Default | H35: Low | I35: High | J35: MWO only | K35: AEO Chained | L35: Constant Prices
C36: W | D36: kWh | E36: $ | F36: %
B37: Baseline | C37: 4.5 | D37: 39.09394884 | E37: =INDEX(G37:L37, 1, learning) -> 482.1665 | F37: 1 | G37: 482.1665 | H37: =G37*scale_low -> 490.0197508 | I37: =G37*scale_high -> 477.1754455 | J37: =G37*scale_mwo -> 458.0164816 | K37: =G37*scale_aeo -> 492.0431141 | L37: 509.0157
B38: 1 | C38: 3.7 | D38: 32.14391349 | E38: =INDEX(G38:L38, 1, learning) -> 482.1665 | F38: 0 | G38: 482.1665 | H38: =G38*scale_low -> 490.0197508 | I38: =G38*scale_high -> 477.1754455 | J38: =G38*scale_mwo -> 458.0164816 | K38: =G38*scale_aeo -> 492.0431141 | L38: 509.0157
B39: 2 | C39: 2.7 | D39: 23.4563693 | E39: =INDEX(G39:L39, 1, learning) -> 485.537 | F39: 0 | G39: 485.537 | H39: =G39*scale_low -> 493.4451476 | I39: =G39*scale_high -> 480.5110565 | J39: =G39*scale_mwo -> 461.2181652 | K39: =G39*scale_aeo -> 495.4826548 | L39: 512.5739
B40: 3 | C40: 2.2 | D40: 19.11259721 | E40: =INDEX(G40:L40, 1, learning) -> 496.0505 | F40: 0 | G40: 496.0505 | H40: =G40*scale_low -> 504.1298854 | I40: =G40*scale_high -> 490.915728 | J40: =G40*scale_mwo -> 471.2050811 | K40: =G40*scale_aeo -> 506.2115115 | L40: 523.6728
B41: 4 | C41: 0.04 | D41: 0.3475017675 | E41: =INDEX(G41:L41, 1, learning) -> 489.793 | F41: 0 | G41: 489.793 | H41: =G41*scale_low -> 497.7704669 | I41: =G41*scale_high -> 484.7230013 | J41: =G41*scale_mwo -> 465.2609972 | K41: =G41*scale_aeo -> 499.825834 | L41: 517.0669
B43: Base Case Efficiency Trend | J43: Base Case Efficiency Trend
B44: PC1 | J44: PC2
B45: Design # | C45: 0 | D45: 1 | E45: 2 | F45: 3 | G45: 4 | H45: Total | J45: Design # | K45: 0 | L45: 1 | M45: 2 | N45: 3 | O45: 4 | P45: Total
B47: 2007 | C47: =F28 -> 0.462 | D47: =F29 -> 0.346 | E47: =F30 -> 0.192 | F47: =F31 -> 0 | G47: =F32 -> 0 | H47: =SUM(C47:G47) -> 1 | J47: 2007 | K47: =F37 -> 1 | L47: =F38 -> 0 | M47: =F39 -> 0 | N47: =F40 -> 0 | O47: =F41 -> 0 | P47: =SUM(K47:O47) -> 1
B48: =B47+1 -> 2008 | C48: =C47 -> 0.462 | D48: =D47 -> 0.346 | E48: =E47 -> 0.192 | F48: =F47 -> 0 | G48: =G47 -> 0 | H48: 1 | J48: =J47+1 -> 2008 | K48: =K47 -> 1 | L48: =L47 -> 0 | M48: =M47 -> 0 | N48: =N47 -> 0 | O48: =O47 -> 0 | P48: 1
B49: =B48+1 -> 2009 | C49: =C48 -> 0.462 | D49: =D48 -> 0.346 | E49: =E48 -> 0.192 | F49: =F48 -> 0 | G49: =G48 -> 0 | H49: 1 | J49: =J48+1 -> 2009 | K49: =K48 -> 1 | L49: =L48 -> 0 | M49: =M48 -> 0 | N49: =N48 -> 0 | O49: =O48 -> 0 | P49: 1
B50: 2010 | C50: 0.462 | D50: 0.346 | E50: 0.192 | F50: 0 | G50: 0 | H50: 1 | J50: 2010 | K50: 1 | L50: 0 | M50: 0 | N50: 0 | O50: 0 | P50: 1
B51: 2011 | C51: 0.462 | D51: 0.346 | E51: 0.192 | F51: 0 | G51: 0 | H51: 1 | J51: 2011 | K51: 1 | L51: 0 | M51: 0 | N51: 0 | O51: 0 | P51: 1
B52: 2012 | C52: 0.462 | D52: 0.346 | E52: 0.192 | F52: 0 | G52: 0 | H52: 1 | J52: 2012 | K52: 1 | L52: 0 | M52: 0 | N52: 0 | O52: 0 | P52: 1
B53: 2013 | C53: 0.462 | D53: 0.346 | E53: 0.192 | F53: 0 | G53: 0 | H53: 1 | J53: 2013 | K53: 1 | L53: 0 | M53: 0 | N53: 0 | O53: 0 | P53: 1
B54: 2014 | C54: 0.462 | D54: 0.346 | E54: 0.192 | F54: 0 | G54: 0 | H54: 1 | J54: 2014 | K54: 1 | L54: 0 | M54: 0 | N54: 0 | O54: 0 | P54: 1
B55: 2015 | C55: 0.462 | D55: 0.346 | E55: 0.192 | F55: 0 | G55: 0 | H55: 1 | J55: 2015 | K55: 1 | L55: 0 | M55: 0 | N55: 0 | O55: 0 | P55: 1
B56: 2016 | C56: 0.462 | D56: 0.346 | E56: 0.192 | F56: 0 | G56: 0 | H56: 1 | J56: 2016 | K56: 1 | L56: 0 | M56: 0 | N56: 0 | O56: 0 | P56: 1
B57: 2017 | C57: 0.462 | D57: 0.346 | E57: 0.192 | F57: 0 | G57: 0 | H57: 1 | J57: 2017 | K57: 1 | L57: 0 | M57: 0 | N57: 0 | O57: 0 | P57: 1
B58: 2018 | C58: 0.462 | D58: 0.346 | E58: 0.192 | F58: 0 | G58: 0 | H58: 1 | J58: 2018 | K58: 1 | L58: 0 | M58: 0 | N58: 0 | O58: 0 | P58: 1
B59: 2019 | C59: 0.462 | D59: 0.346 | E59: 0.192 | F59: 0 | G59: 0 | H59: 1 | J59: 2019 | K59: 1 | L59: 0 | M59: 0 | N59: 0 | O59: 0 | P59: 1
B60: 2020 | C60: 0.462 | D60: 0.346 | E60: 0.192 | F60: 0 | G60: 0 | H60: 1 | J60: 2020 | K60: 1 | L60: 0 | M60: 0 | N60: 0 | O60: 0 | P60: 1
B61: 2021 | C61: 0.462 | D61: 0.346 | E61: 0.192 | F61: 0 | G61: 0 | H61: 1 | J61: 2021 | K61: 1 | L61: 0 | M61: 0 | N61: 0 | O61: 0 | P61: 1
B62: 2022 | C62: 0.462 | D62: 0.346 | E62: 0.192 | F62: 0 | G62: 0 | H62: 1 | J62: 2022 | K62: 1 | L62: 0 | M62: 0 | N62: 0 | O62: 0 | P62: 1
B63: =B62+1 -> 2023 | C63: 0.462 | D63: 0.346 | E63: 0.192 | F63: 0 | G63: 0 | H63: 1 | J63: 2023 | K63: 1 | L63: 0 | M63: 0 | N63: 0 | O63: 0 | P63: 1
B64: 2024 | C64: 0.462 | D64: 0.346 | E64: 0.192 | F64: 0 | G64: 0 | H64: 1 | J64: 2024 | K64: 1 | L64: 0 | M64: 0 | N64: 0 | O64: 0 | P64: 1
B65: 2025 | C65: 0.462 | D65: 0.346 | E65: 0.192 | F65: 0 | G65: 0 | H65: 1 | J65: 2025 | K65: 1 | L65: 0 | M65: 0 | N65: 0 | O65: 0 | P65: 1
B66: 2026 | C66: 0.462 | D66: 0.346 | E66: 0.192 | F66: 0 | G66: 0 | H66: 1 | J66: 2026 | K66: 1 | L66: 0 | M66: 0 | N66: 0 | O66: 0 | P66: 1
B67: 2027 | C67: 0.462 | D67: 0.346 | E67: 0.192 | F67: 0 | G67: 0 | H67: 1 | J67: 2027 | K67: 1 | L67: 0 | M67: 0 | N67: 0 | O67: 0 | P67: 1
B68: 2028 | C68: 0.462 | D68: 0.346 | E68: 0.192 | F68: 0 | G68: 0 | H68: 1 | J68: 2028 | K68: 1 | L68: 0 | M68: 0 | N68: 0 | O68: 0 | P68: 1
B69: =B68+1 -> 2029 | C69: 0.462 | D69: 0.346 | E69: 0.192 | F69: 0 | G69: 0 | H69: 1 | J69: =J68+1 -> 2029 | K69: 1 | L69: 0 | M69: 0 | N69: 0 | O69: 0 | P69: 1
B70: 2030 | C70: 0.462 | D70: 0.346 | E70: 0.192 | F70: 0 | G70: 0 | H70: 1 | J70: 2030 | K70: 1 | L70: 0 | M70: 0 | N70: 0 | O70: 0 | P70: 1
B71: 2031 | C71: 0.462 | D71: 0.346 | E71: 0.192 | F71: 0 | G71: 0 | H71: 1 | J71: 2031 | K71: 1 | L71: 0 | M71: 0 | N71: 0 | O71: 0 | P71: 1
B72: 2032 | C72: 0.462 | D72: 0.346 | E72: 0.192 | F72: 0 | G72: 0 | H72: 1 | J72: 2032 | K72: 1 | L72: 0 | M72: 0 | N72: 0 | O72: 0 | P72: 1
B73: 2033 | C73: 0.462 | D73: 0.346 | E73: 0.192 | F73: 0 | G73: 0 | H73: 1 | J73: 2033 | K73: 1 | L73: 0 | M73: 0 | N73: 0 | O73: 0 | P73: 1
B74: 2034 | C74: 0.462 | D74: 0.346 | E74: 0.192 | F74: 0 | G74: 0 | H74: 1 | J74: 2034 | K74: 1 | L74: 0 | M74: 0 | N74: 0 | O74: 0 | P74: 1
B75: 2035 | C75: 0.462 | D75: 0.346 | E75: 0.192 | F75: 0 | G75: 0 | H75: 1 | J75: 2035 | K75: 1 | L75: 0 | M75: 0 | N75: 0 | O75: 0 | P75: 1
B76: 2036 | C76: 0.462 | D76: 0.346 | E76: 0.192 | F76: 0 | G76: 0 | H76: 1 | J76: 2036 | K76: 1 | L76: 0 | M76: 0 | N76: 0 | O76: 0 | P76: 1
B77: 2037 | C77: 0.462 | D77: 0.346 | E77: 0.192 | F77: 0 | G77: 0 | H77: 1 | J77: 2037 | K77: 1 | L77: 0 | M77: 0 | N77: 0 | O77: 0 | P77: 1
B78: 2038 | C78: 0.462 | D78: 0.346 | E78: 0.192 | F78: 0 | G78: 0 | H78: 1 | J78: 2038 | K78: 1 | L78: 0 | M78: 0 | N78: 0 | O78: 0 | P78: 1
B79: 2039 | C79: 0.462 | D79: 0.346 | E79: 0.192 | F79: 0 | G79: 0 | H79: 1 | J79: 2039 | K79: 1 | L79: 0 | M79: 0 | N79: 0 | O79: 0 | P79: 1
B80: 2040 | C80: 0.462 | D80: 0.346 | E80: 0.192 | F80: 0 | G80: 0 | H80: 1 | J80: 2040 | K80: 1 | L80: 0 | M80: 0 | N80: 0 | O80: 0 | P80: 1
B81: 2041 | C81: 0.462 | D81: 0.346 | E81: 0.192 | F81: 0 | G81: 0 | H81: 1 | J81: 2041 | K81: 1 | L81: 0 | M81: 0 | N81: 0 | O81: 0 | P81: 1
B82: 2042 | C82: 0.462 | D82: 0.346 | E82: 0.192 | F82: 0 | G82: 0 | H82: 1 | J82: 2042 | K82: 1 | L82: 0 | M82: 0 | N82: 0 | O82: 0 | P82: 1
B83: 2043 | C83: 0.462 | D83: 0.346 | E83: 0.192 | F83: 0 | G83: 0 | H83: =SUM(C83:G83) -> 1 | J83: 2043 | K83: 1 | L83: 0 | M83: 0 | N83: 0 | O83: 0 | P83: =SUM(K83:O83) -> 1
B85: Standards Case Efficiency Trend | J85: Standards Case Efficiency Trend
B86: PC1 | J86: PC2
B87: Design # | C87: 0 | D87: 1 | E87: 2 | F87: 3 | G87: 4 | H87: Total | J87: Design # | K87: 0 | L87: 1 | M87: 2 | N87: 3 | O87: 4 | P87: Total
B89: 2007 | C89: =C47 -> 0.462 | D89: 0.346 | E89: 0.192 | F89: 0 | G89: 0 | H89: =SUM(C89:G89) -> 1 | J89: 2007 | K89: =K47 -> 1 | L89: 0 | M89: 0 | N89: 0 | O89: 0 | P89: =SUM(K89:O89) -> 1
B90: =B89+1 -> 2008 | C90: 0.462 | D90: 0.346 | E90: 0.192 | F90: 0 | G90: 0 | H90: =SUM(C90:G90) -> 1 | J90: =J89+1 -> 2008 | K90: 1 | L90: 0 | M90: 0 | N90: 0 | O90: 0 | P90: =SUM(K90:O90) -> 1
B91: =B90+1 -> 2009 | C91: 0.462 | D91: 0.346 | E91: 0.192 | F91: 0 | G91: 0 | H91: =SUM(C91:G91) -> 1 | J91: =J90+1 -> 2009 | K91: 1 | L91: 0 | M91: 0 | N91: 0 | O91: 0 | P91: =SUM(K91:O91) -> 1
B92: 2010 | C92: 0.462 | D92: 0.346 | E92: 0.192 | F92: 0 | G92: 0 | H92: 1 | J92: 2010 | K92: 1 | L92: 0 | M92: 0 | N92: 0 | O92: 0 | P92: 1
B93: 2011 | C93: 0.462 | D93: 0.346 | E93: 0.192 | F93: 0 | G93: 0 | H93: 1 | J93: 2011 | K93: 1 | L93: 0 | M93: 0 | N93: 0 | O93: 0 | P93: 1
B94: 2012 | C94: =C52 -> 0.462 | D94: 0.346 | E94: 0.192 | F94: 0 | G94: 0 | H94: 1 | J94: 2012 | K94: =K52 -> 1 | L94: 0 | M94: 0 | N94: 0 | O94: 0 | P94: 1
B95: 2013 | C95: =C53 -> 0.462 | D95: 0.346 | E95: 0.192 | F95: 0 | G95: 0 | H95: 1 | J95: 2013 | K95: =K53 -> 1 | L95: 0 | M95: 0 | N95: 0 | O95: 0 | P95: 1
B96: 2014 | C96: =IF(C$87=iStd_MWO, SUM($C95:C95), IF(C$87>iStd_MWO, C95, 0)) -> 0 | D96: =IF(D$87=iStd_MWO, SUM($C95:D95), IF(D$87>iStd_MWO, D95, 0)) -> 0 | E96: =IF(E$87=iStd_MWO, SUM($C95:E95), IF(E$87>iStd_MWO, E95, 0)) -> 0 | F96: =IF(F$87=iStd_MWO, SUM($C95:F95), IF(F$87>iStd_MWO, F95, 0)) -> 1 | G96: =IF(G$87=iStd_MWO, SUM($C95:G95), IF(G$87>iStd_MWO, G95, 0)) -> 0 | H96: 1 | J96: 2014 | K96: =IF(K$87=iStd_Combo, SUM($K95:K95), IF(K$87>iStd_Combo, K95, 0)) -> 0 | L96: =IF(L$87=iStd_Combo, SUM($K95:L95), IF(L$87>iStd_Combo, L95, 0)) -> 0 | M96: =IF(M$87=iStd_Combo, SUM($K95:M95), IF(M$87>iStd_Combo, M95, 0)) -> 0 | N96: =IF(N$87=iStd_Combo, SUM($K95:N95), IF(N$87>iStd_Combo, N95, 0)) -> 1 | O96: =IF(O$87=iStd_Combo, SUM($K95:O95), IF(O$87>iStd_Combo, O95, 0)) -> 0 | P96: 1
B97: 2015 | C97: =C96 -> 0 | D97: =D96 -> 0 | E97: =E96 -> 0 | F97: =F96 -> 1 | G97: =G96 -> 0 | H97: 1 | J97: 2015 | K97: =K96 -> 0 | L97: =L96 -> 0 | M97: =M96 -> 0 | N97: =N96 -> 1 | O97: =O96 -> 0 | P97: 1
B98: 2016 | C98: 0 | D98: 0 | E98: 0 | F98: 1 | G98: 0 | H98: 1 | J98: 2016 | K98: 0 | L98: 0 | M98: 0 | N98: 1 | O98: 0 | P98: 1
B99: 2017 | C99: 0 | D99: 0 | E99: 0 | F99: 1 | G99: 0 | H99: 1 | J99: 2017 | K99: 0 | L99: 0 | M99: 0 | N99: 1 | O99: 0 | P99: 1
B100: 2018 | C100: 0 | D100: 0 | E100: 0 | F100: 1 | G100: 0 | H100: 1 | J100: 2018 | K100: 0 | L100: 0 | M100: 0 | N100: 1 | O100: 0 | P100: 1
B101: 2019 | C101: 0 | D101: 0 | E101: 0 | F101: 1 | G101: 0 | H101: 1 | J101: 2019 | K101: 0 | L101: 0 | M101: 0 | N101: 1 | O101: 0 | P101: 1
B102: 2020 | C102: 0 | D102: 0 | E102: 0 | F102: 1 | G102: 0 | H102: 1 | J102: 2020 | K102: 0 | L102: 0 | M102: 0 | N102: 1 | O102: 0 | P102: 1
B103: 2021 | C103: 0 | D103: 0 | E103: 0 | F103: 1 | G103: 0 | H103: 1 | J103: 2021 | K103: 0 | L103: 0 | M103: 0 | N103: 1 | O103: 0 | P103: 1
B104: 2022 | C104: 0 | D104: 0 | E104: 0 | F104: 1 | G104: 0 | H104: 1 | J104: 2022 | K104: 0 | L104: 0 | M104: 0 | N104: 1 | O104: 0 | P104: 1
B105: =B104+1 -> 2023 | C105: 0 | D105: 0 | E105: 0 | F105: 1 | G105: 0 | H105: 1 | J105: 2023 | K105: 0 | L105: 0 | M105: 0 | N105: 1 | O105: 0 | P105: 1
B106: 2024 | C106: 0 | D106: 0 | E106: 0 | F106: 1 | G106: 0 | H106: 1 | J106: 2024 | K106: 0 | L106: 0 | M106: 0 | N106: 1 | O106: 0 | P106: 1
B107: 2025 | C107: 0 | D107: 0 | E107: 0 | F107: 1 | G107: 0 | H107: 1 | J107: 2025 | K107: 0 | L107: 0 | M107: 0 | N107: 1 | O107: 0 | P107: 1
B108: 2026 | C108: 0 | D108: 0 | E108: 0 | F108: 1 | G108: 0 | H108: 1 | J108: 2026 | K108: 0 | L108: 0 | M108: 0 | N108: 1 | O108: 0 | P108: 1
B109: 2027 | C109: 0 | D109: 0 | E109: 0 | F109: 1 | G109: 0 | H109: 1 | J109: 2027 | K109: 0 | L109: 0 | M109: 0 | N109: 1 | O109: 0 | P109: 1
B110: 2028 | C110: 0 | D110: 0 | E110: 0 | F110: 1 | G110: 0 | H110: 1 | J110: 2028 | K110: 0 | L110: 0 | M110: 0 | N110: 1 | O110: 0 | P110: 1
B111: 2029 | C111: 0 | D111: 0 | E111: 0 | F111: 1 | G111: 0 | H111: 1 | J111: 2029 | K111: 0 | L111: 0 | M111: 0 | N111: 1 | O111: 0 | P111: 1
B112: 2030 | C112: 0 | D112: 0 | E112: 0 | F112: 1 | G112: 0 | H112: 1 | J112: 2030 | K112: 0 | L112: 0 | M112: 0 | N112: 1 | O112: 0 | P112: 1
B113: =B112+1 -> 2031 | C113: =C112 -> 0 | D113: =D112 -> 0 | E113: =E112 -> 0 | F113: =F112 -> 1 | G113: =G112 -> 0 | H113: 1 | J113: =J112+1 -> 2031 | K113: =K112 -> 0 | L113: =L112 -> 0 | M113: =M112 -> 0 | N113: =N112 -> 1 | O113: =O112 -> 0 | P113: 1
B114: 2032 | C114: 0 | D114: 0 | E114: 0 | F114: 1 | G114: 0 | H114: 1 | J114: 2032 | K114: 0 | L114: 0 | M114: 0 | N114: 1 | O114: 0 | P114: 1
B115: 2033 | C115: 0 | D115: 0 | E115: 0 | F115: 1 | G115: 0 | H115: 1 | J115: 2033 | K115: 0 | L115: 0 | M115: 0 | N115: 1 | O115: 0 | P115: 1
B116: 2034 | C116: 0 | D116: 0 | E116: 0 | F116: 1 | G116: 0 | H116: 1 | J116: 2034 | K116: 0 | L116: 0 | M116: 0 | N116: 1 | O116: 0 | P116: 1
B117: 2035 | C117: 0 | D117: 0 | E117: 0 | F117: 1 | G117: 0 | H117: 1 | J117: 2035 | K117: 0 | L117: 0 | M117: 0 | N117: 1 | O117: 0 | P117: 1
B118: 2036 | C118: 0 | D118: 0 | E118: 0 | F118: 1 | G118: 0 | H118: 1 | J118: 2036 | K118: 0 | L118: 0 | M118: 0 | N118: 1 | O118: 0 | P118: 1
B119: 2037 | C119: 0 | D119: 0 | E119: 0 | F119: 1 | G119: 0 | H119: 1 | J119: 2037 | K119: 0 | L119: 0 | M119: 0 | N119: 1 | O119: 0 | P119: 1
B120: 2038 | C120: 0 | D120: 0 | E120: 0 | F120: 1 | G120: 0 | H120: 1 | J120: 2038 | K120: 0 | L120: 0 | M120: 0 | N120: 1 | O120: 0 | P120: 1
B121: 2039 | C121: 0 | D121: 0 | E121: 0 | F121: 1 | G121: 0 | H121: 1 | J121: 2039 | K121: 0 | L121: 0 | M121: 0 | N121: 1 | O121: 0 | P121: 1
B122: 2040 | C122: 0 | D122: 0 | E122: 0 | F122: 1 | G122: 0 | H122: 1 | J122: 2040 | K122: 0 | L122: 0 | M122: 0 | N122: 1 | O122: 0 | P122: 1
B123: 2041 | C123: 0 | D123: 0 | E123: 0 | F123: 1 | G123: 0 | H123: 1 | J123: 2041 | K123: 0 | L123: 0 | M123: 0 | N123: 1 | O123: 0 | P123: 1
B124: 2042 | C124: 0 | D124: 0 | E124: 0 | F124: 1 | G124: 0 | H124: 1 | J124: 2042 | K124: 0 | L124: 0 | M124: 0 | N124: 1 | O124: 0 | P124: 1
B125: 2043 | C125: 0 | D125: 0 | E125: 0 | F125: 1 | G125: 0 | H125: =SUM(C125:G125) -> 1 | J125: 2043 | K125: 0 | L125: 0 | M125: 0 | N125: 1 | O125: 0 | P125: =SUM(K125:O125) -> 1
B127: Base Case Weighted Average UEC and Price - PC1 | M127: Standards Case Weighted Average UEC and Price - PC1
C128: Standby | H128: Price Trend | I128: Hhld | K128: TC/Income | N128: Standby | S128: Price Trend | T128: Hhld | V128: TC/Income | X128: RP Elast
C129: Power | E129: UEC | G129: Price | I129: Income | N129: Power | P129: UEC | R129: Price | T129: Income | X129: Drop
C130: kWh/yr | E130: kWh/yr | G130: $ | I130: $ | N130: kWh/yr | P130: kWh/yr | R130: $ | T130: $
B131: 2007 | C131: =MMULT(C47:G47,Eff_MWO) -> 2.828 | D131: 2007 | E131: =MMULT(C47:G47,UEC_MWO) -> 24.56837496 | F131: 2007 | I131: 52161.72121 | J131: 2007 | K131: =(G131+(E131*(3413*10^(-6))*VLOOKUP(J131,ElecPrice,iSc+1))*DF/100)/I131 -> 1.354865422e-06 | M131: 2007 | N131: =MMULT(C89:G89,Eff_MWO) -> 2.828 | O131: 2007 | P131: =MMULT(C89:G89,UEC_MWO) -> 24.56837496 | Q131: 2007 | T131: 52161.72121 | U131: 2007 | V131: =(R131+(P131*(3413*10^(-6))*VLOOKUP(U131,ElecPrice,iSc+1))*DF/100)/T131 -> 1.354865422e-06 | W131: 2007
B132: =B131+1 -> 2008 | C132: 2.828 | D132: =D131+1 -> 2008 | E132: 24.56837496 | F132: =F131+1 -> 2008 | I132: 52508.47133 | J132: =J131+1 -> 2008 | K132: 1.408379156e-06 | M132: =M131+1 -> 2008 | N132: 2.828 | O132: =O131+1 -> 2008 | P132: 24.56837496 | Q132: =Q131+1 -> 2008 | T132: 52508.47133 | U132: =U131+1 -> 2008 | V132: 1.408379156e-06 | W132: =W131+1 -> 2008
B133: 2009 | C133: 2.828 | D133: 2009 | E133: 24.56837496 | F133: 2009 | I133: 53473.5278 | J133: =J132+1 -> 2009 | K133: 1.343173874e-06 | M133: 2009 | N133: 2.828 | O133: 2009 | P133: 24.56837496 | Q133: 2009 | T133: 53473.5278 | U133: =U132+1 -> 2009 | V133: 1.343173874e-06 | W133: =W132+1 -> 2009
B134: 2010 | C134: 2.828 | D134: 2010 | E134: 24.56837496 | F134: 2010 | G134: =MMULT(C50:G50,Price_MWO)*H134 -> 240.4880818 | H134: =VLOOKUP(B134,table_learning, learning+1) -> 1.075648712 | I134: 53214.4905 | J134: 2010 | K134: 0.00452051333 | M134: 2010 | N134: 2.828 | O134: 2010 | P134: 24.56837496 | Q134: 2010 | R134: =MMULT(C92:G92,Price_MWO)*S134 -> 240.4880818 | S134: =H134 -> 1.075648712 | T134: 53214.4905 | U134: 2010 | V134: 0.00452051333 | W134: 2010
B135: 2011 | C135: 2.828 | D135: 2011 | E135: 24.56837496 | F135: 2011 | G135: 236.0245968 | H135: 1.055684555 | I135: 54115.52022 | J135: 2011 | K135: 0.004362722841 | M135: 2011 | N135: 2.828 | O135: 2011 | P135: 24.56837496 | Q135: 2011 | R135: 236.0245968 | S135: =H135 -> 1.055684555 | T135: 54115.52022 | U135: 2011 | V135: 0.004362722841 | W135: 2011
B136: 2012 | C136: 2.828 | D136: 2012 | E136: 24.56837496 | F136: 2012 | G136: 231.67983 | H136: 1.036251397 | I136: 55231.46495 | J136: 2012 | K136: 0.004195957461 | M136: 2012 | N136: 2.828 | O136: 2012 | P136: 24.56837496 | Q136: 2012 | R136: 231.67983 | S136: 1.036251397 | T136: 55231.46495 | U136: 2012 | V136: 0.004195957461 | W136: 2012
B137: 2013 | C137: 2.828 | D137: 2013 | E137: 24.56837496 | F137: 2013 | G137: 227.5222941 | H137: 1.017655681 | I137: 56210.49936 | J137: 2013 | K137: 0.00404892682 | M137: 2013 | N137: 2.828 | O137: 2013 | P137: 24.56837496 | Q137: 2013 | R137: 227.5222941 | S137: 1.017655681 | T137: 56210.49936 | U137: 2013 | V137: 0.00404892682 | W137: 2013
B138: 2014 | C138: 2.828 | D138: 2014 | E138: 24.56837496 | F138: 2014 | G138: 223.5749266 | H138: 1 | I138: 57449.80663 | J138: 2014 | K138: 0.00389287415 | M138: 2014 | N138: 1 | O138: 2014 | P138: 8.687544187 | Q138: 2014 | R138: 225.1989 | S138: 1 | T138: 57449.80663 | U138: 2014 | V138: 0.003920354909 | W138: 2014 | X138: 1
B139: 2015 | C139: 2.828 | D139: 2015 | E139: 24.56837496 | F139: 2015 | G139: 219.8453837 | H139: 0.9833185993 | I139: 58495.4499 | J139: 2015 | K139: 0.003759526422 | M139: 2015 | N139: 1 | O139: 2015 | P139: 8.687544187 | Q139: 2015 | R139: 221.4422669 | S139: 0.9833185993 | T139: 58495.4499 | U139: 2015 | V139: 0.003786054319 | W139: 2015 | X139: 0.775
B140: 2016 | C140: 2.828 | D140: 2016 | E140: 24.56837496 | F140: 2016 | G140: 216.3592083 | H140: 0.9677257267 | I140: 59384.66426 | J140: 2016 | K140: 0.003644535195 | M140: 2016 | N140: 1 | O140: 2016 | P140: 8.687544187 | Q140: 2016 | R140: 217.9307692 | S140: 0.9677257267 | T140: 59384.66426 | U140: 2016 | V140: 0.003670234178 | W140: 2016 | X140: 0.625
B141: 2017 | C141: 2.828 | D141: 2017 | E141: 24.56837496 | F141: 2017 | G141: 213.1067897 | H141: 0.9531783948 | I141: 60225.10193 | J141: 2017 | K141: 0.00353967735 | M141: 2017 | N141: 1 | O141: 2017 | P141: 8.687544187 | Q141: 2017 | R141: 214.654726 | S141: 0.9531783948 | T141: 60225.10193 | U141: 2017 | V141: 0.003564621691 | W141: 2017 | X141: 0.5416666667
B142: 2018 | C142: 2.828 | D142: 2018 | E142: 24.56837496 | F142: 2018 | G142: 210.0059129 | H142: 0.9393088754 | I142: 61301.26478 | J142: 2018 | K142: 0.003426952166 | M142: 2018 | N142: 1 | O142: 2018 | P142: 8.687544187 | Q142: 2018 | R142: 211.5313255 | S142: 0.9393088754 | T142: 61301.26478 | U142: 2018 | V142: 0.003451091704 | W142: 2018 | X142: 0.4583333333
B143: 2019 | C143: 2.828 | D143: 2019 | E143: 24.56837496 | F143: 2019 | G143: 206.969131 | H143: 0.925726038 | I143: 62542.85484 | J143: 2019 | K143: 0.003310362152 | M143: 2019 | N143: 1 | O143: 2019 | P143: 8.687544187 | Q143: 2019 | R143: 208.4724855 | S143: 0.925726038 | T143: 62542.85484 | U143: 2019 | V143: 0.003333672068 | W143: 2019 | X143: 0.4366666667
B144: 2020 | C144: 2.828 | D144: 2020 | E144: 24.56837496 | F144: 2020 | G144: 203.9470738 | H144: 0.9122090609 | I144: 63657.05314 | J144: 2020 | K144: 0.003204952152 | M144: 2020 | N144: 1 | O144: 2020 | P144: 8.687544187 | Q144: 2020 | R144: 205.4284771 | S144: 0.9122090609 | T144: 63657.05314 | U144: 2020 | V144: 0.003227505508 | W144: 2020 | X144: 0.415
B145: 2021 | C145: 2.828 | D145: 2021 | E145: 24.56837496 | F145: 2021 | G145: 200.9538288 | H145: 0.898820954 | I145: 64712.33415 | J145: 2021 | K145: 0.003106439165 | M145: 2021 | N145: 1 | O145: 2021 | P145: 8.687544187 | Q145: 2021 | R145: 202.4134901 | S145: 0.898820954 | T145: 64712.33415 | U145: 2021 | V145: 0.003128285116 | W145: 2021 | X145: 0.3933333333
B146: =B145+1 -> 2022 | C146: 2.828 | D146: =D145+1 -> 2022 | E146: 24.56837496 | F146: =F145+1 -> 2022 | G146: 198.0172446 | H146: 0.8856862782 | I146: 65832.8103 | J146: 2022 | K146: 0.003008963302 | M146: =M145+1 -> 2022 | N146: 1 | O146: =O145+1 -> 2022 | P146: 8.687544187 | Q146: =Q145+1 -> 2022 | R146: 199.4555756 | S146: 0.8856862782 | T146: 65832.8103 | U146: 2022 | V146: 0.003030111804 | W146: 2022 | X146: 0.3716666667
B147: 2023 | C147: 2.828 | D147: 2023 | E147: 24.56837496 | F147: 2023 | G147: 195.1805793 | H147: 0.8729985169 | I147: 67037.85944 | J147: 2023 | K147: 0.002912564733 | M147: 2023 | N147: 1 | O147: 2023 | P147: 8.687544187 | Q147: 2023 | R147: 196.5983057 | S147: 0.8729985169 | T147: 67037.85944 | U147: 2023 | V147: 0.002933023211 | W147: 2023 | X147: 0.35
B148: 2024 | C148: 2.828 | D148: =D147+1 -> 2024 | E148: 24.56837496 | F148: 2024 | G148: 192.4678432 | H148: 0.8608650627 | I148: 68266.68697 | J148: 2024 | K148: 0.002820402792 | M148: 2024 | N148: 1 | O148: 2024 | P148: 8.687544187 | Q148: 2024 | R148: 193.8658652 | S148: 0.8608650627 | T148: 68266.68697 | U148: 2024 | V148: 0.002840202614 | W148: 2024 | X148: 0.3483333333
B149: 2025 | C149: 2.828 | D149: 2025 | E149: 24.56837496 | F149: 2025 | G149: 189.8818091 | H149: 0.8492983181 | I149: 69512.96313 | J149: 2025 | K149: 0.002732633683 | M149: 2025 | N149: 1 | O149: 2025 | P149: 8.687544187 | Q149: 2025 | R149: 191.261047 | S149: 0.8492983181 | T149: 69512.96313 | U149: 2025 | V149: 0.002751808817 | W149: 2025 | X149: 0.3466666667
B150: 2026 | C150: 2.828 | D150: 2026 | E150: 24.56837496 | F150: 2026 | G150: 187.4244243 | H150: 0.8383069924 | I150: 70761.97132 | J150: 2026 | K150: 0.002649677271 | M150: 2026 | N150: 1 | O150: 2026 | P150: 8.687544187 | Q150: 2026 | R150: 188.7858125 | S150: 0.8383069924 | T150: 70761.97132 | U150: 2026 | V150: 0.00266825889 | W150: 2026 | X150: 0.345
B151: =B150+1 -> 2027 | C151: 2.828 | D151: =D150+1 -> 2027 | E151: 24.56837496 | F151: =F150+1 -> 2027 | G151: 185.0834471 | H151: 0.8278363315 | I151: 71915.02818 | J151: =J150+1 -> 2027 | K151: 0.00257464679 | M151: =M150+1 -> 2027 | N151: 1 | O151: =O150+1 -> 2027 | P151: 8.687544187 | Q151: =Q150+1 -> 2027 | R151: 186.4278312 | S151: 0.8278363315 | T151: 71915.02818 | U151: =U150+1 -> 2027 | V151: 0.002592690557 | W151: =W150+1 -> 2027 | X151: 0.3433333333
B152: 2028 | C152: 2.828 | D152: 2028 | E152: 24.56837496 | F152: 2028 | G152: 182.8318857 | H152: 0.8177656075 | I152: 73051.54615 | J152: 2028 | K152: 0.002503774417 | M152: 2028 | N152: 1 | O152: 2028 | P152: 8.687544187 | Q152: 2028 | R152: 184.1599153 | S152: 0.8177656075 | T152: 73051.54615 | U152: 2028 | V152: 0.002521310425 | W152: 2028 | X152: 0.3416666667
B153: 2029 | C153: =MMULT(C69:G69,Eff_MWO) -> 2.828 | D153: 2029 | E153: =MMULT(C69:G69,UEC_MWO) -> 24.56837496 | F153: 2029 | G153: 180.6360041 | H153: 0.8079439268 | I153: 74118.63669 | J153: 2029 | K153: 0.002438112893 | M153: 2029 | N153: 1 | O153: 2029 | P153: 8.687544187 | Q153: 2029 | R153: 181.9480836 | S153: 0.8079439268 | T153: 74118.63669 | U153: 2029 | V153: 0.002455173449 | W153: 2029 | X153: 0.34
B154: 2030 | C154: 2.828 | D154: 2030 | E154: 24.56837496 | F154: 2030 | G154: 178.4699825 | H154: 0.7982558028 | I154: 75134.65338 | J154: 2030 | K154: 0.002376324219 | M154: 2030 | N154: 1 | O154: 2030 | P154: 8.687544187 | Q154: 2030 | R154: 179.7663287 | S154: 0.7982558028 | T154: 75134.65338 | U154: 2030 | V154: 0.002392938525 | W154: 2030 | X154: 0.3383333333
B155: 2031 | C155: 2.828 | D155: 2031 | E155: 24.56837496 | F155: 2031 | G155: 176.3388732 | H155: 0.7887238336 | I155: 76390.55458 | J155: 2031 | K155: 0.002309368885 | M155: 2031 | N155: =MMULT(C113:G113,Eff_MWO) -> 1 | O155: 2031 | P155: =MMULT(C113:G113,UEC_MWO) -> 8.687544187 | Q155: 2031 | R155: 177.6197397 | S155: 0.7887238336 | T155: 76390.55458 | U155: 2031 | V155: 0.002325500782 | W155: 2031 | X155: 0.3366666667
B156: 2032 | C156: 2.828 | D156: 2032 | E156: 24.56837496 | F156: 2032 | G156: 174.2513474 | H156: 0.7793868036 | I156: 77668.50088 | J156: 2032 | K156: 0.002244502106 | M156: 2032 | N156: 1 | O156: 2032 | P156: 8.687544187 | Q156: 2032 | R156: 175.5170508 | S156: 0.7793868036 | T156: 77668.50088 | U156: 2032 | V156: 0.002260167769 | W156: 2032 | X156: 0.335
B157: 2033 | C157: 2.828 | D157: 2033 | E157: 24.56837496 | F157: 2033 | G157: 172.213138 | H157: 0.7702703547 | I157: 78963.2792 | J157: 2033 | K157: 0.002181890523 | M157: 2033 | N157: 1 | O157: 2033 | P157: 8.687544187 | Q157: 2033 | R157: 173.4640366 | S157: 0.7702703547 | T157: 78963.2792 | U157: 2033 | V157: 0.002197109152 | W157: 2033 | X157: 0.3333333333
B158: 2034 | C158: =MMULT(C74:G74,Eff_MWO) -> 2.828 | D158: 2034 | E158: =MMULT(C74:G74,UEC_MWO) -> 24.56837496 | F158: 2034 | G158: 170.2336475 | H158: 0.761416542 | I158: 80266.75008 | J158: 2034 | K158: 0.002121803473 | M158: 2034 | N158: =MMULT(C116:G116,Eff_MWO) -> 1 | O158: 2034 | P158: =MMULT(C116:G116,UEC_MWO) -> 8.687544187 | Q158: 2034 | R158: 171.4701677 | S158: 0.761416542 | T158: 80266.75008 | U158: 2034 | V158: 0.00213659157 | W158: 2034 | X158: 0.3333333333
B159: 2035 | C159: 2.828 | D159: 2035 | E159: 24.56837496 | F159: 2035 | G159: 168.3204961 | H159: 0.752859449 | I159: 81577.11916 | J159: 2035 | K159: 0.00206427488 | M159: 2035 | N159: 1 | O159: 2035 | P159: 8.687544187 | Q159: 2035 | R159: 169.5431198 | S159: 0.752859449 | T159: 81577.11916 | U159: 2035 | V159: 0.002078651284 | W159: 2035 | X159: 0.3333333333
B160: 2036 | C160: 2.828 | D160: 2036 | E160: 24.56837496 | F160: 2036 | G160: 166.4709907 | H160: 0.7445870307 | I160: 82893.14566 | J160: 2036 | K160: 0.002009195519 | M160: 2036 | N160: 1 | O160: 2036 | P160: 8.687544187 | Q160: 2036 | R160: 167.6801803 | S160: 0.7445870307 | T160: 82893.14566 | U160: 2036 | V160: 0.00202317815 | W160: 2036 | X160: 0.3333333333
B161: 2037 | C161: 2.828 | D161: 2037 | E161: 24.56837496 | F161: 2037 | G161: 164.6789004 | H161: 0.7365714167 | I161: 84215.20118 | J161: 2037 | K161: 0.001956379501 | M161: 2037 | N161: 1 | O161: 2037 | P161: 8.687544187 | Q161: 2037 | R161: 165.8750728 | S161: 0.7365714167 | T161: 84215.20118 | U161: 2037 | V161: 0.001969984626 | W161: 2037 | X161: 0.3333333333
B162: 2038 | C162: 2.828 | D162: 2038 | E162: 24.56837496 | F162: 2038 | G162: 162.9342277 | H162: 0.7287678908 | I162: 85555.42914 | J162: 2038 | K162: 0.001905345711 | M162: 2038 | N162: 1 | O162: 2038 | P162: 8.687544187 | Q162: 2038 | R162: 164.1177274 | S162: 0.7287678908 | T162: 85555.42914 | U162: 2038 | V162: 0.001918586193 | W162: 2038 | X162: 0.3333333333
B163: 2039 | C163: 2.828 | D163: 2039 | E163: 24.56837496 | F163: 2039 | G163: 161.2272045 | H163: 0.7211327627 | I163: 86917.93308 | J163: 2039 | K163: 0.001855843702 | M163: 2039 | N163: 1 | O163: 2039 | P163: 8.687544187 | Q163: 2039 | R163: 162.3983049 | S163: 0.7211327627 | T163: 86917.93308 | U163: 2039 | V163: 0.001868730614 | W163: 2039 | X163: 0.3333333333
B164: 2040 | C164: 2.828 | D164: 2040 | E164: 24.56837496 | F164: 2040 | G164: 159.5515614 | H164: 0.7136379905 | I164: 88313.59966 | J164: 2040 | K164: 0.001807546185 | M164: 2040 | N164: 1 | O164: 2040 | P164: 8.687544187 | Q164: 2040 | R164: 160.7104905 | S164: 0.7136379905 | T164: 88313.59966 | U164: 2040 | V164: 0.001820088292 | W164: 2040 | X164: 0.3333333333
B165: 2041 | C165: 2.828 | D165: 2041 | E165: 24.56837496 | F165: 2041 | G165: 157.9060913 | H165: 0.7062781759 | I165: 89752.45092 | J165: 2041 | K165: 0.00176024048 | M165: 2041 | N165: 1 | O165: 2041 | P165: 8.687544187 | Q165: 2041 | R165: 159.0530683 | S165: 0.7062781759 | T165: 89752.45092 | U165: 2041 | V165: 0.00177244506 | W165: 2041 | X165: 0.3333333333
B166: 2042 | C166: 2.828 | D166: 2042 | E166: 24.56837496 | F166: 2042 | G166: 156.2935932 | H166: 0.6990658371 | I166: 89752.45092 | J166: 2042 | K166: 0.001742279541 | M166: 2042 | N166: 1 | O166: 2042 | P166: 8.687544187 | Q166: 2042 | R166: 157.4288576 | S166: 0.6990658371 | T166: 89752.45092 | U166: 2042 | V166: 0.00175435031 | W166: 2042 | X166: 0.3333333333
B167: 2043 | C167: 2.828 | D167: 2043 | E167: 24.56837496 | F167: 2043 | G167: 154.7184143 | H167: 0.6920204185 | I167: 89752.45092 | J167: 2043 | K167: 0.001724734433 | M167: 2043 | N167: 1 | O167: 2043 | P167: 8.687544187 | Q167: 2043 | R167: 155.842237 | S167: 0.6920204185 | T167: 89752.45092 | U167: 2043 | V167: 0.001736674391 | W167: 2043 | X167: 0.3333333333
B169: Base Case Weighted Average UEC and Price - PC2 | M169: Standards Case Weighted Average UEC and Price - PC2
C170: Standby | H170: Price Trend | I170: Hhld | K170: TC/Income | N170: Standby | S170: Price Trend | T170: Hhld | V170: TC/Income | X170: RP Elast
C171: Power | E171: UEC | G171: Price | I171: Income | N171: Power | P171: UEC | R171: Price | T171: Income | X171: Drop
C172: kWh/yr | E172: kWh/yr | G172: $ | I172: $ | N172: kWh/yr | P172: kWh/yr | R172: $ | T172: $
B173: 2007 | C173: =MMULT(K47:O47,Eff_Combo) -> 4.5 | D173: 2007 | E173: =MMULT(K47:O47,UEC_Combo) -> 39.09394884 | F173: 2007 | I173: 52161.72121 | J173: 2007 | K173: =(G173+(E173*(3413*10^(-6))*VLOOKUP(J173,ElecPrice,iSc+1))*DF/100)/I173 -> 2.155903253e-06 | M173: 2007 | N173: =MMULT(K89:O89,Eff_Combo) -> 4.5 | O173: 2007 | P173: =MMULT(K89:O89,UEC_Combo) -> 39.09394884 | Q173: 2007 | T173: 52161.72121 | U173: 2007 | V173: =(R173+(P173*(3413*10^(-6))*VLOOKUP(U173,ElecPrice,iSc+1))*DF/100)/T173 -> 2.155903253e-06 | W173: 2007
B174: =B173+1 -> 2008 | C174: 4.5 | D174: =D173+1 -> 2008 | E174: 39.09394884 | F174: =F173+1 -> 2008 | I174: 52508.47133 | J174: =J173+1 -> 2008 | K174: 2.241055941e-06 | M174: =M173+1 -> 2008 | N174: 4.5 | O174: =O173+1 -> 2008 | P174: 39.09394884 | Q174: =Q173+1 -> 2008 | T174: 52508.47133 | U174: =U173+1 -> 2008 | V174: 2.241055941e-06 | W174: =W173+1 -> 2008
B175: 2009 | C175: 4.5 | D175: 2009 | E175: 39.09394884 | F175: 2009 | I175: 53473.5278 | J175: =J174+1 -> 2009 | K175: 2.137299304e-06 | M175: 2009 | N175: 4.5 | O175: 2009 | P175: 39.09394884 | Q175: 2009 | T175: 53473.5278 | U175: =U174+1 -> 2009 | V175: 2.137299304e-06 | W175: =W174+1 -> 2009
B176: 2010 | C176: 4.5 | D176: 2010 | E176: 39.09394884 | F176: 2010 | G176: =MMULT(K50:O50,Price_Combo)*H176 -> 518.6417746 | H176: =VLOOKUP(B176,table_learning, learning+1) -> 1.075648712 | I176: 53214.4905 | J176: 2010 | K176: 0.009748306109 | M176: 2010 | N176: 4.5 | O176: 2010 | P176: 39.09394884 | Q176: 2010 | R176: =MMULT(K92:O92,Price_Combo)*S176 -> 518.6417746 | S176: =H176 -> 1.075648712 | T176: 53214.4905 | U176: 2010 | V176: 0.009748306109 | W176: 2010
B177: 2011 | C177: 4.5 | D177: 2011 | E177: 39.09394884 | F177: 2011 | G177: 509.0157269 | H177: =VLOOKUP(B177,table_learning, learning+1) -> 1.055684555 | I177: 54115.52022 | J177: 2011 | K177: 0.009408048063 | M177: 2011 | N177: 4.5 | O177: 2011 | P177: 39.09394884 | Q177: 2011 | R177: 509.0157269 | S177: =H177 -> 1.055684555 | T177: 54115.52022 | U177: 2011 | V177: 0.009408048063 | W177: 2011
B178: 2012 | C178: 4.5 | D178: 2012 | E178: 39.09394884 | F178: 2012 | G178: 499.6457092 | H178: 1.036251397 | I178: 55231.46495 | J178: 2012 | K178: 0.009048385372 | M178: 2012 | N178: 4.5 | O178: 2012 | P178: 39.09394884 | Q178: 2012 | R178: 499.6457092 | S178: 1.036251397 | T178: 55231.46495 | U178: 2012 | V178: 0.009048385372 | W178: 2012
B179: 2013 | C179: 4.5 | D179: 2013 | E179: 39.09394884 | F179: 2013 | G179: 490.6794778 | H179: 1.017655681 | I179: 56210.49936 | J179: 2013 | K179: 0.008731299619 | M179: 2013 | N179: 4.5 | O179: 2013 | P179: 39.09394884 | Q179: 2013 | R179: 490.6794778 | S179: 1.017655681 | T179: 56210.49936 | U179: 2013 | V179: 0.008731299619 | W179: 2013
B180: 2014 | C180: 4.5 | D180: 2014 | E180: 39.09394884 | F180: 2014 | G180: 482.1665 | H180: 1 | I180: 57449.80663 | J180: 2014 | K180: 0.008394767883 | M180: 2014 | N180: 2.2 | O180: 2014 | P180: 19.11259721 | Q180: 2014 | R180: 496.0505 | S180: 1 | T180: 57449.80663 | U180: 2014 | V180: 0.008635449592 | W180: 2014 | X180: 1
B181: 2015 | C181: 4.5 | D181: 2015 | E181: 39.09394884 | F181: 2015 | G181: 474.1232874 | H181: 0.9833185993 | I181: 58495.4499 | J181: 2015 | K181: 0.008107200908 | M181: 2015 | N181: 2.2 | O181: 2015 | P181: 19.11259721 | Q181: 2015 | R181: 487.7756829 | S181: 0.9833185993 | T181: 58495.4499 | U181: 2015 | V181: 0.008339622792 | W181: 2015 | X181: 0.775
B182: 2016 | C182: 4.5 | D182: 2016 | E182: 39.09394884 | F182: 2016 | G182: 466.6049266 | H182: 0.9677257267 | I182: 59384.66426 | J182: 2016 | K182: 0.007859213839 | M182: 2016 | N182: 2.2 | O182: 2016 | P182: 19.11259721 | Q182: 2016 | R182: 480.0408306 | S182: 0.9677257267 | T182: 59384.66426 | U182: 2016 | V182: 0.008084503265 | W182: 2016 | X182: 0.625
B183: 2017 | C183: 4.5 | D183: 2017 | E183: 39.09394884 | F183: 2017 | G183: 459.5906905 | H183: 0.9531783948 | I183: 60225.10193 | J183: 2017 | K183: 0.007633081217 | M183: 2017 | N183: 2.2 | O183: 2017 | P183: 19.11259721 | Q183: 2017 | R183: 472.8246194 | S183: 0.9531783948 | T183: 60225.10193 | U183: 2017 | V183: 0.007851868361 | W183: 2017 | X183: 0.5416666667
B184: 2018 | C184: 4.5 | D184: 2018 | E184: 39.09394884 | F184: 2018 | G184: 452.9032728 | H184: 0.9393088754 | I184: 61301.26478 | J184: 2018 | K184: 0.007389987764 | M184: 2018 | N184: 2.2 | O184: 2018 | P184: 19.11259721 | Q184: 2018 | R184: 465.9446373 | S184: 0.9393088754 | T184: 61301.26478 | U184: 2018 | V184: 0.007601793418 | W184: 2018 | X184: 0.4583333333
B185: 2019 | C185: 4.5 | D185: 2019 | E185: 39.09394884 | F185: 2019 | G185: 446.3540837 | H185: 0.925726038 | I185: 62542.85484 | J185: 2019 | K185: 0.00713856215 | M185: 2019 | N185: 2.2 | O185: 2019 | P185: 19.11259721 | Q185: 2019 | R185: 459.206864 | S185: 0.925726038 | T185: 62542.85484 | U185: 2019 | V185: 0.007343150666 | W185: 2019 | X185: 0.4366666667
B186: 2020 | C186: 4.5 | D186: 2020 | E186: 39.09394884 | F186: 2020 | G186: 439.8366501 | H186: 0.9122090609 | I186: 63657.05314 | J186: 2020 | K186: 0.006911240547 | M186: 2020 | N186: 2.2 | O186: 2020 | P186: 19.11259721 | Q186: 2020 | R186: 452.5017607 | S186: 0.9122090609 | T186: 63657.05314 | U186: 2020 | V186: 0.007109295296 | W186: 2020 | X186: 0.415
B187: 2021 | C187: 4.5 | D187: 2021 | E187: 39.09394884 | F187: 2021 | G187: 433.3813535 | H187: 0.898820954 | I187: 64712.33415 | J187: 2021 | K187: 0.006698792377 | M187: 2021 | N187: 2.2 | O187: 2021 | P187: 19.11259721 | Q187: 2021 | R187: 445.8605836 | S187: 0.898820954 | T187: 64712.33415 | U187: 2021 | V187: 0.006890740397 | W187: 2021 | X187: 0.3933333333
B188: 2022 | C188: 4.5 | D188: 2022 | E188: 39.09394884 | F188: 2022 | G188: 427.0482529 | H188: 0.8856862782 | I188: 65832.8103 | J188: 2022 | K188: 0.006488582987 | M188: 2022 | N188: 2.2 | O188: 2022 | P188: 19.11259721 | Q188: 2022 | R188: 439.3451211 | S188: 0.8856862782 | T188: 65832.8103 | U188: 2022 | V188: 0.006674491931 | W188: 2022 | X188: 0.3716666667
B189: 2023 | C189: 4.5 | D189: 2023 | E189: 39.09394884 | F189: 2023 | G189: 420.9306394 | H189: 0.8729985169 | I189: 67037.85944 | J189: 2023 | K189: 0.006280696565 | M189: 2023 | N189: 2.2 | O189: 2023 | P189: 19.11259721 | Q189: 2023 | R189: 433.0513508 | S189: 0.8729985169 | T189: 67037.85944 | U189: 2023 | V189: 0.006460632796 | W189: 2023 | X189: 0.35
B190: 2024 | C190: 4.5 | D190: =D189+1 -> 2024 | E190: 39.09394884 | F190: 2024 | G190: 415.0802943 | H190: 0.8608650627 | I190: 68266.68697 | J190: 2024 | K190: 0.006081947462 | M190: 2024 | N190: 2.2 | O190: 2024 | P190: 19.11259721 | Q190: 2024 | R190: 427.0325448 | S190: 0.8608650627 | T190: 68266.68697 | U190: 2024 | V190: 0.006256174871 | W190: 2024 | X190: 0.3483333333
B191: 2025 | C191: 4.5 | D191: 2025 | E191: 39.09394884 | F191: 2025 | G191: 409.5031975 | H191: 0.8492983181 | I191: 69512.96313 | J191: 2025 | K191: 0.005892673815 | M191: 2025 | N191: 2.2 | O191: 2025 | P191: 19.11259721 | Q191: 2025 | R191: 421.2948553 | S191: 0.8492983181 | T191: 69512.96313 | U191: 2025 | V191: 0.006061467956 | W191: 2025 | X191: 0.3466666667
B192: 2026 | C192: 4.5 | D192: 2026 | E192: 39.09394884 | F192: 2026 | G192: 404.2035484 | H192: 0.8383069924 | I192: 70761.97132 | J192: 2026 | K192: 0.005713776062 | M192: 2026 | N192: 2.2 | O192: 2026 | P192: 19.11259721 | Q192: 2026 | R192: 415.8426027 | S192: 0.8383069924 | T192: 70761.97132 | U192: 2026 | V192: 0.005877430735 | W192: 2026 | X192: 0.345
B193: =B192+1 -> 2027 | C193: 4.5 | D193: =D192+1 -> 2027 | E193: 39.09394884 | F193: =F192+1 -> 2027 | G193: 399.1549465 | H193: 0.8278363315 | I193: 71915.02818 | J193: =J192+1 -> 2027 | K193: 0.00555196989 | M193: =M192+1 -> 2027 | N193: 2.2 | O193: =O192+1 -> 2027 | P193: 19.11259721 | Q193: =Q192+1 -> 2027 | R193: 410.6486262 | S193: 0.8278363315 | T193: 71915.02818 | U193: =U192+1 -> 2027 | V193: 0.005710974739 | W193: =W192+1 -> 2027 | X193: 0.3433333333
B194: 2028 | C194: 4.5 | D194: 2028 | E194: 39.09394884 | F194: 2028 | G194: 394.2991808 | H194: 0.8177656075 | I194: 73051.54615 | J194: 2028 | K194: 0.005399131088 | M194: 2028 | N194: 2.2 | O194: 2028 | P194: 19.11259721 | Q194: 2028 | R194: 405.6530385 | S194: 0.8177656075 | T194: 73051.54615 | U194: 2028 | V194: 0.005553744184 | W194: 2028 | X194: 0.3416666667
B195: 2029 | C195: 4.5 | D195: 2029 | E195: 39.09394884 | F195: 2029 | G195: 389.5634954 | H195: 0.8079439268 | I195: 74118.63669 | J195: 2029 | K195: 0.005257525323 | M195: 2029 | N195: 2.2 | O195: 2029 | P195: 19.11259721 | Q195: 2029 | R195: 400.7809889 | S195: 0.8079439268 | T195: 74118.63669 | U195: 2029 | V195: 0.005408062837 | W195: 2029 | X195: 0.34
B196: 2030 | C196: 4.5 | D196: 2030 | E196: 39.09394884 | F196: 2030 | G196: 384.8922066 | H196: 0.7982558028 | I196: 75134.65338 | J196: 2030 | K196: 0.005124272755 | M196: 2030 | N196: 2.2 | O196: 2030 | P196: 19.11259721 | Q196: 2030 | R196: 395.9751901 | S196: 0.7982558028 | T196: 75134.65338 | U196: 2030 | V196: 0.005270976624 | W196: 2030 | X196: 0.3383333333
B197: 2031 | C197: 4.5 | D197: 2031 | E197: 39.09394884 | F197: 2031 | G197: 380.2962103 | H197: 0.7887238336 | I197: 76390.55458 | J197: 2031 | K197: 0.004979878841 | M197: 2031 | N197: 2.2 | O197: 2031 | P197: 19.11259721 | Q197: 2031 | R197: 391.246852 | S197: 0.7887238336 | T197: 76390.55458 | U197: 2031 | V197: 0.00512243005 | W197: 2031 | X197: 0.3366666667
B198: 2032 | C198: 4.5 | D198: 2032 | E198: 39.09394884 | F198: 2032 | G198: 375.7942072 | H198: 0.7793868036 | I198: 77668.50088 | J198: 2032 | K198: 0.004839990018 | M198: 2032 | N198: 2.2 | O198: 2032 | P198: 19.11259721 | Q198: 2032 | R198: 386.6152136 | S198: 0.7793868036 | T198: 77668.50088 | U198: 2032 | V198: 0.004978519613 | W198: 2032 | X198: 0.335
B199: 2033 | C199: 4.5 | D199: 2033 | E199: 39.09394884 | F199: 2033 | G199: 371.398561 | H199: 0.7702703547 | I199: 78963.2792 | J199: 2033 | K199: 0.004704967239 | M199: 2033 | N199: 2.2 | O199: 2033 | P199: 19.11259721 | Q199: 2033 | R199: 382.0929946 | S199: 0.7702703547 | T199: 78963.2792 | U199: 2033 | V199: 0.004839619042 | W199: 2033 | X199: 0.3333333333
B200: 2034 | C200: 4.5 | D200: 2034 | E200: 39.09394884 | F200: 2034 | G200: 367.1295491 | H200: 0.761416542 | I200: 80266.75008 | J200: 2034 | K200: 0.004575387334 | M200: 2034 | N200: 2.2 | O200: 2034 | P200: 19.11259721 | Q200: 2034 | R200: 377.7010564 | S200: 0.761416542 | T200: 80266.75008 | U200: 2034 | V200: 0.004706315661 | W200: 2034 | X200: 0.3333333333
B201: 2035 | C201: 4.5 | D201: 2035 | E201: 39.09394884 | F201: 2035 | G201: 363.0036055 | H201: 0.752859449 | I201: 81577.11916 | J201: 2035 | K201: 0.004451325274 | M201: 2035 | N201: 2.2 | O201: 2035 | P201: 19.11259721 | Q201: 2035 | R201: 373.4563061 | S201: 0.752859449 | T201: 81577.11916 | U201: 2035 | V201: 0.004578689346 | W201: 2035 | X201: 0.3333333333
B202: 2036 | C202: 4.5 | D202: 2036 | E202: 39.09394884 | F202: 2036 | G202: 359.0149225 | H202: 0.7445870307 | I202: 82893.14566 | J202: 2036 | K202: 0.004332545392 | M202: 2036 | N202: 2.2 | O202: 2036 | P202: 19.11259721 | Q202: 2036 | R202: 369.3527689 | S202: 0.7445870307 | T202: 82893.14566 | U202: 2036 | V202: 0.004456497479 | W202: 2036 | X202: 0.3333333333
B203: 2037 | C203: 4.5 | D203: 2037 | E203: 39.09394884 | F203: 2037 | G203: 355.150062 | H203: 0.7365714167 | I203: 84215.20118 | J203: 2037 | K203: 0.004218646534 | M203: 2037 | N203: 2.2 | O203: 2037 | P203: 19.11259721 | Q203: 2037 | R203: 365.3766195 | S203: 0.7365714167 | T203: 84215.20118 | U203: 2037 | V203: 0.00433932696 | W203: 2037 | X203: 0.3333333333
B204: 2038 | C204: 4.5 | D204: 2038 | E204: 39.09394884 | F204: 2038 | G204: 351.3874632 | H204: 0.7287678908 | I204: 85555.42914 | J204: 2038 | K204: 0.004108591196 | M204: 2038 | N204: 2.2 | O204: 2038 | P204: 19.11259721 | Q204: 2038 | R204: 361.5056766 | S204: 0.7287678908 | T204: 85555.42914 | U204: 2038 | V204: 0.004226110525 | W204: 2038 | X204: 0.3333333333
B205: 2039 | C205: 4.5 | D205: 2039 | E205: 39.09394884 | F205: 2039 | G205: 347.7060602 | H205: 0.7211327627 | I205: 86917.93308 | J205: 2039 | K205: 0.004001839284 | M205: 2039 | N205: 2.2 | O205: 2039 | P205: 19.11259721 | Q205: 2039 | R205: 357.7182675 | S205: 0.7211327627 | T205: 86917.93308 | U205: 2039 | V205: 0.004116292569 | W205: 2039 | X205: 0.3333333333
B206: 2040 | C206: 4.5 | D206: 2040 | E206: 39.09394884 | F206: 2040 | G206: 344.0923322 | H206: 0.7136379905 | I206: 88313.59966 | J206: 2040 | K206: 0.003897685019 | M206: 2040 | N206: 2.2 | O206: 2040 | P206: 19.11259721 | Q206: 2040 | R206: 354.000482 | S206: 0.7136379905 | T206: 88313.59966 | U206: 2040 | V206: 0.00400914708 | W206: 2040 | X206: 0.3333333333
B207: 2041 | C207: 4.5 | D207: 2041 | E207: 39.09394884 | F207: 2041 | G207: 340.5436761 | H207: 0.7062781759 | I207: 89752.45092 | J207: 2041 | K207: 0.003795669782 | M207: 2041 | N207: 2.2 | O207: 2041 | P207: 19.11259721 | Q207: 2041 | R207: 350.3496423 | S207: 0.7062781759 | T207: 89752.45092 | U207: 2041 | V207: 0.003904202309 | W207: 2041 | X207: 0.3333333333
... 2 more rows

Sheet Historical Shipment
B1: =RIGHT(CELL("filename",A1), LEN(CELL("filename",A1)) - FIND("]",CELL("filename",A1))) -> Historical Shipment
B3: Historical Shipment for PC1
C4: millions
B5: 1972 | C5: 0.2966218636
B6: =B5+1 -> 1973 | C6: 0.4203717493
B7: 1974 | C7: 0.6735394545
B8: 1975 | C8: 0.9937777085
B9: 1976 | C9: 1.652202673
B10: 1977 | C10: 2.037622165 | E10: Assumptions:
B11: 1978 | C11: 2.362583697 | E11: Total Microwave Oven Market Share for New homes in 2005 | F11: 0.903
B12: 1979 | C12: 2.651648315 | E12: % of Early Replacement | F12: 0
B13: 1980 | C13: 3.408317464 | E13: Growth in New Housing saturation | F13: 0
B14: 1981 | C14: 4.177267136 | E14: PC2 Shipments | F14: 0.01
B15: 1982 | C15: 3.845693014
B16: 1983 | C16: 5.604641772
B17: 1984 | C17: 8.626595089
B18: 1985 | C18: 10.28068707
B19: 1986 | C19: 11.75529449
B20: =B19+1 -> 1987 | C20: 11.91210732
B21: 1988 | C21: 10.37893126
B22: 1989 | C22: 9.778
B23: 1990 | C23: 7.693
B24: 1991 | C24: 6.623
B25: 1992 | C25: 7.19
B26: 1993 | C26: 7.24
B27: 1994 | C27: 8.574
B28: 1995 | C28: 8.162
B29: 1996 | C29: 8.771
B30: 1997 | C30: 9.142
B31: 1998 | C31: 10.365
B32: 1999 | C32: 11.422
B33: 2000 | C33: 12.644
B34: 2001 | C34: 13.446
B35: 2002 | C35: 13.311
B36: 2003 | C36: 14.274
B37: 2004 | C37: 15.526
B38: 2005 | C38: 13.86
B39: =B38+1 -> 2006 | C39: 13.687
B40: =B39+1 -> 2007 | C40: 11.851
B41: =B40+1 -> 2008 | C41: 11.34
B42: =B41+1 -> 2009 | C42: 9.626
C44: AHAM Shipments 2003-2010
C45: AHAM Shipments, less 5.5% for exports
C46: Estimated Shipments

Sheet Base Case - PC1
B1: =RIGHT(CELL("filename",A1), LEN(CELL("filename",A1)) - FIND("]",CELL("filename",A1))) -> Base Case - PC1
B3: Historical and Forecasted Shipments for PC1
B4: Base Case
Y5: Market Segments | AB5: Annual Shipments | AH5: Standby | AI5: Total Energy (site) | AJ5: Equipment Cost | AL5: Oper Cost
B6: Year | C6: 20 | D6: =C6 - 1 -> 19 | E6: 18 | F6: 17 | G6: 16 | H6: =G6 - 1 -> 15 | I6: 14 | J6: 13 | K6: 12 | L6: 11 | M6: 10 | N6: 9 | O6: =N6 - 1 -> 8 | P6: 7 | Q6: 6 | R6: 5 | S6: 4 | T6: 3 | U6: 2 | V6: 1 | W6: New Shipment | X6: Total Stock | Y6: Retiring Units | Z6: % Early Repl. | AA6: Saturation in New Houses | AB6: Repl. Units | AC6: New Units | AD6: Total Shipment | AE6: Saturation | AF6: Efficiency | AH6: Elec | AI6: Elec | AJ6: per Unit | AK6: Total | AL6: Fuel
B7: Survival | C7: =INDEX(fSurv, age) -> 9.260858524e-09 | D7: =INDEX(fSurv, age) -> 6.111399744e-07 | E7: 1.834800575e-05 | F7: 0.0002809981704 | G7: 0.002434061458 | H7: 0.0130820369 | I7: 0.0473709689 | J7: 0.1242847031 | K7: 0.2517633361 | L7: 0.4160013108 | M7: 0.5875922673 | N7: 0.7379452709 | O7: 0.8511586747 | P7: 0.9254353732 | Q7: 0.9679312737 | R7: 0.9887703122 | S7: 0.9971243669 | T7: 0.9995804014 | U7: 0.9999844034 | V7: 1 | W7: million | X7: million | Y7: million | AB7: million | AC7: million | AD7: million | AF7: EF | AH7: kWh/yr | AI7: quad | AJ7: $ | AK7: billion $ | AL7: billion $
B8: 1972 | C8: 0 | D8: 0 | E8: 0 | F8: 0 | G8: 0 | H8: 0 | I8: 0 | J8: 0 | K8: 0 | L8: 0 | M8: 0 | N8: 0 | O8: 0 | P8: 0 | Q8: 0 | R8: 0 | S8: 0 | T8: 0 | U8: 0 | V8: 0 | W8: =VLOOKUP(year, Shipment, 2) * (1-ComboShare) -> 0.2936556449 | X8: =SUM(C8:W8) -> 0.2936556449 | Y8: 0 | AB8: =Y8 -> 0 | AH8: =AH9 -> 24.56837496
B9: =B8+1 -> 1973 | C9: =D8 * C$7 -> 0 | D9: =E8 * D$7 -> 0 | E9: 0 | F9: 0 | G9: 0 | H9: 0 | I9: 0 | J9: 0 | K9: 0 | L9: 0 | M9: 0 | N9: 0 | O9: 0 | P9: 0 | Q9: 0 | R9: 0 | S9: 0 | T9: 0 | U9: 0 | V9: =W8 * V$7 -> 0.2936556449 | W9: 0.4161680318 | X9: 0.7098236767 | Y9: =X8-SUM(C9:V9) -> 0 | AB9: =Y9 -> 0 | AH9: =AH10 -> 24.56837496
B10: 1974 | C10: 0 | D10: 0 | E10: 0 | F10: 0 | G10: 0 | H10: 0 | I10: 0 | J10: 0 | K10: 0 | L10: 0 | M10: 0 | N10: 0 | O10: 0 | P10: 0 | Q10: 0 | R10: 0 | S10: 0 | T10: 0 | U10: 0.2936510649 | V10: =W9 * V$7 -> 0.4161680318 | W10: 0.66680406 | X10: 1.376623157 | Y10: 4.58002314e-06 | AB10: 4.58002314e-06 | AH10: 24.56837496
B11: 1975 | C11: 0 | D11: 0 | E11: 0 | F11: 0 | G11: 0 | H11: 0 | I11: 0 | J11: 0 | K11: 0 | L11: 0 | M11: 0 | N11: 0 | O11: 0 | P11: 0 | Q11: 0 | R11: 0 | S11: 0 | T11: 0.2935278493 | U11: 0.416161541 | V11: 0.66680406 | W11: 0.9838399314 | X11: 2.360333382 | Y11: 0.0001297063796 | AB11: 0.0001297063796 | AH11: 24.56837496
B12: 1976 | C12: 0 | D12: 0 | E12: 0 | F12: 0 | G12: 0 | H12: 0 | I12: 0 | J12: 0 | K12: 0 | L12: 0 | M12: 0 | N12: 0 | O12: 0 | P12: 0 | Q12: 0 | R12: 0 | S12: 0.2926837709 | T12: 0.4159869202 | U12: 0.6667936601 | V12: 0.9838399314 | W12: 1.635680646 | X12: 3.994984929 | Y12: 0.001029099082 | AB12: 0.001029099082 | AH12: 24.56837496
B13: 1977 | C13: 0 | D13: 0 | E13: 0 | F13: 0 | G13: 0 | H13: 0 | I13: 0 | J13: 0 | K13: 0 | L13: 0 | M13: 0 | N13: 0 | O13: 0 | P13: 0 | Q13: 0 | R13: 0.2893970235 | S13: 0.4147906944 | T13: 0.6665138744 | U13: 0.9838245868 | V13: 1.635680646 | W13: 2.017245943 | X13: 6.007452769 | Y13: 0.004778103373 | AB13: 0.004778103373 | AH13: 24.56837496
B14: 1978 | C14: 0 | D14: 0 | E14: 0 | F14: 0 | G14: 0 | H14: 0 | I14: 0 | J14: 0 | K14: 0 | L14: 0 | M14: 0 | N14: 0 | O14: 0 | P14: 0 | Q14: 0.2801164296 | R14: 0.4101327244 | S14: 0.664597225 | T14: 0.9834117754 | U14: 1.635655135 | V14: 2.017245943 | W14: 2.33895786 | X14: 8.330117092 | Y14: 0.01629353578 | AB14: 0.01629353578 | AH14: 24.56837496
B15: 1979 | C15: 0 | D15: 0 | E15: 0 | F15: 0 | G15: 0 | H15: 0 | I15: 0 | J15: 0 | K15: 0 | L15: 0 | M15: 0 | N15: 0 | O15: 0 | P15: 0.2592296526 | Q15: 0.3969802903 | R15: 0.6571340057 | S15: 0.9805838439 | T15: 1.634968817 | U15: 2.017214481 | V15: 2.33895786 | W15: 2.625131832 | X15: 10.91020078 | Y15: 0.04504814272 | AB15: 0.04504814272 | AH15: 24.56837496
B16: 1980 | C16: 0 | D16: 0 | E16: 0 | F16: 0 | G16: 0 | H16: 0 | I16: 0 | J16: 0 | K16: 0 | L16: 0 | M16: 0 | N16: 0 | O16: 0.2206455675 | P16: 0.3673796032 | Q16: 0.6360605551 | R16: 0.9695721935 | S16: 1.630267246 | T16: 2.01636806 | U16: 2.33892138 | V16: 2.625131832 | W16: 3.374234289 | X16: 14.17858073 | Y16: 0.1058543439 | AB16: 0.1058543439 | AH16: 24.56837496
B17: 1981 | C17: 0 | D17: 0 | E17: 0 | F17: 0 | G17: 0 | H17: 0 | I17: 0 | J17: 0 | K17: 0 | L17: 0 | M17: 0 | N17: 0.1628243531 | O17: 0.3126983361 | P17: 0.5886329372 | Q17: 0.9384792482 | R17: 1.611959854 | S17: 2.010569726 | T17: 2.337939972 | U17: 2.625090889 | V17: 3.374234289 | W17: 4.135494464 | X17: 18.09792407 | Y17: 0.2161511229 | AB17: 0.2161511229 | AH17: 24.56837496
B18: 1982 | C18: 0 | D18: 0 | E18: 0 | F18: 0 | G18: 0 | H18: 0 | I18: 0 | J18: 0 | K18: 0 | L18: 0 | M18: 0.09567433081 | N18: 0.2307542584 | O18: 0.5010200307 | P18: 0.8685018933 | Q18: 1.560266355 | R18: 1.987991655 | S18: 2.331216914 | T18: 2.623989405 | U18: 3.374181663 | V18: =W17 * V$7 -> 4.135494464 | W18: 3.807236084 | X18: 21.51632705 | Y18: 0.3888330998 | AB18: 0.3888330998 | AH18: 24.56837496
B19: 1983 | C19: 0 | D19: 0 | E19: 0 | F19: 0 | G19: 0 | H19: 0 | I19: 0 | J19: 0 | K19: 0 | L19: 0.03980064702 | M19: 0.1355894179 | N19: 0.3697253623 | O19: 0.7392329205 | P19: 1.443925676 | Q19: 1.924239295 | R19: 2.305038076 | S19: 2.616443774 | T19: 3.372765861 | U19: 4.135429965 | V19: 3.807236084 | W19: 5.548595354 | X19: 26.43802243 | Y19: 0.6268999748 | AB19: 0.6268999748 | AH19: 24.56837496
B20: 1984 | C20: 0 | D20: 0 | E20: 0 | F20: 0 | G20: 0 | H20: 0 | I20: 0 | J20: 0 | K20: 0.01002034367 | L20: 0.05640537556 | M20: 0.2172477639 | N20: 0.5455134378 | O20: 1.229009865 | P20: 1.78075911 | Q20: 2.231118441 | R20: 2.587061927 | S20: 3.363067024 | T20: 4.133694744 | U20: 3.807176704 | V20: 5.548595354 | W20: 8.540329138 | X20: 34.04999923 | Y20: 0.9283523426 | AB20: 0.9283523426 | AH20: 24.56837496
B21: 1985 | C21: 0 | D21: 0 | E21: 0 | F21: 0 | G21: 0 | H21: 0 | I21: 0 | J21: 0.001245375439 | K21: 0.01420080552 | L21: 0.09037535454 | M21: 0.3205394777 | N21: 0.9069420177 | O21: 1.515708564 | P21: 2.064755927 | Q21: 2.504098146 | R21: 3.325300831 | S21: 4.121807755 | T21: 3.805579218 | U21: 5.548508815 | V21: 8.540329138 | W21: 10.1778802 | X21: 42.93727163 | Y21: 1.290607803 | AB21: 1.290607803 | AH21: 24.56837496
B22: =B21+1 -> 1986 | C22: 0 | D22: 0 | E22: 0 | F22: 0 | G22: 0 | H22: 0 | I22: 5.899464118e-05 | J22: 0.001764942899 | K22: =L21 * K$7 -> 0.02275320076 | L22: =M21 * L$7 -> 0.1333448429 | M22: =N21 * M$7 -> 0.5329121165 | N22: =O21 * N$7 -> 1.118509967 | O22: =P21 * O$7 -> 1.757434918 | P22: =Q21 * P$7 -> 2.317381002 | Q22: =R21 * Q$7 -> 3.218662669 | R22: =S21 * R$7 -> 4.07552114 | S22: =T21 * S$7 -> 3.794635769 | T22: =U21 * T$7 -> 5.546180669 | U22: =V21 * U$7 -> 8.540195938 | V22: 10.1778802 | W22: 11.63774155 | X22: 52.87497792 | Y22: 1.700035255 | AB22: 1.700035255 | AH22: 24.56837496
B23: 1987 | C23: =D22 * C$7 -> 0 | D23: =E22 * D$7 -> 0 | E23: =F22 * E$7 -> 0 | F23: =G22 * F$7 -> 0 | G23: =H22 * G$7 -> 0 | H23: =I22 * H$7 -> 7.717700729e-07 | I23: =J22 * I$7 -> 8.360705517e-05 | J23: =K22 * J$7 -> 0.002827874802 | K23: 0.0335713425 | L23: 0.221692139 | M23: 0.6572278075 | N23: 1.296890787 | O23: 1.972458943 | P23: 2.978664288 | Q23: 3.944824368 | R23: 3.752023194 | S23: 5.530231888 | T23: 8.536612484 | U23: 10.17772146 | V23: 11.63774155 | W23: 11.79298625 | X23: 62.53555875 | Y23: 2.132405416 | AB23: 2.132405416 | AH23: 24.56837496
B24: 1988 | C24: 0 | D24: =E23 * D$7 -> 0 | E24: 0 | F24: 0 | G24: 1.878535789e-09 | H24: 1.093750581e-06 | I24: 0.0001339591693 | J24: 0.004172404336 | K24: 0.0558139525 | L24: 0.2734076294 | M24: 0.7620429979 | N24: 1.455566749 | O24: 2.535315948 | P24: 3.650680012 | Q24: 3.631700589 | R24: 5.46812911 | S24: 8.512064318 | T24: 10.1734509 | U24: 11.63756004 | V24: 11.79298625 | W24: 10.27514194 | X24: 70.2281679 | Y24: 2.582532796 | AB24: 2.582532796 | AH24: 24.56837496
B25: 1989 | C25: 0 | D25: 0 | E25: 0 | F25: 5.278651198e-13 | G25: 2.662256134e-09 | H25: 1.752458796e-06 | I25: 0.000197650836 | J25: 0.006936820516 | K25: 0.06883401689 | L25: 0.317010886 | M25: 0.8552797662 | N25: 1.870924414 | O25: 3.10730796 | P25: 3.36090419 | Q25: 5.292773174 | R25: 8.416476493 | S25: 10.14419579 | T25: 11.63267693 | U25: 11.79280232 | V25: =W24 * V$7 -> 10.27514194 | W25: 9.68022 | X25: 76.82168412 | Y25: 3.086703784 | AB25: 3.086703784 | AH25: 24.56837496
B26: 1990 | C26: 0 | D26: 0 | E26: 9.685272252e-18 | F26: 7.48089103e-13 | G26: 4.265592413e-09 | H26: 2.585675531e-06 | I26: 0.000328603909 | J26: 0.008555015354 | K26: 0.07981171823 | L26: 0.3557975038 | M26: 1.099340718 | N26: 2.293023215 | O26: 2.860662756 | P26: 4.898119518 | Q26: 8.146570812 | R26: 10.03027964 | S26: 11.59922562 | T26: 11.78785408 | U26: 10.27498169 | V26: 9.68022 | W26: 7.61607 | X26: 80.73084348 | Y26: =X25-SUM(C26:V26) -> 3.706910641 | AB26: =Y26 -> 3.706910641 | AH26: 24.56837496
B27: 1991 | C27: 0 | D27: 5.919057036e-24 | E27: 1.372594316e-17 | F27: 1.198623664e-12 | G27: 6.293693153e-09 | H27: 4.298808464e-06 | I27: 0.0004052593663 | J27: 0.009919375707 | K27: 0.08957676653 | L27: 0.4573271798 | M27: 1.34736271 | N27: 2.111012552 | O27: 4.169076918 | P27: 7.5391248 | Q27: 9.708621348 | R27: 11.46896994 | S27: 11.75395653 | T27: 10.27067032 | U27: 9.680069022 | V27: 7.61607 | W27: 6.55677 | X27: 82.77893703 | Y27: 4.508676449 | AB27: =Y27 - (VLOOKUP(year, demo, iSc+1) *(1-ComboShare)) -> 4.013181449 | AH27: 24.56837496
B28: 1992 | C28: 5.481554981e-32 | D28: 8.388472551e-24 | E28: 2.199235387e-17 | F28: 1.768516261e-12 | G28: 1.0463564e-08 | H28: 5.301617985e-06 | I28: 0.0004698904381 | J28: 0.01113302183 | K28: 0.1151382165 | L28: 0.5605046533 | M28: 1.240414652 | N28: 3.076550595 | O28: 6.416991473 | P28: 8.984701621 | Q28: 11.10117468 | R28: 11.62196327 | S28: 10.24113564 | T28: 9.676007278 | U28: 7.615951215 | V28: 6.55677 | W28: 7.1181 | X28: 84.33701152 | Y28: 5.560025507 | AB28: 5.258768507 | AH28: 24.56837496
B29: 1993 | C29: 7.768445754e-32 | D29: 1.344040658e-23 | E29: 3.244874653e-17 | F29: 2.940242339e-12 | G29: 1.2904464e-08 | H29: 6.147124052e-06 | I29: 0.0005273820311 | J29: 0.01430991905 | K29: 0.1411145214 | L29: 0.5160141211 | M29: 1.80775734 | N29: 4.735388511 | O29: 7.647406724 | P29: 10.27341973 | Q29: 11.24926171 | R29: 10.12613088 | S29: 9.648182631 | T29: 7.612755573 | U29: 6.556667737 | V29: 7.1181 | W29: 7.1676 | X29: 84.61464295 | Y29: 6.889968572 | AB29: 6.365664572 | AH29: 24.56837496
B30: 1994 | C30: 1.244697039e-31 | D30: 1.983072612e-23 | E30: 5.394758334e-17 | F30: 3.626130775e-12 | G30: 1.496247773e-08 | H30: 6.899231193e-06 | I30: 0.0006778747304 | J30: 0.0175383764 | K30: 0.1299134366 | L30: 0.7520294229 | M30: 2.782477672 | N30: 5.643367627 | O30: 8.744310326 | P30: 10.41046471 | Q30: 9.801398764 | R30: 9.539836552 | S30: 7.590864081 | T30: 6.553916568 | U30: 7.117988982 | V30: 7.1676 | W30: 8.48826 | X30: 84.74065131 | Y30: 8.362251642 | AB30: 8.067132642 | AH30: 24.56837496
B31: 1995 | C31: 1.83649549e-31 | D31: 3.29695247e-23 | E31: 6.653226831e-17 | F31: 4.204428869e-12 | G31: 1.679315274e-08 | H31: 8.867982239e-06 | I31: 0.000830809883 | J31: 0.0161462529 | K31: 0.1893334363 | L31: 1.157514359 | M31: 3.315999179 | N31: 6.452822452 | O31: 8.860957345 | P31: 9.070561123 | Q31: 9.233906145 | R31: 7.505621047 | S31: 6.535069908 | T31: 7.115002284 | U31: 7.16748821 | V31: 8.48826 | W31: 8.08038 | X31: 83.18990144 | Y31: 9.63112987 | AB31: 9.05940487 | AH31: 24.56837496
B32: 1996 | C32: 3.053261039e-31 | D32: 4.066052875e-23 | E32: 7.714288504e-17 | F32: 4.718845196e-12 | G32: 2.158521378e-08 | H32: 1.086868555e-05 | I32: 0.000764863644 | J32: 0.02353124993 | K32: 0.2914196765 | L32: 1.379460005 | M32: 3.791628575 | N32: 6.538901569 | O32: 7.720486785 | P32: 8.545383379 | Q32: 7.26492534 | R32: 6.461683114 | S32: 7.094542147 | T32: 7.164480742 | U32: 8.488127612 | V32: 8.08038 | W32: 8.68329 | X32: 81.52901595 | Y32: 10.34417549 | AB32: 9.697012488 | AH32: 24.56837496
B33: 1997 | C33: 3.765514043e-31 | D33: 4.714510079e-23 | E33: 8.658139876e-17 | F33: 6.065405581e-12 | G33: 2.64550486e-08 | H33: 1.000597442e-05 | I33: 0.001114698109 | J33: 0.03621900798 | K33: 0.3472974528 | L33: 1.577322457 | M33: 3.842207998 | N33: 5.697296712 | O33: 7.273477192 | P33: 6.723218893 | Q33: 6.254465166 | R33: 7.014872654 | S33: 7.143878324 | T33: 8.484566006 | U33: 8.080253974 | V33: 8.68329 | W33: 9.05058 | X33: 80.21007057 | Y33: 10.36952538 | AB33: 9.767407381 | AH33: 24.56837496
B34: 1998 | C34: =D33 * C$7 - IF(age<4, 0, $X33*pEarlyRepl*D33/SUM($D33:$T33)) -> 4.366041085e-31 | D34: =E33 * D$7 - IF(age<4, 0, $X33*pEarlyRepl*E33/SUM($D33:$T33)) -> 5.291335382e-23 | E34: =F33 * E$7 - IF(age<4, 0, $X33*pEarlyRepl*F33/SUM($D33:$T33)) -> 1.112880965e-16 | F34: =G33 * F$7 - IF(age<4, 0, $X33*pEarlyRepl*G33/SUM($D33:$T33)) -> 7.433820255e-12 | G34: =H33 * G$7 - IF(age<4, 0, $X33*pEarlyRepl*H33/SUM($D33:$T33)) -> 2.435515668e-08 | H34: =I33 * H$7 - IF(age<4, 0, $X33*pEarlyRepl*I33/SUM($D33:$T33)) -> 1.458252179e-05 | I34: =J33 * I$7 - IF(age<4, 0, $X33*pEarlyRepl*J33/SUM($D33:$T33)) -> 0.001715729501 | J34: =K33 * J$7 - IF(age<4, 0, $X33*pEarlyRepl*K33/SUM($D33:$T33)) -> 0.04316376082 | K34: =L33 * K$7 - IF(age<4, 0, $X33*pEarlyRepl*L33/SUM($D33:$T33)) -> 0.3971119639 | L34: =M33 * L$7 - IF(age<4, 0, $X33*pEarlyRepl*M33/SUM($D33:$T33)) -> 1.598363564 | M34: =N33 * M$7 - IF(age<4, 0, $X33*pEarlyRepl*N33/SUM($D33:$T33)) -> 3.347687492 | N34: =O33 * N$7 - IF(age<4, 0, $X33*pEarlyRepl*O33/SUM($D33:$T33)) -> 5.367428097 | O34: =P33 * O$7 - IF(age<4, 0, $X33*pEarlyRepl*P33/SUM($D33:$T33)) -> 5.722526083 | P34: =Q33 * P$7 - IF(age<4, 0, $X33*pEarlyRepl*Q33/SUM($D33:$T33)) -> 5.788103306 | Q34: =R33 * Q$7 - IF(age<4, 0, $X33*pEarlyRepl*R33/SUM($D33:$T33)) -> 6.789914623 | R34: =S33 * R$7 - IF(age<4, 0, $X33*pEarlyRepl*S33/SUM($D33:$T33)) -> 7.063654801 | S34: =T33 * S$7 - IF(age<4, 0, $X33*pEarlyRepl*T33/SUM($D33:$T33)) -> 8.460167506 | T34: =U33 * T$7 - IF(age<4, 0, $X33*pEarlyRepl*U33/SUM($D33:$T33)) -> 8.07686351 | U34: =V33 * U$7 - IF(age<4, 0, $X33*pEarlyRepl*V33/SUM($D33:$T33)) -> 8.68315457 | V34: =W33 * V$7 - IF(age<4, 0, $X33*pEarlyRepl*W33/SUM($D33:$T33)) -> 9.05058 | W34: 10.26135 | X34: 80.65179961 | Y34: 9.819620955 | AB34: 9.628550955 | AC34: =VLOOKUP(year,HousingStarts, 1+iSc) * AA34 * (1-ComboShare) -> 0 | AH34: 24.56837496
B35: 1999 | C35: 4.900230838e-31 | D35: 6.801260442e-23 | E35: =F34 * E$7 - IF(age<4, 0, $X34*pEarlyRepl*F34/SUM($D34:$T34)) -> 1.363957767e-16 | F35: 6.843754468e-12 | G35: 3.549475426e-08 | H35: 2.244523664e-05 | I35: 0.002044709172 | J35: 0.04935494254 | K35: 0.402409343 | L35: 1.392642385 | M35: 3.153859245 | N35: 4.22291106 | O35: 4.926594339 | P35: 6.283627173 | Q35: 6.837132388 | R35: 8.365162467 | S35: 8.053637414 | T35: 8.679511131 | U35: 9.050438842 | V35: 10.26135 | W35: 11.30778 | X35: 82.98847792 | Y35: 8.971101694 | Z35: 0 | AB35: 8.659053694 | AC35: 0 | AH35: 24.56837496
B36: 2000 | C36: 6.298551074e-31 | D36: 8.335691151e-23 | E36: 1.255692463e-16 | F36: 9.973961006e-12 | G36: 5.463308543e-08 | H36: 2.674896084e-05 | I36: 0.002337991448 | J36: 0.05001332573 | K36: 0.3506162928 | L36: 1.31200958 | M36: 2.481349885 | N36: 3.635556994 | O36: 5.348363777 | P36: 6.327324163 | Q36: 8.096902361 | R36: 7.96319758 | S36: 8.654552041 | T36: 9.04664129 | U36: 10.26118996 | V36: 11.30778 | W36: 12.51756 | X36: 87.35542204 | Y36: 8.150615876 | Z36: 0 | AB36: 7.698383876 | AC36: 0 | AH36: 24.56837496
B37: 2001 | C37: 7.719565645e-31 | D37: 7.674038597e-23 | E37: 1.830022939e-16 | F37: 1.535179705e-11 | G37: 6.510861463e-08 | H37: 3.058569041e-05 | I37: 0.002369179698 | J37: 0.04357624186 | K37: 0.3303159088 | L37: 1.032244804 | M37: 2.136225177 | N37: 3.946799756 | O37: 5.385556849 | P37: 7.493159858 | Q37: 7.707827977 | R37: 8.557364124 | S37: 9.020626469 | T37: 10.25688438 | U37: 11.30760364 | V37: 12.51756 | W37: 13.31154 | X37: 93.04968501 | Y37: 7.617277033 | Z37: 0 | AB37: 7.186429033 | AC37: 0 | AH37: 24.56837496
B38: 2002 | C38: 7.106818576e-31 | D38: 1.118400172e-22 | E38: 2.816748605e-16 | F38: 1.829540159e-11 | G38: 7.444745019e-08 | H38: 3.099369624e-05 | I38: 0.002064248798 | J38: 0.04105321466 | K38: 0.2598813956 | L38: 0.8886724737 | M38: 2.319109017 | N38: 3.974246208 | O38: 6.377868014 | P38: 7.13309666 | Q38: 8.282940356 | R38: 8.91932765 | S38: 10.22738934 | T38: 11.30285898 | U38: 12.51736477 | V38: 13.31154 | W38: 13.17789 | X38: 98.7353334 | Y38: 7.492241611 | Z38: 0 | AB38: 6.855077611 | AC38: 0 | AH38: 24.56837496
B39: 2003 | C39: 1.035734577e-30 | D39: 1.721427671e-22 | E39: 3.356841335e-16 | F39: 2.09195973e-11 | G39: 7.544056147e-08 | H39: 2.700457895e-05 | I39: 0.001944730555 | J39: 0.0322992821 | K39: 0.2237351467 | L39: 0.964752391 | M39: 2.33523634 | N39: 4.70651754 | O39: 6.0713971 | P39: 7.665325999 | Q39: 8.633296173 | R39: 10.11253895 | S39: 11.27035611 | T39: 12.5121125 | U39: 13.31133239 | V39: 13.17789 | W39: 14.13126 | X39: 105.1500217 | Y39: 7.716571673 | Z39: 0 | AB39: 7.153954673 | AC39: 0 | AH39: 24.56837496
B40: 2004 | C40: 1.594189812e-30 | D40: 2.051499928e-22 | E40: 3.838328914e-16 | F40: 2.119865975e-11 | G40: 6.573080482e-08 | H40: 2.544103689e-05 | I40: 0.001530048288 | J40: 0.02780685628 | K40: 0.2428892805 | L40: 0.9714613784 | M40: 2.765513312 | N40: 4.480358778 | O40: 6.524408719 | P40: 7.989557666 | Q40: 9.788242707 | R40: 11.14379353 | S40: 12.47613225 | T40: 13.30574697 | U40: 13.17768447 | V40: 14.13126 | W40: 15.37074 | X40: =SUM(C40:W40) -> 112.3971515 | Y40: =X39-SUM(C40:V40) -> 8.123610254 | Z40: 0 | AB40: 7.540896254 | AC40: 0 | AH40: 24.56837496
B41: 2005 | C41: 1.899865059e-30 | D41: 2.345756234e-22 | E41: 3.889531309e-16 | F41: =G40 * F$7 - IF(age<4, 0, $X40*pEarlyRepl*G40/SUM($D40:$T40)) -> 1.84702359e-11 | G41: 6.192504735e-08 | H41: 2.001614817e-05 | I41: 0.001317237724 | J41: 0.03018742211 | K41: 0.2445783575 | L41: 1.150457163 | M41: 2.632624172 | N41: 4.814656559 | O41: 6.800381314 | P41: 9.058386043 | Q41: 10.78642626 | R41: 12.33602918 | S41: 13.26748452 | T41: 13.17215513 | U41: 14.1310396 | V41: 15.37074 | W41: 13.7214 | X41: 117.517883 | Y41: 8.600668423 | Z41: 0 | AB41: 8.164480782 | AC41: 0 | AH41: 24.56837496
B42: 2006 | C42: 2.172371662e-30 | D42: 2.377048065e-22 | E42: 3.388919944e-16 | F42: 1.740082501e-11 | G42: 4.87205348e-08 | H42: 1.723215252e-05 | I42: 0.001430007434 | J42: 0.03039734855 | K42: 0.2896429333 | L42: 1.095175106 | M42: 2.829054964 | N42: 5.018309231 | O42: 7.710123859 | P42: 9.982140413 | Q42: 11.94042844 | R42: 13.11849481 | S42: 13.13427685 | T42: 14.12511024 | U42: 15.37050027 | V42: 13.7214 | W42: 13.55013 | X42: 121.9166317 | Y42: 9.151381299 | Z42: 0 | AB42: 8.352506859 | AC42: 0 | AG42: =MATCH(AF42, Eff_MWO) ->  | AH42: =AH43 -> 24.56837496
B43: 2007 | C43: 2.201350583e-30 | D43: 2.071104448e-22 | E43: 3.192704373e-16 | F43: 1.369038114e-11 | G43: 4.194411829e-08 | H43: 1.870741003e-05 | I43: 0.001439951853 | J43: 0.03599818598 | K43: 0.2757249384 | L43: 1.176890573 | M43: 2.948719699 | N43: 5.68964944 | O43: 8.496385405 | P43: 11.05009485 | Q43: 12.69780139 | R43: 12.98678302 | S43: 14.0844916 | T43: 15.36405083 | U43: 13.72118599 | V43: 13.55013 | W43: 11.73249 | X43: 123.8118546 | Y43: 9.837267122 | Z43: 0 | AB43: 7.907751541 | AC43: 0 | AD43: =SUM(AB43:AC43) -> 7.907751541 | AE43: =X43 /VLOOKUP($B43,HousingStock,2) -> 1.100748688 | AF43: =VLOOKUP(year, BaseEF_MWO,2) -> 2.828 | AG43: 5 | AH43: =VLOOKUP(year, BaseUEC_MWO,2) -> 24.56837496 | AI43: =MMULT(W43:OFFSET(W43,0,-MIN(year-yr0, ageMax)), AH43:OFFSET(AH43,-MIN(year-yr0, ageMax),0)) * 3412 *10 ^ (-9) -> 0.01037869063 | AJ43: =VLOOKUP(year, BasePrice_MWO, 2) -> 0 | AK43: =W43 * AJ43 * 0.001 -> 0 | AL43: =AI43 * VLOOKUP(year,ElecPrice,1+iSc) -> 0.3344321143
B44: 2008 | C44: 1.918020528e-30 | D44: 1.951189269e-22 | E44: 2.511911919e-16 | F44: 1.17862205e-11 | G44: 4.553498573e-08 | H44: 1.883750328e-05 | I44: 0.001705268949 | J44: 0.03426839211 | K44: 0.2962978969 | L44: 1.22667126 | M44: 3.343194015 | N44: 6.269867429 | O44: 9.405384089 | P44: 11.75099457 | Q44: 12.57031343 | R44: 13.92632716 | S44: 15.31986945 | T44: 13.7154286 | U44: 13.54991866 | V44: 11.73249 | W44: 11.2266 | X44: 124.3693491 | Y44: 10.66910552 | Z44: 0 | AB44: 10.08396602 | AC44: 0 | AD44: 10.08396602 | AE44: =X44 /VLOOKUP($B44,HousingStock,2) -> 1.097447214 | AF44: 2.828 | AG44: 5 | AH44: 24.56837496 | AI44: =MMULT(W44:OFFSET(W44,0,-MIN(year-yr0, ageMax)), AH44:OFFSET(AH44,-MIN(year-yr0, ageMax),0)) * 3412 *10 ^ (-9) -> 0.01042540163 | AJ44: 0 | AK44: 0 | AL44: 0.3515273286
B45: 2009 | C45: 1.806968777e-30 | D45: 1.535129786e-22 | E45: 2.162536414e-16 | F45: 1.279524768e-11 | G45: 4.585164071e-08 | H45: 2.230839132e-05 | I45: 0.001623326937 | J45: 0.03682529616 | K45: 0.3088308487 | L45: 1.390773092 | M45: 3.684125618 | N45: 6.940658709 | O45: 10.00196097 | P45: 11.6330127 | Q45: 13.47972758 | R45: 15.1478321 | S45: 13.67598806 | T45: 13.54423314 | U45: 11.73230701 | V45: 11.2266 | W45: 9.52974 | X45: 122.3342608 | Y45: 11.5648283 | Z45: 0 | AB45: 11.29075769 | AC45: 0 | AD45: 11.29075769 | AE45: 1.072814691 | AF45: 2.828 | AG45: 5 | AH45: 24.56837496 | AI45: =MMULT(W45:OFFSET(W45,0,-MIN(year-yr0, ageMax)), AH45:OFFSET(AH45,-MIN(year-yr0, ageMax),0)) * 3412 *10 ^ (-9) -> 0.01025481226 | AJ45: 0 | AK45: 0 | AL45: 0.3358273957
B46: 2010 | C46: 1.421661976e-30 | D46: 1.321612449e-22 | E46: 2.34767278e-16 | F46: 1.288422715e-11 | G46: 5.42999955e-08 | H46: 2.12364229e-05 | I46: 0.001744449959 | J46: 0.03838295034 | K46: 0.3501456734 | L46: 1.532601086 | M46: 4.078277387 | N46: 7.380899795 | O46: 9.901539671 | P46: 12.47461673 | Q46: 14.66206042 | R46: 13.52241099 | S46: 13.50528489 | T46: 11.72738415 | U46: 11.2264249 | V46: 9.52974 | W46: =AD46 -> 13.88785034 | X46: 123.8193847 | Y46: 12.40272642 | Z46: 0 | AA46: =94.6401782321359% * (1+newhousingsatGR) -> 0.9464017823 | AB46: 13.02189123 | AC46: 0.8659591072 | AD46: =SUM(AB46:AC46) -> 13.88785034 | AE46: 1.074221983 | AF46: 2.828 | AG46: 5 | AH46: 24.56837496 | AI46: =MMULT(W46:OFFSET(W46,0,-MIN(year-yr0, ageMax)), AH46:OFFSET(AH46,-MIN(year-yr0, ageMax),0)) * 3412 *10 ^ (-9) -> 0.01037929612 | AJ46: 240.4880818 | AK46: 3.339862488 | AL46: =AI46 * VLOOKUP(year,ElecPrice,1+iSc) -> 0.3252694768 | AO46: AHAM Saturations
B47: 2011 | C47: 1.223926591e-30 | D47: 1.434756683e-22 | E47: 2.363998738e-16 | F47: 1.525819939e-11 | G47: 5.169075849e-08 | H47: 2.282095874e-05 | I47: 0.001818237547 | J47: 0.04351775107 | K47: 0.3858527624 | L47: 1.696568739 | M47: 4.336959645 | N47: 7.306794375 | O47: 10.61787824 | P47: 13.56878936 | Q47: 13.08876449 | R47: 13.35362476 | S47: 11.6936605 | T47: 11.22171431 | U47: 9.529591369 | V47: 13.88785034 | W47: 14.52179211 | X47: 125.2551999 | Y47: 13.08597698 | Z47: 0 | AA47: 0.9464017823 | AB47: 13.12990922 | AC47: 1.391882887 | AD47: 14.52179211 | AE47: 1.077622933 | AF47: 2.828 | AG47: 5 | AH47: 24.56837496 | AI47: =MMULT(W47:OFFSET(W47,0,-MIN(year-yr0, ageMax)), AH47:OFFSET(AH47,-MIN(year-yr0, ageMax),0)) * 3412 *10 ^ (-9) -> 0.0104996503 | AJ47: 236.0245968 | AK47: 3.427500127 | AL47: 0.3179699791 | AO47: Year | AP47: Million | AQ47: Percent
B48: 2012 | C48: 1.328707865e-30 | D48: 1.444734128e-22 | E48: 2.799575301e-16 | F48: 1.452500856e-11 | G48: 5.554761611e-08 | H48: 2.378625069e-05 | I48: 0.002061478033 | J48: 0.04795559602 | K48: 0.4271338056 | L48: 1.804180897 | M48: 4.293415873 | N48: 7.835413035 | O48: 11.54919277 | P48: 12.11280565 | Q48: 12.92539102 | R48: 11.56234434 | S48: 11.18944478 | T48: 9.525592765 | U48: 13.88763374 | V48: 14.52179211 | W48: 14.90918526 | X48: 126.5935669 | Y48: 13.57081816 | Z48: 0 | AA48: 0.9464017823 | AB48: 13.29315781 | AC48: 1.616027445 | AD48: 14.90918526 | AE48: 1.077961177 | AF48: 2.828 | AG48: 5 | AH48: 24.56837496 | AI48: =MMULT(W48:OFFSET(W48,0,-MIN(year-yr0, ageMax)), AH48:OFFSET(AH48,-MIN(year-yr0, ageMax),0)) * 3412 *10 ^ (-9) -> 0.01061182152 | AJ48: 231.67983 | AK48: 3.454157506 | AL48: =AI48 * VLOOKUP(year,ElecPrice,1+iSc) -> 0.3340831541 | AO48: 1982 | AP48: 21.4 | AQ48: 25.6
B49: 2013 | C49: 1.337947837e-30 | D49: 1.710932378e-22 | E49: 2.665049406e-16 | F49: 1.56087785e-11 | G49: 5.789719604e-08 | H49: 2.69683317e-05 | I49: 0.002271703048 | J49: 0.05308619822 | K49: 0.4542266015 | L49: 1.786066631 | M49: 4.60402811 | N49: 8.522672186 | O49: 10.3099196 | P49: 11.96161406 | Q49: 11.19155469 | R49: 11.06379081 | S49: 9.498200655 | T49: 13.8818065 | U49: 14.52156562 | V49: 14.90918526 | W49: 15.0535529 | X49: 127.8135685 | Y49: 13.8335513 | Z49: 0 | AA49: 0.9464017823 | AB49: 13.37819387 | AC49: 1.675359029 | AD49: 15.0535529 | AE49: 1.076752723 | AF49: 2.828 | AG49: 5 | AH49: 24.56837496 | AI49: =MMULT(W49:OFFSET(W49,0,-MIN(year-yr0, ageMax)), AH49:OFFSET(AH49,-MIN(year-yr0, ageMax),0)) * 3412 *10 ^ (-9) -> 0.01071407307 | AJ49: 227.5222941 | AK49: 3.425018891 | AL49: 0.3414883803 | AO49: 1990 | AP49: 77.2 | AQ49: 82.7
B50: 2014 | C50: 1.584470269e-30 | D50: 1.628718226e-22 | E50: 2.863899576e-16 | F50: 1.626900616e-11 | G50: 6.564257678e-08 | H50: 2.971850311e-05 | I50: 0.002514744645 | J50: 0.05645341832 | K50: 0.4496660935 | L50: 1.915281729 | M50: 5.007856273 | N50: 7.608156415 | O50: 10.18123157 | P50: 10.35706059 | Q50: 10.70898913 | R50: 9.391538827 | S50: 13.84188752 | T50: 14.51547239 | U50: 14.90895272 | V50: 15.0535529 | W50: 15.00395596 | X50: 129.0026001 | Y50: 13.81492444 | Z50: 0 | AA50: 0.9464017823 | AB50: 13.31124016 | AC50: 1.692715801 | AD50: 15.00395596 | AE50: 1.075181556 | AF50: 2.828 | AG50: 5 | AH50: 24.56837496 | AI50: =MMULT(W50:OFFSET(W50,0,-MIN(year-yr0, ageMax)), AH50:OFFSET(AH50,-MIN(year-yr0, ageMax),0)) * 3412 *10 ^ (-9) -> 0.01081372576 | AJ50: 223.5749266 | AK50: 3.354508353 | AL50: 0.3448433463 | AO50: 2001 | AP50: 94.6 | AQ50: 90.7
B51: 2015 | C51: 1.508332906e-30 | D51: 1.750243514e-22 | E51: 2.985038185e-16 | F51: 1.844544398e-11 | G51: 7.2336663e-08 | H51: 3.289798225e-05 | I51: 0.002674253124 | J51: 0.05588661694 | K51: 0.4821977176 | L51: 2.083274774 | M51: 4.470493878 | N51: 7.513191692 | O51: 8.815501964 | P51: 9.910477349 | Q51: 9.090364139 | R51: 13.68644745 | S51: 14.47373121 | T51: 14.90269695 | U51: 15.05331812 | V51: 15.00395596 | W51: 14.76261185 | X51: 130.3068569 | Y51: 13.45835503 | Z51: 0 | AA51: 0.9464017823 | AB51: 13.00279069 | AC51: 1.759821158 | AD51: 14.76261185 | AE51: 1.073999191 | AF51: 2.828 | AG51: 5 | AH51: 24.56837496 | AI51: =MMULT(W51:OFFSET(W51,0,-MIN(year-yr0, ageMax)), AH51:OFFSET(AH51,-MIN(year-yr0, ageMax),0)) * 3412 *10 ^ (-9) -> 0.01092304444 | AJ51: 219.8453837 | AK51: 3.245492065 | AL51: 0.3476583352 | AO51: 2005 | AP51: 97.2 | AQ51: 89.3
B52: 2016 | C52: 1.620875756e-30 | D52: 1.82427616e-22 | E52: 3.384371121e-16 | F52: 2.032646996e-11 | G52: 8.007571065e-08 | H52: 3.498467806e-05 | I52: 0.002647403193 | J52: 0.05992980018 | K52: 0.524492207 | L52: 1.859731313 | M52: 4.414693341 | N52: 6.505357985 | O52: 8.435388767 | P52: 8.41254453 | Q52: 13.24754051 | R52: 14.31119573 | S52: 14.85984226 | T52: 15.04700177 | U52: 15.00372195 | V52: 14.76261185 | W52: 14.22802694 | X52: 131.6747614 | Y52: 12.86012241 | Z52: 0 | AA52: 0.9464017823 | AB52: 12.40033869 | AC52: 1.827688245 | AD52: 14.22802694 | AE52: 1.072772561 | AF52: 2.828 | AG52: 5 | AH52: 24.56837496 | AI52: =MMULT(W52:OFFSET(W52,0,-MIN(year-yr0, ageMax)), AH52:OFFSET(AH52,-MIN(year-yr0, ageMax),0)) * 3412 *10 ^ (-9) -> 0.01103771425 | AJ52: 216.3592083 | AK52: 3.078364645 | AL52: 0.3537478488
B53: 2017 | C53: 1.689436343e-30 | D53: 2.06832448e-22 | E53: 3.729501876e-16 | F53: 2.250112819e-11 | G53: 8.515485648e-08 | H53: 3.463342627e-05 | I53: 0.002838932701 | J53: 0.06518635824 | K53: 0.4682121596 | L53: 1.836518216 | M53: 3.822498048 | N53: 6.224855248 | O53: 7.160410253 | P53: 12.2597426 | Q53: 13.85225391 | R53: 14.69297087 | S53: 15.00373211 | T53: 14.99742641 | U53: 14.7623816 | V53: 14.22802694 | W53: 13.6346658 | X53: 133.0117542 | Y53: 12.29767304 | Z53: 0 | AA53: 0.9464017823 | AB53: 11.78442734 | AC53: 1.850238463 | AD53: 13.6346658 | AE53: 1.071165862 | AF53: 2.828 | AG53: 5 | AH53: 24.56837496 | AI53: =MMULT(W53:OFFSET(W53,0,-MIN(year-yr0, ageMax)), AH53:OFFSET(AH53,-MIN(year-yr0, ageMax),0)) * 3412 *10 ^ (-9) -> 0.01114977471 | AJ53: 213.1067897 | AK53: 2.905639858 | AL53: 0.3591131788
B54: 2018 | C54: 1.91544604e-30 | D54: 2.279247681e-22 | E54: 4.128508293e-16 | F54: 2.392835888e-11 | G54: 8.429988804e-08 | H54: 3.713902235e-05 | I54: 0.003087940949 | J54: 0.05819160925 | K54: 0.4623679529 | L54: 1.590164198 | M54: 3.657676809 | N54: 5.283990884 | O54: 10.43498626 | P54: 12.81936577 | Q54: 14.22178601 | R54: 14.83524488 | S54: 14.95429932 | T54: 14.75618732 | U54: 14.22780503 | V54: 13.6346658 | W54: 13.43016627 | X54: 134.3700233 | Y54: 12.07189716 | Z54: 0 | AA54: 0.9464017823 | AB54: 11.55517953 | AC54: 1.874986737 | AD54: 13.43016627 | AE54: 1.069590108 | AF54: 2.828 | AG54: 5 | AH54: 24.56837496 | AI54: =MMULT(W54:OFFSET(W54,0,-MIN(year-yr0, ageMax)), AH54:OFFSET(AH54,-MIN(year-yr0, ageMax),0)) * 3412 *10 ^ (-9) -> 0.01126361366 | AJ54: 210.0059129 | AK54: 2.820414328 | AL54: 0.3625214243
B55: =B54+1 -> 2019 | C55: 2.110779032e-30 | D55: 2.523096453e-22 | E55: 4.390376661e-16 | F55: 2.368811431e-11 | G55: 9.03986629e-08 | H55: 4.039655745e-05 | I55: 0.002756592912 | J55: 0.05746526377 | K55: 0.4003450435 | L55: 1.521598347 | M55: 3.104832184 | N55: 7.700448762 | O55: 10.91131438 | P55: 13.16134384 | Q55: 14.35949747 | R55: 14.7863672 | S55: 14.71375394 | T55: 14.22183506 | U55: 13.63445315 | V55: 13.43016627 | W55: 13.75164579 | X55: 135.7578638 | Y55: 12.36380528 | Z55: 0 | AA55: 0.9464017823 | AB55: 11.84666393 | AC55: 1.904981863 | AD55: 13.75164579 | AE55: 1.068064679 | AF55: 2.828 | AG55: 5 | AH55: 24.56837496 | AI55: =MMULT(W55:OFFSET(W55,0,-MIN(year-yr0, ageMax)), AH55:OFFSET(AH55,-MIN(year-yr0, ageMax),0)) * 3412 *10 ^ (-9) -> 0.01137998007 | AJ55: 206.969131 | AK55: 2.846166179 | AL55: 0.3651216177
B56: 2020 | C56: 2.336603929e-30 | D56: 2.683134681e-22 | E56: 4.346296575e-16 | F56: 2.540185889e-11 | G56: 9.832770353e-08 | H56: 3.60618502e-05 | I56: 0.002722185223 | J56: 0.04975676488 | K56: 0.383082676 | L56: 1.291614258 | M56: 4.524724147 | N56: 8.051952845 | O56: 11.20239198 | P56: 13.2887869 | Q56: 14.31218724 | R56: 14.54852308 | S56: 14.18093828 | T56: 13.62873215 | U56: 13.42995681 | V56: 13.75164579 | W56: 14.46314167 | X56: 137.1101929 | Y56: 13.11081252 | Z56: 0 | AA56: 0.9464017823 | AB56: 12.55707483 | AC56: 1.906066837 | AD56: 14.46314167 | AE56: 1.066339233 | AF56: 2.828 | AG56: 5 | AH56: 24.56837496 | AI56: =MMULT(W56:OFFSET(W56,0,-MIN(year-yr0, ageMax)), AH56:OFFSET(AH56,-MIN(year-yr0, ageMax),0)) * 3412 *10 ^ (-9) -> 0.01149334542 | AJ56: 203.9470738 | AK56: 2.949715421 | AL56: 0.3706823388
B57: 2021 | C57: 2.484813068e-30 | D57: 2.656195577e-22 | E57: 4.660734528e-16 | F57: 2.76299048e-11 | G57: 8.777675969e-08 | H57: 3.561172754e-05 | I57: 0.002357026162 | J57: 0.04761131666 | K57: 0.3251811146 | L57: 1.882291176 | M57: 4.731265228 | N57: 8.266752186 | O57: 11.31086625 | P57: 13.24500434 | Q57: 14.08197048 | R57: 14.02169077 | S57: 13.58954092 | T57: 13.42432162 | U57: 13.75143131 | V57: 14.46314167 | W57: 15.18663738 | X57: 138.3300985 | Y57: 13.96673184 | Z57: 0 | AA57: 0.9464017823 | AB57: 13.34152209 | AC57: 1.845115287 | AD57: 15.18663738 | AE57: 1.064215955 | AF57: 2.828 | AG57: 5 | AH57: 24.56837496 | AI57: =MMULT(W57:OFFSET(W57,0,-MIN(year-yr0, ageMax)), AH57:OFFSET(AH57,-MIN(year-yr0, ageMax),0)) * 3412 *10 ^ (-9) -> 0.01159563745 | AJ57: 200.9538288 | AK57: 3.051812928 | AL57: 0.3759105532
B58: 2022 | C58: 2.459865145e-30 | D58: 2.84836118e-22 | E58: 5.06953652e-16 | F58: 2.466510888e-11 | G58: 8.668113347e-08 | H58: 3.083470323e-05 | I58: 0.002255394201 | J58: 0.04041503829 | K58: 0.473891906 | L58: 1.968212536 | M58: 4.85747966 | N58: 8.346800259 | O58: 11.27360034 | P58: 13.0319536 | Q58: 13.57203301 | R58: 13.43693462 | S58: 13.38571819 | T58: 13.74566123 | U58: 14.46291609 | V58: 15.18663738 | W58: 15.72673246 | X58: 139.5112726 | Y58: 14.5455583 | Z58: 0 | AA58: 0.9464017823 | AB58: 13.92908431 | AC58: 1.797648146 | AD58: 15.72673246 | AE58: 1.062297865 | AF58: 2.828 | AG58: 5 | AH58: 24.56837496 | AI58: =MMULT(W58:OFFSET(W58,0,-MIN(year-yr0, ageMax)), AH58:OFFSET(AH58,-MIN(year-yr0, ageMax),0)) * 3412 *10 ^ (-9) -> 0.011694661 | AJ58: 198.0172446 | AK58: 3.114164228 | AL58: 0.3800013301
B59: 2023 | C59: 2.637826992e-30 | D59: 3.098196419e-22 | E59: 4.525555595e-16 | F59: 2.435723992e-11 | G59: 7.505356271e-08 | H59: 2.950515017e-05 | I59: 0.001914499522 | J59: 0.05889751485 | K59: 0.4955237543 | L59: 2.020717906 | M59: 4.904515289 | N59: 8.319300057 | O59: 11.09226036 | P59: 12.56003943 | Q59: 13.00602924 | R59: 13.23540076 | S59: 13.70613375 | T59: 14.45684747 | U59: 15.18640052 | V59: 15.72673246 | W59: 15.91368669 | X59: 140.6844293 | Y59: 14.74053005 | Z59: 0 | AA59: 0.9464017823 | AB59: =Y59 - (VLOOKUP(year, demo, iSc+1) *(1-ComboShare)) -> 14.14177904 | AC59: 1.771907655 | AD59: 15.91368669 | AE59: 1.060620166 | AF59: 2.828 | AG59: 5 | AH59: 24.56837496 | AI59: =MMULT(W59:OFFSET(W59,0,-MIN(year-yr0, ageMax)), AH59:OFFSET(AH59,-MIN(year-yr0, ageMax),0)) * 3412 *10 ^ (-9) -> 0.01179303224 | AJ59: 195.1805793 | AK59: 3.106042588 | AL59: 0.3845968389
B60: 2024 | C60: 2.869195872e-30 | D60: 2.76574793e-22 | E60: 4.46906778e-16 | F60: 2.108991381e-11 | G60: 7.181734884e-08 | H60: 2.50455534e-05 | I60: 0.002790032345 | J60: 0.0615860227 | K60: 0.5087426812 | L60: 2.040284789 | M60: 4.888356383 | N60: 8.185481074 | O60: 10.69058652 | P60: 12.03623952 | Q60: 12.81095831 | R60: 13.55221815 | S60: 14.41527488 | T60: 15.18002833 | U60: 15.72648717 | V60: 15.91368669 | W60: 15.84950307 | X60: 141.8622488 | Y60: 14.6716836 | Z60: 0 | AA60: 0.9464017823 | AB60: 14.08614216 | AC60: 1.763360909 | AD60: 15.84950307 | AE60: 1.059121902 | AF60: 2.828 | AG60: 5 | AH60: 24.56837496 | AI60: =MMULT(W60:OFFSET(W60,0,-MIN(year-yr0, ageMax)), AH60:OFFSET(AH60,-MIN(year-yr0, ageMax),0)) * 3412 *10 ^ (-9) -> 0.01189169264 | AJ60: 192.4678432 | AK60: 3.050519672 | AL60: 0.3888202062
B61: 2025 | C61: 2.56132003e-30 | D61: 2.731225968e-22 | E61: 3.869578597e-16 | F61: =G60 * F$7 - IF(age<4, 0, $X60*pEarlyRepl*G60/SUM($D60:$T60)) -> 2.018054363e-11 | G61: 6.096241622e-08 | H61: 3.649930609e-05 | I61: 0.002917389566 | J61: 0.0632289331 | K61: 0.513668905 | L61: =M60 * L$7 - IF(age<4, 0, $X60*pEarlyRepl*M60/SUM($D60:$T60)) -> 2.033562663 | M61: 4.809725383 | N61: 7.889067765 | O61: 10.24474968 | P61: 11.85571399 | Q61: 13.11761577 | R61: 14.25339585 | S61: 15.13637614 | T61: 15.71988836 | U61: 15.9134385 | V61: 15.84950307 | W61: 15.66364223 | X61: 143.0665312 | Y61: 14.4593598 | Z61: 0 | AA61: 0.9464017823 | AB61: 13.88946531 | AC61: 1.774176918 | AD61: 15.66364223 | AE61: 1.057795834 | AF61: 2.828 | AG61: 5 | AH61: 24.56837496 | AI61: =MMULT(W61:OFFSET(W61,0,-MIN(year-yr0, ageMax)), AH61:OFFSET(AH61,-MIN(year-yr0, ageMax),0)) * 3412 *10 ^ (-9) -> 0.01199263274 | AJ61: 189.8818091 | AK61: 2.974240724 | AL61: 0.3918144966
B62: 2026 | C62: 2.529349729e-30 | D62: 2.364854165e-22 | E62: 3.702727305e-16 | F62: 1.713032742e-11 | G62: 8.884155421e-08 | H62: 3.816539796e-05 | I62: 0.002995215824 | J62: 0.06384118736 | K62: 0.5119765201 | L62: 2.000852064 | M62: 4.635555215 | N62: 7.560064578 | O62: 10.0910938 | P62: 12.13950565 | Q62: 13.7963076 | R62: 14.96639936 | S62: 15.67468373 | T62: 15.90676124 | U62: 15.84925587 | V62: 15.66364223 | W62: 15.37644174 | X62: 144.2394143 | Y62: 14.20355867 | Z62: 0 | AA62: 0.9464017823 | AB62: 13.60966757 | AC62: 1.766774173 | AD62: 15.37644174 | AE62: 1.056363407 | AF62: 2.828 | AG62: 5 | AH62: 24.56837496 | AI62: =MMULT(W62:OFFSET(W62,0,-MIN(year-yr0, ageMax)), AH62:OFFSET(AH62,-MIN(year-yr0, ageMax),0)) * 3412 *10 ^ (-9) -> 0.01209094569 | AJ62: 187.4244243 | AK62: 2.881920741 | AL62: 0.3967213992
B63: 2027 | C63: 2.190057985e-30 | D63: 2.26288467e-22 | E63: 3.14307346e-16 | F63: 2.496431419e-11 | G63: 9.289692422e-08 | H63: 3.918352394e-05 | I63: 0.003024218901 | J63: 0.06363084981 | K63: 0.5037411906 | L63: 1.928397045 | M63: 4.442235486 | N63: 7.446674951 | O63: 10.33264554 | P63: 12.76759107 | Q63: 14.48644599 | R63: 15.49866193 | S63: 15.86101923 | T63: 15.84260555 | U63: 15.66339793 | V63: 15.37644174 | W63: 15.13868619 | X63: 145.3552382 | Y63: 14.02286226 | Z63: 0 | AA63: 0.9464017823 | AB63: 13.40121849 | AC63: 1.737467697 | AD63: 15.13868619 | AE63: 1.054818898 | AF63: 2.828 | AG63: 5 | AH63: 24.56837496 | AI63: =MMULT(W63:OFFSET(W63,0,-MIN(year-yr0, ageMax)), AH63:OFFSET(AH63,-MIN(year-yr0, ageMax),0)) * 3412 *10 ^ (-9) -> 0.01218447968 | AJ63: 185.0834471 | AK63: 2.801920223 | AL63: 0.4019380124
B64: 2028 | C64: 2.095625479e-30 | D64: 1.920857834e-22 | E64: 4.580453802e-16 | F64: 2.610386575e-11 | G64: 9.537510541e-08 | H64: 3.956294327e-05 | I64: 0.003014255008 | J64: 0.06260732433 | K64: 0.4854996735 | L64: 1.847975785 | M64: 4.375608618 | N64: 7.624926912 | O64: 10.86724589 | P64: 13.40626955 | Q64: 15.00163958 | R64: 15.68290494 | S64: 15.79704803 | T64: 15.65682559 | U64: 15.37620192 | V64: 15.13868619 | W64: 15.07884754 | X64: 146.4053414 | Y64: 14.02874427 | Z64: 0 | AA64: 0.9464017823 | AB64: 13.3861917 | AC64: 1.692655837 | AD64: 15.07884754 | AE64: 1.053226586 | AF64: 2.828 | AG64: 5 | AH64: 24.56837496 | AI64: =MMULT(W64:OFFSET(W64,0,-MIN(year-yr0, ageMax)), AH64:OFFSET(AH64,-MIN(year-yr0, ageMax),0)) * 3412 *10 ^ (-9) -> 0.0122725078 | AJ64: 182.8318857 | AK64: 2.756894129 | AL64: 0.4068411445
B65: 2029 | C65: 1.778879265e-30 | D65: 2.79929842e-22 | E65: 4.789538787e-16 | F65: 2.680023013e-11 | G65: 9.629863538e-08 | H65: 3.943259525e-05 | I65: 0.002965769614 | J65: 0.06034018278 | K65: 0.4652525487 | L65: 1.820258921 | M65: 4.480348092 | N65: 8.019432715 | O65: 11.41086263 | P65: 13.88304792 | Q65: 15.17997415 | R65: 15.61965211 | S65: 15.6118023 | T65: 15.36975009 | U65: 15.13845007 | V65: 15.07884754 | W65: 15.2989262 | X65: 147.4399508 | Y65: 14.26431688 | Z65: 0 | AA65: 0.9464017823 | AB65: 13.63480855 | AC65: 1.66411765 | AD65: 15.2989262 | AE65: 1.051811093 | AF65: 2.828 | AG65: 5 | AH65: 24.56837496 | AI65: =MMULT(W65:OFFSET(W65,0,-MIN(year-yr0, ageMax)), AH65:OFFSET(AH65,-MIN(year-yr0, ageMax),0)) * 3412 *10 ^ (-9) -> 0.01235924038 | AJ65: 180.6360041 | AK65: 2.763536896 | AL65: 0.4147482763
B66: 2030 | C66: 2.592390663e-30 | D66: 2.927078612e-22 | E66: 4.917307764e-16 | F66: 2.705974036e-11 | G66: 9.598136029e-08 | H66: 3.879830754e-05 | I66: 0.002858372922 | J66: 0.05782377489 | K66: 0.4582744584 | L66: 1.863830679 | M66: 4.712156651 | N66: 8.420592112 | O66: 11.81667667 | P66: 14.04808504 | Q66: 15.11874976 | R66: 15.43648664 | S66: 15.32555232 | T66: 15.132098 | U66: 15.07861236 | V66: 15.2989262 | W66: 15.72944331 | X66: 148.5002052 | Y66: 14.66918883 | Z66: 0 | AA66: 0.9464017823 | AB66: 14.06557395 | AC66: =VLOOKUP(year,HousingStarts, 1+iSc) * AA66 * (1-ComboShare) -> 1.663869362 | AD66: 15.72944331 | AE66: 1.050632472 | AF66: 2.828 | AG66: 5 | AH66: 24.56837496 | AI66: =MMULT(W66:OFFSET(W66,0,-MIN(year-yr0, ageMax)), AH66:OFFSET(AH66,-MIN(year-yr0, ageMax),0)) * 3412 *10 ^ (-9) -> 0.0124481277 | AJ66: 178.4699825 | AK66: 2.807233473 | AL66: 0.4217858054
B67: 2031 | C67: 2.710726091e-30 | D67: 3.005163341e-22 | E67: 4.964922716e-16 | F67: 2.697058664e-11 | G67: 9.443746501e-08 | H67: 3.739334005e-05 | I67: 0.002739168242 | J67: 0.05695650501 | K67: 0.4692442296 | L67: 1.960263343 | M67: 4.947874811 | N67: 8.720060666 | O67: 11.95714945 | P67: 13.99142583 | Q67: 14.94145817 | R67: 15.15345116 | S67: 15.08858364 | T67: 15.07228539 | U67: 15.29868759 | V67: 15.72944331 | W67: 16.12118568 | X67: 149.5108464 | Y67: 15.1105445 | Z67: 0 | AA67: 0.9464017823 | AB67: 14.47968383 | AC67: 1.641501846 | AD67: 16.12118568 | AE67: 1.049329599 | AF67: 2.828 | AG67: 5 | AH67: 24.56837496 | AI67: =MMULT(W67:OFFSET(W67,0,-MIN(year-yr0, ageMax)), AH67:OFFSET(AH67,-MIN(year-yr0, ageMax),0)) * 3412 *10 ^ (-9) -> 0.01253285712 | AJ67: 176.3388732 | AK67: 2.842791717 | AL67: 0.4291290358
B68: 2032 | C68: 2.783039254e-30 | D68: 3.034262742e-22 | E68: 4.948564786e-16 | F68: 2.653675489e-11 | G68: 9.101768781e-08 | H68: 3.583390003e-05 | I68: 0.002698084828 | J68: 0.05831987977 | K68: 0.4935224389 | L68: 2.058322407 | M68: 5.123840218 | N68: 8.823721888 | O68: 11.90892346 | P68: 13.82735392 | Q68: 14.66749928 | R68: 14.91914356 | S68: 15.02894303 | T68: 15.29226828 | U68: 15.72919798 | V68: 16.12118568 | W68: 16.40753324 | X68: 150.4625093 | Y68: 15.45587039 | Z68: 0 | AA68: 0.9464017823 | AB68: 14.80438307 | AC68: 1.603150173 | AD68: 16.40753324 | AE68: 1.047962954 | AF68: 2.828 | AG68: 5 | AH68: 24.56837496 | AI68: =MMULT(W68:OFFSET(W68,0,-MIN(year-yr0, ageMax)), AH68:OFFSET(AH68,-MIN(year-yr0, ageMax),0)) * 3412 *10 ^ (-9) -> 0.01261263602 | AJ68: 174.2513474 | AK68: 2.859034775 | AL68: 0.4357122543
B69: 2033 | C69: 2.809987798e-30 | D69: 3.024265757e-22 | E69: 4.868965312e-16 | F69: 2.557580375e-11 | G69: 8.722191495e-08 | H69: 3.529644528e-05 | I69: 0.002762669211 | J69: 0.06133728981 | K69: 0.5182101159 | L69: 2.131524247 | M69: 5.18475075 | N69: 8.788133752 | O69: 11.76927224 | P69: 13.57382267 | Q69: 14.44070562 | R69: 14.86017269 | S69: 15.24829333 | T69: 15.72259803 | U69: 16.12093424 | V69: 16.40753324 | W69: 16.5926907 | X69: 151.422777 | Y69: 15.632423 | Z69: 0 | AA69: 0.9464017823 | AB69: 15.00334631 | AC69: 1.589344395 | AD69: 16.5926907 | AE69: 1.046808842 | AF69: 2.828 | AG69: 5 | AH69: 24.56837496 | AI69: =MMULT(W69:OFFSET(W69,0,-MIN(year-yr0, ageMax)), AH69:OFFSET(AH69,-MIN(year-yr0, ageMax),0)) * 3412 *10 ^ (-9) -> 0.0126931273 | AJ69: 172.213138 | AK69: 2.857479334 | AL69: 0.4403803668
B70: =B69+1 -> 2034 | C70: 2.800729731e-30 | D70: 2.975619336e-22 | E70: 4.692649942e-16 | F70: 2.450919852e-11 | G70: 8.591371707e-08 | H70: 3.614134057e-05 | I70: 0.002905606848 | J70: 0.06440559041 | K70: 0.5366396553 | L70: 2.156863108 | M70: 5.163839436 | N70: 8.68507879 | O70: 11.55347691 | P70: 13.3639398 | Q70: 14.38362588 | R70: 15.07705976 | S70: 15.67738561 | T70: 16.11416992 | U70: 16.40727734 | V70: 16.5926907 | W70: =AD70 -> 16.61814067 | X70: =SUM(C70:W70) -> 152.397535 | Y70: =X69-SUM(C70:V70) -> 15.64338264 | Z70: 0 | AA70: 0.9464017823 | AB70: 15.02721753 | AC70: 1.590923135 | AD70: =SUM(AB70:AC70) -> 16.61814067 | AE70: =X70 /VLOOKUP($B70,HousingStock,2) -> 1.045783352 | AF70: 2.828 | AG70: 5 | AH70: 24.56837496 | AI70: =MMULT(W70:OFFSET(W70,0,-MIN(year-yr0, ageMax)), AH70:OFFSET(AH70,-MIN(year-yr0, ageMax),0)) * 3412 *10 ^ (-9) -> 0.01277482657 | AJ70: 170.2336475 | AK70: =W70 * AJ70 * 0.001 -> 2.8289667 | AL70: =AI70 * VLOOKUP(year,ElecPrice,1+iSc) -> 0.4462963068
B71: 2035 | C71: 2.75567897e-30 | D71: 2.867865966e-22 | E71: 4.496949154e-16 | F71: 2.414159731e-11 | G71: 8.797024413e-08 | H71: 3.801125601e-05 | I71: 0.003050955221 | J71: 0.06669610025 | K71: 0.5430190515 | L71: 2.148163974 | M71: 5.103285138 | N71: 8.525833651 | O71: 11.37483329 | P71: 13.31111619 | Q71: 14.59355765 | R71: 15.50133346 | S71: 16.06783148 | T71: 16.40039287 | U71: 16.59243191 | V71: 16.61814067 | W71: 16.51340855 | X71: 153.363133 | Y71: 15.54781051 | Z71: 0 | AA71: 0.9464017823 | AB71: 14.92453918 | AC71: 1.588869367 | AD71: 16.51340855 | AE71: 1.04474956 | AF71: 2.828 | AG71: 5 | AH71: 24.56837496 | AI71: =MMULT(W71:OFFSET(W71,0,-MIN(year-yr0, ageMax)), AH71:OFFSET(AH71,-MIN(year-yr0, ageMax),0)) * 3412 *10 ^ (-9) -> 0.0128557577 | AJ71: 168.3204961 | AK71: 2.779545119 | AL71: 0.4519388604
B72: 2036 | C72: 2.655890098e-30 | D72: 2.748265391e-22 | E72: 4.429501662e-16 | F72: 2.471947765e-11 | G72: 9.252173324e-08 | H72: 3.991270879e-05 | I72: 0.003159458891 | J72: 0.06748896161 | K72: 0.5408289286 | L72: 2.122973307 | M72: 5.009713925 | N72: 8.394004433 | O72: 11.32987201 | P72: 13.50539447 | Q72: 15.00422544 | R72: 15.88739475 | S72: 16.35323136 | T72: 16.58546975 | U72: 16.61788148 | V72: 16.51340855 | W72: 16.38674335 | X72: 154.3218302 | Y72: 15.4280462 | Z72: 0 | AA72: 0.9464017823 | AB72: 14.79787398 | AC72: 1.588869367 | AD72: 16.38674335 | AE72: 1.043748716 | AF72: 2.828 | AG72: 5 | AH72: 24.56837496 | AI72: =MMULT(W72:OFFSET(W72,0,-MIN(year-yr0, ageMax)), AH72:OFFSET(AH72,-MIN(year-yr0, ageMax),0)) * 3412 *10 ^ (-9) -> 0.01293611344 | AJ72: 166.4709907 | AK72: 2.7279174 | AL72: 0.4573839573
B73: 2037 | C73: 2.545129697e-30 | D73: 2.707045533e-22 | E73: 4.53553118e-16 | F73: 2.599843777e-11 | G73: 9.714998615e-08 | H73: 4.13321578e-05 | I73: 0.003197017502 | J73: 0.06721676283 | K73: 0.5344868421 | L73: 2.08404756 | M73: 4.932252096 | N73: 8.36082547 | O73: 11.49523366 | P73: 13.88544097 | Q73: 15.37790623 | R73: 16.16958968 | S73: 16.53777603 | T73: 16.61090864 | U73: 16.513151 | V73: 16.38674335 | W73: 16.32171059 | X73: 155.2805273 | Y73: 15.36301345 | Z73: 0 | AA73: 0.9464017823 | AB73: 14.73284123 | AC73: 1.588869367 | AD73: 16.32171059 | AE73: 1.04276211 | AF73: 2.828 | AG73: 5 | AH73: 24.56837496 | AI73: =MMULT(W73:OFFSET(W73,0,-MIN(year-yr0, ageMax)), AH73:OFFSET(AH73,-MIN(year-yr0, ageMax),0)) * 3412 *10 ^ (-9) -> 0.01301647516 | AJ73: 164.6789004 | AK73: 2.687841353 | AL73: 0.4628770101
B74: 2038 | C74: 2.50695657e-30 | D74: 2.77184441e-22 | E74: 4.770194855e-16 | F74: 2.729896837e-11 | G74: 1.006050123e-07 | H74: 4.182350094e-05 | I74: 0.003184123182 | J74: 0.06642853849 | K74: 0.5246867662 | L74: 2.051823337 | M74: 4.912756395 | N74: 8.482853318 | O74: 11.81871354 | P74: 14.2312584 | Q74: 15.65105153 | R74: 16.35206196 | S74: 16.56314176 | T74: 16.5062221 | U74: 16.38648777 | V74: 16.32171059 | W74: 16.36680242 | X74: 156.2392245 | Y74: 15.40810527 | Z74: 0 | AA74: 0.9464017823 | AB74: 14.77793305 | AC74: 1.588869367 | AD74: 16.36680242 | AE74: 1.041789442 | AF74: 2.828 | AG74: 5 | AH74: 24.56837496 | AI74: =MMULT(W74:OFFSET(W74,0,-MIN(year-yr0, ageMax)), AH74:OFFSET(AH74,-MIN(year-yr0, ageMax),0)) * 3412 *10 ^ (-9) -> 0.01309684119 | AJ74: 162.9342277 | AK74: 2.666712311 | AL74: 0.468418332
B75: 2039 | C75: 2.566965893e-30 | D75: 2.915256762e-22 | E75: 5.008816285e-16 | F75: 2.826982439e-11 | G75: 1.018009717e-07 | H75: 4.165481697e-05 | I75: 0.003146784231 | J75: 0.06521053897 | K75: 0.5165738884 | L75: 2.0437131 | M75: 4.984459014 | N75: 8.721563763 | O75: 12.11305904 | P75: 14.48403671 | Q75: 15.82767216 | R75: 16.37714285 | S75: 16.45875626 | T75: 16.37961202 | U75: 16.32145603 | V75: 16.36680242 | W75: 16.53467527 | X75: 157.1979216 | Y75: 15.57597813 | Z75: 0 | AA75: 0.9464017823 | AB75: 14.94580591 | AC75: 1.588869367 | AD75: 16.53467527 | AE75: 1.040830417 | AF75: 2.828 | AG75: 5 | AH75: 24.56837496 | AI75: =MMULT(W75:OFFSET(W75,0,-MIN(year-yr0, ageMax)), AH75:OFFSET(AH75,-MIN(year-yr0, ageMax),0)) * 3412 *10 ^ (-9) -> 0.01317720932 | AJ75: 161.2272045 | AK75: 2.665839471 | AL75: 0.4740082184
B76: 2040 | C76: 2.699778043e-30 | D76: 3.061087856e-22 | E76: 5.186949004e-16 | F76: 2.860588679e-11 | G76: 1.013903845e-07 | H76: 4.116634744e-05 | I76: 0.003089086414 | J76: 0.06420223236 | K76: 0.514532028 | L76: 2.073541483 | M76: 5.124723426 | N76: 8.938774631 | O76: 12.32821349 | P76: 14.6474877 | Q76: 15.85194874 | R76: 16.27392957 | S76: 16.33251027 | T76: 16.31460757 | U76: 16.36654715 | V76: 16.53467527 | W76: 16.78779484 | X76: 158.1566188 | Y76: 15.8290977 | Z76: 0 | AA76: 0.9464017823 | AB76: 15.19892548 | AC76: 1.588869367 | AD76: 16.78779484 | AE76: 1.039884751 | AF76: 2.828 | AG76: 5 | AH76: 24.56837496 | AI76: =MMULT(W76:OFFSET(W76,0,-MIN(year-yr0, ageMax)), AH76:OFFSET(AH76,-MIN(year-yr0, ageMax),0)) * 3412 *10 ^ (-9) -> 0.01325757919 | AJ76: 159.5515614 | AK76: 2.678518879 | AL76: 0.4796470319
B77: 2041 | C77: 2.834830156e-30 | D77: 3.169951881e-22 | E77: 5.248609752e-16 | F77: 2.849051255e-11 | G77: 1.002014197e-07 | H77: 4.041154246e-05 | I77: 0.003041321953 | J77: 0.06394846034 | K77: 0.5220417213 | L77: 2.131891662 | M77: 5.252354852 | N77: 9.097546846 | O77: 12.46733622 | P77: 14.6699541 | Q77: 15.75204538 | R77: 16.14910128 | S77: 16.26769274 | T77: 16.35967977 | U77: 16.53441739 | V77: 16.78779484 | W77: 17.05642881 | X77: 159.1153159 | Y77: 16.09773167 | Z77: 0 | AA77: 0.9464017823 | AB77: 15.46755945 | AC77: 1.588869367 | AD77: 17.05642881 | AE77: 1.038952167 | AF77: 2.828 | AG77: 5 | AH77: 24.56837496 | AI77: =MMULT(W77:OFFSET(W77,0,-MIN(year-yr0, ageMax)), AH77:OFFSET(AH77,-MIN(year-yr0, ageMax),0)) * 3412 *10 ^ (-9) -> 0.01333794824 | AJ77: 157.9060913 | AK77: 2.693314006 | AL77: 0.4853350587
B78: 2042 | C78: 2.93564759e-30 | D78: 3.20763523e-22 | E78: 5.227440881e-16 | F78: 2.81564156e-11 | G78: 9.836417796e-08 | H78: 3.978668602e-05 | I78: 0.003029300526 | J78: 0.06488180036 | K78: 0.5367321571 | L78: 2.184986503 | M78: 5.345648178 | N78: 9.200211801 | O78: 12.48645869 | P78: 14.57749999 | Q78: 15.63122017 | R78: 16.08501163 | S78: 16.31263533 | T78: 16.52747957 | U78: 16.78753301 | V78: =W77 * V$7 - IF(age<4, 0, $X77*pEarlyRepl*W77/SUM($D77:$T77)) -> 17.05642881 | W78: =AD78 -> 17.27421621 | X78: =SUM(C78:W78) -> 160.074013 | Y78: =X77-SUM(C78:V78) -> 16.31551907 | Z78: 0 | AA78: =94.6401782321359% * (1+newhousingsatGR) -> 0.9464017823 | AB78: 15.68534684 | AC78: 1.588869367 | AD78: =SUM(AB78:AC78) -> 17.27421621 | AE78: =X78 /VLOOKUP($B78,HousingStock,2) -> 1.038032394 | AF78: 2.828 | AG78: =MATCH(AF78, Eff_MWO) -> 5 | AH78: 24.56837496 | AI78: =MMULT(W78:OFFSET(W78,0,-MIN(year-yr0, ageMax)), AH78:OFFSET(AH78,-MIN(year-yr0, ageMax),0)) * 3412 *10 ^ (-9) -> 0.01341831429 | AJ78: 156.2935932 | AK78: =W78 * AJ78 * 0.001 -> 2.699849322 | AL78: =AI78 * VLOOKUP(year,ElecPrice,1+iSc) -> 0.4910725981
B79: 2043 | C79: 2.970545606e-30 | D79: 3.194698086e-22 | E79: 5.166140753e-16 | F79: 2.764015404e-11 | G79: 9.684323899e-08 | H79: 3.962942128e-05 | I79: 0.003073513747 | J79: 0.0667075968 | K79: 0.5500994913 | L79: 2.223796649 | M79: 5.405973312 | N79: 9.214323139 | O79: 12.40776557 | P79: 14.46568407 | Q79: 15.5691858 | R79: 16.12944953 | S79: 16.4799526 | T79: 16.78048899 | U79: 17.05616279 | V79: =W78 * V$7 - IF(age<4, 0, $X78*pEarlyRepl*W78/SUM($D78:$T78)) -> 17.27421621 | W79: =AD79 -> 17.4057912 | X79: =SUM(C79:W79) -> 161.0327102 | Y79: =X78-SUM(C79:V79) -> 16.44709405 | Z79: 0 | AA79: 0.9464017823 | AB79: 15.81692183 | AC79: 1.588869367 | AD79: =SUM(AB79:AC79) -> 17.4057912 | AE79: =X79 /VLOOKUP($B79,HousingStock,2) -> 1.037125172 | AF79: 2.828 | AG79: =MATCH(AF79, Eff_MWO) -> 5 | AH79: 24.56837496 | AI79: =MMULT(W79:OFFSET(W79,0,-MIN(year-yr0, ageMax)), AH79:OFFSET(AH79,-MIN(year-yr0, ageMax),0)) * 3412 *10 ^ (-9) -> 0.01349867559 | AJ79: 154.7184143 | AK79: =W79 * AJ79 * 0.001 -> 2.692996413 | AL79: =AI79 * VLOOKUP(year,ElecPrice,1+iSc) -> 0.4968599669
B80: 2044 | C80: 2.9585647e-30 | D80: 3.157235128e-22 | E80: 5.071417052e-16 | F80: 2.721277298e-11 | G80: 9.646044694e-08 | H80: 4.020782026e-05 | I80: 0.003160003494 | J80: 0.06836895197 | K80: 0.5598704631 | L80: 2.248891984 | M80: 5.414265025 | N80: 9.156251928 | O80: 12.31259248 | P80: 14.40827527 | Q80: 15.61219863 | R80: 16.29488788 | S80: 16.73223446 | T80: 17.04900605 | U80: 17.27394679 | V80: 17.4057912 | W80: 17.45162592 | X80: 161.9914073 | Y80: 16.49292878 | Z80: 0 | AA80: 0.9464017823 | AB80: 15.86275655 | AC80: 1.588869367 | AD80: 17.45162592 | AE80: 1.043299625 | AF80: 2.828 | AG80: 5 | AH80: 24.56837496 | AI80: =MMULT(W80:OFFSET(W80,0,-MIN(year-yr0, ageMax)), AH80:OFFSET(AH80,-MIN(year-yr0, ageMax),0)) * 3412 *10 ^ (-9) -> 0.01357903328 | AJ80: 154.7184143 | AK80: 2.700087889 | AL80: 0.5026975903
B81: 2045 | C81: 2.923870785e-30 | D81: 3.099345688e-22 | E81: 4.993001149e-16 | F81: 2.710520911e-11 | G81: 9.786830562e-08 | H81: 4.133928232e-05 | I81: 0.003238703498 | J81: 0.0695833343 | K81: 0.5661885483 | L81: 2.252341347 | M81: 5.38014283 | N81: 9.086019395 | O81: 12.26372848 | P81: 14.44808086 | Q81: 15.77233158 | R81: 16.54433669 | S81: 16.99997936 | T81: 17.26669867 | U81: 17.40551973 | V81: 17.45162592 | W81: 17.44024759 | X81: 162.9501045 | Y81: 16.48155045 | Z81: 0 | AA81: 0.9464017823 | AB81: 15.85137822 | AC81: 1.588869367 | AD81: 17.44024759 | AE81: 1.049474078 | AF81: 2.828 | AG81: 5 | AH81: 24.56837496 | AI81: =MMULT(W81:OFFSET(W81,0,-MIN(year-yr0, ageMax)), AH81:OFFSET(AH81,-MIN(year-yr0, ageMax),0)) * 3412 *10 ^ (-9) -> 0.01365939157 | AJ81: 154.7184143 | AK81: 2.698327452 | AL81: 0.5085860114
B82: 2046 | C82: 2.870260193e-30 | D82: 3.051422595e-22 | E82: 4.973265325e-16 | F82: 2.750081482e-11 | G82: 1.006223538e-07 | H82: 4.236883868e-05 | I82: 0.003296229965 | J82: 0.07036857564 | K82: 0.5670569716 | L82: 2.23814647 | M82: 5.338874737 | N82: 9.049960438 | O82: 12.29760936 | P82: 14.59627356 | Q82: 16.01378088 | R82: 16.8090749 | S82: 17.21704598 | T82: 17.3982164 | U82: 17.45135373 | V82: 17.44024759 | W82: 17.41745333 | X82: 163.9088016 | Y82: 16.45875618 | Z82: 0 | AA82: 0.9464017823 | AB82: 15.82858396 | AC82: 1.588869367 | AD82: 17.41745333 | AE82: 1.055648531 | AF82: 2.828 | AG82: 5 | AH82: 24.56837496 | AI82: =MMULT(W82:OFFSET(W82,0,-MIN(year-yr0, ageMax)), AH82:OFFSET(AH82,-MIN(year-yr0, ageMax),0)) * 3412 *10 ^ (-9) -> 0.01373975165 | AJ82: 154.7184143 | AK82: 2.694800759 | AL82: 0.5145256658
B83: 2047 | C83: 2.825879295e-30 | D83: 3.039361243e-22 | E83: 5.045851084e-16 | F83: 2.827469732e-11 | G83: 1.031283572e-07 | H83: 4.312140205e-05 | I83: 0.003333427608 | J83: 0.07047650737 | K83: 0.5634832218 | L83: 2.220978888 | M83: 5.317686772 | N83: 9.07496267 | O83: 12.42374486 | P83: 14.81971929 | Q83: 16.27002928 | R83: 17.02370393 | S83: 17.34818551 | T83: 17.44403117 | U83: 17.43997558 | V83: 17.41745333 | W83: 17.42969111 | X83: 164.8674988 | Y83: 16.47099397 | Z83: 0 | AA83: 0.9464017823 | AB83: 15.84082174 | AC83: 1.588869367 | AD83: 17.42969111 | AE83: 1.061822985 | AF83: 2.828 | AG83: 5 | AH83: 24.56837496 | AI83: =MMULT(W83:OFFSET(W83,0,-MIN(year-yr0, ageMax)), AH83:OFFSET(AH83,-MIN(year-yr0, ageMax),0)) * 3412 *10 ^ (-9) -> 0.01382011346 | AJ83: 154.7184143 | AK83: 2.69669417 | AL83: 0.5205169469
B84: 2048 | C84: 2.814709448e-30 | D84: 3.083721302e-22 | E84: 5.18784309e-16 | F84: 2.897887971e-11 | G84: 1.049601427e-07 | H84: 4.360802299e-05 | I84: 0.003338540439 | J84: 0.07003234494 | K84: 0.5591610543 | L84: 2.212164668 | M84: 5.332377891 | N84: 9.168043767 | O84: 12.61393263 | P84: 15.05686062 | Q84: 16.47777543 | R84: 17.1533708 | S84: 17.39386854 | T84: 17.43265779 | U84: 17.41718167 | V84: 17.42969111 | W84: 17.50569534 | X84: 165.8261959 | Y84: 16.5469982 | Z84: 0 | AA84: 0.9464017823 | AB84: 15.91682598 | AC84: 1.588869367 | AD84: 17.50569534 | AE84: 1.067997438 | AF84: 2.828 | AG84: 5 | AH84: 24.56837496 | AI84: =MMULT(W84:OFFSET(W84,0,-MIN(year-yr0, ageMax)), AH84:OFFSET(AH84,-MIN(year-yr0, ageMax),0)) * 3412 *10 ^ (-9) -> 0.01390047798 | AJ84: 154.7184143 | AK84: 2.708453424 | AL84: 0.52656029
B85: 2049 | C85: 2.855790671e-30 | D85: 3.170498293e-22 | E85: 5.317046514e-16 | F85: 2.949360808e-11 | G85: 1.06144608e-07 | H85: 4.367490923e-05 | I85: 0.003317500034 | J85: 0.06949516564 | K85: 0.5569419567 | L85: 2.218276192 | M85: 5.387071624 | N85: 9.30839193 | O85: 12.81577753 | P85: 15.24911625 | Q85: 16.60328405 | R85: 17.19854082 | S85: 17.38252786 | T85: 17.40987345 | U85: 17.42941927 | V85: 17.50569534 | W85: 17.64712033 | X85: 166.7848931 | Y85: 16.68842318 | Z85: 0 | AA85: 0.9464017823 | AB85: 16.05825096 | AC85: 1.588869367 | AD85: 17.64712033 | AE85: 1.074171891 | AF85: 2.828 | AG85: 5 | AH85: 24.56837496 | AI85: =MMULT(W85:OFFSET(W85,0,-MIN(year-yr0, ageMax)), AH85:OFFSET(AH85,-MIN(year-yr0, ageMax),0)) * 3412 *10 ^ (-9) -> 0.01398084472 | AJ85: 154.7184143 | AK85: 2.730334474 | AL85: 0.5326560783
B86: 2050 | C86: 2.936153614e-30 | D86: 3.24945967e-22 | E86: 5.411488905e-16 | F86: 2.982644066e-11 | G86: 1.063074132e-07 | H86: 4.339965788e-05 | I86: 0.00329205333 | J86: 0.06921936574 | K86: 0.5584806145 | L86: 2.241028857 | M86: 5.469539119 | N86: 9.45734242 | O86: 12.97941758 | P86: 15.36526637 | Q86: 16.64700552 | R86: 17.1873275 | S86: 17.35980904 | T86: 17.42210591 | U86: 17.50542232 | V86: 17.64712033 | W86: 17.83116969 | X86: 167.7435902 | Y86: 16.87247255 | Z86: 0 | AA86: 0.9464017823 | AB86: 16.24230033 | AC86: 1.588869367 | AD86: 17.83116969 | AE86: 1.080346344 | AF86: 2.828 | AG86: 5 | AH86: 24.56837496 | AI86: =MMULT(W86:OFFSET(W86,0,-MIN(year-yr0, ageMax)), AH86:OFFSET(AH86,-MIN(year-yr0, ageMax),0)) * 3412 *10 ^ (-9) -> 0.01406121187 | AJ86: 154.7184143 | AK86: 2.7588103 | AL86: 0.5388046459
B87: 2051 | C87: 3.009278629e-30 | D87: 3.307177191e-22 | E87: 5.472557045e-16 | F87: 2.987218862e-11 | G87: 1.056374345e-07 | H87: 4.306676316e-05 | I87: 0.003278988422 | J87: 0.06941059738 | K87: 0.5642089012 | L87: 2.275335443 | M87: 5.557061275 | N87: 9.578099821 | O87: 13.07827976 | P87: 15.40572777 | Q87: 16.6361518 | R87: 17.1648638 | S87: 17.37200632 | T87: 17.49807706 | U87: 17.64684509 | V87: 17.83116969 | W87: 18.02172783 | X87: 168.7022873 | Y87: 17.06303069 | Z87: 0 | AA87: 0.9464017823 | AB87: 16.43285846 | AC87: 1.588869367 | AD87: 18.02172783 | AE87: 1.086520797 | AF87: 2.828 | AG87: 5 | AH87: 24.56837496 | AI87: =MMULT(W87:OFFSET(W87,0,-MIN(year-yr0, ageMax)), AH87:OFFSET(AH87,-MIN(year-yr0, ageMax),0)) * 3412 *10 ^ (-9) -> 0.01414157798 | AJ87: 154.7184143 | AK87: 2.788293152 | AL87: 0.5450063436
B88: 2052 | C88: 3.062730008e-30 | D88: 3.344498373e-22 | E88: 5.480950885e-16 | F88: 2.968392583e-11 | G88: 1.048271483e-07 | H88: 4.289584754e-05 | I88: 0.00328804725 | J88: 0.07012253579 | K88: 0.5728460418 | L88: 2.311744775 | M88: 5.62801739 | N88: 9.6510547 | O88: 13.11271883 | P88: 15.39568335 | Q88: 16.61440848 | R88: 17.17692411 | S88: 17.44775901 | T88: 17.6394405 | U88: 17.83089159 | V88: 18.02172783 | W88: 18.18431427 | X88: 169.6609845 | Y88: 17.22561713 | Z88: 0 | AA88: 0.9464017823 | AB88: 16.59544491 | AC88: 1.588869367 | AD88: 18.18431427 | AE88: 1.092695251 | AF88: 2.828 | AG88: 5 | AH88: 24.56837496 | AI88: =MMULT(W88:OFFSET(W88,0,-MIN(year-yr0, ageMax)), AH88:OFFSET(AH88,-MIN(year-yr0, ageMax),0)) * 3412 *10 ^ (-9) -> 0.01422194223 | AJ88: 154.7184143 | AK88: 2.813448269 | AL88: 0.5512615468
B89: 2053 | C89: 3.097292627e-30 | D89: 3.349628184e-22 | E89: 5.446408418e-16 | F89: 2.945623689e-11 | G89: 1.044111292e-07 | H89: 4.301435546e-05 | I89: 0.003321772462 | J89: 0.07119600024 | K89: 0.5820125766 | L89: 2.341262611 | M89: 5.670885113 | N89: 9.67646885 | O89: 13.10416944 | P89: 15.37556132 | Q89: 16.62608204 | R89: 17.25182613 | S89: 17.58871594 | T89: 17.82340977 | U89: 18.02144675 | V89: 18.18431427 | W89: 18.29896592 | X89: 170.6196816 | Y89: 17.34026878 | Z89: 0 | AA89: 0.9464017823 | AB89: 16.71009656 | AC89: 1.588869367 | AD89: 18.29896592 | AE89: 1.098869704 | AF89: 2.828 | AG89: 5 | AH89: 24.56837496 | AI89: =MMULT(W89:OFFSET(W89,0,-MIN(year-yr0, ageMax)), AH89:OFFSET(AH89,-MIN(year-yr0, ageMax),0)) * 3412 *10 ^ (-9) -> 0.01430230438 | AJ89: 154.7184143 | AK89: 2.83118699 | AL89: 0.5575706572
B90: 2054 | C90: 3.102043272e-30 | D90: 3.328517901e-22 | E90: 5.404632038e-16 | F90: 2.933933629e-11 | G90: 1.046995848e-07 | H90: 4.345554994e-05 | I90: 0.003372623514 | J90: 0.0723352603 | K90: 0.5894440857 | L90: 2.35909564 | M90: 5.685818271 | N90: 9.670159865 | O90: 13.08704239 | P90: 15.38636443 | Q90: 16.69858204 | R90: 17.39120015 | S90: 17.77215618 | T90: 18.01388498 | U90: 18.18403066 | V90: 18.29896592 | W90: 18.3658827 | X90: 171.5783788 | Y90: 17.40718555 | Z90: 0 | AA90: 0.9464017823 | AB90: 16.77701333 | AC90: 1.588869367 | AD90: 18.3658827 | AE90: 1.105044157 | AF90: 2.828 | AG90: 5 | AH90: 24.56837496 | AI90: =MMULT(W90:OFFSET(W90,0,-MIN(year-yr0, ageMax)), AH90:OFFSET(AH90,-MIN(year-yr0, ageMax),0)) * 3412 *10 ^ (-9) -> 0.01438266507 | AJ90: 154.7184143 | AK90: 2.841540248 | AL90: 0.5639341125
B91: 2055 | C91: 3.082493338e-30 | D91: 3.302986685e-22 | E91: 5.383183108e-16 | F91: 2.942039177e-11 | G91: 1.057734792e-07 | H91: 4.412078526e-05 | I91: 0.003426591366 | J91: 0.0732588832 | K91: 0.5939337885 | L91: 2.365307854 | M91: 5.68211116 | N91: 9.657521044 | O91: 13.09623756 | P91: 15.4534585 | Q91: 16.83348652 | R91: 17.57258042 | S91: 17.96208365 | T91: 18.17640067 | U91: 18.29868052 | V91: 18.3658827 | W91: 18.40266183 | X91: 172.5370759 | Y91: 17.44396469 | Z91: 0 | AA91: 0.9464017823 | AB91: =Y91 - (VLOOKUP(year, demo, iSc+1) *(1-ComboShare)) -> 16.81379246 | AC91: 1.588869367 | AD91: 18.40266183 | AE91: 1.11121861 | AF91: 2.828 | AG91: 5 | AH91: 24.56837496 | AI91: =MMULT(W91:OFFSET(W91,0,-MIN(year-yr0, ageMax)), AH91:OFFSET(AH91,-MIN(year-yr0, ageMax),0)) * 3412 *10 ^ (-9) -> 0.01446302547 | AJ91: 154.7184143 | AK91: 2.847230657 | AL91: 0.5703523758
B92: 2056 | C92: 3.05884924e-30 | D92: 3.289878387e-22 | E92: 5.398055172e-16 | F92: 2.972215415e-11 | G92: 1.073927029e-07 | H92: 4.482679471e-05 | I92: 0.003470344278 | J92: 0.07381688458 | K92: 0.5954977961 | L92: 2.363765691 | M92: 5.674684687 | N92: 9.664306574 | O92: 13.15334526 | P92: 15.57830388 | Q92: 17.00905015 | R92: 17.76037506 | S92: 18.12413201 | T92: 18.29100242 | U92: 18.36559625 | V92: 18.40266183 | W92: 18.43571929 | X92: 173.4957731 | Y92: 17.47702215 | Z92: 0 | AA92: 0.9464017823 | AB92: 16.84684993 | AC92: 1.588869367 | AD92: 18.43571929 | AE92: 1.117393064 | AF92: 2.828 | AG92: 5 | AH92: 24.56837496 | AI92: =MMULT(W92:OFFSET(W92,0,-MIN(year-yr0, ageMax)), AH92:OFFSET(AH92,-MIN(year-yr0, ageMax),0)) * 3412 *10 ^ (-9) -> 0.01454338674 | AJ92: 154.7184143 | AK92: 2.852345255 | AL92: 0.5768259122
B93: 2057 | C93: 3.04670983e-30 | D93: 3.2989673e-22 | E93: 5.453422551e-16 | F93: 3.017715304e-11 | G93: 1.091111733e-07 | H93: 4.539917191e-05 | I93: 0.003496777344 | J93: 0.0740112668 | K93: 0.595109536 | L93: 2.360676268 | M93: 5.678671812 | N93: 9.706448928 | O93: 13.25960848 | P93: 15.74077667 | Q93: 17.19082246 | R93: 17.92060366 | S93: 18.23840421 | T93: 18.35789007 | U93: 18.40237481 | V93: 18.43571929 | W93: 18.48981045 | X93: 174.4544702 | Y93: 17.5311133 | Z93: 0 | AA93: 0.9464017823 | AB93: 16.90094108 | AC93: 1.588869367 | AD93: 18.48981045 | AE93: 1.123567517 | AF93: 2.828 | AG93: 5 | AH93: 24.56837496 | AI93: =MMULT(W93:OFFSET(W93,0,-MIN(year-yr0, ageMax)), AH93:OFFSET(AH93,-MIN(year-yr0, ageMax),0)) * 3412 *10 ^ (-9) -> 0.01462374946 | AJ93: 154.7184143 | AK93: 2.860714152 | AL93: 0.5833551702
B94: 2058 | C94: 3.055126944e-30 | D94: 3.332804518e-22 | E94: 5.536905774e-16 | F94: 3.066004007e-11 | G94: 1.105043746e-07 | H94: 4.574497026e-05 | I94: 0.003505985418 | J94: 0.07396301201 | K94: 0.5943317326 | L94: 2.362334917 | M94: 5.703434333 | N94: 9.784865373 | O94: 13.39789861 | P94: 15.9089952 | Q94: 17.34591273 | R94: 18.03359262 | S94: 18.30509952 | T94: 18.3946532 | U94: 18.43543176 | V94: 18.48981045 | W94: 18.57929206 | X94: 175.4131673 | Y94: 17.62059491 | Z94: 0 | AA94: 0.9464017823 | AB94: 16.99042269 | AC94: 1.588869367 | AD94: 18.57929206 | AE94: 1.12974197 | AF94: 2.828 | AG94: 5 | AH94: 24.56837496 | AI94: =MMULT(W94:OFFSET(W94,0,-MIN(year-yr0, ageMax)), AH94:OFFSET(AH94,-MIN(year-yr0, ageMax),0)) * 3412 *10 ^ (-9) -> 0.01470411365 | AJ94: 154.7184143 | AK94: 2.874558605 | AL94: 0.5899405774
B95: 2059 | C95: 3.086463113e-30 | D95: 3.383824453e-22 | E95: 5.625505914e-16 | F95: 3.105152708e-11 | G95: 1.11346069e-07 | H95: 4.586543062e-05 | I95: 0.003503699542 | J95: 0.07386634295 | K95: 0.5947493197 | L95: 2.372636158 | M95: 5.749511229 | N95: 9.886915919 | O95: 13.54107927 | P95: 16.05252122 | Q95: 17.45527828 | R95: 18.09953896 | S95: 18.34175693 | T95: 18.42769628 | U95: 18.48952207 | V95: 18.57929206 | W95: 18.70395079 | X95: 176.3718645 | Y95: 17.74525364 | Z95: 0 | AA95: 0.9464017823 | AB95: 17.11508142 | AC95: 1.588869367 | AD95: 18.70395079 | AE95: 1.135916423 | AF95: 2.828 | AG95: 5 | AH95: 24.56837496 | AI95: =MMULT(W95:OFFSET(W95,0,-MIN(year-yr0, ageMax)), AH95:OFFSET(AH95,-MIN(year-yr0, ageMax),0)) * 3412 *10 ^ (-9) -> 0.01478447882 | AJ95: 154.7184143 | AK95: 2.893845606 | AL95: 0.5965825449
B96: 2060 | C96: 3.133711953e-30 | D96: 3.43797154e-22 | E96: 5.697335973e-16 | F96: 3.128804168e-11 | G96: 1.116392769e-07 | H96: 4.58355267e-05 | I96: 0.003499120235 | J96: 0.07391824263 | K96: 0.5973427946 | L96: 2.391804208 | M96: 5.809475341 | N96: 9.992575408 | O96: 13.66324269 | P96: 16.15373197 | Q96: 17.5191098 | R96: 18.13578472 | S96: 18.37470498 | T96: 18.48176389 | U96: 18.57900228 | V96: 18.70395079 | W96: 18.85060945 | X96: 177.3305616 | Y96: 17.8919123 | Z96: 0 | AA96: 0.9464017823 | AB96: 17.26174008 | AC96: 1.588869367 | AD96: 18.85060945 | AE96: 1.142090877 | AF96: 2.828 | AG96: 5 | AH96: 24.56837496 | AI96: =MMULT(W96:OFFSET(W96,0,-MIN(year-yr0, ageMax)), AH96:OFFSET(AH96,-MIN(year-yr0, ageMax),0)) * 3412 *10 ^ (-9) -> 0.01486484419 | AJ96: 154.7184143 | AK96: 2.916536402 | AL96: 0.6032814745
B97: 2061 | C97: 3.183856804e-30 | D97: 3.481869761e-22 | E97: 5.740731685e-16 | F97: 3.137043257e-11 | G97: 1.11566489e-07 | H97: 4.577562004e-05 | I97: 0.003501578773 | J97: 0.07424057189 | K97: 0.6021686066 | L97: 2.416749357 | M97: 5.87156004 | N97: 10.08272533 | O97: 13.74938909 | P97: 16.21280392 | Q97: 17.55419321 | R97: 18.16836278 | S97: 18.42861712 | T97: 18.57120656 | U97: 18.70365907 | V97: 18.85060945 | W97: 18.99942621 | X97: 178.2892588 | Y97: 18.04072907 | Z97: 0 | AA97: 0.9464017823 | AB97: 17.41055685 | AC97: 1.588869367 | AD97: 18.99942621 | AE97: 1.14826533 | AF97: 2.828 | AG97: 5 | AH97: 24.56837496 | AI97: =MMULT(W97:OFFSET(W97,0,-MIN(year-yr0, ageMax)), AH97:OFFSET(AH97,-MIN(year-yr0, ageMax),0)) * 3412 *10 ^ (-9) -> 0.01494520898 | AJ97: 154.7184143 | AK97: 2.939561096 | AL97: 0.61003777
B98: 2062 | C98: =D97 * C$7 - IF(age<4, 0, $X97*pEarlyRepl*D97/SUM($D97:$T97)) -> 3.224510326e-30 | D98: =E97 * D$7 - IF(age<4, 0, $X97*pEarlyRepl*E97/SUM($D97:$T97)) -> 3.508390615e-22 | E98: =F97 * E$7 - IF(age<4, 0, $X97*pEarlyRepl*F97/SUM($D97:$T97)) -> 5.75584877e-16 | F98: =G97 * F$7 - IF(age<4, 0, $X97*pEarlyRepl*G97/SUM($D97:$T97)) -> 3.134997928e-11 | G98: =H97 * G$7 - IF(age<4, 0, $X97*pEarlyRepl*H97/SUM($D97:$T97)) -> 1.114206725e-07 | H98: =I97 * H$7 - IF(age<4, 0, $X97*pEarlyRepl*I97/SUM($D97:$T97)) -> 4.580778273e-05 | I98: =J97 * I$7 - IF(age<4, 0, $X97*pEarlyRepl*J97/SUM($D97:$T97)) -> 0.003516847822 | J98: =K97 * J$7 - IF(age<4, 0, $X97*pEarlyRepl*K97/SUM($D97:$T97)) -> 0.0748403465 | K98: =L97 * K$7 - IF(age<4, 0, $X97*pEarlyRepl*L97/SUM($D97:$T97)) -> 0.6084488806 | L98: =M97 * L$7 - IF(age<4, 0, $X97*pEarlyRepl*M97/SUM($D97:$T97)) -> 2.442576673 | M98: =N97 * M$7 - IF(age<4, 0, $X97*pEarlyRepl*N97/SUM($D97:$T97)) -> 5.924531435 | N98: =O97 * N$7 - IF(age<4, 0, $X97*pEarlyRepl*O97/SUM($D97:$T97)) -> 10.14629666 | O98: =P97 * O$7 - IF(age<4, 0, $X97*pEarlyRepl*P97/SUM($D97:$T97)) -> 13.7996687 | P98: =Q97 * P$7 - IF(age<4, 0, $X97*pEarlyRepl*Q97/SUM($D97:$T97)) -> 16.24527134 | Q98: =R97 * Q$7 - IF(age<4, 0, $X97*pEarlyRepl*R97/SUM($D97:$T97)) -> 17.58572653 | R98: =S97 * R$7 - IF(age<4, 0, $X97*pEarlyRepl*S97/SUM($D97:$T97)) -> 18.2216695 | S98: =T97 * S$7 - IF(age<4, 0, $X97*pEarlyRepl*T97/SUM($D97:$T97)) -> 18.51780258 | T98: =U97 * T$7 - IF(age<4, 0, $X97*pEarlyRepl*U97/SUM($D97:$T97)) -> 18.69581104 | U98: =V97 * U$7 - IF(age<4, 0, $X97*pEarlyRepl*V97/SUM($D97:$T97)) -> 18.85031544 | V98: 18.99942621 | W98: 19.13200781 | X98: 179.2479559 | Y98: 18.17331067 | Z98: 0 | AA98: 0.9464017823 | AB98: 17.54313844 | AC98: =VLOOKUP(year,HousingStarts, 1+iSc) * AA98 * (1-ComboShare) -> 1.588869367 | AD98: 19.13200781 | AE98: 1.154439783 | AF98: 2.828 | AG98: 5 | AH98: 24.56837496 | AI98: =MMULT(W98:OFFSET(W98,0,-MIN(year-yr0, ageMax)), AH98:OFFSET(AH98,-MIN(year-yr0, ageMax),0)) * 3412 *10 ^ (-9) -> 0.01502557269 | AJ98: 154.7184143 | AK98: 2.96007391 | AL98: 0.6168518494
B99: 2063 | C99: 3.249070913e-30 | D99: 3.51762927e-22 | E99: 5.752096e-16 | F99: 3.130900511e-11 | G99: 1.114989584e-07 | H99: 4.600753299e-05 | I99: 0.003545259727 | J99: 0.07562088849 | K99: 0.6149512518 | L99: 2.464612843 | M99: 5.961885458 | N99: 10.18340025 | O99: 13.82730362 | P99: 16.27445339 | Q99: 17.63732377 | R99: 18.30985344 | S99: 18.64204874 | T99: 18.84240588 | U99: 18.99912989 | V99: 19.13200781 | W99: 19.23806444 | X99: 180.2066531 | Y99: 18.27936729 | Z99: 0 | AA99: 0.9464017823 | AB99: 17.64919507 | AC99: 1.588869367 | AD99: 19.23806444 | AE99: 1.160614236 | AF99: 2.828 | AG99: 5 | AH99: 24.56837496 | AI99: =MMULT(W99:OFFSET(W99,0,-MIN(year-yr0, ageMax)), AH99:OFFSET(AH99,-MIN(year-yr0, ageMax),0)) * 3412 *10 ^ (-9) -> 0.01510593528 | AJ99: 154.7184143 | AK99: 2.976482823 | AL99: 0.6237241528
B100: 2064 | C100: 3.257626701e-30 | D100: 3.515335802e-22 | E100: 5.744578057e-16 | F100: 3.133100332e-11 | G100: 1.119851628e-07 | H100: 4.637921858e-05 | I100: 0.003582234757 | J100: 0.07642903377 | K100: 0.6204991514 | L100: 2.480152165 | M100: 5.983687244 | N100: 10.20379332 | O100: 13.85214218 | P100: 16.3222033 | Q100: 17.72267976 | R100: 18.43270436 | S100: 18.78822203 | T100: 18.99115788 | U100: 19.13170942 | V100: 19.23806444 | W100: 19.31827719 | X100: 181.1653502 | Y100: 18.35958005 | Z100: 0 | AA100: 0.9464017823 | AB100: 17.72940783 | AC100: 1.588869367 | AD100: 19.31827719 | AE100: 1.16678869 | AF100: 2.828 | AG100: 5 | AH100: 24.56837496 | AI100: =MMULT(W100:OFFSET(W100,0,-MIN(year-yr0, ageMax)), AH100:OFFSET(AH100,-MIN(year-yr0, ageMax),0)) * 3412 *10 ^ (-9) -> 0.01518629713 | AJ100: 154.7184143 | AK100: 2.988893214 | AL100: 0.6306551405
B101: 2065 | C101: 3.255502753e-30 | D101: 3.510741287e-22 | E101: 5.74861429e-16 | F101: 3.146762588e-11 | G101: 1.128898684e-07 | H101: 4.686292729e-05 | I101: 0.003620517382 | J101: 0.07711855282 | K101: 0.6244113831 | L101: 2.489221737 | M101: 5.995670051 | N101: 10.22212282 | O101: 13.89278493 | P101: 16.40119476 | Q101: 17.84159101 | R101: 18.57723616 | S101: 18.93654628 | T101: 19.12368178 | U101: 19.23776439 | V101: 19.31827719 | W101: 19.38275881 | X101: 182.1240473 | Y101: 18.42406167 | Z101: 0 | AA101: 0.9464017823 | AB101: 17.79388945 | AC101: 1.588869367 | AD101: 19.38275881 | AE101: 1.172963143 | AF101: 2.828 | AG101: 5 | AH101: 24.56837496 | AI101: =MMULT(W101:OFFSET(W101,0,-MIN(year-yr0, ageMax)), AH101:OFFSET(AH101,-MIN(year-yr0, ageMax),0)) * 3412 *10 ^ (-9) -> 0.01526665887 | AJ101: 154.7184143 | AK101: 2.998869708 | AL101: 0.6376452861
B102: 2066 | C102: 3.251247837e-30 | D102: 3.51320799e-22 | E102: 5.773681804e-16 | F102: 3.172184648e-11 | G102: 1.140672451e-07 | H102: 4.7363742e-05 | I102: 0.003653180568 | J102: 0.07760478338 | K102: 0.6266947687 | L102: 2.4942066 | M102: 6.006440322 | N102: 10.25211494 | O102: 13.96001919 | P102: 16.51123943 | Q102: 17.98148786 | R102: 18.72389477 | S102: 19.06868909 | T102: 19.22969225 | U102: 19.31797589 | V102: 19.38275881 | W102: 19.44622511 | X102: 183.0827445 | Y102: 18.48752797 | Z102: 0 | AA102: 0.9464017823 | AB102: 17.85735574 | AC102: 1.588869367 | AD102: 19.44622511 | AE102: 1.179137596 | AF102: 2.828 | AG102: 5 | AH102: 24.56837496 | AI102: =MMULT(W102:OFFSET(W102,0,-MIN(year-yr0, ageMax)), AH102:OFFSET(AH102,-MIN(year-yr0, ageMax),0)) * 3412 *10 ^ (-9) -> 0.01534702108 | AJ102: 154.7184143 | AK102: 3.008689113 | AL102: 0.6446950659
B103: 2067 | C103: 3.253532216e-30 | D103: 3.52852775e-22 | E103: 5.820326215e-16 | F103: 3.205268719e-11 | G103: 1.152862589e-07 | H103: 4.7791043e-05 | I103: 0.00367621378 | J103: 0.07788857328 | K103: 0.6279497746 | L103: 2.498687047 | M103: 6.024063463 | N103: 10.30173015 | O103: 14.05368467 | P103: 16.64070493 | Q103: 18.12344332 | R103: 18.85455366 | S103: 19.17439471 | T103: 19.3098701 | U103: 19.38245651 | V103: 19.44622511 | W103: 19.5220655 | X103: 184.0414416 | Y103: 18.56336836 | Z103: 0 | AA103: 0.9464017823 | AB103: 17.93319613 | AC103: 1.588869367 | AD103: =SUM(AB103:AC103) -> 19.5220655 | AE103: 1.185312049 | AF103: 2.828 | AG103: 5 | AH103: 24.56837496 | AI103: =MMULT(W103:OFFSET(W103,0,-MIN(year-yr0, ageMax)), AH103:OFFSET(AH103,-MIN(year-yr0, ageMax),0)) * 3412 *10 ^ (-9) -> 0.0154273841 | AJ103: 154.7184143 | AK103: 3.020423018 | AL103: 0.6518049495
B104: 2068 | C104: 3.267719629e-30 | D104: 3.557034014e-22 | E104: 5.881028887e-16 | F104: 3.239522783e-11 | G104: 1.163263358e-07 | H104: 4.809236434e-05 | I104: 0.003689657183 | J104: 0.07804455131 | K104: 0.6290777868 | L104: 2.506018297 | M104: 6.053216974 | N104: 10.37085014 | O104: 14.16388035 | P104: 16.77207553 | Q104: 18.24991214 | R104: 18.95907224 | S104: 19.254342 | T104: 19.37432366 | U104: 19.44592182 | V104: =W103 * V$7 - IF(age<4, 0, $X103*pEarlyRepl*W103/SUM($D103:$T103)) -> 19.5220655 | W104: =AD104 -> 19.61759992 | X104: =SUM(C104:W104) -> 185.0001388 | Y104: =X103-SUM(C104:V104) -> 18.65890278 | Z104: 0 | AA104: 0.9464017823 | AB104: 18.02873055 | AC104: 1.588869367 | AD104: =SUM(AB104:AC104) -> 19.61759992 | AE104: =X104 /VLOOKUP($B104,HousingStock,2) -> 1.191486503 | AF104: 2.828 | AG104: =MATCH(AF104, Eff_MWO) -> 5 | AH104: 24.56837496 | AI104: =MMULT(W104:OFFSET(W104,0,-MIN(year-yr0, ageMax)), AH104:OFFSET(AH104,-MIN(year-yr0, ageMax),0)) * 3412 *10 ^ (-9) -> 0.01550774794 | AJ104: 154.7184143 | AK104: =W104 * AJ104 * 0.001 -> 3.035203952 | AL104: =AI104 * VLOOKUP(year,ElecPrice,1+iSc) -> 0.658975396
B105: 2069 | C105: 3.294118877e-30 | D105: 3.594131844e-22 | E105: 5.943878264e-16 | F105: 3.268748754e-11 | G105: 1.170597705e-07 | H105: 4.826823142e-05 | I105: 0.003697046013 | J105: 0.07818474597 | K105: 0.6309235266 | L105: 2.518146195 | M105: 6.093831349 | N105: 10.45216852 | O105: 14.27569758 | P105: 16.88911425 | Q105: 18.35107894 | R105: 19.03812175 | S105: 19.31861021 | T105: 19.43776233 | U105: 19.52176102 | V105: =W104 * V$7 - IF(age<4, 0, $X104*pEarlyRepl*W104/SUM($D104:$T104)) -> 19.61759992 | W105: =AD105 -> 19.73209013 | X105: =SUM(C105:W105) -> 185.9588359 | Y105: =X104-SUM(C105:V105) -> 18.77339299 | Z105: 0 | AA105: 0.9464017823 | AB105: 18.14322077 | AC105: 1.588869367 | AD105: =SUM(AB105:AC105) -> 19.73209013 | AE105: =X105 /VLOOKUP($B105,HousingStock,2) -> 1.197660956 | AF105: 2.828 | AG105: =MATCH(AF105, Eff_MWO) -> 5 | AH105: =VLOOKUP(year, BaseUEC_MWO,2) -> 24.56837496 | AI105: =MMULT(W105:OFFSET(W105,0,-MIN(year-yr0, ageMax)), AH105:OFFSET(AH105,-MIN(year-yr0, ageMax),0)) * 3412 *10 ^ (-9) -> 0.01558811229 | AJ105: 154.7184143 | AK105: =W105 * AJ105 * 0.001 -> 3.052917696 | AL105: =AI105 * VLOOKUP(year,ElecPrice,1+iSc) -> 0.6662068546
B106: 2070 | C106: 3.328474652e-30 | D106: 3.63254161e-22 | E106: 5.997502092e-16 | F106: 3.289358133e-11 | G106: 1.174878418e-07 | H106: 4.836489238e-05 | I106: 0.00370368717 | J106: 0.0784141432 | K106: 0.6339768869 | L106: 2.535041829 | M106: 6.141613401 | N106: 10.53468352 | O106: 14.3753161 | P106: 16.98273759 | Q106: 18.42759343 | R106: 19.10166825 | S106: 19.38186646 | T106: 19.51356972 | U106: 19.61729395 | V106: =W105 * V$7 - IF(age<4, 0, $X105*pEarlyRepl*W105/SUM($D105:$T105)) -> 19.73209013 | W106: =AD106 -> 19.85791547 | X106: =SUM(C106:W106) -> 186.9175331 | Y106: =X105-SUM(C106:V106) -> 18.89921833 | Z106: 0 | AA106: 0.9464017823 | AB106: 18.2690461 | AC106: 1.588869367 | AD106: =SUM(AB106:AC106) -> 19.85791547 | AE106: =X106 /VLOOKUP($B106,HousingStock,2) -> 1.203835409 | AF106: =VLOOKUP(year, BaseEF_MWO,2) -> 2.828 | AG106: =MATCH(AF106, Eff_MWO) -> 5 | AH106: =VLOOKUP(year, BaseUEC_MWO,2) -> 24.56837496 | AI106: =MMULT(W106:OFFSET(W106,0,-MIN(year-yr0, ageMax)), AH106:OFFSET(AH106,-MIN(year-yr0, ageMax),0)) * 3412 *10 ^ (-9) -> 0.01566847672 | AJ106: =VLOOKUP(year, BasePrice_MWO, 2) -> 154.7184143 | AK106: =W106 * AJ106 * 0.001 -> 3.072385192 | AL106: =AI106 * VLOOKUP(year,ElecPrice,1+iSc) -> 0.6734997712

Sheet Standards Case - PC1
B1: =RIGHT(CELL("filename",A1), LEN(CELL("filename",A1)) - FIND("]",CELL("filename",A1))) -> Standards Case - PC1
B3: Historical and Forecasted Shipments for PC1
B4: Standards Case
Y5: Market Segments | AB5: Annual Shipments | AI5: UEC | AK5: Cumulative | AL5: Total Energy (site) | AM5: Incr. Equip. Cost | AO5: Oper Cost | AP5: delta UEC | AQ5: Energy Saving | AS5: Discounted Values | AZ5: Power Generation | BB5: 0.05 | BC5: 0.03 | BD5: 0.025 | BE5: 0.03 | BG5: 0.05 | BH5: 0.03 | BI5: 0.025 | BJ5: 0.03 | BK5: 0.03 | BL5: 0.03 | BM5: 0.03 | BN5: 0.07 | BO5: 0.07 | BP5: 0.07 | BR5: 0.03 | BS5: 0.03 | BT5: 0.03 | BU5: 0.07 | BV5: 0.07 | BW5: 0.07
B6: Year | C6: 20 | D6: =C6 - 1 -> 19 | E6: 18 | F6: 17 | G6: =F6 - 1 -> 16 | H6: 15 | I6: 14 | J6: 13 | K6: 12 | L6: 11 | M6: 10 | N6: 9 | O6: 8 | P6: 7 | Q6: 6 | R6: 5 | S6: 4 | T6: 3 | U6: 2 | V6: 1 | W6: New Shipment | X6: Total Stock | Y6: Retiring Units | Z6: % Early Repl. | AA6: Saturation in New Houses | AB6: MS Impact | AC6: Repl. Units | AD6: New Units | AE6: Total Shipment | AF6: Saturation | AG6: Efficiency | AI6: Elec | AJ6: Shipment Impact | AK6: Shipment Impact | AL6: Elec | AM6: per Unit | AN6: Total | AO6: Fuel | AP6: Elec | AQ6: Energy Savings | AR6: Oper. Cost Saving | AS6: Discount Factor (Non-monetized) | AT6: Discounted Energy Savings | AU6: Discount Factor (Monetary) | AV6: Incr. Equip. Cost | AW6: Oper. Cost Saving | AY6: Year | AZ6: CO2 Marg. Emiss. rate | BA6: NOx Marg. Emiss. rate | BB6: CO2 Price $/ton (1) | BC6: CO2 Price $/ton (2) | BD6: CO2 Price $/ton (3) | BE6: CO2 Price $/ton (4) | BF6: CO2 reduction | BG6: CO2 Value (1) | BH6: CO2 Value (2) | BI6: CO2 Value (3) | BJ6: CO2 Value (4) | BK6: NOx Price $/kt (1) | BL6: NOx Price $/kt (2) | BM6: NOx Price $/kt (3) | BN6: NOx Price $/kt (4) | BO6: NOx Price $/kt (5) | BP6: NOx Price $/kt (6) | BQ6: NOx reduction | BR6: NOx Value (1) | BS6: NOx Value (2) | BT6: NOx Value (3) | BU6: NOx Value (4) | BV6: NOx Value (5) | BW6: NOx Value (6)
B7: Survival | C7: =INDEX(fSurv, age) -> 9.260858524e-09 | D7: 6.111399744e-07 | E7: 1.834800575e-05 | F7: 0.0002809981704 | G7: 0.002434061458 | H7: 0.0130820369 | I7: 0.0473709689 | J7: 0.1242847031 | K7: 0.2517633361 | L7: 0.4160013108 | M7: 0.5875922673 | N7: 0.7379452709 | O7: 0.8511586747 | P7: 0.9254353732 | Q7: 0.9679312737 | R7: 0.9887703122 | S7: 0.9971243669 | T7: 0.9995804014 | U7: 0.9999844034 | V7: 1 | X7: million | Y7: million | AB7: % | AC7: million | AD7: million | AE7: million | AG7: EF | AI7: kWh/yr | AJ7: million | AL7: quad | AM7: $ | AN7: billion $ | AO7: billion $ | AP7: kWh/yr | AQ7: quad | AR7: billion $ | AT7: quad | AV7: billion $ | AW7: billion $ | AZ7: Mt/quad | BA7: kt/quad | BB7: 2007 $ | BC7: 2007 $ | BD7: 2007 $ | BE7: 2007 $ | BF7: Mt | BG7: million 2010$ | BK7: million 2010$ | BQ7: kt | BR7: million 2010$
B8: 1972 | C8: 0 | D8: 0 | E8: 0 | F8: 0 | G8: 0 | H8: 0 | I8: 0 | J8: 0 | K8: 0 | L8: 0 | M8: 0 | N8: 0 | O8: 0 | P8: 0 | Q8: 0 | R8: 0 | S8: 0 | T8: 0 | U8: 0 | V8: 0 | W8: ='Base Case - PC1'!W8 -> 0.2936556449 | AY8: 1972
B9: =B8+1 -> 1973 | C9: =D8 * C$7 -> 0 | D9: 0 | E9: 0 | F9: 0 | G9: 0 | H9: 0 | I9: 0 | J9: 0 | K9: 0 | L9: 0 | M9: 0 | N9: 0 | O9: 0 | P9: 0 | Q9: 0 | R9: 0 | S9: 0 | T9: 0 | U9: 0 | V9: =W8 * V$7 -> 0.2936556449 | W9: ='Base Case - PC1'!W9 -> 0.4161680318 | AY9: 1973
B10: 1974 | C10: 0 | D10: 0 | E10: 0 | F10: 0 | G10: 0 | H10: 0 | I10: 0 | J10: 0 | K10: 0 | L10: 0 | M10: 0 | N10: 0 | O10: 0 | P10: 0 | Q10: 0 | R10: 0 | S10: 0 | T10: 0 | U10: 0.2936510649 | V10: =W9 * V$7 -> 0.4161680318 | W10: ='Base Case - PC1'!W10 -> 0.66680406 | AY10: 1974
B11: 1975 | C11: 0 | D11: 0 | E11: 0 | F11: 0 | G11: 0 | H11: 0 | I11: 0 | J11: 0 | K11: 0 | L11: 0 | M11: 0 | N11: 0 | O11: 0 | P11: 0 | Q11: 0 | R11: 0 | S11: 0 | T11: 0.2935278493 | U11: 0.416161541 | V11: 0.66680406 | W11: ='Base Case - PC1'!W11 -> 0.9838399314 | AY11: 1975
B12: 1976 | C12: 0 | D12: 0 | E12: 0 | F12: 0 | G12: 0 | H12: 0 | I12: 0 | J12: 0 | K12: 0 | L12: 0 | M12: 0 | N12: 0 | O12: 0 | P12: 0 | Q12: 0 | R12: 0 | S12: 0.2926837709 | T12: 0.4159869202 | U12: 0.6667936601 | V12: 0.9838399314 | W12: ='Base Case - PC1'!W12 -> 1.635680646 | AY12: 1976
B13: 1977 | C13: 0 | D13: 0 | E13: 0 | F13: 0 | G13: 0 | H13: 0 | I13: 0 | J13: 0 | K13: 0 | L13: 0 | M13: 0 | N13: 0 | O13: 0 | P13: 0 | Q13: 0 | R13: 0.2893970235 | S13: 0.4147906944 | T13: 0.6665138744 | U13: 0.9838245868 | V13: 1.635680646 | W13: ='Base Case - PC1'!W13 -> 2.017245943 | AY13: 1977
B14: 1978 | C14: 0 | D14: 0 | E14: 0 | F14: 0 | G14: 0 | H14: 0 | I14: 0 | J14: 0 | K14: 0 | L14: 0 | M14: 0 | N14: 0 | O14: 0 | P14: 0 | Q14: 0.2801164296 | R14: 0.4101327244 | S14: 0.664597225 | T14: 0.9834117754 | U14: 1.635655135 | V14: 2.017245943 | W14: ='Base Case - PC1'!W14 -> 2.33895786 | AI14: =AI15 -> 24.56837496 | AY14: 1978
B15: 1979 | C15: 0 | D15: 0 | E15: 0 | F15: 0 | G15: 0 | H15: 0 | I15: 0 | J15: 0 | K15: 0 | L15: 0 | M15: 0 | N15: 0 | O15: 0 | P15: 0.2592296526 | Q15: 0.3969802903 | R15: 0.6571340057 | S15: 0.9805838439 | T15: 1.634968817 | U15: 2.017214481 | V15: 2.33895786 | W15: ='Base Case - PC1'!W15 -> 2.625131832 | AI15: 24.56837496 | AY15: 1979
B16: 1980 | C16: 0 | D16: 0 | E16: 0 | F16: 0 | G16: 0 | H16: 0 | I16: 0 | J16: 0 | K16: 0 | L16: 0 | M16: 0 | N16: 0 | O16: 0.2206455675 | P16: 0.3673796032 | Q16: 0.6360605551 | R16: 0.9695721935 | S16: 1.630267246 | T16: 2.01636806 | U16: 2.33892138 | V16: 2.625131832 | W16: ='Base Case - PC1'!W16 -> 3.374234289 | X16: =SUM(C16:W16) -> 14.17858073 | AI16: 24.56837496 | AY16: 1980
B17: 1981 | C17: 0 | D17: 0 | E17: 0 | F17: 0 | G17: 0 | H17: 0 | I17: 0 | J17: 0 | K17: 0 | L17: 0 | M17: 0 | N17: 0.1628243531 | O17: 0.3126983361 | P17: 0.5886329372 | Q17: 0.9384792482 | R17: 1.611959854 | S17: 2.010569726 | T17: 2.337939972 | U17: 2.625090889 | V17: 3.374234289 | W17: ='Base Case - PC1'!W17 -> 4.135494464 | X17: 18.09792407 | AI17: 24.56837496 | AY17: 1981
B18: 1982 | C18: 0 | D18: 0 | E18: 0 | F18: 0 | G18: 0 | H18: 0 | I18: 0 | J18: 0 | K18: 0 | L18: 0 | M18: 0.09567433081 | N18: 0.2307542584 | O18: 0.5010200307 | P18: 0.8685018933 | Q18: 1.560266355 | R18: 1.987991655 | S18: 2.331216914 | T18: 2.623989405 | U18: 3.374181663 | V18: 4.135494464 | W18: ='Base Case - PC1'!W18 -> 3.807236084 | X18: 21.51632705 | AI18: 24.56837496 | AY18: 1982
B19: 1983 | C19: 0 | D19: 0 | E19: 0 | F19: 0 | G19: 0 | H19: 0 | I19: 0 | J19: 0 | K19: 0 | L19: 0.03980064702 | M19: 0.1355894179 | N19: 0.3697253623 | O19: 0.7392329205 | P19: 1.443925676 | Q19: 1.924239295 | R19: 2.305038076 | S19: 2.616443774 | T19: 3.372765861 | U19: 4.135429965 | V19: 3.807236084 | W19: ='Base Case - PC1'!W19 -> 5.548595354 | X19: 26.43802243 | AI19: 24.56837496 | AY19: 1983
B20: 1984 | C20: 0 | D20: 0 | E20: 0 | F20: 0 | G20: 0 | H20: 0 | I20: 0 | J20: 0 | K20: 0.01002034367 | L20: 0.05640537556 | M20: 0.2172477639 | N20: 0.5455134378 | O20: 1.229009865 | P20: 1.78075911 | Q20: 2.231118441 | R20: 2.587061927 | S20: 3.363067024 | T20: 4.133694744 | U20: 3.807176704 | V20: 5.548595354 | W20: ='Base Case - PC1'!W20 -> 8.540329138 | X20: 34.04999923 | AI20: 24.56837496 | AY20: 1984
B21: 1985 | C21: 0 | D21: 0 | E21: 0 | F21: 0 | G21: 0 | H21: 0 | I21: 0 | J21: 0.001245375439 | K21: 0.01420080552 | L21: 0.09037535454 | M21: 0.3205394777 | N21: 0.9069420177 | O21: 1.515708564 | P21: 2.064755927 | Q21: 2.504098146 | R21: 3.325300831 | S21: 4.121807755 | T21: 3.805579218 | U21: 5.548508815 | V21: 8.540329138 | W21: ='Base Case - PC1'!W21 -> 10.1778802 | X21: 42.93727163 | AI21: 24.56837496 | AY21: 1985
B22: 1986 | C22: 0 | D22: 0 | E22: 0 | F22: 0 | G22: 0 | H22: 0 | I22: 5.899464118e-05 | J22: 0.001764942899 | K22: =L21 * K$7 -> 0.02275320076 | L22: 0.1333448429 | M22: 0.5329121165 | N22: 1.118509967 | O22: 1.757434918 | P22: 2.317381002 | Q22: 3.218662669 | R22: 4.07552114 | S22: 3.794635769 | T22: 5.546180669 | U22: 8.540195938 | V22: 10.1778802 | W22: ='Base Case - PC1'!W22 -> 11.63774155 | X22: =SUM(C22:W22) -> 52.87497792 | Y22: 0 | AI22: 24.56837496 | AJ22: ='Base Case - PC1'!W22 - W22 -> 0 | AY22: 1986
B23: =B22+1 -> 1987 | C23: 0 | D23: 0 | E23: 0 | F23: 0 | G23: 0 | H23: 7.717700729e-07 | I23: 8.360705517e-05 | J23: 0.002827874802 | K23: 0.0335713425 | L23: 0.221692139 | M23: 0.6572278075 | N23: 1.296890787 | O23: 1.972458943 | P23: 2.978664288 | Q23: 3.944824368 | R23: 3.752023194 | S23: 5.530231888 | T23: 8.536612484 | U23: 10.17772146 | V23: 11.63774155 | W23: ='Base Case - PC1'!W23 -> 11.79298625 | X23: 62.53555875 | Y23: =X22-SUM(C23:V23) -> 2.132405416 | AI23: 24.56837496 | AJ23: ='Base Case - PC1'!W23 - W23 -> 0 | AK23: =AJ23+MMULT(V$7:OFFSET(V$7,0,-MIN(year-_yr2,ageMax)+1),AJ22:OFFSET(AJ22,-MIN(year-_yr2,ageMax)+1,0)) -> 0 | AY23: 1987
B24: 1988 | C24: 0 | D24: 0 | E24: 0 | F24: 0 | G24: 1.878535789e-09 | H24: 1.093750581e-06 | I24: 0.0001339591693 | J24: 0.004172404336 | K24: 0.0558139525 | L24: 0.2734076294 | M24: 0.7620429979 | N24: 1.455566749 | O24: 2.535315948 | P24: 3.650680012 | Q24: 3.631700589 | R24: 5.46812911 | S24: 8.512064318 | T24: 10.1734509 | U24: 11.63756004 | V24: 11.79298625 | W24: ='Base Case - PC1'!W24 -> 10.27514194 | X24: 70.2281679 | Y24: 2.582532796 | AI24: 24.56837496 | AJ24: ='Base Case - PC1'!W24 - W24 -> 0 | AK24: =AJ24+MMULT(V$7:OFFSET(V$7,0,-MIN(year-_yr2,ageMax)+1),AJ23:OFFSET(AJ23,-MIN(year-_yr2,ageMax)+1,0)) -> 0 | AY24: 1988
B25: 1989 | C25: 0 | D25: 0 | E25: 0 | F25: 5.278651198e-13 | G25: 2.662256134e-09 | H25: 1.752458796e-06 | I25: 0.000197650836 | J25: 0.006936820516 | K25: 0.06883401689 | L25: 0.317010886 | M25: 0.8552797662 | N25: 1.870924414 | O25: 3.10730796 | P25: 3.36090419 | Q25: 5.292773174 | R25: 8.416476493 | S25: 10.14419579 | T25: 11.63267693 | U25: 11.79280232 | V25: 10.27514194 | W25: ='Base Case - PC1'!W25 -> 9.68022 | X25: 76.82168412 | Y25: 3.086703784 | AI25: 24.56837496 | AJ25: ='Base Case - PC1'!W25 - W25 -> 0 | AK25: =AJ25+MMULT(V$7:OFFSET(V$7,0,-MIN(year-_yr2,ageMax)+1),AJ24:OFFSET(AJ24,-MIN(year-_yr2,ageMax)+1,0)) -> 0 | AY25: 1989
B26: 1990 | C26: 0 | D26: 0 | E26: 9.685272252e-18 | F26: 7.48089103e-13 | G26: 4.265592413e-09 | H26: 2.585675531e-06 | I26: 0.000328603909 | J26: 0.008555015354 | K26: 0.07981171823 | L26: 0.3557975038 | M26: 1.099340718 | N26: 2.293023215 | O26: 2.860662756 | P26: 4.898119518 | Q26: 8.146570812 | R26: 10.03027964 | S26: 11.59922562 | T26: 11.78785408 | U26: 10.27498169 | V26: 9.68022 | W26: ='Base Case - PC1'!W26 -> 7.61607 | X26: 80.73084348 | Y26: 3.706910641 | AA26: ='Base Case - PC1'!AA26 -> 0 | AD26: ='Base Case - PC1'!AC26 * (1+MSimpact_MWO) -> 0 | AE26: =SUM(AC26:AD26) -> 0 | AF26: =AF27 * AF$41/AF$42 -> 0.7369278446 | AI26: 24.56837496 | AJ26: ='Base Case - PC1'!W26 - W26 -> 0 | AK26: =AJ26+MMULT(V$7:OFFSET(V$7,0,-MIN(year-_yr2,ageMax)+1),AJ25:OFFSET(AJ25,-MIN(year-_yr2,ageMax)+1,0)) -> 0 | AY26: 1990
B27: 1991 | C27: 0 | D27: 5.919057036e-24 | E27: 1.372594316e-17 | F27: 1.198623664e-12 | G27: 6.293693153e-09 | H27: 4.298808464e-06 | I27: 0.0004052593663 | J27: 0.009919375707 | K27: 0.08957676653 | L27: 0.4573271798 | M27: 1.34736271 | N27: 2.111012552 | O27: 4.169076918 | P27: 7.5391248 | Q27: 9.708621348 | R27: 11.46896994 | S27: 11.75395653 | T27: 10.27067032 | U27: 9.680069022 | V27: 7.61607 | W27: ='Base Case - PC1'!W27 -> 6.55677 | X27: 82.77893703 | Y27: 4.508676449 | AA27: ='Base Case - PC1'!AA27 -> 0 | AD27: ='Base Case - PC1'!AC27 * (1+MSimpact_MWO) -> 0 | AE27: 0 | AF27: =AF28 * AF$41/AF$42 -> 0.7549040295 | AI27: 24.56837496 | AJ27: ='Base Case - PC1'!W27 - W27 -> 0 | AK27: =AJ27+MMULT(V$7:OFFSET(V$7,0,-MIN(year-_yr2,ageMax)+1),AJ26:OFFSET(AJ26,-MIN(year-_yr2,ageMax)+1,0)) -> 0 | AY27: 1991
B28: 1992 | C28: 5.481554981e-32 | D28: 8.388472551e-24 | E28: 2.199235387e-17 | F28: 1.768516261e-12 | G28: 1.0463564e-08 | H28: 5.301617985e-06 | I28: 0.0004698904381 | J28: 0.01113302183 | K28: 0.1151382165 | L28: 0.5605046533 | M28: 1.240414652 | N28: 3.076550595 | O28: 6.416991473 | P28: 8.984701621 | Q28: 11.10117468 | R28: 11.62196327 | S28: 10.24113564 | T28: 9.676007278 | U28: 7.615951215 | V28: 6.55677 | W28: ='Base Case - PC1'!W28 -> 7.1181 | X28: 84.33701152 | Y28: 5.560025507 | AA28: ='Base Case - PC1'!AA28 -> 0 | AD28: ='Base Case - PC1'!AC28 * (1+MSimpact_MWO) -> 0 | AE28: 0 | AF28: 0.773318715 | AI28: 24.56837496 | AJ28: ='Base Case - PC1'!W28 - W28 -> 0 | AK28: =AJ28+MMULT(V$7:OFFSET(V$7,0,-MIN(year-_yr2,ageMax)+1),AJ27:OFFSET(AJ27,-MIN(year-_yr2,ageMax)+1,0)) -> 0 | AP28: ='Base Case - PC1'!AH28 - AI28 -> 0 | AY28: 1992
B29: 1993 | C29: 7.768445754e-32 | D29: 1.344040658e-23 | E29: 3.244874653e-17 | F29: 2.940242339e-12 | G29: 1.2904464e-08 | H29: 6.147124052e-06 | I29: 0.0005273820311 | J29: 0.01430991905 | K29: 0.1411145214 | L29: 0.5160141211 | M29: 1.80775734 | N29: 4.735388511 | O29: 7.647406724 | P29: 10.27341973 | Q29: 11.24926171 | R29: 10.12613088 | S29: 9.648182631 | T29: 7.612755573 | U29: 6.556667737 | V29: 7.1181 | W29: ='Base Case - PC1'!W29 -> 7.1676 | X29: 84.61464295 | Y29: 6.889968572 | AA29: ='Base Case - PC1'!AA29 -> 0 | AD29: ='Base Case - PC1'!AC29 * (1+MSimpact_MWO) -> 0 | AE29: 0 | AF29: 0.7921825974 | AI29: 24.56837496 | AJ29: ='Base Case - PC1'!W29 - W29 -> 0 | AK29: =AJ29+MMULT(V$7:OFFSET(V$7,0,-MIN(year-_yr2,ageMax)+1),AJ28:OFFSET(AJ28,-MIN(year-_yr2,ageMax)+1,0)) -> 0 | AP29: ='Base Case - PC1'!AH29 - AI29 -> 0 | AY29: 1993
B30: 1994 | C30: 1.244697039e-31 | D30: 1.983072612e-23 | E30: 5.394758334e-17 | F30: 3.626130775e-12 | G30: 1.496247773e-08 | H30: 6.899231193e-06 | I30: 0.0006778747304 | J30: 0.0175383764 | K30: 0.1299134366 | L30: 0.7520294229 | M30: 2.782477672 | N30: 5.643367627 | O30: 8.744310326 | P30: 10.41046471 | Q30: 9.801398764 | R30: 9.539836552 | S30: 7.590864081 | T30: 6.553916568 | U30: 7.117988982 | V30: 7.1676 | W30: ='Base Case - PC1'!W30 -> 8.48826 | X30: 84.74065131 | Y30: 8.362251642 | AA30: ='Base Case - PC1'!AA30 -> 0 | AD30: ='Base Case - PC1'!AC30 * (1+MSimpact_MWO) -> 0 | AE30: 0 | AF30: 0.8115066343 | AI30: 24.56837496 | AJ30: ='Base Case - PC1'!W30 - W30 -> 0 | AK30: =AJ30+MMULT(V$7:OFFSET(V$7,0,-MIN(year-_yr2,ageMax)+1),AJ29:OFFSET(AJ29,-MIN(year-_yr2,ageMax)+1,0)) -> 0 | AP30: ='Base Case - PC1'!AH30 - AI30 -> 0 | AY30: 1994
B31: 1995 | C31: 1.83649549e-31 | D31: 3.29695247e-23 | E31: 6.653226831e-17 | F31: 4.204428869e-12 | G31: 1.679315274e-08 | H31: 8.867982239e-06 | I31: 0.000830809883 | J31: 0.0161462529 | K31: 0.1893334363 | L31: 1.157514359 | M31: 3.315999179 | N31: 6.452822452 | O31: 8.860957345 | P31: 9.070561123 | Q31: 9.233906145 | R31: 7.505621047 | S31: 6.535069908 | T31: 7.115002284 | U31: 7.16748821 | V31: 8.48826 | W31: ='Base Case - PC1'!W31 -> 8.08038 | X31: 83.18990144 | Y31: 9.63112987 | AA31: ='Base Case - PC1'!AA31 -> 0 | AD31: ='Base Case - PC1'!AC31 * (1+MSimpact_MWO) -> 0 | AE31: 0 | AF31: 0.8313020504 | AI31: 24.56837496 | AJ31: ='Base Case - PC1'!W31 - W31 -> 0 | AK31: =AJ31+MMULT(V$7:OFFSET(V$7,0,-MIN(year-_yr2,ageMax)+1),AJ30:OFFSET(AJ30,-MIN(year-_yr2,ageMax)+1,0)) -> 0 | AP31: ='Base Case - PC1'!AH31 - AI31 -> 0 | AY31: 1995
B32: 1996 | C32: 3.053261039e-31 | D32: 4.066052875e-23 | E32: 7.714288504e-17 | F32: 4.718845196e-12 | G32: 2.158521378e-08 | H32: 1.086868555e-05 | I32: 0.000764863644 | J32: 0.02353124993 | K32: 0.2914196765 | L32: 1.379460005 | M32: 3.791628575 | N32: 6.538901569 | O32: 7.720486785 | P32: 8.545383379 | Q32: 7.26492534 | R32: 6.461683114 | S32: 7.094542147 | T32: 7.164480742 | U32: 8.488127612 | V32: 8.08038 | W32: ='Base Case - PC1'!W32 -> 8.68329 | X32: 81.52901595 | Y32: 10.34417549 | AA32: ='Base Case - PC1'!AA32 -> 0 | AD32: ='Base Case - PC1'!AC32 * (1+MSimpact_MWO) -> 0 | AE32: 0 | AF32: 0.8515803443 | AI32: 24.56837496 | AJ32: ='Base Case - PC1'!W32 - W32 -> 0 | AK32: =AJ32+MMULT(V$7:OFFSET(V$7,0,-MIN(year-_yr2,ageMax)+1),AJ31:OFFSET(AJ31,-MIN(year-_yr2,ageMax)+1,0)) -> 0 | AP32: ='Base Case - PC1'!AH32 - AI32 -> 0 | AY32: 1996
B33: 1997 | C33: 3.765514043e-31 | D33: 4.714510079e-23 | E33: 8.658139876e-17 | F33: 6.065405581e-12 | G33: 2.64550486e-08 | H33: 1.000597442e-05 | I33: 0.001114698109 | J33: 0.03621900798 | K33: 0.3472974528 | L33: 1.577322457 | M33: 3.842207998 | N33: 5.697296712 | O33: 7.273477192 | P33: 6.723218893 | Q33: 6.254465166 | R33: 7.014872654 | S33: 7.143878324 | T33: 8.484566006 | U33: 8.080253974 | V33: 8.68329 | W33: ='Base Case - PC1'!W33 -> 9.05058 | X33: 80.21007057 | Y33: 10.36952538 | AA33: ='Base Case - PC1'!AA33 -> 0 | AD33: ='Base Case - PC1'!AC33 * (1+MSimpact_MWO) -> 0 | AE33: 0 | AF33: 0.8723532949 | AI33: 24.56837496 | AJ33: ='Base Case - PC1'!W33 - W33 -> 0 | AK33: =AJ33+MMULT(V$7:OFFSET(V$7,0,-MIN(year-_yr2,ageMax)+1),AJ32:OFFSET(AJ32,-MIN(year-_yr2,ageMax)+1,0)) -> 0 | AP33: ='Base Case - PC1'!AH33 - AI33 -> 0 | AY33: 1997
B34: 1998 | C34: =D33 *C$7 - IF(age<4, 0, $X33*pEarlyRepl*D33/SUM($D33:$T33)) -> 4.366041085e-31 | D34: =E33 *D$7 - IF(age<4, 0, $X33*pEarlyRepl*E33/SUM($D33:$T33)) -> 5.291335382e-23 | E34: =F33 *E$7 - IF(age<4, 0, $X33*pEarlyRepl*F33/SUM($D33:$T33)) -> 1.112880965e-16 | F34: =G33 *F$7 - IF(age<4, 0, $X33*pEarlyRepl*G33/SUM($D33:$T33)) -> 7.433820255e-12 | G34: =H33 *G$7 - IF(age<4, 0, $X33*pEarlyRepl*H33/SUM($D33:$T33)) -> 2.435515668e-08 | H34: =I33 *H$7 - IF(age<4, 0, $X33*pEarlyRepl*I33/SUM($D33:$T33)) -> 1.458252179e-05 | I34: =J33 *I$7 - IF(age<4, 0, $X33*pEarlyRepl*J33/SUM($D33:$T33)) -> 0.001715729501 | J34: =K33 *J$7 - IF(age<4, 0, $X33*pEarlyRepl*K33/SUM($D33:$T33)) -> 0.04316376082 | K34: =L33 *K$7 - IF(age<4, 0, $X33*pEarlyRepl*L33/SUM($D33:$T33)) -> 0.3971119639 | L34: =M33 *L$7 - IF(age<4, 0, $X33*pEarlyRepl*M33/SUM($D33:$T33)) -> 1.598363564 | M34: =N33 *M$7 - IF(age<4, 0, $X33*pEarlyRepl*N33/SUM($D33:$T33)) -> 3.347687492 | N34: =O33 *N$7 - IF(age<4, 0, $X33*pEarlyRepl*O33/SUM($D33:$T33)) -> 5.367428097 | O34: =P33 *O$7 - IF(age<4, 0, $X33*pEarlyRepl*P33/SUM($D33:$T33)) -> 5.722526083 | P34: =Q33 *P$7 - IF(age<4, 0, $X33*pEarlyRepl*Q33/SUM($D33:$T33)) -> 5.788103306 | Q34: =R33 *Q$7 - IF(age<4, 0, $X33*pEarlyRepl*R33/SUM($D33:$T33)) -> 6.789914623 | R34: =S33 *R$7 - IF(age<4, 0, $X33*pEarlyRepl*S33/SUM($D33:$T33)) -> 7.063654801 | S34: =T33 *S$7 - IF(age<4, 0, $X33*pEarlyRepl*T33/SUM($D33:$T33)) -> 8.460167506 | T34: =U33 *T$7 - IF(age<4, 0, $X33*pEarlyRepl*U33/SUM($D33:$T33)) -> 8.07686351 | U34: =V33 *U$7 - IF(age<4, 0, $X33*pEarlyRepl*V33/SUM($D33:$T33)) -> 8.68315457 | V34: =W33 *V$7 - IF(age<4, 0, $X33*pEarlyRepl*W33/SUM($D33:$T33)) -> 9.05058 | W34: ='Base Case - PC1'!W34 -> 10.26135 | X34: 80.65179961 | Y34: 9.819620955 | AA34: ='Base Case - PC1'!AA34 -> 0 | AD34: ='Base Case - PC1'!AC34 * (1+MSimpact_MWO) -> 0 | AE34: 0 | AF34: 0.8936329687 | AI34: 24.56837496 | AJ34: ='Base Case - PC1'!W34 - W34 -> 0 | AK34: =AJ34+MMULT(V$7:OFFSET(V$7,0,-MIN(year-_yr2,ageMax)+1),AJ33:OFFSET(AJ33,-MIN(year-_yr2,ageMax)+1,0)) -> 0 | AP34: ='Base Case - PC1'!AH34 - AI34 -> 0 | AY34: 1998
B35: 1999 | C35: 4.900230838e-31 | D35: 6.801260442e-23 | E35: 1.363957767e-16 | F35: 6.843754468e-12 | G35: 3.549475426e-08 | H35: 2.244523664e-05 | I35: 0.002044709172 | J35: 0.04935494254 | K35: 0.402409343 | L35: 1.392642385 | M35: 3.153859245 | N35: 4.22291106 | O35: 4.926594339 | P35: 6.283627173 | Q35: 6.837132388 | R35: 8.365162467 | S35: 8.053637414 | T35: 8.679511131 | U35: 9.050438842 | V35: 10.26135 | W35: ='Base Case - PC1'!W35 -> 11.30778 | X35: 82.98847792 | Y35: 8.971101694 | Z35: ='Base Case - PC1'!Z35 -> 0 | AA35: ='Base Case - PC1'!AA35 -> 0 | AD35: ='Base Case - PC1'!AC35 * (1+MSimpact_MWO) -> 0 | AE35: 0 | AF35: 0.9154317264 | AI35: 24.56837496 | AJ35: ='Base Case - PC1'!W35 - W35 -> 0 | AK35: =AJ35+MMULT(V$7:OFFSET(V$7,0,-MIN(year-_yr2,ageMax)+1),AJ34:OFFSET(AJ34,-MIN(year-_yr2,ageMax)+1,0)) -> 0 | AP35: ='Base Case - PC1'!AH35 - AI35 -> 0 | AY35: 1999
B36: 2000 | C36: 6.298551074e-31 | D36: 8.335691151e-23 | E36: 1.255692463e-16 | F36: 9.973961006e-12 | G36: 5.463308543e-08 | H36: 2.674896084e-05 | I36: 0.002337991448 | J36: 0.05001332573 | K36: 0.3506162928 | L36: 1.31200958 | M36: 2.481349885 | N36: 3.635556994 | O36: 5.348363777 | P36: 6.327324163 | Q36: 8.096902361 | R36: 7.96319758 | S36: 8.654552041 | T36: 9.04664129 | U36: 10.26118996 | V36: 11.30778 | W36: ='Base Case - PC1'!W36 -> 12.51756 | X36: 87.35542204 | Y36: 8.150615876 | Z36: ='Base Case - PC1'!Z36 -> 0 | AA36: ='Base Case - PC1'!AA36 -> 0 | AD36: ='Base Case - PC1'!AC36 * (1+MSimpact_MWO) -> 0 | AE36: 0 | AF36: 0.9377622301 | AI36: 24.56837496 | AJ36: ='Base Case - PC1'!W36 - W36 -> 0 | AK36: =AJ36+MMULT(V$7:OFFSET(V$7,0,-MIN(year-_yr2,ageMax)+1),AJ35:OFFSET(AJ35,-MIN(year-_yr2,ageMax)+1,0)) -> 0 | AP36: ='Base Case - PC1'!AH36 - AI36 -> 0 | AY36: 2000
B37: 2001 | C37: 7.719565645e-31 | D37: 7.674038597e-23 | E37: 1.830022939e-16 | F37: 1.535179705e-11 | G37: 6.510861463e-08 | H37: 3.058569041e-05 | I37: 0.002369179698 | J37: 0.04357624186 | K37: 0.3303159088 | L37: 1.032244804 | M37: 2.136225177 | N37: 3.946799756 | O37: 5.385556849 | P37: 7.493159858 | Q37: 7.707827977 | R37: 8.557364124 | S37: 9.020626469 | T37: 10.25688438 | U37: 11.30760364 | V37: 12.51756 | W37: ='Base Case - PC1'!W37 -> 13.31154 | X37: 93.04968501 | Y37: 7.617277033 | Z37: ='Base Case - PC1'!Z37 -> 0 | AA37: ='Base Case - PC1'!AA37 -> 0 | AD37: ='Base Case - PC1'!AC37 * (1+MSimpact_MWO) -> 0 | AE37: 0 | AF37: =AF38 * AF$41/AF$42 -> 0.9606374511 | AI37: 24.56837496 | AJ37: ='Base Case - PC1'!W37 - W37 -> 0 | AK37: =AJ37+MMULT(V$7:OFFSET(V$7,0,-MIN(year-_yr2,ageMax)+1),AJ36:OFFSET(AJ36,-MIN(year-_yr2,ageMax)+1,0)) -> 0 | AP37: ='Base Case - PC1'!AH37 - AI37 -> 0 | AY37: 2001
B38: 2002 | C38: 7.106818576e-31 | D38: 1.118400172e-22 | E38: 2.816748605e-16 | F38: 1.829540159e-11 | G38: 7.444745019e-08 | H38: 3.099369624e-05 | I38: 0.002064248798 | J38: 0.04105321466 | K38: 0.2598813956 | L38: 0.8886724737 | M38: 2.319109017 | N38: 3.974246208 | O38: 6.377868014 | P38: 7.13309666 | Q38: 8.282940356 | R38: 8.91932765 | S38: 10.22738934 | T38: 11.30285898 | U38: 12.51736477 | V38: 13.31154 | W38: ='Base Case - PC1'!W38 -> 13.17789 | X38: 98.7353334 | Y38: 7.492241611 | Z38: ='Base Case - PC1'!Z38 -> 0 | AA38: ='Base Case - PC1'!AA38 -> 0 | AD38: ='Base Case - PC1'!AC38 * (1+MSimpact_MWO) -> 0 | AE38: 0 | AF38: =AF39 * AF$41/AF$42 -> 0.9840706767 | AI38: 24.56837496 | AJ38: ='Base Case - PC1'!W38 - W38 -> 0 | AK38: =AJ38+MMULT(V$7:OFFSET(V$7,0,-MIN(year-_yr2,ageMax)+1),AJ37:OFFSET(AJ37,-MIN(year-_yr2,ageMax)+1,0)) -> 0 | AP38: ='Base Case - PC1'!AH38 - AI38 -> 0 | AY38: 2002
B39: 2003 | C39: 1.035734577e-30 | D39: 1.721427671e-22 | E39: 3.356841335e-16 | F39: 2.09195973e-11 | G39: 7.544056147e-08 | H39: 2.700457895e-05 | I39: 0.001944730555 | J39: 0.0322992821 | K39: 0.2237351467 | L39: 0.964752391 | M39: 2.33523634 | N39: 4.70651754 | O39: 6.0713971 | P39: 7.665325999 | Q39: 8.633296173 | R39: 10.11253895 | S39: 11.27035611 | T39: 12.5121125 | U39: 13.31133239 | V39: 13.17789 | W39: ='Base Case - PC1'!W39 -> 14.13126 | X39: 105.1500217 | Y39: 7.716571673 | Z39: ='Base Case - PC1'!Z39 -> 0 | AA39: ='Base Case - PC1'!AA39 -> 0 | AD39: ='Base Case - PC1'!AC39 * (1+MSimpact_MWO) -> 0 | AE39: 0 | AF39: =AF40 * AF$41/AF$42 -> 1.008075519 | AI39: 24.56837496 | AJ39: ='Base Case - PC1'!W39 - W39 -> 0 | AK39: =AJ39+MMULT(V$7:OFFSET(V$7,0,-MIN(year-_yr2,ageMax)+1),AJ38:OFFSET(AJ38,-MIN(year-_yr2,ageMax)+1,0)) -> 0 | AP39: ='Base Case - PC1'!AH39 - AI39 -> 0 | AY39: 2003
B40: 2004 | C40: 1.594189812e-30 | D40: 2.051499928e-22 | E40: 3.838328914e-16 | F40: 2.119865975e-11 | G40: 6.573080482e-08 | H40: 2.544103689e-05 | I40: 0.001530048288 | J40: 0.02780685628 | K40: 0.2428892805 | L40: 0.9714613784 | M40: 2.765513312 | N40: 4.480358778 | O40: 6.524408719 | P40: 7.989557666 | Q40: 9.788242707 | R40: 11.14379353 | S40: 12.47613225 | T40: 13.30574697 | U40: 13.17768447 | V40: 14.13126 | W40: ='Base Case - PC1'!W40 -> 15.37074 | X40: 112.3971515 | Y40: 8.123610254 | Z40: ='Base Case - PC1'!Z40 -> 0 | AA40: ='Base Case - PC1'!AA40 -> 0 | AD40: ='Base Case - PC1'!AC40 * (1+MSimpact_MWO) -> 0 | AE40: 0 | AF40: =AF41 * AF$41/AF$42 -> 1.032665921 | AI40: 24.56837496 | AJ40: ='Base Case - PC1'!W40 - W40 -> 0 | AK40: =AJ40+MMULT(V$7:OFFSET(V$7,0,-MIN(year-_yr2,ageMax)+1),AJ39:OFFSET(AJ39,-MIN(year-_yr2,ageMax)+1,0)) -> 0 | AP40: ='Base Case - PC1'!AH40 - AI40 -> 0 | AY40: 2004
B41: 2005 | C41: 1.899865059e-30 | D41: 2.345756234e-22 | E41: 3.889531309e-16 | F41: 1.84702359e-11 | G41: 6.192504735e-08 | H41: 2.001614817e-05 | I41: 0.001317237724 | J41: 0.03018742211 | K41: 0.2445783575 | L41: 1.150457163 | M41: 2.632624172 | N41: 4.814656559 | O41: 6.800381314 | P41: 9.058386043 | Q41: 10.78642626 | R41: 12.33602918 | S41: 13.26748452 | T41: 13.17215513 | U41: 14.1310396 | V41: 15.37074 | W41: ='Base Case - PC1'!W41 -> 13.7214 | X41: 117.517883 | Y41: 8.600668423 | Z41: ='Base Case - PC1'!Z41 -> 0 | AA41: ='Base Case - PC1'!AA41 -> 0 | AD41: ='Base Case - PC1'!AC41 * (1+MSimpact_MWO) -> 0 | AE41: 0 | AF41: =X41 /VLOOKUP($B41,HousingStock,2) -> 1.057856167 | AI41: 24.56837496 | AJ41: ='Base Case - PC1'!W41 - W41 -> 0 | AK41: =AJ41+MMULT(V$7:OFFSET(V$7,0,-MIN(year-_yr2,ageMax)+1),AJ40:OFFSET(AJ40,-MIN(year-_yr2,ageMax)+1,0)) -> 0 | AP41: ='Base Case - PC1'!AH41 - AI41 -> 0 | AY41: 2005
B42: 2006 | C42: 2.172371662e-30 | D42: 2.377048065e-22 | E42: 3.388919944e-16 | F42: 1.740082501e-11 | G42: 4.87205348e-08 | H42: 1.723215252e-05 | I42: 0.001430007434 | J42: 0.03039734855 | K42: 0.2896429333 | L42: 1.095175106 | M42: 2.829054964 | N42: 5.018309231 | O42: 7.710123859 | P42: 9.982140413 | Q42: 11.94042844 | R42: 13.11849481 | S42: 13.13427685 | T42: 14.12511024 | U42: 15.37050027 | V42: 13.7214 | W42: ='Base Case - PC1'!W42 -> 13.55013 | X42: 121.9166317 | Y42: 9.151381299 | Z42: ='Base Case - PC1'!Z42 -> 0 | AA42: =AD42/VLOOKUP(B42,HousingStarts,2) -> 0 | AD42: ='Base Case - PC1'!AC42 * (1+MSimpact_MWO) -> 0 | AE42: 0 | AF42: 1.083660888 | AG42: =VLOOKUP(year, StdsEF_MWO, 2) ->  | AH42: =MATCH(AG42, Eff_MWO) ->  | AI42: =AI43 -> 24.56837496 | AJ42: ='Base Case - PC1'!W42 - W42 -> 0 | AK42: =AJ42+MMULT(V$7:OFFSET(V$7,0,-MIN(year-_yr2,ageMax)+1),AJ41:OFFSET(AJ41,-MIN(year-_yr2,ageMax)+1,0)) -> 0 | AP42: ='Base Case - PC1'!AH42 - AI42 -> 0 | AY42: 2006
B43: 2007 | C43: 2.201350583e-30 | D43: 2.071104448e-22 | E43: 3.192704373e-16 | F43: 1.369038114e-11 | G43: 4.194411829e-08 | H43: 1.870741003e-05 | I43: 0.001439951853 | J43: 0.03599818598 | K43: 0.2757249384 | L43: 1.176890573 | M43: 2.948719699 | N43: 5.68964944 | O43: 8.496385405 | P43: 11.05009485 | Q43: 12.69780139 | R43: 12.98678302 | S43: 14.0844916 | T43: 15.36405083 | U43: 13.72118599 | V43: 13.55013 | W43: ='Base Case - PC1'!W43 -> 11.73249 | X43: 123.8118546 | Y43: 9.837267122 | Z43: ='Base Case - PC1'!Z43 -> 0 | AA43: 0 | AB43: =IF(year>2005, (VLOOKUP(year,StdsTCI_MWO,2)/VLOOKUP(year,BaseTCI_MWO,2) - 1) * RPelast, 0) -> 0 | AC43: =Y43 * (1+MSimpact_MWO) - (VLOOKUP(year, demo, iSc+1) *(1-ComboShare)) -> 7.907751541 | AD43: ='Base Case - PC1'!AC43 * (1+MSimpact_MWO) -> 0 | AE43: 7.907751541 | AF43: 1.100748688 | AG43: 2.828 | AH43: 5 | AI43: =VLOOKUP(year, StdsUEC_MWO, 2) -> 24.56837496 | AJ43: ='Base Case - PC1'!W43 - W43 -> 0 | AK43: =AJ43+MMULT(V$7:OFFSET(V$7,0,-MIN(year-_yr2,ageMax)+1),AJ42:OFFSET(AJ42,-MIN(year-_yr2,ageMax)+1,0)) -> 0 | AL43: =MMULT(W43:OFFSET(W43,0,-MIN(year-yr0, ageMax)), AI43:OFFSET(AI43,-MIN(year-yr0, ageMax),0)) * 3412 * 10 ^ (-9) -> 0.01037869063 | AM43: =VLOOKUP(year, StdsPrice_MWO, 2) - VLOOKUP(year,BasePrice_MWO,2) -> 0 | AN43: =W43 * AM43 * 0.001 -> 0 | AO43: =AL43 * VLOOKUP(year,ElecPrice,1+iSc) -> 0.3344321143 | AP43: ='Base Case - PC1'!AH43 - AI43 -> 0 | AQ43: =MMULT(W43:OFFSET(W43,0,-MIN(year-yr0, ageMax)), AP43:OFFSET(AP43,-MIN(year-yr0, ageMax),0)) * 10 ^ (-9)* VLOOKUP(year, Site2Source, 2) -> 0 | AR43: =AQ43 * 3412/ VLOOKUP(year, Site2Source, 2) * VLOOKUP(year,ElecPrice,1+iSc) -> 0 | AS43: =(1+drate2) ^ (yrDsc-year) -> 1.12550881 | AT43: =AQ43*AS43 -> 0 | AU43: =(1+drate) ^ (yrDsc-year) -> 1.12550881 | AV43: =AN43 * AU43 -> 0 | AW43: =AR43* AU43 -> 0 | AY43: 2007
B44: 2008 | C44: 1.918020528e-30 | D44: 1.951189269e-22 | E44: 2.511911919e-16 | F44: 1.17862205e-11 | G44: 4.553498573e-08 | H44: 1.883750328e-05 | I44: 0.001705268949 | J44: 0.03426839211 | K44: 0.2962978969 | L44: 1.22667126 | M44: 3.343194015 | N44: 6.269867429 | O44: 9.405384089 | P44: 11.75099457 | Q44: 12.57031343 | R44: 13.92632716 | S44: 15.31986945 | T44: 13.7154286 | U44: 13.54991866 | V44: 11.73249 | W44: ='Base Case - PC1'!W44 -> 11.2266 | X44: 124.3693491 | Y44: 10.66910552 | Z44: ='Base Case - PC1'!Z44 -> 0 | AA44: 0 | AB44: =IF(year>2005, (VLOOKUP(year,StdsTCI_MWO,2)/VLOOKUP(year,BaseTCI_MWO,2) - 1) * RPelast, 0) -> 0 | AC44: 10.08396602 | AD44: ='Base Case - PC1'!AC44 * (1+MSimpact_MWO) -> 0 | AE44: 10.08396602 | AF44: 1.097447214 | AG44: 2.828 | AH44: 5 | AI44: 24.56837496 | AJ44: ='Base Case - PC1'!W44 - W44 -> 0 | AK44: =AJ44+MMULT(V$7:OFFSET(V$7,0,-MIN(year-_yr2,ageMax)+1),AJ43:OFFSET(AJ43,-MIN(year-_yr2,ageMax)+1,0)) -> 0 | AL44: =MMULT(W44:OFFSET(W44,0,-MIN(year-yr0, ageMax)), AI44:OFFSET(AI44,-MIN(year-yr0, ageMax),0)) * 3412 * 10 ^ (-9) -> 0.01042540163 | AM44: 0 | AN44: 0 | AO44: 0.3515273286 | AP44: ='Base Case - PC1'!AH44 - AI44 -> 0 | AQ44: =MMULT(W44:OFFSET(W44,0,-MIN(year-yr0, ageMax)), AP44:OFFSET(AP44,-MIN(year-yr0, ageMax),0)) * 10 ^ (-9)* VLOOKUP(year, Site2Source, 2) -> 0 | AR44: 0 | AS44: 1.092727 | AT44: 0 | AU44: 1.092727 | AV44: 0 | AW44: 0 | AY44: 2008
B45: 2009 | C45: 1.806968777e-30 | D45: 1.535129786e-22 | E45: 2.162536414e-16 | F45: 1.279524768e-11 | G45: 4.585164071e-08 | H45: 2.230839132e-05 | I45: 0.001623326937 | J45: 0.03682529616 | K45: 0.3088308487 | L45: 1.390773092 | M45: 3.684125618 | N45: 6.940658709 | O45: 10.00196097 | P45: 11.6330127 | Q45: 13.47972758 | R45: 15.1478321 | S45: 13.67598806 | T45: 13.54423314 | U45: 11.73230701 | V45: 11.2266 | W45: ='Base Case - PC1'!W45 -> 9.52974 | X45: 122.3342608 | Y45: 11.5648283 | Z45: ='Base Case - PC1'!Z45 -> 0 | AA45: 0 | AB45: =IF(year>2005, (VLOOKUP(year,StdsTCI_MWO,2)/VLOOKUP(year,BaseTCI_MWO,2) - 1) * RPelast, 0) -> 0 | AC45: 11.29075769 | AD45: ='Base Case - PC1'!AC45 * (1+MSimpact_MWO) -> 0 | AE45: 11.29075769 | AF45: 1.072814691 | AG45: 2.828 | AH45: 5 | AI45: 24.56837496 | AJ45: ='Base Case - PC1'!W45 - W45 -> 0 | AK45: =AJ45+MMULT(V$7:OFFSET(V$7,0,-MIN(year-_yr2,ageMax)+1),AJ44:OFFSET(AJ44,-MIN(year-_yr2,ageMax)+1,0)) -> 0 | AL45: =MMULT(W45:OFFSET(W45,0,-MIN(year-yr0, ageMax)), AI45:OFFSET(AI45,-MIN(year-yr0, ageMax),0)) * 3412 * 10 ^ (-9) -> 0.01025481226 | AM45: 0 | AN45: 0 | AO45: 0.3358273957 | AP45: ='Base Case - PC1'!AH45 - AI45 -> 0 | AQ45: =MMULT(W45:OFFSET(W45,0,-MIN(year-yr0, ageMax)), AP45:OFFSET(AP45,-MIN(year-yr0, ageMax),0)) * 10 ^ (-9)* VLOOKUP(year, Site2Source, 2) -> 0 | AR45: 0 | AS45: 1.0609 | AT45: 0 | AU45: 1.0609 | AV45: 0 | AW45: 0 | AY45: 2009
